Workbook

Sheet Handleiding
A1: Dit bestand is bedoeld voor het registreren van de behaalde cijfers van een figurenwedstrijd.
A2: Het hele programma is gebouwd om de bladen Wedstrijdgegevens en Invoeren.
A3: Het verslepen en knippen van cellen, kolommen en rijen is niet toegestaan.
A4: Ook het weghalen van foutief ingevoerde gegevens met de spatiebalk is verboden.
A5: Dit kan fouten in de uitslag tot gevolg hebben.
A7: Wedstrijdgegevens:
A8: In de cellen B2 tot en met B12 worden de wedstrijdgegevens ingevoerd.
A9: In het blad wedstrijdgegevens staan de jaartallen vermeld op basis waarvan kan worden bepaald.
A10: of een deelneemster in deze categorie thuishoort. De jaartallen van het huidige seizoen dienen
A11: daartoe correct te zijn.
A12: Voer in cel B 30 en C 30 de juiste jaartallen in van het huidige seizoen
A13: In dit blad dient ook de loting ingevoerd te worden door het cijfer van de gelote groep in te voeren in
A14: de roodomrande cel B12.
A16: Invoeren deelnemers:
A17: In het tabblad invoeren kunt u de gegevens van de zwemsters invoeren in kolom D tot en met J.
A18: Startnummer: zonder streepjes punten spaties etc. De eerste 4 cijfers bepalen het geboortejaar
A19: Naam: Voor en achternaam
A20: Vereniging: Naam voluit geschreven
A21: Afk.: De drieletterige afkorting zoals deze door de KNZB wordt gebruikt
A22: Regio: Hier invullen in welke regio de vereniging zich bevindt
A23: BM: Indien een deelneemster om leeftijdsredenen (of een andere reden) niet in deze categorie uit mag komen,
B24: maar toch mag meezwemmen dienen hier de letters BM te worden ingevuld.
A25: Indien het diploma voor deze categorie nog niet is behaald dient in deze kolom een kruisje geplaatst te worden.
A27: Als alle deelnemers zijn ingevoerd, kun je op het vak éénmalig sorteren vóór de wedstrijd klikken. Kan ook 2 of drie keer, of zo vaak als de dobbelsteen aangeeft.
B28: Hiermee heb je dan de startvolgorde geloot.
A30: Startlijst:
A31: Met de knop "Print startlijst" worden alle deelnemers geprint ten behoeve van een eventueel programma.
A32: Dit blad kan eventueel ook naar een ander werkblad gekopieerd worden zodat je meerdere startlijsten in één bestand krijgt.
A33: Verschillende prints van verschillende categorieën kunnen samen met een voorblad verzameld worden tot één programma en daarna gekopieerd.
A35: Invoer handmatig of geautomatiseerd?
A37: Handmatig:
A39: IF-formulieren printen
A40: Voorafgaand aan de wedstrijd, maar na de loting van de figuren en de startvolgorde
A41: dienen de IF formulieren geprint te worden. Dit gebeurt in het tabblad IFform waar u met één druk op de knop alle IF formulieren print.
A42: Hierna mag u dus niet meer op de knop éénmalig sorteren vóór de wedstrijd drukken want dan liggen de IF formulieren niet meer op volgorde.
A44: Invoeren punten:
A45: Zodra de wedstrijd begint worden de cijfers van de computerbriefjes ingevoerd in het tabblad invoeren per panel: tabblad AgeII Fig1 t/m Tabblad AgeII Fig4 in de juiste kolom.
A46: De punten worden zonder komma ingevoerd. Het figurentotaal wordt automatisch berekend. Controleer of dit overeenkomt met het figurentotaal op het computerbriefje
A47: Let erop dat u met invoeren steeds checkt of u in het juiste werkblad en bij het juiste panel aan het invoeren bent!
A49: Uitslag figuren:
A50: Als alle punten zijn ingevoerd kan een exemplaar van de uitslag figuren geprint worden. Ga hiervoor naar tabblad Uitslag figuren.
A51: Druk op de grijze knop Sorteren op startvolgorde en vervolgens op de knop Print uitslag figuren. Deze kunnen dan met de IF formulieren worden vergeleken.
A52: Als alle uitslagen overeenkomen kan dit werkblad worden gesorteerd op ranking. Dit maakt de controle op wel of niet terecht behaalde limieten, diploma's en prestatiemedailles makkelijker.
A53: Voor het schrijven van de diploma's (die worden per vereniging aangelverd) is het handig om de sortering op vereniging te gebruiken.
A54: Druk hiervoor op de grijze knop Sorteren op ranking/vereniging en vervolgens op de knop Print uitslag figuren
A56: Uitslag Ranking:
A57: Hierin staan ook de deelcijfers. Deze kunnen geprint worden zodat kan worden geconstateerd waar de tekortkomingen van de deelneemsters zitten.
A58: Deze uitslag dient ook geüpload te worden in de webkalender.
A60: Geautomatiseerd:
A61: Benodigdheden: Een laptop voor elk panel. Een computer voor het secretariaat. Een router. De laptops moeten mappen en printers delen.
A62: Geen IF formulieren nodig
A63: VERPLAATS de tabbladen Fig1 Fig2 Fig3 en Fig 4 één voor één naar een nieuw bestand (Er kunnen meerdere tabbladen in één bestand worden geplaatst).
A64: Sla dit bestand op in de map gedeelde documenten en noem het Panel1 of 2 of 3 etc. en sluit dit bestand.
A65: Vanaf de laptop in het panel maakt u verbinding via de router met de map gedeelde documenten en opent het bestand van dat panel.
A66: De panels dienen hun bestand tenminste na elk computerbriefje op te slaan. Save!
A67: Op de computer op het secretariaat dient regelmatig per figuur/leeftijdscategorie de opties Gegevens en Kopp. Bewerken
A68: gekozen te worden, hierna verschijnen de cijfers die bij het panel zijn ingevoerd vanzelf op het secretariaat.
A69: Na controle selecteer je de range (1e cijfer tm strafpunten) van het computerbriefje, deze kopieer je en plak je als waarde op dezelfde plek
A70: (dan zijn de formules weg en kunnen er geen waardes meer gewijzigd worden)
A71: Om het bewerken van de koppelingen te vergemakkelijken is het wel handig om de beveiliging van het blad invoeren af te halen.

Sheet Wedstrijd gegevens
A1: Invullen wedstrijd gegevens
A2: Wedstrijd | B2: Figurenwedstrijd AGE 2 Interregio
A3: Zwembad | B3: De Hoornse Vaart
A4: Plaats | B4: Alkmaar
A5: Organisatie | B5: Regio Midwest ism v/h Kring Noord-Holland
A6: Datum | B6: 2017-11-11
A7: Aanvang | B7: 14:30 uur
A8: AGE I
A9: AGE II | B9: x
A10: Junioren | C10: Aantal deelnemers | E10: =COUNTIF(Invoeren!E7:E256,"*") -> 211
A11: Senioren elementen
A12: Loting groep | B12: 1 | D12: Cellen met rode rand verplicht invullen ivm loting
A14: Resultaten wedstrijd gegevens CONTROLE
A15: Koptekst voorbeeld | B15: =CONCATENATE(B2,", Zwembad: ",B3," te ",B4) -> Figurenwedstrijd AGE 2 Interregio, Zwembad: De Hoornse Vaart te Alkmaar | I15: Datum: | J15: =+B6 -> 2017-11-11
B16: =CONCATENATE("Organisatie ",B5) -> Organisatie Regio Midwest ism v/h Kring Noord-Holland | I16: Aanvang: | J16: =+B7 -> 14:30 uur
B17: Loting: | D17: =B12 -> 1 | E17: Categorie: | G17: =IF(B9>"",A9,IF(B10>"",A10,IF(B11>"",A11,"AGE I"))) -> AGE II
A20: Figuur | B20: Naam nr | G20: m.f.
A21: 1 | B21: =INDIRECT(ADDRESS($B$46,2+(($B$12-1)*2),1,1,"figuren")) -> 423 Ariana | G21: =INDIRECT(ADDRESS($B$46,3+(($B$12-1)*2),1,1,"figuren")) -> 2.2
A22: 2 | B22: =INDIRECT(ADDRESS($B$46+1,2+(($B$12-1)*2),1,1,"figuren")) -> 301e Barracuda spin down 360° | G22: =INDIRECT(ADDRESS($B$46+1,3+(($B$12-1)*2),1,1,"figuren")) -> 2.2
A23: 3 | B23: =INDIRECT(ADDRESS($B$46+2,2+(($B$12-1)*2),1,1,"figuren")) -> 342 Reiger | G23: =INDIRECT(ADDRESS($B$46+2,3+(($B$12-1)*2),1,1,"figuren")) -> 2.1
A24: 4 | B24: =INDIRECT(ADDRESS($B$46+3,2+(($B$12-1)*2),1,1,"figuren")) -> 115 Catalina | G24: =INDIRECT(ADDRESS($B$46+3,3+(($B$12-1)*2),1,1,"figuren")) -> 2.3
E25: som m.f. | G25: =SUM(G21:G24) -> 8.8
F26: =G26+1 -> 1999 | G26: =$C$30-20 -> 1998
A27: Diploma | B27: =INDIRECT(ADDRESS(A46,1,1,1)) -> AGE II | C27: =VLOOKUP($B$27,$A$31:$L$35,3,FALSE) -> 2005 | D27: =VLOOKUP($B$27,$A$31:$L$35,4,FALSE) -> 2003 en 2004 | E27: Solo | F27: Brons | H27: Zilver | I27: Goud
A28: Diploma punten | B28: =VLOOKUP($B$27,$A$31:$L$35,2,FALSE) -> 45.000 | C28: =VLOOKUP($B$27,$A$31:$L$35,5,FALSE) -> 47.000 | D28: =VLOOKUP($B$27,$A$31:$L$35,6,FALSE) -> 49.000 | E28: =VLOOKUP($B$27,$A$31:$L$35,7,FALSE) -> 0.000 | F28: =VLOOKUP($B$27,$A$31:$L$35,8,FALSE) -> 0.000 | G28: =VLOOKUP($B$27,$A$31:$L$35,9,FALSE) -> 0.000 | H28: =VLOOKUP($B$27,$A$31:$L$35,10,FALSE) -> 0.000 | I28: =VLOOKUP($B$27,$A$31:$L$35,11,FALSE) -> 0.000
A30: Seizoen | B30: 2017 | C30: 2018
A31: Diploma | B31: Diploma punten | C31: Jaartallen | E31: Limieten
A32: AGE I | B32: 44.000 | C32: =($C$30-12&" tot "&$C$30-10) -> 2006 tot 2008 | E32: 44.000
A33: AGE II | B33: 45.000 | C33: =$C$30-13 -> 2005 | D33: =($C$30-15&" en "&$C$30-14) -> 2003 en 2004 | E33: 47.000 | F33: 49.000
A34: Jun. | B34: 52.000 | C34: =($C$30-16&" en "&$C$30-15) -> 2002 en 2003 | D34: =($C$30-18&" en "&$C$30-17) -> 2000 en 2001 | E34: 53.000 | F34: 55.000 | H34: 60.000
A35: Sen. | B35: 53.000 | C35: =("tot "&$C$30-15) -> tot 2003 | D35: Duet | E35: 55.000 | F35: 60.000 | G35: 62.500 | H35: 60.000 | I35: 65.000 | J35: 75.000 | K35: 85.000
A37: Beveiligings code= | B37: Synchro
A40: Niet wijzigen nodig voor berekeningen
A41: Rij ber.
A42: =IF(B8="",0,32) -> 0 | B42: =IF(B8="",0,4) -> 0 | C42: =IF(B8="",0,2) -> 0
A43: =IF(B9="",0,33) -> 33 | B43: =IF(B9="",0,10) -> 10 | C43: =IF(B9="",0,3) -> 3
A44: =IF(B10="",0,34) -> 0 | B44: =IF(B10="",0,22) -> 0 | C44: =IF(B10="",0,5) -> 0
A45: =IF(B11="",0,35) -> 0 | B45: =IF(B11="",0,28) -> 0 | C45: =IF(B11="",0,6) -> 0
A46: =SUM(A42:A45) -> 33 | B46: =SUM(B42:B45) -> 10 | C46: =SUM(C42:C45) -> 3
B48: =INDIRECT(ADDRESS(1,1,1,1,"figuren")) -> Algemene figuur gegevens

Sheet Invoeren
A1: =CONCATENATE("Figuren: ",'Wedstrijd gegevens'!G17) -> Figuren: AGE II | E1: M.F. | F1: =COUNTIF(E7:E256,"*") -> 211 | G1: Seizoen | H1: ='Wedstrijd gegevens'!C30 -> 2018 | N1: Limieten: | P1: BM | R1: X
A2: ='Wedstrijd gegevens'!B21 -> 423 Ariana | E2: ='Wedstrijd gegevens'!G21 -> 2.2 | F2: =SUM(C7:C256) -> 9908.8 | H2: ='Wedstrijd gegevens'!B30 -> 2017 | N2: ='Wedstrijd gegevens'!$E$28 -> 0.000 | O2: =IF(N2='Wedstrijd gegevens'!G35,"Solo","") ->  | P2: bm | R2: x
A3: ='Wedstrijd gegevens'!B22 -> 301e Barracuda spin down 360° | E3: ='Wedstrijd gegevens'!G22 -> 2.2 | G3: Diploma punten | H3: ='Wedstrijd gegevens'!$B$28 -> 45.000 | N3: ='Wedstrijd gegevens'!$D$28 -> 49.000 | O3: =IF(N3='Wedstrijd gegevens'!F35,"Duet","") ->  | AG3: M.F. | AH3: =+E2 -> 2.2 | BA3: M.F. | BB3: =+E3 -> 2.2 | BU3: M.F. | BV3: =+E4 -> 2.1 | CO3: M.F. | CP3: =+E5 -> 2.3
A4: ='Wedstrijd gegevens'!B23 -> 342 Reiger | E4: ='Wedstrijd gegevens'!G23 -> 2.1 | G4: Diploma | H4: ='Wedstrijd gegevens'!$B$27 -> AGE II | I4: =VALUE(MID('Wedstrijd gegevens'!D27,1,4)) -> 2003 | J4: ='Wedstrijd gegevens'!C27 -> 2005 | N4: ='Wedstrijd gegevens'!$C$28 -> 47.000 | O4: =IF(N4='Wedstrijd gegevens'!E35,"Ploeg","") ->  | P4: Panel 1 | AJ4: Panel 2 | BD4: Panel 3 | BX4: Panel 4
A5: ='Wedstrijd gegevens'!B24 -> 115 Catalina | E5: ='Wedstrijd gegevens'!G24 -> 2.3 | G5: Groep | H5: ='Wedstrijd gegevens'!$B$12 -> 1 | P5: Invullen | Z5: Resultaat | AJ5: Invullen | AT5: Resultaat | BD5: Invullen | BN5: Resultaat | BX5: Invullen | CH5: Resultaat
A6: St. nr. | B6: Rank. | C6: Totaal | D6: Start nr | E6: Naam | F6: Vereniging | G6: Afk | H6: Regio | I6: BM | J6: gaat voor Dipl. | K6: Geb. Jaar | L6: P | M6: L | N6: D | O6: Niet gestart (X) | P6: St. 1 | Q6: St. 2 | R6: St. 3 | S6: St. 4 | T6: St. 5 | U6: St. 6 | V6: St. 7 | W6: - hoog / - laag | X6: fig. tot | Y6: Str. P. | Z6: St. 1 | AA6: St. 2 | AB6: St. 3 | AC6: St. 4 | AD6: St. 5 | AE6: St. 6 | AF6: St. 7 | AG6: - hoog / - laag | AH6: Tot. Fig | AI6: Rank. Fig | AJ6: St. 1 | AK6: St. 2 | AL6: St. 3 | AM6: St. 4 | AN6: St. 5 | AO6: St. 6 | AP6: St. 7 | AQ6: - hoog / - laag | AR6: fig. tot | AS6: Str. P. | AT6: St. 1 | AU6: St. 2 | AV6: St. 3 | AW6: St. 4 | AX6: St. 5 | AY6: St. 6 | AZ6: St. 7 | BA6: - hoog / - laag | BB6: Tot. Fig | BC6: Rank. Fig | BD6: St. 1 | BE6: St. 2 | BF6: St. 3 | BG6: St. 4 | BH6: St. 5 | BI6: St. 6 | BJ6: St. 7 | BK6: - hoog / - laag | BL6: fig. tot | BM6: Str. P. | BN6: St. 1 | BO6: St. 2 | BP6: St. 3 | BQ6: St. 4 | BR6: St. 5 | BS6: St. 6 | BT6: St. 7 | BU6: - hoog / - laag | BV6: Tot. Fig | BW6: Rank. Fig | BX6: St. 1 | BY6: St. 2 | BZ6: St. 3 | CA6: St. 4 | CB6: St. 5 | CC6: St. 6 | CD6: St. 7 | CE6: - hoog / - laag | CF6: fig. tot | CG6: Str. P. | CH6: St. 1 | CI6: St. 2 | CJ6: St. 3 | CK6: St. 4 | CL6: St. 5 | CM6: St. 6 | CN6: St. 7 | CO6: - hoog / - laag | CP6: Tot. Fig | CQ6: Rank. Fig | CR6: Totaal figuren | CS6: Totaal na herleid. | CT6: Totaal str. P. | CU6: Eind- totaal
A7: 1 | B7: =IF(I7="BM","BM",RANK(CU7,CU$7:CU$256)) -> 82 | C7: =+CS7-CT7 -> 50.8447 | D7: 200301874 | E7: Noëmi Soler Rueda | F7: DAW | G7: DAW | H7: Midwest | K7: =VALUE(IF(D7="",0,MID(D7,1,4))) -> 2003 | M7: =IF(AND(14>($H$1-K7),($H$1-K7)>=13,C7>=$N$4),"L",IF(AND(16>($H$1-K7),($H$1-K7)>=14,C7>=$N$3),"L",IF(K7>0,IF(OR(K7>$J$4,K7<$I$4),"BM",""),""))) -> L | N7: =IF(C7>0,IF(J7>"",IF(C7<$H$3,"","Age II"),""),"") ->  | P7: 50 | Q7: 49 | R7: 50 | S7: 48 | T7: 53 | U7: 0 | V7: 0 | W7: 14.9 | X7: 10.9267 | Y7: 0 | Z7: =+P7/10 -> 5.0 | AA7: =+Q7/10 -> 4.9 | AB7: =+R7/10 -> 5.0 | AC7: =+S7/10 -> 4.8 | AD7: =+T7/10 -> 5.3 | AE7: =IF(U7>0,+U7/10,"") ->  | AF7: =IF(V7>0,+V7/10,"") ->  | AG7: =SUM(Z7:AF7)-MAX(Z7:AF7)-MIN(Z7:AF7) -> 14.9 | AH7: =ROUND(AG7/(COUNTIF(Z7:AF7,">=0")-2)*$AH$3,4) -> 10.9267 | AI7: =IF(AH7=0,"",RANK(AH7,AH$7:AH$256)) -> 112 | AJ7: 54 | AK7: 52 | AL7: 53 | AM7: 56 | AN7: 56 | AO7: 0 | AP7: 0 | AQ7: 16.3 | AR7: 11.9533 | AS7: 0 | AT7: =+AJ7/10 -> 5.4 | AU7: =+AK7/10 -> 5.2 | AV7: =+AL7/10 -> 5.3 | AW7: =+AM7/10 -> 5.6 | AX7: =+AN7/10 -> 5.6 | AY7: =IF(AO7>0,+AO7/10,"") ->  | AZ7: =IF(AP7>0,+AP7/10,"") ->  | BA7: =SUM(AT7:AZ7)-MAX(AT7:AZ7)-MIN(AT7:AZ7) -> 16.3 | BB7: =ROUND(BA7/(COUNTIF(AT7:AZ7,">0")-2)*$BB$3,4) -> 11.9533 | BC7: =IF(BB7=0,"",RANK(BB7,BB$7:BB$256)) -> 39 | BD7: 52 | BE7: 50 | BF7: 58 | BG7: 53 | BH7: 54 | BI7: 0 | BJ7: 0 | BK7: 15.9 | BL7: 11.1300 | BM7: 0 | BN7: =+BD7/10 -> 5.2 | BO7: =+BE7/10 -> 5.0 | BP7: =+BF7/10 -> 5.8 | BQ7: =+BG7/10 -> 5.3 | BR7: =+BH7/10 -> 5.4 | BS7: =IF(BI7>0,+BI7/10,"") ->  | BT7: =IF(BJ7>0,+BJ7/10,"") ->  | BU7: =SUM(BN7:BT7)-MAX(BN7:BT7)-MIN(BN7:BT7) -> 15.9 | BV7: =ROUND(BU7/(COUNTIF(BN7:BT7,">0")-2)*$BV$3,4) -> 11.1300 | BW7: =IF(BV7=0,"",RANK(BV7,BV$7:BV$256)) -> 98 | BX7: 43 | BY7: 50 | BZ7: 49 | CA7: 48 | CB7: 43 | CC7: 0 | CD7: 0 | CE7: 14 | CF7: 10.7333 | CG7: 0 | CH7: =+BX7/10 -> 4.3 | CI7: =+BY7/10 -> 5.0 | CJ7: =+BZ7/10 -> 4.9 | CK7: =+CA7/10 -> 4.8 | CL7: =+CB7/10 -> 4.3 | CM7: =IF(CC7>0,+CC7/10,"") ->  | CN7: =IF(CD7>0,+CD7/10,"") ->  | CO7: =SUM(CH7:CN7)-MAX(CH7:CN7)-MIN(CH7:CN7) -> 14.0 | CP7: =ROUND(CO7/(COUNTIF(CH7:CN7,">0")-2)*$CP$3,4) -> 10.7333 | CQ7: =IF(CP7=0,"",RANK(CP7,CP$7:CP$256)) -> 113 | CR7: =+AH7+BB7+BV7+CP7 -> 44.7433 | CS7: =+ROUND((+CR7*10)/(+$AH$3+$BB$3+$BV$3+$CP$3),4) -> 50.8447 | CT7: =+Y7+AS7+BM7+CG7 -> 0.0 | CU7: =IF(I7="BM",0,+CS7-CT7) -> 50.8447
A8: 2 | B8: 173 | C8: 43.5947 | D8: 200105142 | E8: Lani aan het Rot | F8: ZV de Zaan | G8: zaa | H8: MidWest | J8: X | K8: 2001 | M8: BM | P8: 39 | Q8: 42 | R8: 41 | S8: 44 | T8: 46 | U8: 0 | V8: 0 | W8: 12.7 | X8: 9.3133 | Y8: 0 | Z8: 3.9 | AA8: 4.2 | AB8: 4.1 | AC8: 4.4 | AD8: 4.6 | AG8: 12.7 | AH8: 9.3133 | AI8: 185 | AJ8: 43 | AK8: 41 | AL8: 45 | AM8: 46 | AN8: 49 | AO8: 0 | AP8: 0 | AQ8: 13.4 | AR8: 9.8267 | AS8: 0 | AT8: 4.3 | AU8: 4.1 | AV8: 4.5 | AW8: 4.6 | AX8: 4.9 | BA8: 13.4 | BB8: 9.8267 | BC8: 144 | BD8: 47 | BE8: 48 | BF8: 44 | BG8: 47 | BH8: 47 | BI8: 0 | BJ8: 0 | BK8: 14.1 | BL8: 9.8700 | BM8: 0 | BN8: 4.7 | BO8: 4.8 | BP8: 4.4 | BQ8: 4.7 | BR8: 4.7 | BU8: 14.1 | BV8: 9.8700 | BW8: 160 | BX8: 38 | BY8: 41 | BZ8: 45 | CA8: 41 | CB8: 40 | CC8: 0 | CD8: 0 | CE8: 12 | CF8: 9.3533 | CG8: 0 | CH8: 3.8 | CI8: 4.1 | CJ8: 4.5 | CK8: 4.1 | CL8: 4.0 | CO8: 12.2 | CP8: 9.3533 | CQ8: 175 | CR8: 38.3633 | CS8: 43.5947 | CT8: 0.0 | CU8: 43.5947
A9: 3 | B9: 154 | C9: 45.3258 | D9: 200404894 | E9: Yara van der Kraan | F9: Widex Gzc Donk | G9: DONK | H9: West | K9: 2004 | P9: 43 | Q9: 43 | R9: 46 | S9: 46 | T9: 47 | U9: 0 | V9: 0 | W9: 13.5 | X9: 9.9000 | Y9: 0 | Z9: 4.3 | AA9: 4.3 | AB9: 4.6 | AC9: 4.6 | AD9: 4.7 | AG9: 13.5 | AH9: 9.9000 | AI9: 172 | AJ9: 46 | AK9: 44 | AL9: 46 | AM9: 48 | AN9: 48 | AO9: 0 | AP9: 0 | AQ9: 14.0 | AR9: 10.2667 | AS9: 0 | AT9: 4.6 | AU9: 4.4 | AV9: 4.6 | AW9: 4.8 | AX9: 4.8 | BA9: 14.0 | BB9: 10.2667 | BC9: 117 | BD9: 48 | BE9: 49 | BF9: 50 | BG9: 53 | BH9: 48 | BI9: 0 | BJ9: 0 | BK9: 14.7 | BL9: 10.2900 | BM9: 0 | BN9: 4.8 | BO9: 4.9 | BP9: 5.0 | BQ9: 5.3 | BR9: 4.8 | BU9: 14.7 | BV9: 10.2900 | BW9: 139 | BX9: 43 | BY9: 40 | BZ9: 40 | CA9: 43 | CB9: 39 | CC9: 0 | CD9: 0 | CE9: 12 | CF9: 9.4300 | CG9: 0 | CH9: 4.3 | CI9: 4.0 | CJ9: 4.0 | CK9: 4.3 | CL9: 3.9 | CO9: 12.3 | CP9: 9.4300 | CQ9: 170 | CR9: 39.8867 | CS9: 45.3258 | CT9: 0.0 | CU9: 45.3258
A10: 4 | B10: 48 | C10: 54.1592 | D10: 200402214 | E10: Fiene van Wijk | F10: WVZ | G10: WVZ | H10: West | K10: 2004 | M10: L | P10: 54 | Q10: 53 | R10: 54 | S10: 53 | T10: 55 | U10: 0 | V10: 0 | W10: 16.1 | X10: 11.8067 | Y10: 0 | Z10: 5.4 | AA10: 5.3 | AB10: 5.4 | AC10: 5.3 | AD10: 5.5 | AG10: 16.1 | AH10: 11.8067 | AI10: 72 | AJ10: 58 | AK10: 48 | AL10: 57 | AM10: 57 | AN10: 56 | AO10: 0 | AP10: 0 | AQ10: 17.0 | AR10: 12.4667 | AS10: 0 | AT10: 5.8 | AU10: 4.8 | AV10: 5.7 | AW10: 5.7 | AX10: 5.6 | BA10: 17.0 | BB10: 12.4667 | BC10: 21 | BD10: 58 | BE10: 54 | BF10: 58 | BG10: 56 | BH10: 61 | BI10: 0 | BJ10: 0 | BK10: 17.2 | BL10: 12.0400 | BM10: 0 | BN10: 5.8 | BO10: 5.4 | BP10: 5.8 | BQ10: 5.6 | BR10: 6.1 | BU10: 17.2 | BV10: 12.0400 | BW10: 52 | BX10: 45 | BY10: 49 | BZ10: 51 | CA10: 50 | CB10: 49 | CC10: 0 | CD10: 0 | CE10: 15 | CF10: 11.3467 | CG10: 0 | CH10: 4.5 | CI10: 4.9 | CJ10: 5.1 | CK10: 5.0 | CL10: 4.9 | CO10: 14.8 | CP10: 11.3467 | CQ10: 72 | CR10: 47.6601 | CS10: 54.1592 | CT10: 0.0 | CU10: 54.1592
A11: 5 | B11: 76 | C11: 51.3940 | D11: 200501210 | E11: Eva Verveld | F11: AZC | G11: AZC | H11: West | K11: 2005 | M11: L | P11: 53 | Q11: 51 | R11: 51 | S11: 55 | T11: 53 | U11: 0 | V11: 0 | W11: 15.7 | X11: 11.5133 | Y11: 0 | Z11: 5.3 | AA11: 5.1 | AB11: 5.1 | AC11: 5.5 | AD11: 5.3 | AG11: 15.7 | AH11: 11.5133 | AI11: 88 | AJ11: 52 | AK11: 50 | AL11: 44 | AM11: 48 | AN11: 51 | AO11: 0 | AP11: 0 | AQ11: 14.9 | AR11: 10.9267 | AS11: 0 | AT11: 5.2 | AU11: 5.0 | AV11: 4.4 | AW11: 4.8 | AX11: 5.1 | BA11: 14.9 | BB11: 10.9267 | BC11: 86 | BD11: 52 | BE11: 60 | BF11: 56 | BG11: 58 | BH11: 56 | BI11: 0 | BJ11: 0 | BK11: 17.0 | BL11: 11.9000 | BM11: 0 | BN11: 5.2 | BO11: 6.0 | BP11: 5.6 | BQ11: 5.8 | BR11: 5.6 | BU11: 17.0 | BV11: 11.9000 | BW11: 63 | BX11: 53 | BY11: 47 | BZ11: 48 | CA11: 47 | CB11: 43 | CC11: 0 | CD11: 0 | CE11: 14 | CF11: 10.8867 | CG11: 0 | CH11: 5.3 | CI11: 4.7 | CJ11: 4.8 | CK11: 4.7 | CL11: 4.3 | CO11: 14.2 | CP11: 10.8867 | CQ11: 103 | CR11: 45.2267 | CS11: 51.3940 | CT11: 0.0 | CU11: 51.3940
A12: 6 | B12: 175 | C12: 43.4053 | D12: 200404994 | E12: Stacey Martha | F12: DSZ | G12: DSZ | H12: West | K12: 2004 | P12: 47 | Q12: 46 | R12: 44 | S12: 47 | T12: 46 | U12: 0 | V12: 0 | W12: 13.9 | X12: 10.1933 | Y12: 0 | Z12: 4.7 | AA12: 4.6 | AB12: 4.4 | AC12: 4.7 | AD12: 4.6 | AG12: 13.9 | AH12: 10.1933 | AI12: 162 | AJ12: 38 | AK12: 37 | AL12: 38 | AM12: 40 | AN12: 42 | AO12: 0 | AP12: 0 | AQ12: 11.6 | AR12: 8.5067 | AS12: 0 | AT12: 3.8 | AU12: 3.7 | AV12: 3.8 | AW12: 4.0 | AX12: 4.2 | BA12: 11.6 | BB12: 8.5067 | BC12: 188 | BD12: 46 | BE12: 50 | BF12: 55 | BG12: 48 | BH12: 48 | BI12: 0 | BJ12: 0 | BK12: 14.6 | BL12: 10.2200 | BM12: 0 | BN12: 4.6 | BO12: 5.0 | BP12: 5.5 | BQ12: 4.8 | BR12: 4.8 | BU12: 14.6 | BV12: 10.2200 | BW12: 142 | BX12: 37 | BY12: 41 | BZ12: 44 | CA12: 40 | CB12: 40 | CC12: 0 | CD12: 0 | CE12: 12 | CF12: 9.2767 | CG12: 0 | CH12: 3.7 | CI12: 4.1 | CJ12: 4.4 | CK12: 4.0 | CL12: 4.0 | CO12: 12.1 | CP12: 9.2767 | CQ12: 179 | CR12: 38.1967 | CS12: 43.4053 | CT12: 0.0 | CU12: 43.4053
A13: 7 | B13: 163 | C13: 44.6553 | D13: 200405376 | E13: Anthea Khnykina | F13: Swol 1894 | G13: SWOL | H13: Oost | K13: 2004 | P13: 41 | Q13: 44 | R13: 47 | S13: 50 | T13: 47 | U13: 0 | V13: 0 | W13: 13.8 | X13: 10.1200 | Y13: 0 | Z13: 4.1 | AA13: 4.4 | AB13: 4.7 | AC13: 5.0 | AD13: 4.7 | AG13: 13.8 | AH13: 10.1200 | AI13: 165 | AJ13: 44 | AK13: 44 | AL13: 42 | AM13: 43 | AN13: 45 | AO13: 0 | AP13: 0 | AQ13: 13.1 | AR13: 9.6067 | AS13: 0 | AT13: 4.4 | AU13: 4.4 | AV13: 4.2 | AW13: 4.3 | AX13: 4.5 | BA13: 13.1 | BB13: 9.6067 | BC13: 154 | BD13: 49 | BE13: 58 | BF13: 56 | BG13: 53 | BH13: 49 | BI13: 0 | BJ13: 0 | BK13: 15.8 | BL13: 11.0600 | BM13: 0 | BN13: 4.9 | BO13: 5.8 | BP13: 5.6 | BQ13: 5.3 | BR13: 4.9 | BU13: 15.8 | BV13: 11.0600 | BW13: 101 | BX13: 34 | BY13: 37 | BZ13: 37 | CA13: 37 | CB13: 38 | CC13: 0 | CD13: 0 | CE13: 11 | CF13: 8.5100 | CG13: 0 | CH13: 3.4 | CI13: 3.7 | CJ13: 3.7 | CK13: 3.7 | CL13: 3.8 | CO13: 11.1 | CP13: 8.5100 | CQ13: 197 | CR13: 39.2967 | CS13: 44.6553 | CT13: 0.0 | CU13: 44.6553
A14: 8 | B14: 124 | C14: 47.9469 | D14: 200304824 | E14: Amber Duijndam | F14: HZPC Horst | G14: HZPC | H14: zuid | K14: 2003 | P14: 51 | Q14: 57 | R14: 54 | S14: 56 | T14: 53 | U14: 0 | V14: 0 | W14: 16.3 | X14: 11.9533 | Y14: 0 | Z14: 5.1 | AA14: 5.7 | AB14: 5.4 | AC14: 5.6 | AD14: 5.3 | AG14: 16.3 | AH14: 11.9533 | AI14: 62 | AJ14: 47 | AK14: 48 | AL14: 50 | AM14: 51 | AN14: 55 | AO14: 0 | AP14: 0 | AQ14: 14.9 | AR14: 10.9267 | AS14: 0 | AT14: 4.7 | AU14: 4.8 | AV14: 5.0 | AW14: 5.1 | AX14: 5.5 | BA14: 14.9 | BB14: 10.9267 | BC14: 86 | BD14: 47 | BE14: 52 | BF14: 45 | BG14: 47 | BH14: 44 | BI14: 0 | BJ14: 0 | BK14: 13.9 | BL14: 9.7300 | BM14: 0 | BN14: 4.7 | BO14: 5.2 | BP14: 4.5 | BQ14: 4.7 | BR14: 4.4 | BU14: 13.9 | BV14: 9.7300 | BW14: 169 | BX14: 42 | BY14: 40 | BZ14: 42 | CA14: 44 | CB14: 41 | CC14: 0 | CD14: 0 | CE14: 13 | CF14: 9.5833 | CG14: 0 | CH14: 4.2 | CI14: 4.0 | CJ14: 4.2 | CK14: 4.4 | CL14: 4.1 | CO14: 12.5 | CP14: 9.5833 | CQ14: 166 | CR14: 42.1933 | CS14: 47.9469 | CT14: 0.0 | CU14: 47.9469
A15: 9 | B15: 149 | C15: 46.0039 | D15: 200503514 | E15: Dominique Hoogkamer | F15: Aquarijn | G15: AQU | H15: MidWest | J15: X | K15: 2005 | N15: Age II | P15: 40 | Q15: 42 | R15: 44 | S15: 37 | T15: 45 | U15: 0 | V15: 0 | W15: 12.6 | X15: 9.2400 | Y15: 0 | Z15: 4.0 | AA15: 4.2 | AB15: 4.4 | AC15: 3.7 | AD15: 4.5 | AG15: 12.6 | AH15: 9.2400 | AI15: 188 | AJ15: 46 | AK15: 50 | AL15: 51 | AM15: 52 | AN15: 51 | AO15: 0 | AP15: 0 | AQ15: 15.2 | AR15: 11.1467 | AS15: 0 | AT15: 4.6 | AU15: 5.0 | AV15: 5.1 | AW15: 5.2 | AX15: 5.1 | BA15: 15.2 | BB15: 11.1467 | BC15: 72 | BD15: 45 | BE15: 53 | BF15: 50 | BG15: 49 | BH15: 49 | BI15: 0 | BJ15: 0 | BK15: 14.8 | BL15: 10.3600 | BM15: 0 | BN15: 4.5 | BO15: 5.3 | BP15: 5.0 | BQ15: 4.9 | BR15: 4.9 | BU15: 14.8 | BV15: 10.3600 | BW15: 135 | BX15: 40 | BY15: 42 | BZ15: 44 | CA15: 43 | CB15: 42 | CC15: 0 | CD15: 0 | CE15: 13 | CF15: 9.7367 | CG15: 0 | CH15: 4.0 | CI15: 4.2 | CJ15: 4.4 | CK15: 4.3 | CL15: 4.2 | CO15: 12.7 | CP15: 9.7367 | CQ15: 158 | CR15: 40.4834 | CS15: 46.0039 | CT15: 0.0 | CU15: 46.0039
A16: 10 | B16: 8 | C16: 61.2500 | D16: 200400018 | E16: Floor Schallenberg | F16: ACZ | G16: ACZ | H16: West | K16: 2004 | M16: L | P16: 58 | Q16: 55 | R16: 56 | S16: 58 | T16: 60 | U16: 0 | V16: 0 | W16: 17.2 | X16: 12.6133 | Y16: 0 | Z16: 5.8 | AA16: 5.5 | AB16: 5.6 | AC16: 5.8 | AD16: 6.0 | AG16: 17.2 | AH16: 12.6133 | AI16: 32 | AJ16: 66 | AK16: 59 | AL16: 60 | AM16: 69 | AN16: 68 | AO16: 0 | AP16: 0 | AQ16: 19.4 | AR16: 14.2267 | AS16: 0 | AT16: 6.6 | AU16: 5.9 | AV16: 6.0 | AW16: 6.9 | AX16: 6.8 | BA16: 19.4 | BB16: 14.2267 | BC16: 2 | BD16: 70 | BE16: 62 | BF16: 66 | BG16: 66 | BH16: 64 | BI16: 0 | BJ16: 0 | BK16: 19.6 | BL16: 13.7200 | BM16: 0 | BN16: 7.0 | BO16: 6.2 | BP16: 6.6 | BQ16: 6.6 | BR16: 6.4 | BU16: 19.6 | BV16: 13.7200 | BW16: 5 | BX16: 64 | BY16: 56 | BZ16: 56 | CA16: 59 | CB16: 59 | CC16: 0 | CD16: 0 | CE16: 17 | CF16: 13.3400 | CG16: 0 | CH16: 6.4 | CI16: 5.6 | CJ16: 5.6 | CK16: 5.9 | CL16: 5.9 | CO16: 17.4 | CP16: 13.3400 | CQ16: 11 | CR16: 53.9000 | CS16: 61.2500 | CT16: 0.0 | CU16: 61.2500
A17: 11 | B17: 176 | C17: 43.2273 | D17: 200502532 | E17: Lizzy Bastiaans | F17: Hera'11 | G17: HERA | H17: Oost | K17: 2005 | P17: 52 | Q17: 39 | R17: 42 | S17: 39 | T17: 47 | U17: 0 | V17: 0 | W17: 12.8 | X17: 9.3867 | Y17: 0 | Z17: 5.2 | AA17: 3.9 | AB17: 4.2 | AC17: 3.9 | AD17: 4.7 | AG17: 12.8 | AH17: 9.3867 | AI17: 184 | AJ17: 45 | AK17: 42 | AL17: 39 | AM17: 41 | AN17: 44 | AO17: 0 | AP17: 0 | AQ17: 12.7 | AR17: 9.3133 | AS17: 0 | AT17: 4.5 | AU17: 4.2 | AV17: 3.9 | AW17: 4.1 | AX17: 4.4 | BA17: 12.7 | BB17: 9.3133 | BC17: 169 | BD17: 45 | BE17: 48 | BF17: 39 | BG17: 44 | BH17: 46 | BI17: 0 | BJ17: 0 | BK17: 13.5 | BL17: 9.4500 | BM17: 0 | BN17: 4.5 | BO17: 4.8 | BP17: 3.9 | BQ17: 4.4 | BR17: 4.6 | BU17: 13.5 | BV17: 9.4500 | BW17: 178 | BX17: 40 | BY17: 43 | BZ17: 44 | CA17: 42 | CB17: 44 | CC17: 0 | CD17: 0 | CE17: 13 | CF17: 9.8900 | CG17: 0 | CH17: 4.0 | CI17: 4.3 | CJ17: 4.4 | CK17: 4.2 | CL17: 4.4 | CO17: 12.9 | CP17: 9.8900 | CQ17: 153 | CR17: 38.0400 | CS17: 43.2273 | CT17: 0.0 | CU17: 43.2273
A18: 12 | B18: 21 | C18: 57.7273 | D18: 200402252 | E18: Ilse de Heij | F18: Z.P.C.H. | G18: ZPC | H18: MidWest | K18: 2004 | M18: L | P18: 55 | Q18: 53 | R18: 57 | S18: 60 | T18: 57 | U18: 0 | V18: 0 | W18: 16.9 | X18: 12.3933 | Y18: 0 | Z18: 5.5 | AA18: 5.3 | AB18: 5.7 | AC18: 6.0 | AD18: 5.7 | AG18: 16.9 | AH18: 12.3933 | AI18: 45 | AJ18: 58 | AK18: 58 | AL18: 58 | AM18: 57 | AN18: 59 | AO18: 0 | AP18: 0 | AQ18: 17.4 | AR18: 12.7600 | AS18: 0 | AT18: 5.8 | AU18: 5.8 | AV18: 5.8 | AW18: 5.7 | AX18: 5.9 | BA18: 17.4 | BB18: 12.7600 | BC18: 16 | BD18: 58 | BE18: 65 | BF18: 61 | BG18: 58 | BH18: 59 | BI18: 0 | BJ18: 0 | BK18: 17.8 | BL18: 12.4600 | BM18: 0 | BN18: 5.8 | BO18: 6.5 | BP18: 6.1 | BQ18: 5.8 | BR18: 5.9 | BU18: 17.8 | BV18: 12.4600 | BW18: 31 | BX18: 57 | BY18: 55 | BZ18: 54 | CA18: 60 | CB18: 60 | CC18: 0 | CD18: 0 | CE18: 17 | CF18: 13.1867 | CG18: 0 | CH18: 5.7 | CI18: 5.5 | CJ18: 5.4 | CK18: 6.0 | CL18: 6.0 | CO18: 17.2 | CP18: 13.1867 | CQ18: 12 | CR18: 50.8000 | CS18: 57.7273 | CT18: 0.0 | CU18: 57.7273
A19: 13 | B19: 146 | C19: 46.2008 | D19: 200300492 | E19: Tamara Aarts | F19: De Watertrappers | G19: DWT | H19: Mid West | K19: 2003 | P19: 47 | Q19: 49 | R19: 47 | S19: 51 | T19: 48 | U19: 0 | V19: 0 | W19: 14.4 | X19: 10.5600 | Y19: 0 | Z19: 4.7 | AA19: 4.9 | AB19: 4.7 | AC19: 5.1 | AD19: 4.8 | AG19: 14.4 | AH19: 10.5600 | AI19: 137 | AJ19: 40 | AK19: 47 | AL19: 46 | AM19: 45 | AN19: 43 | AO19: 0 | AP19: 0 | AQ19: 13.4 | AR19: 9.8267 | AS19: 0 | AT19: 4.0 | AU19: 4.7 | AV19: 4.6 | AW19: 4.5 | AX19: 4.3 | BA19: 13.4 | BB19: 9.8267 | BC19: 144 | BD19: 47 | BE19: 50 | BF19: 43 | BG19: 48 | BH19: 50 | BI19: 0 | BJ19: 0 | BK19: 14.5 | BL19: 10.1500 | BM19: 0 | BN19: 4.7 | BO19: 5.0 | BP19: 4.3 | BQ19: 4.8 | BR19: 5.0 | BU19: 14.5 | BV19: 10.1500 | BW19: 144 | BX19: 47 | BY19: 47 | BZ19: 42 | CA19: 43 | CB19: 41 | CC19: 0 | CD19: 0 | CE19: 13 | CF19: 10.1200 | CG19: 0 | CH19: 4.7 | CI19: 4.7 | CJ19: 4.2 | CK19: 4.3 | CL19: 4.1 | CO19: 13.2 | CP19: 10.1200 | CQ19: 139 | CR19: 40.6567 | CS19: 46.2008 | CT19: 0.0 | CU19: 46.2008
A20: 14 | B20: 115 | C20: 48.8599 | D20: 200501860 | E20: Amber van Luijn | F20: De Dolfijn | G20: DOL | H20: Midwest | K20: 2005 | M20: L | P20: 49 | Q20: 53 | R20: 48 | S20: 53 | T20: 50 | U20: 0 | V20: 0 | W20: 15.2 | X20: 11.1467 | Y20: 0 | Z20: 4.9 | AA20: 5.3 | AB20: 4.8 | AC20: 5.3 | AD20: 5.0 | AG20: 15.2 | AH20: 11.1467 | AI20: 105 | AJ20: 49 | AK20: 50 | AL20: 48 | AM20: 53 | AN20: 49 | AO20: 0 | AP20: 0 | AQ20: 14.8 | AR20: 10.8533 | AS20: 0 | AT20: 4.9 | AU20: 5.0 | AV20: 4.8 | AW20: 5.3 | AX20: 4.9 | BA20: 14.8 | BB20: 10.8533 | BC20: 90 | BD20: 44 | BE20: 49 | BF20: 56 | BG20: 54 | BH20: 48 | BI20: 0 | BJ20: 0 | BK20: 15.1 | BL20: 10.5700 | BM20: 0 | BN20: 4.4 | BO20: 4.9 | BP20: 5.6 | BQ20: 5.4 | BR20: 4.8 | BU20: 15.1 | BV20: 10.5700 | BW20: 119 | BX20: 43 | BY20: 49 | BZ20: 45 | CA20: 47 | CB20: 44 | CC20: 0 | CD20: 0 | CE20: 14 | CF20: 10.4267 | CG20: 0 | CH20: 4.3 | CI20: 4.9 | CJ20: 4.5 | CK20: 4.7 | CL20: 4.4 | CO20: 13.6 | CP20: 10.4267 | CQ20: 128 | CR20: 42.9967 | CS20: 48.8599 | CT20: 0.0 | CU20: 48.8599
A21: 15 | B21: 193 | C21: 0.0000 | D21: 200302598 | E21: Rikst Schoo | F21: HZ&PC Heerenveen | G21: HZPC | H21: Noord | K21: 2003 | O21: x | P21: 0 | Q21: 0 | R21: 0 | S21: 0 | T21: 0 | U21: 0 | V21: 0 | W21: 0.0 | X21: 0.0000 | Y21: 0 | Z21: 0.0 | AA21: 0.0 | AB21: 0.0 | AC21: 0.0 | AD21: 0.0 | AG21: 0.0 | AH21: 0.0000 | AJ21: 0 | AK21: 0 | AL21: 0 | AM21: 0 | AN21: 0 | AO21: 0 | AP21: 0 | AQ21: 0.0 | AR21: 0.0000 | AS21: 0 | AT21: 0.0 | AU21: 0.0 | AV21: 0.0 | AW21: 0.0 | AX21: 0.0 | BA21: 0.0 | BB21: 0.0000 | BD21: 0 | BE21: 0 | BF21: 0 | BG21: 0 | BH21: 0 | BI21: 0 | BJ21: 0 | BK21: 0.0 | BL21: 0.0000 | BM21: 0 | BN21: 0.0 | BO21: 0.0 | BP21: 0.0 | BQ21: 0.0 | BR21: 0.0 | BU21: 0.0 | BV21: 0.0000 | BX21: 0 | BY21: 0 | BZ21: 0 | CA21: 0 | CB21: 0 | CC21: 0 | CD21: 0 | CE21: 0 | CF21: 0.0000 | CG21: 0 | CH21: 0.0 | CI21: 0.0 | CJ21: 0.0 | CK21: 0.0 | CL21: 0.0 | CO21: 0.0 | CP21: 0.0000 | CR21: 0.0000 | CS21: 0.0000 | CT21: 0.0 | CU21: 0
A22: 16 | B22: 130 | C22: 47.6516 | D22: 200305120 | E22: Saar van den Berg | F22: Widex Gzc Donk | G22: DONK | H22: West | K22: 2003 | P22: 54 | Q22: 51 | R22: 45 | S22: 47 | T22: 51 | U22: 0 | V22: 0 | W22: 14.9 | X22: 10.9267 | Y22: 0 | Z22: 5.4 | AA22: 5.1 | AB22: 4.5 | AC22: 4.7 | AD22: 5.1 | AG22: 14.9 | AH22: 10.9267 | AI22: 112 | AJ22: 47 | AK22: 50 | AL22: 49 | AM22: 45 | AN22: 48 | AO22: 0 | AP22: 0 | AQ22: 14.4 | AR22: 10.5600 | AS22: 0 | AT22: 4.7 | AU22: 5.0 | AV22: 4.9 | AW22: 4.5 | AX22: 4.8 | BA22: 14.4 | BB22: 10.5600 | BC22: 104 | BD22: 37 | BE22: 50 | BF22: 53 | BG22: 51 | BH22: 52 | BI22: 0 | BJ22: 0 | BK22: 15.3 | BL22: 10.7100 | BM22: 0 | BN22: 3.7 | BO22: 5.0 | BP22: 5.3 | BQ22: 5.1 | BR22: 5.2 | BU22: 15.3 | BV22: 10.7100 | BW22: 114 | BX22: 40 | BY22: 41 | BZ22: 42 | CA22: 44 | CB22: 46 | CC22: 0 | CD22: 0 | CE22: 13 | CF22: 9.7367 | CG22: 0 | CH22: 4.0 | CI22: 4.1 | CJ22: 4.2 | CK22: 4.4 | CL22: 4.6 | CO22: 12.7 | CP22: 9.7367 | CQ22: 158 | CR22: 41.9334 | CS22: 47.6516 | CT22: 0.0 | CU22: 47.6516
A23: 17 | B23: 179 | C23: 42.8485 | D23: 200503580 | E23: Irsah van Oosten | F23: Widex Gzc Donk | G23: DONK | H23: West | J23: X | K23: 2005 | P23: 41 | Q23: 43 | R23: 44 | S23: 45 | T23: 46 | U23: 0 | V23: 0 | W23: 13.2 | X23: 9.6800 | Y23: 0 | Z23: 4.1 | AA23: 4.3 | AB23: 4.4 | AC23: 4.5 | AD23: 4.6 | AG23: 13.2 | AH23: 9.6800 | AI23: 178 | AJ23: 42 | AK23: 48 | AL23: 42 | AM23: 42 | AN23: 49 | AO23: 0 | AP23: 0 | AQ23: 13.2 | AR23: 9.6800 | AS23: 0 | AT23: 4.2 | AU23: 4.8 | AV23: 4.2 | AW23: 4.2 | AX23: 4.9 | BA23: 13.2 | BB23: 9.6800 | BC23: 152 | BD23: 40 | BE23: 42 | BF23: 40 | BG23: 41 | BH23: 46 | BI23: 0 | BJ23: 0 | BK23: 12.3 | BL23: 8.6100 | BM23: 0 | BN23: 4.0 | BO23: 4.2 | BP23: 4.0 | BQ23: 4.1 | BR23: 4.6 | BU23: 12.3 | BV23: 8.6100 | BW23: 194 | BX23: 42 | BY23: 43 | BZ23: 42 | CA23: 43 | CB23: 41 | CC23: 0 | CD23: 0 | CE23: 13 | CF23: 9.7367 | CG23: 0 | CH23: 4.2 | CI23: 4.3 | CJ23: 4.2 | CK23: 4.3 | CL23: 4.1 | CO23: 12.7 | CP23: 9.7367 | CQ23: 158 | CR23: 37.7067 | CS23: 42.8485 | CT23: 0.0 | CU23: 42.8485
A24: 18 | B24: BM | C24: 47.9886 | D24: 200104834 | E24: Eline Sijl | F24: AZC | G24: AZC | H24: West | I24: BM | K24: 2001 | M24: BM | P24: 43 | Q24: 42 | R24: 46 | S24: 42 | T24: 47 | U24: 0 | V24: 0 | W24: 13.1 | X24: 9.6067 | Y24: 0 | Z24: 4.3 | AA24: 4.2 | AB24: 4.6 | AC24: 4.2 | AD24: 4.7 | AG24: 13.1 | AH24: 9.6067 | AI24: 180 | AJ24: 48 | AK24: 45 | AL24: 43 | AM24: 46 | AN24: 49 | AO24: 0 | AP24: 0 | AQ24: 13.9 | AR24: 10.1933 | AS24: 0 | AT24: 4.8 | AU24: 4.5 | AV24: 4.3 | AW24: 4.6 | AX24: 4.9 | BA24: 13.9 | BB24: 10.1933 | BC24: 119 | BD24: 49 | BE24: 58 | BF24: 56 | BG24: 56 | BH24: 54 | BI24: 0 | BJ24: 0 | BK24: 16.6 | BL24: 11.6200 | BM24: 0 | BN24: 4.9 | BO24: 5.8 | BP24: 5.6 | BQ24: 5.6 | BR24: 5.4 | BU24: 16.6 | BV24: 11.6200 | BW24: 78 | BX24: 44 | BY24: 49 | BZ24: 48 | CA24: 49 | CB24: 43 | CC24: 0 | CD24: 0 | CE24: 14 | CF24: 10.8100 | CG24: 0 | CH24: 4.4 | CI24: 4.9 | CJ24: 4.8 | CK24: 4.9 | CL24: 4.3 | CO24: 14.1 | CP24: 10.8100 | CQ24: 107 | CR24: 42.2300 | CS24: 47.9886 | CT24: 0.0 | CU24: 0
A25: 19 | B25: 119 | C25: 48.4849 | D25: 200404610 | E25: Esqua Swennen | F25: DSZ | G25: DSZ | H25: West | K25: 2004 | P25: 48 | Q25: 48 | R25: 52 | S25: 53 | T25: 49 | U25: 0 | V25: 0 | W25: 14.9 | X25: 10.9267 | Y25: 0 | Z25: 4.8 | AA25: 4.8 | AB25: 5.2 | AC25: 5.3 | AD25: 4.9 | AG25: 14.9 | AH25: 10.9267 | AI25: 112 | AJ25: 53 | AK25: 50 | AL25: 52 | AM25: 55 | AN25: 50 | AO25: 0 | AP25: 0 | AQ25: 15.5 | AR25: 11.3667 | AS25: 0 | AT25: 5.3 | AU25: 5.0 | AV25: 5.2 | AW25: 5.5 | AX25: 5.0 | BA25: 15.5 | BB25: 11.3667 | BC25: 63 | BD25: 45 | BE25: 50 | BF25: 50 | BG25: 42 | BH25: 46 | BI25: 0 | BJ25: 0 | BK25: 14.1 | BL25: 9.8700 | BM25: 0 | BN25: 4.5 | BO25: 5.0 | BP25: 5.0 | BQ25: 4.2 | BR25: 4.6 | BU25: 14.1 | BV25: 9.8700 | BW25: 160 | BX25: 41 | BY25: 47 | BZ25: 47 | CA25: 45 | CB25: 45 | CC25: 0 | CD25: 0 | CE25: 14 | CF25: 10.5033 | CG25: 0 | CH25: 4.1 | CI25: 4.7 | CJ25: 4.7 | CK25: 4.5 | CL25: 4.5 | CO25: 13.7 | CP25: 10.5033 | CQ25: 121 | CR25: 42.6667 | CS25: 48.4849 | CT25: 0.0 | CU25: 48.4849
A26: 20 | B26: 61 | C26: 52.6628 | D26: 200401608 | E26: Ilyana Guliker | F26: Polar Bears | G26: PB | H26: Oost | K26: 2004 | M26: L | P26: 52 | Q26: 54 | R26: 54 | S26: 56 | T26: 54 | U26: 0 | V26: 0 | W26: 16.2 | X26: 11.8800 | Y26: 0 | Z26: 5.2 | AA26: 5.4 | AB26: 5.4 | AC26: 5.6 | AD26: 5.4 | AG26: 16.2 | AH26: 11.8800 | AI26: 68 | AJ26: 51 | AK26: 52 | AL26: 55 | AM26: 54 | AN26: 54 | AO26: 0 | AP26: 0 | AQ26: 16.0 | AR26: 11.7333 | AS26: 0 | AT26: 5.1 | AU26: 5.2 | AV26: 5.5 | AW26: 5.4 | AX26: 5.4 | BA26: 16.0 | BB26: 11.7333 | BC26: 46 | BD26: 53 | BE26: 60 | BF26: 59 | BG26: 52 | BH26: 55 | BI26: 0 | BJ26: 0 | BK26: 16.7 | BL26: 11.6900 | BM26: 0 | BN26: 5.3 | BO26: 6.0 | BP26: 5.9 | BQ26: 5.2 | BR26: 5.5 | BU26: 16.7 | BV26: 11.6900 | BW26: 71 | BX26: 48 | BY26: 48 | BZ26: 48 | CA26: 47 | CB26: 48 | CC26: 0 | CD26: 0 | CE26: 14 | CF26: 11.0400 | CG26: 0 | CH26: 4.8 | CI26: 4.8 | CJ26: 4.8 | CK26: 4.7 | CL26: 4.8 | CO26: 14.4 | CP26: 11.0400 | CQ26: 92 | CR26: 46.3433 | CS26: 52.6628 | CT26: 0.0 | CU26: 52.6628
A27: 21 | B27: 128 | C27: 47.8030 | D27: 200300794 | E27: Jill Mourmans | F27: ZC.Eijsden | G27: eij | H27: Zuid | K27: 2003 | P27: 49 | Q27: 45 | R27: 48 | S27: 54 | T27: 48 | U27: 0 | V27: 0 | W27: 14.5 | X27: 10.6333 | Y27: 0 | Z27: 4.9 | AA27: 4.5 | AB27: 4.8 | AC27: 5.4 | AD27: 4.8 | AG27: 14.5 | AH27: 10.6333 | AI27: 130 | AJ27: 48 | AK27: 44 | AL27: 40 | AM27: 44 | AN27: 48 | AO27: 0 | AP27: 0 | AQ27: 13.6 | AR27: 9.9733 | AS27: 0 | AT27: 4.8 | AU27: 4.4 | AV27: 4.0 | AW27: 4.4 | AX27: 4.8 | BA27: 13.6 | BB27: 9.9733 | BC27: 134 | BD27: 54 | BE27: 57 | BF27: 50 | BG27: 56 | BH27: 52 | BI27: 0 | BJ27: 0 | BK27: 16.2 | BL27: 11.3400 | BM27: 0 | BN27: 5.4 | BO27: 5.7 | BP27: 5.0 | BQ27: 5.6 | BR27: 5.2 | BU27: 16.2 | BV27: 11.3400 | BW27: 89 | BX27: 43 | BY27: 44 | BZ27: 46 | CA27: 45 | CB27: 43 | CC27: 0 | CD27: 0 | CE27: 13 | CF27: 10.1200 | CG27: 0 | CH27: 4.3 | CI27: 4.4 | CJ27: 4.6 | CK27: 4.5 | CL27: 4.3 | CO27: 13.2 | CP27: 10.1200 | CQ27: 139 | CR27: 42.0666 | CS27: 47.8030 | CT27: 0.0 | CU27: 47.8030
A28: 22 | B28: 101 | C28: 49.5643 | D28: 200303982 | E28: Jolien Peeters | F28: PSV Synchro Team Eindhoven | G28: PSV | H28: Zuid | K28: 2003 | M28: L | P28: 52 | Q28: 53 | R28: 53 | S28: 57 | T28: 57 | U28: 0 | V28: 0 | W28: 16.3 | X28: 11.9533 | Y28: 0 | Z28: 5.2 | AA28: 5.3 | AB28: 5.3 | AC28: 5.7 | AD28: 5.7 | AG28: 16.3 | AH28: 11.9533 | AI28: 62 | AJ28: 47 | AK28: 39 | AL28: 37 | AM28: 41 | AN28: 46 | AO28: 0 | AP28: 0 | AQ28: 12.6 | AR28: 9.2400 | AS28: 0 | AT28: 4.7 | AU28: 3.9 | AV28: 3.7 | AW28: 4.1 | AX28: 4.6 | BA28: 12.6 | BB28: 9.2400 | BC28: 172 | BD28: 52 | BE28: 54 | BF28: 59 | BG28: 59 | BH28: 54 | BI28: 0 | BJ28: 0 | BK28: 16.7 | BL28: 11.6900 | BM28: 0 | BN28: 5.2 | BO28: 5.4 | BP28: 5.9 | BQ28: 5.9 | BR28: 5.4 | BU28: 16.7 | BV28: 11.6900 | BW28: 71 | BX28: 45 | BY28: 50 | BZ28: 47 | CA28: 48 | CB28: 42 | CC28: 0 | CD28: 0 | CE28: 14 | CF28: 10.7333 | CG28: 0 | CH28: 4.5 | CI28: 5.0 | CJ28: 4.7 | CK28: 4.8 | CL28: 4.2 | CO28: 14.0 | CP28: 10.7333 | CQ28: 113 | CR28: 43.6166 | CS28: 49.5643 | CT28: 0.0 | CU28: 49.5643
A29: 23 | B29: 45 | C29: 54.3636 | D29: 200303068 | E29: Linda van Heumen | F29: Aqua-Novio '94 | G29: AQN | H29: Oost | K29: 2003 | M29: L | P29: 50 | Q29: 58 | R29: 51 | S29: 56 | T29: 55 | U29: 0 | V29: 0 | W29: 16.2 | X29: 11.8800 | Y29: 0 | Z29: 5.0 | AA29: 5.8 | AB29: 5.1 | AC29: 5.6 | AD29: 5.5 | AG29: 16.2 | AH29: 11.8800 | AI29: 68 | AJ29: 55 | AK29: 53 | AL29: 58 | AM29: 54 | AN29: 56 | AO29: 0 | AP29: 0 | AQ29: 16.5 | AR29: 12.1000 | AS29: 0 | AT29: 5.5 | AU29: 5.3 | AV29: 5.8 | AW29: 5.4 | AX29: 5.6 | BA29: 16.5 | BB29: 12.1000 | BC29: 32 | BD29: 52 | BE29: 57 | BF29: 57 | BG29: 56 | BH29: 59 | BI29: 0 | BJ29: 0 | BK29: 17.0 | BL29: 11.9000 | BM29: 0 | BN29: 5.2 | BO29: 5.7 | BP29: 5.7 | BQ29: 5.6 | BR29: 5.9 | BU29: 17.0 | BV29: 11.9000 | BW29: 63 | BX29: 47 | BY29: 53 | BZ29: 53 | CA29: 54 | CB29: 50 | CC29: 0 | CD29: 0 | CE29: 16 | CF29: 11.9600 | CG29: 0 | CH29: 4.7 | CI29: 5.3 | CJ29: 5.3 | CK29: 5.4 | CL29: 5.0 | CO29: 15.6 | CP29: 11.9600 | CQ29: 43 | CR29: 47.8400 | CS29: 54.3636 | CT29: 0.0 | CU29: 54.3636
A30: 24 | B30: 104 | C30: 49.4773 | D30: 200502006 | E30: Kyara Alexander | F30: ACZ | G30: ACZ | H30: West | K30: 2005 | M30: L | P30: 55 | Q30: 55 | R30: 51 | S30: 58 | T30: 57 | U30: 0 | V30: 0 | W30: 16.7 | X30: 12.2467 | Y30: 0 | Z30: 5.5 | AA30: 5.5 | AB30: 5.1 | AC30: 5.8 | AD30: 5.7 | AG30: 16.7 | AH30: 12.2467 | AI30: 51 | AJ30: 45 | AK30: 46 | AL30: 44 | AM30: 43 | AN30: 47 | AO30: 0 | AP30: 0 | AQ30: 13.5 | AR30: 9.9000 | AS30: 0 | AT30: 4.5 | AU30: 4.6 | AV30: 4.4 | AW30: 4.3 | AX30: 4.7 | BA30: 13.5 | BB30: 9.9000 | BC30: 138 | BD30: 47 | BE30: 50 | BF30: 55 | BG30: 51 | BH30: 48 | BI30: 0 | BJ30: 0 | BK30: 14.9 | BL30: 10.4300 | BM30: 0 | BN30: 4.7 | BO30: 5.0 | BP30: 5.5 | BQ30: 5.1 | BR30: 4.8 | BU30: 14.9 | BV30: 10.4300 | BW30: 127 | BX30: 45 | BY30: 47 | BZ30: 48 | CA30: 48 | CB30: 48 | CC30: 0 | CD30: 0 | CE30: 14 | CF30: 10.9633 | CG30: 0 | CH30: 4.5 | CI30: 4.7 | CJ30: 4.8 | CK30: 4.8 | CL30: 4.8 | CO30: 14.3 | CP30: 10.9633 | CQ30: 96 | CR30: 43.5400 | CS30: 49.4773 | CT30: 0.0 | CU30: 49.4773
A31: 25 | B31: 193 | C31: 0.0000 | D31: 200304818 | E31: Emma Leen | F31: Z.P.C.H. | G31: ZPC | H31: MidWest | K31: 2003 | O31: x | P31: 0 | Q31: 0 | R31: 0 | S31: 0 | T31: 0 | U31: 0 | V31: 0 | W31: 0.0 | X31: 0.0000 | Y31: 0 | Z31: 0.0 | AA31: 0.0 | AB31: 0.0 | AC31: 0.0 | AD31: 0.0 | AG31: 0.0 | AH31: 0.0000 | AJ31: 0 | AK31: 0 | AL31: 0 | AM31: 0 | AN31: 0 | AO31: 0 | AP31: 0 | AQ31: 0.0 | AR31: 0.0000 | AS31: 0 | AT31: 0.0 | AU31: 0.0 | AV31: 0.0 | AW31: 0.0 | AX31: 0.0 | BA31: 0.0 | BB31: 0.0000 | BD31: 0 | BE31: 0 | BF31: 0 | BG31: 0 | BH31: 0 | BI31: 0 | BJ31: 0 | BK31: 0.0 | BL31: 0.0000 | BM31: 0 | BN31: 0.0 | BO31: 0.0 | BP31: 0.0 | BQ31: 0.0 | BR31: 0.0 | BU31: 0.0 | BV31: 0.0000 | BX31: 0 | BY31: 0 | BZ31: 0 | CA31: 0 | CB31: 0 | CC31: 0 | CD31: 0 | CE31: 0 | CF31: 0.0000 | CG31: 0 | CH31: 0.0 | CI31: 0.0 | CJ31: 0.0 | CK31: 0.0 | CL31: 0.0 | CO31: 0.0 | CP31: 0.0000 | CR31: 0.0000 | CS31: 0.0000 | CT31: 0.0 | CU31: 0
A32: 26 | B32: 140 | C32: 47.1781 | D32: 200503992 | E32: Merel Schrijvers van Zenden | F32: Widex Gzc Donk | G32: DONK | H32: West | K32: 2005 | M32: L | P32: 47 | Q32: 49 | R32: 48 | S32: 46 | T32: 48 | U32: 0 | V32: 0 | W32: 14.3 | X32: 10.4867 | Y32: 0 | Z32: 4.7 | AA32: 4.9 | AB32: 4.8 | AC32: 4.6 | AD32: 4.8 | AG32: 14.3 | AH32: 10.4867 | AI32: 143 | AJ32: 49 | AK32: 49 | AL32: 47 | AM32: 44 | AN32: 49 | AO32: 0 | AP32: 0 | AQ32: 14.5 | AR32: 10.6333 | AS32: 0 | AT32: 4.9 | AU32: 4.9 | AV32: 4.7 | AW32: 4.4 | AX32: 4.9 | BA32: 14.5 | BB32: 10.6333 | BC32: 100 | BD32: 50 | BE32: 49 | BF32: 50 | BG32: 56 | BH32: 47 | BI32: 0 | BJ32: 0 | BK32: 14.9 | BL32: 10.4300 | BM32: 0 | BN32: 5.0 | BO32: 4.9 | BP32: 5.0 | BQ32: 5.6 | BR32: 4.7 | BU32: 14.9 | BV32: 10.4300 | BW32: 127 | BX32: 41 | BY32: 44 | BZ32: 46 | CA32: 43 | CB32: 43 | CC32: 0 | CD32: 0 | CE32: 13 | CF32: 9.9667 | CG32: 0 | CH32: 4.1 | CI32: 4.4 | CJ32: 4.6 | CK32: 4.3 | CL32: 4.3 | CO32: 13.0 | CP32: 9.9667 | CQ32: 149 | CR32: 41.5167 | CS32: 47.1781 | CT32: 0.0 | CU32: 47.1781
A33: 27 | B33: 83 | C33: 50.8220 | D33: 200501556 | E33: Iris Huizinga | F33: DAW | G33: DAW | H33: Midwest | K33: 2005 | M33: L | P33: 51 | Q33: 51 | R33: 47 | S33: 45 | T33: 53 | U33: 0 | V33: 0 | W33: 14.9 | X33: 10.9267 | Y33: 0 | Z33: 5.1 | AA33: 5.1 | AB33: 4.7 | AC33: 4.5 | AD33: 5.3 | AG33: 14.9 | AH33: 10.9267 | AI33: 112 | AJ33: 48 | AK33: 54 | AL33: 53 | AM33: 52 | AN33: 55 | AO33: 0 | AP33: 0 | AQ33: 15.9 | AR33: 11.6600 | AS33: 0 | AT33: 4.8 | AU33: 5.4 | AV33: 5.3 | AW33: 5.2 | AX33: 5.5 | BA33: 15.9 | BB33: 11.6600 | BC33: 48 | BD33: 54 | BE33: 56 | BF33: 55 | BG33: 53 | BH33: 55 | BI33: 0 | BJ33: 0 | BK33: 16.4 | BL33: 11.4800 | BM33: 0 | BN33: 5.4 | BO33: 5.6 | BP33: 5.5 | BQ33: 5.3 | BR33: 5.5 | BU33: 16.4 | BV33: 11.4800 | BW33: 84 | BX33: 49 | BY33: 46 | BZ33: 46 | CA33: 47 | CB33: 45 | CC33: 0 | CD33: 0 | CE33: 14 | CF33: 10.6567 | CG33: 0 | CH33: 4.9 | CI33: 4.6 | CJ33: 4.6 | CK33: 4.7 | CL33: 4.5 | CO33: 13.9 | CP33: 10.6567 | CQ33: 115 | CR33: 44.7234 | CS33: 50.8220 | CT33: 0.0 | CU33: 50.8220
A34: 28 | B34: 56 | C34: 53.3295 | D34: 200401298 | E34: Maddy van der Hoeven | F34: De Dolfijn | G34: DOL | H34: Midwest | K34: 2004 | M34: L | P34: 53 | Q34: 53 | R34: 52 | S34: 53 | T34: 56 | U34: 0 | V34: 0 | W34: 15.9 | X34: 11.6600 | Y34: 0 | Z34: 5.3 | AA34: 5.3 | AB34: 5.2 | AC34: 5.3 | AD34: 5.6 | AG34: 15.9 | AH34: 11.6600 | AI34: 79 | AJ34: 50 | AK34: 49 | AL34: 48 | AM34: 52 | AN34: 52 | AO34: 0 | AP34: 0 | AQ34: 15.1 | AR34: 11.0733 | AS34: 0 | AT34: 5.0 | AU34: 4.9 | AV34: 4.8 | AW34: 5.2 | AX34: 5.2 | BA34: 15.1 | BB34: 11.0733 | BC34: 74 | BD34: 55 | BE34: 62 | BF34: 60 | BG34: 57 | BH34: 60 | BI34: 0 | BJ34: 0 | BK34: 17.7 | BL34: 12.3900 | BM34: 0 | BN34: 5.5 | BO34: 6.2 | BP34: 6.0 | BQ34: 5.7 | BR34: 6.0 | BU34: 17.7 | BV34: 12.3900 | BW34: 34 | BX34: 48 | BY34: 53 | BZ34: 52 | CA34: 53 | CB34: 49 | CC34: 0 | CD34: 0 | CE34: 15 | CF34: 11.8067 | CG34: 0 | CH34: 4.8 | CI34: 5.3 | CJ34: 5.2 | CK34: 5.3 | CL34: 4.9 | CO34: 15.4 | CP34: 11.8067 | CQ34: 47 | CR34: 46.9300 | CS34: 53.3295 | CT34: 0.0 | CU34: 53.3295
A35: 29 | B35: 188 | C35: 40.8068 | D35: 200503998 | E35: Savoy Bottse | F35: HZ&PC Heerenveen | G35: HZPC | H35: Noord | K35: 2005 | P35: 36 | Q35: 35 | R35: 38 | S35: 38 | T35: 40 | U35: 0 | V35: 0 | W35: 11.2 | X35: 8.2133 | Y35: 0 | Z35: 3.6 | AA35: 3.5 | AB35: 3.8 | AC35: 3.8 | AD35: 4.0 | AG35: 11.2 | AH35: 8.2133 | AI35: 197 | AJ35: 43 | AK35: 47 | AL35: 44 | AM35: 46 | AN35: 49 | AO35: 0 | AP35: 0 | AQ35: 13.7 | AR35: 10.0467 | AS35: 0 | AT35: 4.3 | AU35: 4.7 | AV35: 4.4 | AW35: 4.6 | AX35: 4.9 | BA35: 13.7 | BB35: 10.0467 | BC35: 132 | BD35: 43 | BE35: 45 | BF35: 39 | BG35: 37 | BH35: 42 | BI35: 0 | BJ35: 0 | BK35: 12.4 | BL35: 8.6800 | BM35: 0 | BN35: 4.3 | BO35: 4.5 | BP35: 3.9 | BQ35: 3.7 | BR35: 4.2 | BU35: 12.4 | BV35: 8.6800 | BW35: 193 | BX35: 39 | BY35: 40 | BZ35: 38 | CA35: 38 | CB35: 42 | CC35: 0 | CD35: 0 | CE35: 12 | CF35: 8.9700 | CG35: 0 | CH35: 3.9 | CI35: 4.0 | CJ35: 3.8 | CK35: 3.8 | CL35: 4.2 | CO35: 11.7 | CP35: 8.9700 | CQ35: 187 | CR35: 35.9100 | CS35: 40.8068 | CT35: 0.0 | CU35: 40.8068
A36: 30 | B36: 193 | C36: 0.0000 | D36: 200304194 | E36: Sanne van der Waal | F36: Z.P.C.H. | G36: ZPC | H36: MidWest | K36: 2003 | O36: x | P36: 0 | Q36: 0 | R36: 0 | S36: 0 | T36: 0 | U36: 0 | V36: 0 | W36: 0.0 | X36: 0.0000 | Y36: 0 | Z36: 0.0 | AA36: 0.0 | AB36: 0.0 | AC36: 0.0 | AD36: 0.0 | AG36: 0.0 | AH36: 0.0000 | AJ36: 0 | AK36: 0 | AL36: 0 | AM36: 0 | AN36: 0 | AO36: 0 | AP36: 0 | AQ36: 0.0 | AR36: 0.0000 | AS36: 0 | AT36: 0.0 | AU36: 0.0 | AV36: 0.0 | AW36: 0.0 | AX36: 0.0 | BA36: 0.0 | BB36: 0.0000 | BD36: 0 | BE36: 0 | BF36: 0 | BG36: 0 | BH36: 0 | BI36: 0 | BJ36: 0 | BK36: 0.0 | BL36: 0.0000 | BM36: 0 | BN36: 0.0 | BO36: 0.0 | BP36: 0.0 | BQ36: 0.0 | BR36: 0.0 | BU36: 0.0 | BV36: 0.0000 | BX36: 0 | BY36: 0 | BZ36: 0 | CA36: 0 | CB36: 0 | CC36: 0 | CD36: 0 | CE36: 0 | CF36: 0.0000 | CG36: 0 | CH36: 0.0 | CI36: 0.0 | CJ36: 0.0 | CK36: 0.0 | CL36: 0.0 | CO36: 0.0 | CP36: 0.0000 | CR36: 0.0000 | CS36: 0.0000 | CT36: 0.0 | CU36: 0
A37: 31 | B37: 30 | C37: 55.6932 | D37: 200401126 | E37: Keyla Lammers | F37: AZC | G37: AZC | H37: West | K37: 2004 | M37: L | P37: 56 | Q37: 55 | R37: 59 | S37: 61 | T37: 59 | U37: 0 | V37: 0 | W37: 17.4 | X37: 12.7600 | Y37: 0 | Z37: 5.6 | AA37: 5.5 | AB37: 5.9 | AC37: 6.1 | AD37: 5.9 | AG37: 17.4 | AH37: 12.7600 | AI37: 26 | AJ37: 56 | AK37: 55 | AL37: 52 | AM37: 54 | AN37: 55 | AO37: 0 | AP37: 0 | AQ37: 16.4 | AR37: 12.0267 | AS37: 0 | AT37: 5.6 | AU37: 5.5 | AV37: 5.2 | AW37: 5.4 | AX37: 5.5 | BA37: 16.4 | BB37: 12.0267 | BC37: 36 | BD37: 56 | BE37: 60 | BF37: 60 | BG37: 57 | BH37: 56 | BI37: 0 | BJ37: 0 | BK37: 17.3 | BL37: 12.1100 | BM37: 0 | BN37: 5.6 | BO37: 6.0 | BP37: 6.0 | BQ37: 5.7 | BR37: 5.6 | BU37: 17.3 | BV37: 12.1100 | BW37: 47 | BX37: 50 | BY37: 51 | BZ37: 51 | CA37: 56 | CB37: 57 | CC37: 0 | CD37: 0 | CE37: 16 | CF37: 12.1133 | CG37: 0 | CH37: 5.0 | CI37: 5.1 | CJ37: 5.1 | CK37: 5.6 | CL37: 5.7 | CO37: 15.8 | CP37: 12.1133 | CQ37: 37 | CR37: 49.0100 | CS37: 55.6932 | CT37: 0.0 | CU37: 55.6932
A38: 32 | B38: 144 | C38: 46.4469 | D38: 200303042 | E38: Eda Karacan | F38: DSZ | G38: DSZ | H38: West | K38: 2003 | P38: 48 | Q38: 42 | R38: 49 | S38: 52 | T38: 48 | U38: 0 | V38: 0 | W38: 14.5 | X38: 10.6333 | Y38: 0 | Z38: 4.8 | AA38: 4.2 | AB38: 4.9 | AC38: 5.2 | AD38: 4.8 | AG38: 14.5 | AH38: 10.6333 | AI38: 130 | AJ38: 46 | AK38: 48 | AL38: 40 | AM38: 43 | AN38: 45 | AO38: 0 | AP38: 0 | AQ38: 13.4 | AR38: 9.8267 | AS38: 0 | AT38: 4.6 | AU38: 4.8 | AV38: 4.0 | AW38: 4.3 | AX38: 4.5 | BA38: 13.4 | BB38: 9.8267 | BC38: 144 | BD38: 44 | BE38: 46 | BF38: 43 | BG38: 45 | BH38: 48 | BI38: 0 | BJ38: 0 | BK38: 13.5 | BL38: 9.4500 | BM38: 0 | BN38: 4.4 | BO38: 4.6 | BP38: 4.3 | BQ38: 4.5 | BR38: 4.8 | BU38: 13.5 | BV38: 9.4500 | BW38: 178 | BX38: 52 | BY38: 47 | BZ38: 48 | CA38: 48 | CB38: 43 | CC38: 0 | CD38: 0 | CE38: 14 | CF38: 10.9633 | CG38: 0 | CH38: 5.2 | CI38: 4.7 | CJ38: 4.8 | CK38: 4.8 | CL38: 4.3 | CO38: 14.3 | CP38: 10.9633 | CQ38: 96 | CR38: 40.8733 | CS38: 46.4469 | CT38: 0.0 | CU38: 46.4469
A39: 33 | B39: 121 | C39: 48.0948 | D39: 200500620 | E39: Norah Steinfort Schaap | F39: Polar Bears | G39: PB | H39: Oost | K39: 2005 | M39: L | P39: 43 | Q39: 46 | R39: 43 | S39: 43 | T39: 47 | U39: 0 | V39: 0 | W39: 13.2 | X39: 9.6800 | Y39: 0 | Z39: 4.3 | AA39: 4.6 | AB39: 4.3 | AC39: 4.3 | AD39: 4.7 | AG39: 13.2 | AH39: 9.6800 | AI39: 178 | AJ39: 54 | AK39: 56 | AL39: 57 | AM39: 58 | AN39: 54 | AO39: 0 | AP39: 0 | AQ39: 16.7 | AR39: 12.2467 | AS39: 0 | AT39: 5.4 | AU39: 5.6 | AV39: 5.7 | AW39: 5.8 | AX39: 5.4 | BA39: 16.7 | BB39: 12.2467 | BC39: 28 | BD39: 46 | BE39: 50 | BF39: 50 | BG39: 49 | BH39: 52 | BI39: 0 | BJ39: 0 | BK39: 14.9 | BL39: 10.4300 | BM39: 0 | BN39: 4.6 | BO39: 5.0 | BP39: 5.0 | BQ39: 4.9 | BR39: 5.2 | BU39: 14.9 | BV39: 10.4300 | BW39: 127 | BX39: 44 | BY39: 42 | BZ39: 45 | CA39: 44 | CB39: 41 | CC39: 0 | CD39: 0 | CE39: 13 | CF39: 9.9667 | CG39: 0 | CH39: 4.4 | CI39: 4.2 | CJ39: 4.5 | CK39: 4.4 | CL39: 4.1 | CO39: 13.0 | CP39: 9.9667 | CQ39: 149 | CR39: 42.3234 | CS39: 48.0948 | CT39: 0.0 | CU39: 48.0948
A40: 34 | B40: 157 | C40: 45.0266 | D40: 200501932 | E40: Sofie Geurts | F40: HZPC Horst | G40: HZPC | H40: zuid | J40: X | K40: 2005 | N40: Age II | P40: 47 | Q40: 45 | R40: 47 | S40: 44 | T40: 46 | U40: 0 | V40: 0 | W40: 13.8 | X40: 10.1200 | Y40: 0 | Z40: 4.7 | AA40: 4.5 | AB40: 4.7 | AC40: 4.4 | AD40: 4.6 | AG40: 13.8 | AH40: 10.1200 | AI40: 165 | AJ40: 44 | AK40: 39 | AL40: 42 | AM40: 48 | AN40: 49 | AO40: 0 | AP40: 0 | AQ40: 13.4 | AR40: 9.8267 | AS40: 0 | AT40: 4.4 | AU40: 3.9 | AV40: 4.2 | AW40: 4.8 | AX40: 4.9 | BA40: 13.4 | BB40: 9.8267 | BC40: 144 | BD40: 48 | BE40: 48 | BF40: 53 | BG40: 46 | BH40: 45 | BI40: 0 | BJ40: 0 | BK40: 14.2 | BL40: 9.9400 | BM40: 0 | BN40: 4.8 | BO40: 4.8 | BP40: 5.3 | BQ40: 4.6 | BR40: 4.5 | BU40: 14.2 | BV40: 9.9400 | BW40: 156 | BX40: 40 | BY40: 45 | BZ40: 45 | CA40: 42 | CB40: 39 | CC40: 0 | CD40: 0 | CE40: 13 | CF40: 9.7367 | CG40: 0 | CH40: 4.0 | CI40: 4.5 | CJ40: 4.5 | CK40: 4.2 | CL40: 3.9 | CO40: 12.7 | CP40: 9.7367 | CQ40: 158 | CR40: 39.6234 | CS40: 45.0266 | CT40: 0.0 | CU40: 45.0266
A41: 35 | B41: 193 | C41: 0.0000 | D41: 200304550 | E41: Margo Rops | F41: Synchro Breda | G41: SYN | H41: Zuid | K41: 2003 | O41: x | P41: 0 | Q41: 0 | R41: 0 | S41: 0 | T41: 0 | U41: 0 | V41: 0 | W41: 0.0 | X41: 0.0000 | Y41: 0 | Z41: 0.0 | AA41: 0.0 | AB41: 0.0 | AC41: 0.0 | AD41: 0.0 | AG41: 0.0 | AH41: 0.0000 | AJ41: 0 | AK41: 0 | AL41: 0 | AM41: 0 | AN41: 0 | AO41: 0 | AP41: 0 | AQ41: 0.0 | AR41: 0.0000 | AS41: 0 | AT41: 0.0 | AU41: 0.0 | AV41: 0.0 | AW41: 0.0 | AX41: 0.0 | BA41: 0.0 | BB41: 0.0000 | BD41: 0 | BE41: 0 | BF41: 0 | BG41: 0 | BH41: 0 | BI41: 0 | BJ41: 0 | BK41: 0.0 | BL41: 0.0000 | BM41: 0 | BN41: 0.0 | BO41: 0.0 | BP41: 0.0 | BQ41: 0.0 | BR41: 0.0 | BU41: 0.0 | BV41: 0.0000 | BX41: 0 | BY41: 0 | BZ41: 0 | CA41: 0 | CB41: 0 | CC41: 0 | CD41: 0 | CE41: 0 | CF41: 0.0000 | CG41: 0 | CH41: 0.0 | CI41: 0.0 | CJ41: 0.0 | CK41: 0.0 | CL41: 0.0 | CO41: 0.0 | CP41: 0.0000 | CR41: 0.0000 | CS41: 0.0000 | CT41: 0.0 | CU41: 0
A42: 36 | B42: 178 | C42: 43.0189 | D42: 200503578 | E42: Marissa Peters | F42: Aqua-Novio '94 | G42: AQN | H42: Oost | K42: 2005 | P42: 45 | Q42: 43 | R42: 40 | S42: 38 | T42: 40 | U42: 0 | V42: 0 | W42: 12.3 | X42: 9.0200 | Y42: 0 | Z42: 4.5 | AA42: 4.3 | AB42: 4.0 | AC42: 3.8 | AD42: 4.0 | AG42: 12.3 | AH42: 9.0200 | AI42: 191 | AJ42: 43 | AK42: 37 | AL42: 38 | AM42: 40 | AN42: 44 | AO42: 0 | AP42: 0 | AQ42: 12.1 | AR42: 8.8733 | AS42: 0 | AT42: 4.3 | AU42: 3.7 | AV42: 3.8 | AW42: 4.0 | AX42: 4.4 | BA42: 12.1 | BB42: 8.8733 | BC42: 181 | BD42: 45 | BE42: 51 | BF42: 52 | BG42: 48 | BH42: 46 | BI42: 0 | BJ42: 0 | BK42: 14.5 | BL42: 10.1500 | BM42: 0 | BN42: 4.5 | BO42: 5.1 | BP42: 5.2 | BQ42: 4.8 | BR42: 4.6 | BU42: 14.5 | BV42: 10.1500 | BW42: 144 | BX42: 38 | BY42: 42 | BZ42: 43 | CA42: 45 | CB42: 43 | CC42: 0 | CD42: 0 | CE42: 13 | CF42: 9.8133 | CG42: 0 | CH42: 3.8 | CI42: 4.2 | CJ42: 4.3 | CK42: 4.5 | CL42: 4.3 | CO42: 12.8 | CP42: 9.8133 | CQ42: 156 | CR42: 37.8566 | CS42: 43.0189 | CT42: 0.0 | CU42: 43.0189
A43: 37 | B43: 93 | C43: 50.2424 | D43: 200501856 | E43: Tuana Ozsahin | F43: ACZ | G43: ACZ | H43: West | K43: 2005 | M43: L | P43: 48 | Q43: 50 | R43: 49 | S43: 46 | T43: 54 | U43: 0 | V43: 0 | W43: 14.7 | X43: 10.7800 | Y43: 0 | Z43: 4.8 | AA43: 5.0 | AB43: 4.9 | AC43: 4.6 | AD43: 5.4 | AG43: 14.7 | AH43: 10.7800 | AI43: 120 | AJ43: 54 | AK43: 52 | AL43: 60 | AM43: 55 | AN43: 53 | AO43: 0 | AP43: 0 | AQ43: 16.2 | AR43: 11.8800 | AS43: 0 | AT43: 5.4 | AU43: 5.2 | AV43: 6.0 | AW43: 5.5 | AX43: 5.3 | BA43: 16.2 | BB43: 11.8800 | BC43: 42 | BD43: 47 | BE43: 59 | BF43: 62 | BG43: 58 | BH43: 54 | BI43: 0 | BJ43: 0 | BK43: 17.1 | BL43: 11.9700 | BM43: 0 | BN43: 4.7 | BO43: 5.9 | BP43: 6.2 | BQ43: 5.8 | BR43: 5.4 | BU43: 17.1 | BV43: 11.9700 | BW43: 57 | BX43: 41 | BY43: 44 | BZ43: 43 | CA43: 41 | CB43: 40 | CC43: 0 | CD43: 0 | CE43: 13 | CF43: 9.5833 | CG43: 0 | CH43: 4.1 | CI43: 4.4 | CJ43: 4.3 | CK43: 4.1 | CL43: 4.0 | CO43: 12.5 | CP43: 9.5833 | CQ43: 166 | CR43: 44.2133 | CS43: 50.2424 | CT43: 0.0 | CU43: 50.2424
A44: 38 | B44: 151 | C44: 45.6969 | D44: 200503448 | E44: Elize Bonhof | F44: Hera'11 | G44: HERA | H44: Oost | K44: 2005 | P44: 45 | Q44: 48 | R44: 46 | S44: 51 | T44: 50 | U44: 0 | V44: 0 | W44: 14.4 | X44: 10.5600 | Y44: 0 | Z44: 4.5 | AA44: 4.8 | AB44: 4.6 | AC44: 5.1 | AD44: 5.0 | AG44: 14.4 | AH44: 10.5600 | AI44: 137 | AJ44: 41 | AK44: 46 | AL44: 43 | AM44: 42 | AN44: 40 | AO44: 0 | AP44: 0 | AQ44: 12.6 | AR44: 9.2400 | AS44: 0 | AT44: 4.1 | AU44: 4.6 | AV44: 4.3 | AW44: 4.2 | AX44: 4.0 | BA44: 12.6 | BB44: 9.2400 | BC44: 172 | BD44: 44 | BE44: 45 | BF44: 44 | BG44: 46 | BH44: 49 | BI44: 0 | BJ44: 0 | BK44: 13.5 | BL44: 9.4500 | BM44: 0 | BN44: 4.4 | BO44: 4.5 | BP44: 4.4 | BQ44: 4.6 | BR44: 4.9 | BU44: 13.5 | BV44: 9.4500 | BW44: 178 | BX44: 43 | BY44: 49 | BZ44: 48 | CA44: 50 | CB44: 46 | CC44: 0 | CD44: 0 | CE44: 14 | CF44: 10.9633 | CG44: 0 | CH44: 4.3 | CI44: 4.9 | CJ44: 4.8 | CK44: 5.0 | CL44: 4.6 | CO44: 14.3 | CP44: 10.9633 | CQ44: 96 | CR44: 40.2133 | CS44: 45.6969 | CT44: 0.0 | CU44: 45.6969
A45: 39 | B45: 136 | C45: 47.3560 | D45: 200404460 | E45: Anastasia Ibrahimov | F45: Z.P.C.H. | G45: ZPC | H45: MidWest | K45: 2004 | P45: 46 | Q45: 50 | R45: 48 | S45: 46 | T45: 46 | U45: 0 | V45: 0 | W45: 14.0 | X45: 10.2667 | Y45: 0 | Z45: 4.6 | AA45: 5.0 | AB45: 4.8 | AC45: 4.6 | AD45: 4.6 | AG45: 14.0 | AH45: 10.2667 | AI45: 157 | AJ45: 44 | AK45: 44 | AL45: 50 | AM45: 49 | AN45: 46 | AO45: 0 | AP45: 0 | AQ45: 13.9 | AR45: 10.1933 | AS45: 0 | AT45: 4.4 | AU45: 4.4 | AV45: 5.0 | AW45: 4.9 | AX45: 4.6 | BA45: 13.9 | BB45: 10.1933 | BC45: 119 | BD45: 46 | BE45: 50 | BF45: 56 | BG45: 50 | BH45: 53 | BI45: 0 | BJ45: 0 | BK45: 15.3 | BL45: 10.7100 | BM45: 0 | BN45: 4.6 | BO45: 5.0 | BP45: 5.6 | BQ45: 5.0 | BR45: 5.3 | BU45: 15.3 | BV45: 10.7100 | BW45: 114 | BX45: 45 | BY45: 47 | BZ45: 46 | CA45: 46 | CB45: 45 | CC45: 0 | CD45: 0 | CE45: 14 | CF45: 10.5033 | CG45: 0 | CH45: 4.5 | CI45: 4.7 | CJ45: 4.6 | CK45: 4.6 | CL45: 4.5 | CO45: 13.7 | CP45: 10.5033 | CQ45: 121 | CR45: 41.6733 | CS45: 47.3560 | CT45: 0.0 | CU45: 47.3560
A46: 40 | B46: 38 | C46: 54.8674 | D46: 200403890 | E46: Mette Bos | F46: Z.P.C.H. | G46: ZPC | H46: MidWest | K46: 2004 | M46: L | P46: 59 | Q46: 61 | R46: 62 | S46: 60 | T46: 62 | U46: 0 | V46: 0 | W46: 18.3 | X46: 13.4200 | Y46: 0 | Z46: 5.9 | AA46: 6.1 | AB46: 6.2 | AC46: 6.0 | AD46: 6.2 | AG46: 18.3 | AH46: 13.4200 | AI46: 11 | AJ46: 47 | AK46: 51 | AL46: 58 | AM46: 55 | AN46: 57 | AO46: 0 | AP46: 0 | AQ46: 16.3 | AR46: 11.9533 | AS46: 0 | AT46: 4.7 | AU46: 5.1 | AV46: 5.8 | AW46: 5.5 | AX46: 5.7 | BA46: 16.3 | BB46: 11.9533 | BC46: 39 | BD46: 54 | BE46: 56 | BF46: 55 | BG46: 52 | BH46: 54 | BI46: 0 | BJ46: 0 | BK46: 16.3 | BL46: 11.4100 | BM46: 0 | BN46: 5.4 | BO46: 5.6 | BP46: 5.5 | BQ46: 5.2 | BR46: 5.4 | BU46: 16.3 | BV46: 11.4100 | BW46: 86 | BX46: 49 | BY46: 50 | BZ46: 51 | CA46: 50 | CB46: 50 | CC46: 0 | CD46: 0 | CE46: 15 | CF46: 11.5000 | CG46: 0 | CH46: 4.9 | CI46: 5.0 | CJ46: 5.1 | CK46: 5.0 | CL46: 5.0 | CO46: 15.0 | CP46: 11.5000 | CQ46: 62 | CR46: 48.2833 | CS46: 54.8674 | CT46: 0.0 | CU46: 54.8674
A47: 41 | B47: 73 | C47: 51.4924 | D47: 200301990 | E47: Charissa de Groot | F47: De Watertrappers | G47: DWT | H47: Mid West | K47: 2003 | M47: L | P47: 49 | Q47: 53 | R47: 53 | S47: 57 | T47: 53 | U47: 0 | V47: 0 | W47: 15.9 | X47: 11.6600 | Y47: 0 | Z47: 4.9 | AA47: 5.3 | AB47: 5.3 | AC47: 5.7 | AD47: 5.3 | AG47: 15.9 | AH47: 11.6600 | AI47: 79 | AJ47: 49 | AK47: 47 | AL47: 45 | AM47: 46 | AN47: 50 | AO47: 0 | AP47: 0 | AQ47: 14.2 | AR47: 10.4133 | AS47: 0 | AT47: 4.9 | AU47: 4.7 | AV47: 4.5 | AW47: 4.6 | AX47: 5.0 | BA47: 14.2 | BB47: 10.4133 | BC47: 111 | BD47: 56 | BE47: 58 | BF47: 60 | BG47: 57 | BH47: 56 | BI47: 0 | BJ47: 0 | BK47: 17.1 | BL47: 11.9700 | BM47: 0 | BN47: 5.6 | BO47: 5.8 | BP47: 6.0 | BQ47: 5.7 | BR47: 5.6 | BU47: 17.1 | BV47: 11.9700 | BW47: 57 | BX47: 50 | BY47: 47 | BZ47: 50 | CA47: 51 | CB47: 45 | CC47: 0 | CD47: 0 | CE47: 15 | CF47: 11.2700 | CG47: 0 | CH47: 5.0 | CI47: 4.7 | CJ47: 5.0 | CK47: 5.1 | CL47: 4.5 | CO47: 14.7 | CP47: 11.2700 | CQ47: 76 | CR47: 45.3133 | CS47: 51.4924 | CT47: 0.0 | CU47: 51.4924
A48: 42 | B48: 35 | C48: 55.5378 | D48: 200401278 | E48: Kate Jutte | F48: WVZ | G48: WVZ | H48: West | K48: 2004 | M48: L | P48: 52 | Q48: 51 | R48: 59 | S48: 48 | T48: 54 | U48: 0 | V48: 0 | W48: 15.7 | X48: 11.5133 | Y48: 0 | Z48: 5.2 | AA48: 5.1 | AB48: 5.9 | AC48: 4.8 | AD48: 5.4 | AG48: 15.7 | AH48: 11.5133 | AI48: 88 | AJ48: 54 | AK48: 52 | AL48: 49 | AM48: 56 | AN48: 57 | AO48: 0 | AP48: 0 | AQ48: 16.2 | AR48: 11.8800 | AS48: 0 | AT48: 5.4 | AU48: 5.2 | AV48: 4.9 | AW48: 5.6 | AX48: 5.7 | BA48: 16.2 | BB48: 11.8800 | BC48: 42 | BD48: 54 | BE48: 62 | BF48: 61 | BG48: 62 | BH48: 57 | BI48: 0 | BJ48: 0 | BK48: 18.0 | BL48: 12.6000 | BM48: 0 | BN48: 5.4 | BO48: 6.2 | BP48: 6.1 | BQ48: 6.2 | BR48: 5.7 | BU48: 18.0 | BV48: 12.6000 | BW48: 25 | BX48: 59 | BY48: 56 | BZ48: 55 | CA48: 57 | CB48: 55 | CC48: 0 | CD48: 0 | CE48: 17 | CF48: 12.8800 | CG48: 0 | CH48: 5.9 | CI48: 5.6 | CJ48: 5.5 | CK48: 5.7 | CL48: 5.5 | CO48: 16.8 | CP48: 12.8800 | CQ48: 21 | CR48: 48.8733 | CS48: 55.5378 | CT48: 0.0 | CU48: 55.5378
A49: 43 | B49: 168 | C49: 44.4205 | D49: 200504152 | E49: Kazu Landman | F49: VZC Veenendaal | G49: VZV | H49: Midwest | J49: X | K49: 2005 | P49: 44 | Q49: 44 | R49: 45 | S49: 53 | T49: 40 | U49: 0 | V49: 0 | W49: 13.3 | X49: 9.7533 | Y49: 0 | Z49: 4.4 | AA49: 4.4 | AB49: 4.5 | AC49: 5.3 | AD49: 4.0 | AG49: 13.3 | AH49: 9.7533 | AI49: 176 | AJ49: 36 | AK49: 38 | AL49: 45 | AM49: 44 | AN49: 40 | AO49: 0 | AP49: 0 | AQ49: 12.2 | AR49: 8.9467 | AS49: 0 | AT49: 3.6 | AU49: 3.8 | AV49: 4.5 | AW49: 4.4 | AX49: 4.0 | BA49: 12.2 | BB49: 8.9467 | BC49: 177 | BD49: 43 | BE49: 47 | BF49: 50 | BG49: 56 | BH49: 53 | BI49: 0 | BJ49: 0 | BK49: 15.0 | BL49: 10.5000 | BM49: 0 | BN49: 4.3 | BO49: 4.7 | BP49: 5.0 | BQ49: 5.6 | BR49: 5.3 | BU49: 15.0 | BV49: 10.5000 | BW49: 122 | BX49: 40 | BY49: 44 | BZ49: 47 | CA49: 45 | CB49: 39 | CC49: 0 | CD49: 0 | CE49: 13 | CF49: 9.8900 | CG49: 0 | CH49: 4.0 | CI49: 4.4 | CJ49: 4.7 | CK49: 4.5 | CL49: 3.9 | CO49: 12.9 | CP49: 9.8900 | CQ49: 153 | CR49: 39.0900 | CS49: 44.4205 | CT49: 0.0 | CU49: 44.4205
A50: 44 | B50: 145 | C50: 46.2122 | D50: 200404178 | E50: Mandy van der Veen | F50: HZ&PC Heerenveen | G50: HZPC | H50: Noord | K50: 2004 | P50: 54 | Q50: 56 | R50: 54 | S50: 57 | T50: 53 | U50: 0 | V50: 0 | W50: 16.4 | X50: 12.0267 | Y50: 0 | Z50: 5.4 | AA50: 5.6 | AB50: 5.4 | AC50: 5.7 | AD50: 5.3 | AG50: 16.4 | AH50: 12.0267 | AI50: 58 | AJ50: 42 | AK50: 34 | AL50: 36 | AM50: 39 | AN50: 42 | AO50: 0 | AP50: 0 | AQ50: 11.7 | AR50: 8.5800 | AS50: 0 | AT50: 4.2 | AU50: 3.4 | AV50: 3.6 | AW50: 3.9 | AX50: 4.2 | BA50: 11.7 | BB50: 8.5800 | BC50: 186 | BD50: 46 | BE50: 46 | BF50: 48 | BG50: 50 | BH50: 48 | BI50: 0 | BJ50: 0 | BK50: 14.2 | BL50: 9.9400 | BM50: 0 | BN50: 4.6 | BO50: 4.6 | BP50: 4.8 | BQ50: 5.0 | BR50: 4.8 | BU50: 14.2 | BV50: 9.9400 | BW50: 156 | BX50: 39 | BY50: 42 | BZ50: 47 | CA50: 44 | CB50: 46 | CC50: 0 | CD50: 0 | CE50: 13 | CF50: 10.1200 | CG50: 0 | CH50: 3.9 | CI50: 4.2 | CJ50: 4.7 | CK50: 4.4 | CL50: 4.6 | CO50: 13.2 | CP50: 10.1200 | CQ50: 139 | CR50: 40.6667 | CS50: 46.2122 | CT50: 0.0 | CU50: 46.2122
A51: 45 | B51: 72 | C51: 51.5909 | D51: 200501580 | E51: Nayla Verzeide | F51: Widex Gzc Donk | G51: DONK | H51: West | K51: 2005 | M51: L | P51: 50 | Q51: 54 | R51: 53 | S51: 55 | T51: 54 | U51: 0 | V51: 0 | W51: 16.1 | X51: 11.8067 | Y51: 0 | Z51: 5.0 | AA51: 5.4 | AB51: 5.3 | AC51: 5.5 | AD51: 5.4 | AG51: 16.1 | AH51: 11.8067 | AI51: 72 | AJ51: 49 | AK51: 49 | AL51: 49 | AM51: 52 | AN51: 46 | AO51: 0 | AP51: 0 | AQ51: 14.7 | AR51: 10.7800 | AS51: 0 | AT51: 4.9 | AU51: 4.9 | AV51: 4.9 | AW51: 5.2 | AX51: 4.6 | BA51: 14.7 | BB51: 10.7800 | BC51: 93 | BD51: 50 | BE51: 53 | BF51: 58 | BG51: 57 | BH51: 56 | BI51: 0 | BJ51: 0 | BK51: 16.6 | BL51: 11.6200 | BM51: 0 | BN51: 5.0 | BO51: 5.3 | BP51: 5.8 | BQ51: 5.7 | BR51: 5.6 | BU51: 16.6 | BV51: 11.6200 | BW51: 78 | BX51: 50 | BY51: 48 | BZ51: 47 | CA51: 48 | CB51: 50 | CC51: 0 | CD51: 0 | CE51: 15 | CF51: 11.1933 | CG51: 0 | CH51: 5.0 | CI51: 4.8 | CJ51: 4.7 | CK51: 4.8 | CL51: 5.0 | CO51: 14.6 | CP51: 11.1933 | CQ51: 83 | CR51: 45.4000 | CS51: 51.5909 | CT51: 0.0 | CU51: 51.5909
A52: 46 | B52: 6 | C52: 62.2690 | D52: 200500012 | E52: Marloes Steenbeek | F52: De Dolfijn | G52: DOL | H52: Midwest | K52: 2005 | M52: L | P52: 64 | Q52: 64 | R52: 66 | S52: 67 | T52: 65 | U52: 0 | V52: 0 | W52: 19.5 | X52: 14.3000 | Y52: 0 | Z52: 6.4 | AA52: 6.4 | AB52: 6.6 | AC52: 6.7 | AD52: 6.5 | AG52: 19.5 | AH52: 14.3000 | AI52: 2 | AJ52: 64 | AK52: 65 | AL52: 62 | AM52: 63 | AN52: 62 | AO52: 0 | AP52: 0 | AQ52: 18.9 | AR52: 13.8600 | AS52: 0 | AT52: 6.4 | AU52: 6.5 | AV52: 6.2 | AW52: 6.3 | AX52: 6.2 | BA52: 18.9 | BB52: 13.8600 | BC52: 6 | BD52: 60 | BE52: 54 | BF52: 64 | BG52: 59 | BH52: 60 | BI52: 0 | BJ52: 0 | BK52: 17.9 | BL52: 12.5300 | BM52: 0 | BN52: 6.0 | BO52: 5.4 | BP52: 6.4 | BQ52: 5.9 | BR52: 6.0 | BU52: 17.9 | BV52: 12.5300 | BW52: 28 | BX52: 58 | BY52: 59 | BZ52: 62 | CA52: 63 | CB52: 63 | CC52: 0 | CD52: 0 | CE52: 18 | CF52: 14.1067 | CG52: 0 | CH52: 5.8 | CI52: 5.9 | CJ52: 6.2 | CK52: 6.3 | CL52: 6.3 | CO52: 18.4 | CP52: 14.1067 | CQ52: 3 | CR52: 54.7967 | CS52: 62.2690 | CT52: 0.0 | CU52: 62.2690
A53: 47 | B53: 4 | C53: 62.4091 | D53: 200401204 | E53: Merel Leuring | F53: AZC | G53: AZC | H53: West | K53: 2004 | M53: L | P53: 64 | Q53: 59 | R53: 63 | S53: 63 | T53: 63 | U53: 0 | V53: 0 | W53: 18.9 | X53: 13.8600 | Y53: 0 | Z53: 6.4 | AA53: 5.9 | AB53: 6.3 | AC53: 6.3 | AD53: 6.3 | AG53: 18.9 | AH53: 13.8600 | AI53: 9 | AJ53: 61 | AK53: 57 | AL53: 62 | AM53: 71 | AN53: 69 | AO53: 0 | AP53: 0 | AQ53: 19.2 | AR53: 14.0800 | AS53: 0 | AT53: 6.1 | AU53: 5.7 | AV53: 6.2 | AW53: 7.1 | AX53: 6.9 | BA53: 19.2 | BB53: 14.0800 | BC53: 4 | BD53: 59 | BE53: 62 | BF53: 62 | BG53: 61 | BH53: 64 | BI53: 0 | BJ53: 0 | BK53: 18.5 | BL53: 12.9500 | BM53: 0 | BN53: 5.9 | BO53: 6.2 | BP53: 6.2 | BQ53: 6.1 | BR53: 6.4 | BU53: 18.5 | BV53: 12.9500 | BW53: 17 | BX53: 60 | BY53: 61 | BZ53: 61 | CA53: 63 | CB53: 61 | CC53: 0 | CD53: 0 | CE53: 18 | CF53: 14.0300 | CG53: 0 | CH53: 6.0 | CI53: 6.1 | CJ53: 6.1 | CK53: 6.3 | CL53: 6.1 | CO53: 18.3 | CP53: 14.0300 | CQ53: 4 | CR53: 54.9200 | CS53: 62.4091 | CT53: 0.0 | CU53: 62.4091
A54: 48 | B54: 64 | C54: 52.0038 | D54: 200304568 | E54: Jasmijn van Beijnum | F54: BZ&PC | G54: BZP | H54: West | K54: 2003 | M54: L | P54: 48 | Q54: 51 | R54: 53 | S54: 52 | T54: 53 | U54: 0 | V54: 0 | W54: 15.6 | X54: 11.4400 | Y54: 0 | Z54: 4.8 | AA54: 5.1 | AB54: 5.3 | AC54: 5.2 | AD54: 5.3 | AG54: 15.6 | AH54: 11.4400 | AI54: 96 | AJ54: 45 | AK54: 43 | AL54: 49 | AM54: 50 | AN54: 48 | AO54: 0 | AP54: 0 | AQ54: 14.2 | AR54: 10.4133 | AS54: 0 | AT54: 4.5 | AU54: 4.3 | AV54: 4.9 | AW54: 5.0 | AX54: 4.8 | BA54: 14.2 | BB54: 10.4133 | BC54: 111 | BD54: 59 | BE54: 64 | BF54: 58 | BG54: 55 | BH54: 57 | BI54: 0 | BJ54: 0 | BK54: 17.4 | BL54: 12.1800 | BM54: 0 | BN54: 5.9 | BO54: 6.4 | BP54: 5.8 | BQ54: 5.5 | BR54: 5.7 | BU54: 17.4 | BV54: 12.1800 | BW54: 42 | BX54: 50 | BY54: 52 | BZ54: 51 | CA54: 49 | CB54: 52 | CC54: 0 | CD54: 0 | CE54: 15 | CF54: 11.7300 | CG54: 0 | CH54: 5.0 | CI54: 5.2 | CJ54: 5.1 | CK54: 4.9 | CL54: 5.2 | CO54: 15.3 | CP54: 11.7300 | CQ54: 50 | CR54: 45.7633 | CS54: 52.0038 | CT54: 0.0 | CU54: 52.0038
A55: 49 | B55: BM | C55: 48.0872 | D55: 200602178 | E55: Felicia Leemburg | F55: BZ&PC | G55: BZP | H55: West | I55: BM | K55: 2006 | M55: BM | P55: 47 | Q55: 48 | R55: 51 | S55: 57 | T55: 48 | U55: 0 | V55: 0 | W55: 14.7 | X55: 10.7800 | Y55: 0 | Z55: 4.7 | AA55: 4.8 | AB55: 5.1 | AC55: 5.7 | AD55: 4.8 | AG55: 14.7 | AH55: 10.7800 | AI55: 120 | AJ55: 46 | AK55: 48 | AL55: 46 | AM55: 46 | AN55: 45 | AO55: 0 | AP55: 0 | AQ55: 13.8 | AR55: 10.1200 | AS55: 0 | AT55: 4.6 | AU55: 4.8 | AV55: 4.6 | AW55: 4.6 | AX55: 4.5 | BA55: 13.8 | BB55: 10.1200 | BC55: 126 | BD55: 51 | BE55: 53 | BF55: 53 | BG55: 57 | BH55: 47 | BI55: 0 | BJ55: 0 | BK55: 15.7 | BL55: 10.9900 | BM55: 0 | BN55: 5.1 | BO55: 5.3 | BP55: 5.3 | BQ55: 5.7 | BR55: 4.7 | BU55: 15.7 | BV55: 10.9900 | BW55: 105 | BX55: 44 | BY55: 45 | BZ55: 47 | CA55: 46 | CB55: 45 | CC55: 0 | CD55: 0 | CE55: 14 | CF55: 10.4267 | CG55: 0 | CH55: 4.4 | CI55: 4.5 | CJ55: 4.7 | CK55: 4.6 | CL55: 4.5 | CO55: 13.6 | CP55: 10.4267 | CQ55: 128 | CR55: 42.3167 | CS55: 48.0872 | CT55: 0.0 | CU55: 0
A56: 50 | B56: 106 | C56: 49.3711 | D56: 200403514 | E56: Auke Kuijk | F56: Cadans | G56: CAD | H56: oost | K56: 2004 | M56: L | P56: 53 | Q56: 47 | R56: 50 | S56: 48 | T56: 46 | U56: 0 | V56: 0 | W56: 14.5 | X56: 10.6333 | Y56: 0 | Z56: 5.3 | AA56: 4.7 | AB56: 5.0 | AC56: 4.8 | AD56: 4.6 | AG56: 14.5 | AH56: 10.6333 | AI56: 130 | AJ56: 44 | AK56: 42 | AL56: 47 | AM56: 48 | AN56: 51 | AO56: 0 | AP56: 0 | AQ56: 13.9 | AR56: 10.1933 | AS56: 0 | AT56: 4.4 | AU56: 4.2 | AV56: 4.7 | AW56: 4.8 | AX56: 5.1 | BA56: 13.9 | BB56: 10.1933 | BC56: 119 | BD56: 54 | BE56: 60 | BF56: 59 | BG56: 59 | BH56: 54 | BI56: 0 | BJ56: 0 | BK56: 17.2 | BL56: 12.0400 | BM56: 0 | BN56: 5.4 | BO56: 6.0 | BP56: 5.9 | BQ56: 5.9 | BR56: 5.4 | BU56: 17.2 | BV56: 12.0400 | BW56: 52 | BX56: 38 | BY56: 48 | BZ56: 48 | CA56: 48 | CB56: 42 | CC56: 0 | CD56: 0 | CE56: 14 | CF56: 10.5800 | CG56: 0 | CH56: 3.8 | CI56: 4.8 | CJ56: 4.8 | CK56: 4.8 | CL56: 4.2 | CO56: 13.8 | CP56: 10.5800 | CQ56: 117 | CR56: 43.4466 | CS56: 49.3711 | CT56: 0.0 | CU56: 49.3711
A57: 51 | B57: 85 | C57: 50.6781 | D57: 200400222 | E57: Abigail Vievermans | F57: ZVBrunssum | G57: ZVB | H57: Zuid | K57: 2004 | M57: L | P57: 51 | Q57: 45 | R57: 55 | S57: 56 | T57: 53 | U57: 0 | V57: 0 | W57: 15.9 | X57: 11.6600 | Y57: 0 | Z57: 5.1 | AA57: 4.5 | AB57: 5.5 | AC57: 5.6 | AD57: 5.3 | AG57: 15.9 | AH57: 11.6600 | AI57: 79 | AJ57: 47 | AK57: 43 | AL57: 45 | AM57: 45 | AN57: 47 | AO57: 0 | AP57: 0 | AQ57: 13.7 | AR57: 10.0467 | AS57: 0 | AT57: 4.7 | AU57: 4.3 | AV57: 4.5 | AW57: 4.5 | AX57: 4.7 | BA57: 13.7 | BB57: 10.0467 | BC57: 132 | BD57: 51 | BE57: 57 | BF57: 58 | BG57: 57 | BH57: 52 | BI57: 0 | BJ57: 0 | BK57: 16.6 | BL57: 11.6200 | BM57: 0 | BN57: 5.1 | BO57: 5.7 | BP57: 5.8 | BQ57: 5.7 | BR57: 5.2 | BU57: 16.6 | BV57: 11.6200 | BW57: 78 | BX57: 46 | BY57: 51 | BZ57: 49 | CA57: 49 | CB57: 49 | CC57: 0 | CD57: 0 | CE57: 15 | CF57: 11.2700 | CG57: 0 | CH57: 4.6 | CI57: 5.1 | CJ57: 4.9 | CK57: 4.9 | CL57: 4.9 | CO57: 14.7 | CP57: 11.2700 | CQ57: 76 | CR57: 44.5967 | CS57: 50.6781 | CT57: 0.0 | CU57: 50.6781
A58: 52 | B58: 193 | C58: 0.0000 | D58: 200404148 | E58: Lieke Smeets | F58: Hellas-Glana | G58: Hellas | H58: Zuid | J58: X | K58: 2004 | O58: x | P58: 0 | Q58: 0 | R58: 0 | S58: 0 | T58: 0 | U58: 0 | V58: 0 | W58: 0.0 | X58: 0.0000 | Y58: 0 | Z58: 0.0 | AA58: 0.0 | AB58: 0.0 | AC58: 0.0 | AD58: 0.0 | AG58: 0.0 | AH58: 0.0000 | AJ58: 0 | AK58: 0 | AL58: 0 | AM58: 0 | AN58: 0 | AO58: 0 | AP58: 0 | AQ58: 0.0 | AR58: 0.0000 | AS58: 0 | AT58: 0.0 | AU58: 0.0 | AV58: 0.0 | AW58: 0.0 | AX58: 0.0 | BA58: 0.0 | BB58: 0.0000 | BD58: 0 | BE58: 0 | BF58: 0 | BG58: 0 | BH58: 0 | BI58: 0 | BJ58: 0 | BK58: 0.0 | BL58: 0.0000 | BM58: 0 | BN58: 0.0 | BO58: 0.0 | BP58: 0.0 | BQ58: 0.0 | BR58: 0.0 | BU58: 0.0 | BV58: 0.0000 | BX58: 0 | BY58: 0 | BZ58: 0 | CA58: 0 | CB58: 0 | CC58: 0 | CD58: 0 | CE58: 0 | CF58: 0.0000 | CG58: 0 | CH58: 0.0 | CI58: 0.0 | CJ58: 0.0 | CK58: 0.0 | CL58: 0.0 | CO58: 0.0 | CP58: 0.0000 | CR58: 0.0000 | CS58: 0.0000 | CT58: 0.0 | CU58: 0
A59: 53 | B59: 32 | C59: 55.6136 | D59: 200403206 | E59: Fleur Vergeer | F59: Aquarijn | G59: AQU | H59: MidWest | K59: 2004 | M59: L | P59: 57 | Q59: 60 | R59: 58 | S59: 53 | T59: 59 | U59: 0 | V59: 0 | W59: 17.4 | X59: 12.7600 | Y59: 0 | Z59: 5.7 | AA59: 6.0 | AB59: 5.8 | AC59: 5.3 | AD59: 5.9 | AG59: 17.4 | AH59: 12.7600 | AI59: 26 | AJ59: 52 | AK59: 50 | AL59: 53 | AM59: 53 | AN59: 55 | AO59: 0 | AP59: 0 | AQ59: 15.8 | AR59: 11.5867 | AS59: 0 | AT59: 5.2 | AU59: 5.0 | AV59: 5.3 | AW59: 5.3 | AX59: 5.5 | BA59: 15.8 | BB59: 11.5867 | BC59: 50 | BD59: 49 | BE59: 61 | BF59: 56 | BG59: 60 | BH59: 59 | BI59: 0 | BJ59: 0 | BK59: 17.5 | BL59: 12.2500 | BM59: 0 | BN59: 4.9 | BO59: 6.1 | BP59: 5.6 | BQ59: 6.0 | BR59: 5.9 | BU59: 17.5 | BV59: 12.2500 | BW59: 39 | BX59: 54 | BY59: 53 | BZ59: 52 | CA59: 54 | CB59: 54 | CC59: 0 | CD59: 0 | CE59: 16 | CF59: 12.3433 | CG59: 0 | CH59: 5.4 | CI59: 5.3 | CJ59: 5.2 | CK59: 5.4 | CL59: 5.4 | CO59: 16.1 | CP59: 12.3433 | CQ59: 32 | CR59: 48.9400 | CS59: 55.6136 | CT59: 0.0 | CU59: 55.6136
A60: 54 | B60: 107 | C60: 49.2992 | D60: 200502828 | E60: Lisa Dams | F60: Aqua-Novio '94 | G60: AQN | H60: Oost | K60: 2005 | M60: L | P60: 48 | Q60: 45 | R60: 45 | S60: 48 | T60: 43 | U60: 0 | V60: 0 | W60: 13.8 | X60: 10.1200 | Y60: 0 | Z60: 4.8 | AA60: 4.5 | AB60: 4.5 | AC60: 4.8 | AD60: 4.3 | AG60: 13.8 | AH60: 10.1200 | AI60: 165 | AJ60: 48 | AK60: 50 | AL60: 50 | AM60: 47 | AN60: 49 | AO60: 0 | AP60: 0 | AQ60: 14.7 | AR60: 10.7800 | AS60: 0 | AT60: 4.8 | AU60: 5.0 | AV60: 5.0 | AW60: 4.7 | AX60: 4.9 | BA60: 14.7 | BB60: 10.7800 | BC60: 93 | BD60: 48 | BE60: 56 | BF60: 54 | BG60: 51 | BH60: 53 | BI60: 0 | BJ60: 0 | BK60: 15.8 | BL60: 11.0600 | BM60: 0 | BN60: 4.8 | BO60: 5.6 | BP60: 5.4 | BQ60: 5.1 | BR60: 5.3 | BU60: 15.8 | BV60: 11.0600 | BW60: 101 | BX60: 52 | BY60: 50 | BZ60: 50 | CA60: 49 | CB60: 49 | CC60: 0 | CD60: 0 | CE60: 15 | CF60: 11.4233 | CG60: 0 | CH60: 5.2 | CI60: 5.0 | CJ60: 5.0 | CK60: 4.9 | CL60: 4.9 | CO60: 14.9 | CP60: 11.4233 | CQ60: 65 | CR60: 43.3833 | CS60: 49.2992 | CT60: 0.0 | CU60: 49.2992
A61: 55 | B61: 22 | C61: 57.5530 | D61: 200403278 | E61: Eline Penning | F61: ACZ | G61: ACZ | H61: West | K61: 2004 | M61: L | P61: 60 | Q61: 59 | R61: 61 | S61: 63 | T61: 60 | U61: 0 | V61: 0 | W61: 18.1 | X61: 13.2733 | Y61: 0 | Z61: 6.0 | AA61: 5.9 | AB61: 6.1 | AC61: 6.3 | AD61: 6.0 | AG61: 18.1 | AH61: 13.2733 | AI61: 17 | AJ61: 55 | AK61: 52 | AL61: 54 | AM61: 59 | AN61: 61 | AO61: 0 | AP61: 0 | AQ61: 16.8 | AR61: 12.3200 | AS61: 0 | AT61: 5.5 | AU61: 5.2 | AV61: 5.4 | AW61: 5.9 | AX61: 6.1 | BA61: 16.8 | BB61: 12.3200 | BC61: 26 | BD61: 58 | BE61: 55 | BF61: 61 | BG61: 56 | BH61: 65 | BI61: 0 | BJ61: 0 | BK61: 17.5 | BL61: 12.2500 | BM61: 0 | BN61: 5.8 | BO61: 5.5 | BP61: 6.1 | BQ61: 5.6 | BR61: 6.5 | BU61: 17.5 | BV61: 12.2500 | BW61: 39 | BX61: 60 | BY61: 56 | BZ61: 50 | CA61: 59 | CB61: 52 | CC61: 0 | CD61: 0 | CE61: 17 | CF61: 12.8033 | CG61: 0 | CH61: 6.0 | CI61: 5.6 | CJ61: 5.0 | CK61: 5.9 | CL61: 5.2 | CO61: 16.7 | CP61: 12.8033 | CQ61: 23 | CR61: 50.6466 | CS61: 57.5530 | CT61: 0.0 | CU61: 57.5530
A62: 56 | B62: 143 | C62: 46.8333 | D62: 200400946 | E62: Nyanda de Roos | F62: De Houtrib | G62: HOU | H62: Oost | K62: 2004 | P62: 45 | Q62: 46 | R62: 48 | S62: 48 | T62: 45 | U62: 0 | V62: 0 | W62: 13.9 | X62: 10.1933 | Y62: 0 | Z62: 4.5 | AA62: 4.6 | AB62: 4.8 | AC62: 4.8 | AD62: 4.5 | AG62: 13.9 | AH62: 10.1933 | AI62: 162 | AJ62: 41 | AK62: 46 | AL62: 42 | AM62: 46 | AN62: 45 | AO62: 0 | AP62: 0 | AQ62: 13.3 | AR62: 9.7533 | AS62: 0 | AT62: 4.1 | AU62: 4.6 | AV62: 4.2 | AW62: 4.6 | AX62: 4.5 | BA62: 13.3 | BB62: 9.7533 | BC62: 151 | BD62: 45 | BE62: 45 | BF62: 50 | BG62: 50 | BH62: 53 | BI62: 0 | BJ62: 0 | BK62: 14.5 | BL62: 10.1500 | BM62: 0 | BN62: 4.5 | BO62: 4.5 | BP62: 5.0 | BQ62: 5.0 | BR62: 5.3 | BU62: 14.5 | BV62: 10.1500 | BW62: 144 | BX62: 47 | BY62: 49 | BZ62: 48 | CA62: 48 | CB62: 49 | CC62: 0 | CD62: 0 | CE62: 15 | CF62: 11.1167 | CG62: 0 | CH62: 4.7 | CI62: 4.9 | CJ62: 4.8 | CK62: 4.8 | CL62: 4.9 | CO62: 14.5 | CP62: 11.1167 | CQ62: 87 | CR62: 41.2133 | CS62: 46.8333 | CT62: 0.0 | CU62: 46.8333
A63: 57 | B63: 34 | C63: 55.5910 | D63: 200304796 | E63: Judith Bosman | F63: Z.P.C.H. | G63: ZPC | H63: MidWest | K63: 2003 | M63: L | P63: 59 | Q63: 56 | R63: 56 | S63: 56 | T63: 58 | U63: 0 | V63: 0 | W63: 17.0 | X63: 12.4667 | Y63: 0 | Z63: 5.9 | AA63: 5.6 | AB63: 5.6 | AC63: 5.6 | AD63: 5.8 | AG63: 17.0 | AH63: 12.4667 | AI63: 41 | AJ63: 56 | AK63: 49 | AL63: 47 | AM63: 53 | AN63: 58 | AO63: 0 | AP63: 0 | AQ63: 15.8 | AR63: 11.5867 | AS63: 0 | AT63: 5.6 | AU63: 4.9 | AV63: 4.7 | AW63: 5.3 | AX63: 5.8 | BA63: 15.8 | BB63: 11.5867 | BC63: 50 | BD63: 60 | BE63: 60 | BF63: 60 | BG63: 60 | BH63: 59 | BI63: 0 | BJ63: 0 | BK63: 18.0 | BL63: 12.6000 | BM63: 0 | BN63: 6.0 | BO63: 6.0 | BP63: 6.0 | BQ63: 6.0 | BR63: 5.9 | BU63: 18.0 | BV63: 12.6000 | BW63: 25 | BX63: 51 | BY63: 56 | BZ63: 53 | CA63: 52 | CB63: 55 | CC63: 0 | CD63: 0 | CE63: 16 | CF63: 12.2667 | CG63: 0 | CH63: 5.1 | CI63: 5.6 | CJ63: 5.3 | CK63: 5.2 | CL63: 5.5 | CO63: 16.0 | CP63: 12.2667 | CQ63: 34 | CR63: 48.9201 | CS63: 55.5910 | CT63: 0.0 | CU63: 55.5910
A64: 58 | B64: 49 | C64: 54.1553 | D64: 200403048 | E64: Ninon van Baal | F64: DAW | G64: DAW | H64: Midwest | K64: 2004 | M64: L | P64: 58 | Q64: 57 | R64: 56 | S64: 54 | T64: 57 | U64: 0 | V64: 0 | W64: 17.0 | X64: 12.4667 | Y64: 0 | Z64: 5.8 | AA64: 5.7 | AB64: 5.6 | AC64: 5.4 | AD64: 5.7 | AG64: 17.0 | AH64: 12.4667 | AI64: 41 | AJ64: 52 | AK64: 51 | AL64: 51 | AM64: 51 | AN64: 54 | AO64: 0 | AP64: 0 | AQ64: 15.4 | AR64: 11.2933 | AS64: 0 | AT64: 5.2 | AU64: 5.1 | AV64: 5.1 | AW64: 5.1 | AX64: 5.4 | BA64: 15.4 | BB64: 11.2933 | BC64: 66 | BD64: 57 | BE64: 61 | BF64: 57 | BG64: 58 | BH64: 61 | BI64: 0 | BJ64: 0 | BK64: 17.6 | BL64: 12.3200 | BM64: 0 | BN64: 5.7 | BO64: 6.1 | BP64: 5.7 | BQ64: 5.8 | BR64: 6.1 | BU64: 17.6 | BV64: 12.3200 | BW64: 37 | BX64: 47 | BY64: 50 | BZ64: 50 | CA64: 51 | CB64: 51 | CC64: 0 | CD64: 0 | CE64: 15 | CF64: 11.5767 | CG64: 0 | CH64: 4.7 | CI64: 5.0 | CJ64: 5.0 | CK64: 5.1 | CL64: 5.1 | CO64: 15.1 | CP64: 11.5767 | CQ64: 58 | CR64: 47.6567 | CS64: 54.1553 | CT64: 0.0 | CU64: 54.1553
A65: 59 | B65: 50 | C65: 54.1439 | D65: 200405168 | E65: Isis Braam | F65: De Dolfijn | G65: DOL | H65: Midwest | K65: 2004 | M65: L | P65: 56 | Q65: 56 | R65: 59 | S65: 62 | T65: 60 | U65: 0 | V65: 0 | W65: 17.5 | X65: 12.8333 | Y65: 0 | Z65: 5.6 | AA65: 5.6 | AB65: 5.9 | AC65: 6.2 | AD65: 6.0 | AG65: 17.5 | AH65: 12.8333 | AI65: 24 | AJ65: 51 | AK65: 50 | AL65: 50 | AM65: 48 | AN65: 50 | AO65: 0 | AP65: 0 | AQ65: 15.0 | AR65: 11.0000 | AS65: 0 | AT65: 5.1 | AU65: 5.0 | AV65: 5.0 | AW65: 4.8 | AX65: 5.0 | BA65: 15.0 | BB65: 11.0000 | BC65: 79 | BD65: 56 | BE65: 63 | BF65: 61 | BG65: 60 | BH65: 56 | BI65: 0 | BJ65: 0 | BK65: 17.7 | BL65: 12.3900 | BM65: 0 | BN65: 5.6 | BO65: 6.3 | BP65: 6.1 | BQ65: 6.0 | BR65: 5.6 | BU65: 17.7 | BV65: 12.3900 | BW65: 34 | BX65: 52 | BY65: 52 | BZ65: 49 | CA65: 48 | CB65: 48 | CC65: 0 | CD65: 0 | CE65: 15 | CF65: 11.4233 | CG65: 0 | CH65: 5.2 | CI65: 5.2 | CJ65: 4.9 | CK65: 4.8 | CL65: 4.8 | CO65: 14.9 | CP65: 11.4233 | CQ65: 65 | CR65: 47.6466 | CS65: 54.1439 | CT65: 0.0 | CU65: 54.1439
A66: 60 | B66: 170 | C66: 43.8902 | D66: 200502634 | E66: Sophie O'Toole | F66: VZC Veenendaal | G66: VZV | H66: Midwest | J66: X | K66: 2005 | P66: 47 | Q66: 46 | R66: 47 | S66: 48 | T66: 43 | U66: 0 | V66: 0 | W66: 14.0 | X66: 10.2667 | Y66: 0 | Z66: 4.7 | AA66: 4.6 | AB66: 4.7 | AC66: 4.8 | AD66: 4.3 | AG66: 14.0 | AH66: 10.2667 | AI66: 157 | AJ66: 49 | AK66: 47 | AL66: 45 | AM66: 42 | AN66: 41 | AO66: 0 | AP66: 0 | AQ66: 13.4 | AR66: 9.8267 | AS66: 0 | AT66: 4.9 | AU66: 4.7 | AV66: 4.5 | AW66: 4.2 | AX66: 4.1 | BA66: 13.4 | BB66: 9.8267 | BC66: 144 | BD66: 44 | BE66: 49 | BF66: 40 | BG66: 39 | BH66: 46 | BI66: 0 | BJ66: 0 | BK66: 13.0 | BL66: 9.1000 | BM66: 0 | BN66: 4.4 | BO66: 4.9 | BP66: 4.0 | BQ66: 3.9 | BR66: 4.6 | BU66: 13.0 | BV66: 9.1000 | BW66: 190 | BX66: 39 | BY66: 41 | BZ66: 44 | CA66: 43 | CB66: 39 | CC66: 0 | CD66: 0 | CE66: 12 | CF66: 9.4300 | CG66: 0 | CH66: 3.9 | CI66: 4.1 | CJ66: 4.4 | CK66: 4.3 | CL66: 3.9 | CO66: 12.3 | CP66: 9.4300 | CQ66: 170 | CR66: 38.6234 | CS66: 43.8902 | CT66: 0.0 | CU66: 43.8902
A67: 61 | B67: 90 | C67: 50.4622 | D67: 200403868 | E67: Madelief Volbeda | F67: HZ&PC Heerenveen | G67: HZPC | H67: Noord | K67: 2004 | M67: L | P67: 52 | Q67: 53 | R67: 51 | S67: 56 | T67: 50 | U67: 0 | V67: 0 | W67: 15.6 | X67: 11.4400 | Y67: 0 | Z67: 5.2 | AA67: 5.3 | AB67: 5.1 | AC67: 5.6 | AD67: 5.0 | AG67: 15.6 | AH67: 11.4400 | AI67: 96 | AJ67: 48 | AK67: 44 | AL67: 46 | AM67: 47 | AN67: 50 | AO67: 0 | AP67: 0 | AQ67: 14.1 | AR67: 10.3400 | AS67: 0 | AT67: 4.8 | AU67: 4.4 | AV67: 4.6 | AW67: 4.7 | AX67: 5.0 | BA67: 14.1 | BB67: 10.3400 | BC67: 114 | BD67: 55 | BE67: 60 | BF67: 60 | BG67: 53 | BH67: 56 | BI67: 0 | BJ67: 0 | BK67: 17.1 | BL67: 11.9700 | BM67: 0 | BN67: 5.5 | BO67: 6.0 | BP67: 6.0 | BQ67: 5.3 | BR67: 5.6 | BU67: 17.1 | BV67: 11.9700 | BW67: 57 | BX67: 42 | BY67: 48 | BZ67: 46 | CA67: 45 | CB67: 49 | CC67: 0 | CD67: 0 | CE67: 14 | CF67: 10.6567 | CG67: 0 | CH67: 4.2 | CI67: 4.8 | CJ67: 4.6 | CK67: 4.5 | CL67: 4.9 | CO67: 13.9 | CP67: 10.6567 | CQ67: 115 | CR67: 44.4067 | CS67: 50.4622 | CT67: 0.0 | CU67: 50.4622
A68: 62 | B68: 148 | C68: 46.1099 | D68: 200404482 | E68: Minke van Dalfsen | F68: Widex Gzc Donk | G68: DONK | H68: West | K68: 2004 | P68: 47 | Q68: 48 | R68: 49 | S68: 55 | T68: 47 | U68: 0 | V68: 0 | W68: 14.4 | X68: 10.5600 | Y68: 0 | Z68: 4.7 | AA68: 4.8 | AB68: 4.9 | AC68: 5.5 | AD68: 4.7 | AG68: 14.4 | AH68: 10.5600 | AI68: 137 | AJ68: 44 | AK68: 46 | AL68: 44 | AM68: 45 | AN68: 46 | AO68: 0 | AP68: 0 | AQ68: 13.5 | AR68: 9.9000 | AS68: 0 | AT68: 4.4 | AU68: 4.6 | AV68: 4.4 | AW68: 4.5 | AX68: 4.6 | BA68: 13.5 | BB68: 9.9000 | BC68: 138 | BD68: 49 | BE68: 48 | BF68: 51 | BG68: 45 | BH68: 48 | BI68: 0 | BJ68: 0 | BK68: 14.5 | BL68: 10.1500 | BM68: 0 | BN68: 4.9 | BO68: 4.8 | BP68: 5.1 | BQ68: 4.5 | BR68: 4.8 | BU68: 14.5 | BV68: 10.1500 | BW68: 144 | BX68: 40 | BY68: 45 | BZ68: 44 | CA68: 43 | CB68: 43 | CC68: 0 | CD68: 0 | CE68: 13 | CF68: 9.9667 | CG68: 0 | CH68: 4.0 | CI68: 4.5 | CJ68: 4.4 | CK68: 4.3 | CL68: 4.3 | CO68: 13.0 | CP68: 9.9667 | CQ68: 149 | CR68: 40.5767 | CS68: 46.1099 | CT68: 0.0 | CU68: 46.1099
A69: 63 | B69: 158 | C69: 44.9659 | D69: 200503124 | E69: Femke van de Ridder | F69: Widex Gzc Donk | G69: DONK | H69: West | K69: 2005 | P69: 38 | Q69: 47 | R69: 48 | S69: 43 | T69: 40 | U69: 0 | V69: 0 | W69: 13.0 | X69: 9.5333 | Y69: 0 | Z69: 3.8 | AA69: 4.7 | AB69: 4.8 | AC69: 4.3 | AD69: 4.0 | AG69: 13.0 | AH69: 9.5333 | AI69: 183 | AJ69: 45 | AK69: 44 | AL69: 47 | AM69: 41 | AN69: 46 | AO69: 0 | AP69: 0 | AQ69: 13.5 | AR69: 9.9000 | AS69: 0 | AT69: 4.5 | AU69: 4.4 | AV69: 4.7 | AW69: 4.1 | AX69: 4.6 | BA69: 13.5 | BB69: 9.9000 | BC69: 138 | BD69: 47 | BE69: 50 | BF69: 48 | BG69: 47 | BH69: 45 | BI69: 0 | BJ69: 0 | BK69: 14.2 | BL69: 9.9400 | BM69: 0 | BN69: 4.7 | BO69: 5.0 | BP69: 4.8 | BQ69: 4.7 | BR69: 4.5 | BU69: 14.2 | BV69: 9.9400 | BW69: 156 | BX69: 43 | BY69: 44 | BZ69: 46 | CA69: 47 | CB69: 41 | CC69: 0 | CD69: 0 | CE69: 13 | CF69: 10.1967 | CG69: 0 | CH69: 4.3 | CI69: 4.4 | CJ69: 4.6 | CK69: 4.7 | CL69: 4.1 | CO69: 13.3 | CP69: 10.1967 | CQ69: 136 | CR69: 39.5700 | CS69: 44.9659 | CT69: 0.0 | CU69: 44.9659
A70: 64 | B70: 62 | C70: 52.5985 | D70: 200303047 | E70: Zody Thode | F70: Cadans | G70: CAD | H70: oost | K70: 2003 | M70: L | P70: 57 | Q70: 58 | R70: 63 | S70: 63 | T70: 61 | U70: 0 | V70: 0 | W70: 18.2 | X70: 13.3467 | Y70: 0 | Z70: 5.7 | AA70: 5.8 | AB70: 6.3 | AC70: 6.3 | AD70: 6.1 | AG70: 18.2 | AH70: 13.3467 | AI70: 12 | AJ70: 52 | AK70: 42 | AL70: 43 | AM70: 45 | AN70: 50 | AO70: 0 | AP70: 0 | AQ70: 13.8 | AR70: 10.1200 | AS70: 0 | AT70: 5.2 | AU70: 4.2 | AV70: 4.3 | AW70: 4.5 | AX70: 5.0 | BA70: 13.8 | BB70: 10.1200 | BC70: 126 | BD70: 57 | BE70: 52 | BF70: 57 | BG70: 50 | BH70: 56 | BI70: 0 | BJ70: 0 | BK70: 16.5 | BL70: 11.5500 | BM70: 0 | BN70: 5.7 | BO70: 5.2 | BP70: 5.7 | BQ70: 5.0 | BR70: 5.6 | BU70: 16.5 | BV70: 11.5500 | BW70: 82 | BX70: 49 | BY70: 49 | BZ70: 49 | CA70: 49 | CB70: 47 | CC70: 0 | CD70: 0 | CE70: 15 | CF70: 11.2700 | CG70: 0 | CH70: 4.9 | CI70: 4.9 | CJ70: 4.9 | CK70: 4.9 | CL70: 4.7 | CO70: 14.7 | CP70: 11.2700 | CQ70: 76 | CR70: 46.2867 | CS70: 52.5985 | CT70: 0.0 | CU70: 52.5985
A71: 65 | B71: =IF(I71="BM","BM",RANK(CU71,CU$7:CU$256)) -> 161 | C71: =+CS71-CT71 -> 44.8219 | D71: 200305206 | E71: Merle Heuvelmans | F71: ZVBrunssum | G71: ZVB | H71: Zuid | K71: =VALUE(IF(D71="",0,MID(D71,1,4))) -> 2003 | M71: =IF(AND(14>($H$1-K71),($H$1-K71)>=13,C71>=$N$4),"L",IF(AND(16>($H$1-K71),($H$1-K71)>=14,C71>=$N$3),"L",IF(K71>0,IF(OR(K71>$J$4,K71<$I$4),"BM",""),""))) ->  | N71: =IF(C71>0,IF(J71>"",IF(C71<$H$3,"","Age II"),""),"") ->  | P71: 48 | Q71: 55 | R71: 51 | S71: 58 | T71: 50 | U71: 0 | V71: 0 | W71: 15.6 | X71: 11.4400 | Y71: 0 | Z71: =+P71/10 -> 4.8 | AA71: =+Q71/10 -> 5.5 | AB71: =+R71/10 -> 5.1 | AC71: =+S71/10 -> 5.8 | AD71: =+T71/10 -> 5.0 | AE71: =IF(U71>0,+U71/10,"") ->  | AF71: =IF(V71>0,+V71/10,"") ->  | AG71: =SUM(Z71:AF71)-MAX(Z71:AF71)-MIN(Z71:AF71) -> 15.6 | AH71: =ROUND(AG71/(COUNTIF(Z71:AF71,">=0")-2)*$AH$3,4) -> 11.4400 | AI71: =IF(AH71=0,"",RANK(AH71,AH$7:AH$256)) -> 96 | AJ71: 44 | AK71: 41 | AL71: 42 | AM71: 41 | AN71: 40 | AO71: 0 | AP71: 0 | AQ71: 12.4 | AR71: 9.0933 | AS71: 0 | AT71: =+AJ71/10 -> 4.4 | AU71: =+AK71/10 -> 4.1 | AV71: =+AL71/10 -> 4.2 | AW71: =+AM71/10 -> 4.1 | AX71: =+AN71/10 -> 4.0 | AY71: =IF(AO71>0,+AO71/10,"") ->  | AZ71: =IF(AP71>0,+AP71/10,"") ->  | BA71: =SUM(AT71:AZ71)-MAX(AT71:AZ71)-MIN(AT71:AZ71) -> 12.4 | BB71: =ROUND(BA71/(COUNTIF(AT71:AZ71,">0")-2)*$BB$3,4) -> 9.0933 | BC71: =IF(BB71=0,"",RANK(BB71,BB$7:BB$256)) -> 175 | BD71: 43 | BE71: 47 | BF71: 55 | BG71: 47 | BH71: 48 | BI71: 0 | BJ71: 0 | BK71: 14.2 | BL71: 9.9400 | BM71: 0 | BN71: =+BD71/10 -> 4.3 | BO71: =+BE71/10 -> 4.7 | BP71: =+BF71/10 -> 5.5 | BQ71: =+BG71/10 -> 4.7 | BR71: =+BH71/10 -> 4.8 | BS71: =IF(BI71>0,+BI71/10,"") ->  | BT71: =IF(BJ71>0,+BJ71/10,"") ->  | BU71: =SUM(BN71:BT71)-MAX(BN71:BT71)-MIN(BN71:BT71) -> 14.2 | BV71: =ROUND(BU71/(COUNTIF(BN71:BT71,">0")-2)*$BV$3,4) -> 9.9400 | BW71: =IF(BV71=0,"",RANK(BV71,BV$7:BV$256)) -> 156 | BX71: 38 | BY71: 39 | BZ71: 39 | CA71: 39 | CB71: 42 | CC71: 0 | CD71: 0 | CE71: 12 | CF71: 8.9700 | CG71: 0 | CH71: =+BX71/10 -> 3.8 | CI71: =+BY71/10 -> 3.9 | CJ71: =+BZ71/10 -> 3.9 | CK71: =+CA71/10 -> 3.9 | CL71: =+CB71/10 -> 4.2 | CM71: =IF(CC71>0,+CC71/10,"") ->  | CN71: =IF(CD71>0,+CD71/10,"") ->  | CO71: =SUM(CH71:CN71)-MAX(CH71:CN71)-MIN(CH71:CN71) -> 11.7 | CP71: =ROUND(CO71/(COUNTIF(CH71:CN71,">0")-2)*$CP$3,4) -> 8.9700 | CQ71: =IF(CP71=0,"",RANK(CP71,CP$7:CP$256)) -> 187 | CR71: =+AH71+BB71+BV71+CP71 -> 39.4433 | CS71: =+ROUND((+CR71*10)/(+$AH$3+$BB$3+$BV$3+$CP$3),4) -> 44.8219 | CT71: =+Y71+AS71+BM71+CG71 -> 0.0 | CU71: =IF(I71="BM",0,+CS71-CT71) -> 44.8219
A72: 66 | B72: 108 | C72: 49.1857 | D72: 200405166 | E72: Daniela Quist | F72: Aquarijn | G72: AQU | H72: MidWest | J72: X | K72: 2004 | M72: L | N72: Age II | P72: 49 | Q72: 53 | R72: 55 | S72: 56 | T72: 53 | U72: 0 | V72: 0 | W72: 16.1 | X72: 11.8067 | Y72: 0 | Z72: 4.9 | AA72: 5.3 | AB72: 5.5 | AC72: 5.6 | AD72: 5.3 | AG72: 16.1 | AH72: 11.8067 | AI72: 72 | AJ72: 42 | AK72: 42 | AL72: 45 | AM72: 44 | AN72: 47 | AO72: 0 | AP72: 0 | AQ72: 13.1 | AR72: 9.6067 | AS72: 0 | AT72: 4.2 | AU72: 4.2 | AV72: 4.5 | AW72: 4.4 | AX72: 4.7 | BA72: 13.1 | BB72: 9.6067 | BC72: 154 | BD72: 44 | BE72: 54 | BF72: 53 | BG72: 53 | BH72: 52 | BI72: 0 | BJ72: 0 | BK72: 15.8 | BL72: 11.0600 | BM72: 0 | BN72: 4.4 | BO72: 5.4 | BP72: 5.3 | BQ72: 5.3 | BR72: 5.2 | BU72: 15.8 | BV72: 11.0600 | BW72: 101 | BX72: 46 | BY72: 48 | BZ72: 48 | CA72: 47 | CB72: 46 | CC72: 0 | CD72: 0 | CE72: 14 | CF72: 10.8100 | CG72: 0 | CH72: 4.6 | CI72: 4.8 | CJ72: 4.8 | CK72: 4.7 | CL72: 4.6 | CO72: 14.1 | CP72: 10.8100 | CQ72: 107 | CR72: 43.2834 | CS72: 49.1857 | CT72: 0.0 | CU72: 49.1857
A73: 67 | B73: 12 | C73: 60.2463 | D73: 200600078 | E73: Mare Schallenberg | F73: ACZ | G73: ACZ | H73: West | K73: 2006 | M73: L | P73: 60 | Q73: 60 | R73: 62 | S73: 59 | T73: 59 | U73: 0 | V73: 0 | W73: 17.9 | X73: 13.1267 | Y73: 0 | Z73: 6.0 | AA73: 6.0 | AB73: 6.2 | AC73: 5.9 | AD73: 5.9 | AG73: 17.9 | AH73: 13.1267 | AI73: 19 | AJ73: 60 | AK73: 60 | AL73: 60 | AM73: 68 | AN73: 58 | AO73: 0 | AP73: 0 | AQ73: 18.0 | AR73: 13.2000 | AS73: 0 | AT73: 6.0 | AU73: 6.0 | AV73: 6.0 | AW73: 6.8 | AX73: 5.8 | BA73: 18.0 | BB73: 13.2000 | BC73: 9 | BD73: 61 | BE73: 64 | BF73: 64 | BG73: 66 | BH73: 72 | BI73: 0 | BJ73: 0 | BK73: 19.4 | BL73: 13.5800 | BM73: 0 | BN73: 6.1 | BO73: 6.4 | BP73: 6.4 | BQ73: 6.6 | BR73: 7.2 | BU73: 19.4 | BV73: 13.5800 | BW73: 7 | BX73: 61 | BY73: 60 | BZ73: 54 | CA73: 54 | CB73: 57 | CC73: 0 | CD73: 0 | CE73: 17 | CF73: 13.1100 | CG73: 0 | CH73: 6.1 | CI73: 6.0 | CJ73: 5.4 | CK73: 5.4 | CL73: 5.7 | CO73: 17.1 | CP73: 13.1100 | CQ73: 16 | CR73: 53.0167 | CS73: 60.2463 | CT73: 0.0 | CU73: 60.2463
A74: 68 | B74: 191 | C74: 39.6289 | D74: 200303994 | E74: Luciella Janse | F74: De Houtrib | G74: HOU | H74: Oost | J74: X | K74: 2003 | P74: 42 | Q74: 40 | R74: 40 | S74: 42 | T74: 39 | U74: 0 | V74: 0 | W74: 12.2 | X74: 8.9467 | Y74: 0 | Z74: 4.2 | AA74: 4.0 | AB74: 4.0 | AC74: 4.2 | AD74: 3.9 | AG74: 12.2 | AH74: 8.9467 | AI74: 193 | AJ74: 33 | AK74: 35 | AL74: 37 | AM74: 21 | AN74: 30 | AO74: 0 | AP74: 0 | AQ74: 9.8 | AR74: 7.1867 | AS74: 0 | AT74: 3.3 | AU74: 3.5 | AV74: 3.7 | AW74: 2.1 | AX74: 3.0 | BA74: 9.8 | BB74: 7.1867 | BC74: 197 | BD74: 38 | BE74: 43 | BF74: 46 | BG74: 46 | BH74: 44 | BI74: 0 | BJ74: 0 | BK74: 13.3 | BL74: 9.3100 | BM74: 0 | BN74: 3.8 | BO74: 4.3 | BP74: 4.6 | BQ74: 4.6 | BR74: 4.4 | BU74: 13.3 | BV74: 9.3100 | BW74: 185 | BX74: 40 | BY74: 40 | BZ74: 43 | CA74: 46 | CB74: 40 | CC74: 0 | CD74: 0 | CE74: 12 | CF74: 9.4300 | CG74: 0 | CH74: 4.0 | CI74: 4.0 | CJ74: 4.3 | CK74: 4.6 | CL74: 4.0 | CO74: 12.3 | CP74: 9.4300 | CQ74: 170 | CR74: 34.8734 | CS74: 39.6289 | CT74: 0.0 | CU74: 39.6289
A75: 69 | B75: 95 | C75: 50.2159 | D75: 200403892 | E75: Joy Favie | F75: Z.P.C.H. | G75: ZPC | H75: MidWest | K75: 2004 | M75: L | P75: 48 | Q75: 50 | R75: 54 | S75: 54 | T75: 54 | U75: 0 | V75: 0 | W75: 15.8 | X75: 11.5867 | Y75: 0 | Z75: 4.8 | AA75: 5.0 | AB75: 5.4 | AC75: 5.4 | AD75: 5.4 | AG75: 15.8 | AH75: 11.5867 | AI75: 85 | AJ75: 42 | AK75: 37 | AL75: 40 | AM75: 39 | AN75: 43 | AO75: 0 | AP75: 0 | AQ75: 12.1 | AR75: 8.8733 | AS75: 0 | AT75: 4.2 | AU75: 3.7 | AV75: 4.0 | AW75: 3.9 | AX75: 4.3 | BA75: 12.1 | BB75: 8.8733 | BC75: 181 | BD75: 62 | BE75: 58 | BF75: 65 | BG75: 58 | BH75: 53 | BI75: 0 | BJ75: 0 | BK75: 17.8 | BL75: 12.4600 | BM75: 0 | BN75: 6.2 | BO75: 5.8 | BP75: 6.5 | BQ75: 5.8 | BR75: 5.3 | BU75: 17.8 | BV75: 12.4600 | BW75: 31 | BX75: 57 | BY75: 48 | BZ75: 49 | CA75: 49 | CB75: 49 | CC75: 0 | CD75: 0 | CE75: 15 | CF75: 11.2700 | CG75: 0 | CH75: 5.7 | CI75: 4.8 | CJ75: 4.9 | CK75: 4.9 | CL75: 4.9 | CO75: 14.7 | CP75: 11.2700 | CQ75: 76 | CR75: 44.1900 | CS75: 50.2159 | CT75: 0.0 | CU75: 50.2159
A76: 70 | B76: 25 | C76: 56.5984 | D76: 200502158 | E76: Newa Hama Hussein | F76: Cadans | G76: CAD | H76: oost | K76: 2005 | M76: L | P76: 55 | Q76: 57 | R76: 56 | S76: 52 | T76: 51 | U76: 0 | V76: 0 | W76: 16.3 | X76: 11.9533 | Y76: 0 | Z76: 5.5 | AA76: 5.7 | AB76: 5.6 | AC76: 5.2 | AD76: 5.1 | AG76: 16.3 | AH76: 11.9533 | AI76: 62 | AJ76: 56 | AK76: 45 | AL76: 55 | AM76: 58 | AN76: 60 | AO76: 0 | AP76: 0 | AQ76: 16.9 | AR76: 12.3933 | AS76: 0 | AT76: 5.6 | AU76: 4.5 | AV76: 5.5 | AW76: 5.8 | AX76: 6.0 | BA76: 16.9 | BB76: 12.3933 | BC76: 23 | BD76: 59 | BE76: 61 | BF76: 60 | BG76: 62 | BH76: 64 | BI76: 0 | BJ76: 0 | BK76: 18.3 | BL76: 12.8100 | BM76: 0 | BN76: 5.9 | BO76: 6.1 | BP76: 6.0 | BQ76: 6.2 | BR76: 6.4 | BU76: 18.3 | BV76: 12.8100 | BW76: 21 | BX76: 51 | BY76: 56 | BZ76: 55 | CA76: 58 | CB76: 54 | CC76: 0 | CD76: 0 | CE76: 17 | CF76: 12.6500 | CG76: 0 | CH76: 5.1 | CI76: 5.6 | CJ76: 5.5 | CK76: 5.8 | CL76: 5.4 | CO76: 16.5 | CP76: 12.6500 | CQ76: 25 | CR76: 49.8066 | CS76: 56.5984 | CT76: 0.0 | CU76: 56.5984
A77: 71 | B77: 88 | C77: 50.5190 | D77: 200503084 | E77: Charelle Spaan | F77: Z.P.C.H. | G77: ZPC | H77: MidWest | K77: 2005 | M77: L | P77: 52 | Q77: 51 | R77: 58 | S77: 51 | T77: 54 | U77: 0 | V77: 0 | W77: 15.7 | X77: 11.5133 | Y77: 0 | Z77: 5.2 | AA77: 5.1 | AB77: 5.8 | AC77: 5.1 | AD77: 5.4 | AG77: 15.7 | AH77: 11.5133 | AI77: 88 | AJ77: 52 | AK77: 47 | AL77: 56 | AM77: 52 | AN77: 54 | AO77: 0 | AP77: 0 | AQ77: 15.8 | AR77: 11.5867 | AS77: 0 | AT77: 5.2 | AU77: 4.7 | AV77: 5.6 | AW77: 5.2 | AX77: 5.4 | BA77: 15.8 | BB77: 11.5867 | BC77: 50 | BD77: 47 | BE77: 49 | BF77: 59 | BG77: 47 | BH77: 46 | BI77: 0 | BJ77: 0 | BK77: 14.3 | BL77: 10.0100 | BM77: 0 | BN77: 4.7 | BO77: 4.9 | BP77: 5.9 | BQ77: 4.7 | BR77: 4.6 | BU77: 14.3 | BV77: 10.0100 | BW77: 153 | BX77: 46 | BY77: 50 | BZ77: 49 | CA77: 49 | CB77: 51 | CC77: 0 | CD77: 0 | CE77: 15 | CF77: 11.3467 | CG77: 0 | CH77: 4.6 | CI77: 5.0 | CJ77: 4.9 | CK77: 4.9 | CL77: 5.1 | CO77: 14.8 | CP77: 11.3467 | CQ77: 72 | CR77: 44.4567 | CS77: 50.5190 | CT77: 0.0 | CU77: 50.5190
A78: 72 | B78: 74 | C78: 51.4849 | D78: 200501374 | E78: Floortje van der Velde | F78: HZ&PC Heerenveen | G78: HZPC | H78: Noord | K78: 2005 | M78: L | P78: 51 | Q78: 48 | R78: 48 | S78: 47 | T78: 50 | U78: 0 | V78: 0 | W78: 14.6 | X78: 10.7067 | Y78: 0 | Z78: 5.1 | AA78: 4.8 | AB78: 4.8 | AC78: 4.7 | AD78: 5.0 | AG78: 14.6 | AH78: 10.7067 | AI78: 125 | AJ78: 53 | AK78: 50 | AL78: 52 | AM78: 54 | AN78: 52 | AO78: 0 | AP78: 0 | AQ78: 15.7 | AR78: 11.5133 | AS78: 0 | AT78: 5.3 | AU78: 5.0 | AV78: 5.2 | AW78: 5.4 | AX78: 5.2 | BA78: 15.7 | BB78: 11.5133 | BC78: 55 | BD78: 51 | BE78: 62 | BF78: 60 | BG78: 59 | BH78: 52 | BI78: 0 | BJ78: 0 | BK78: 17.1 | BL78: 11.9700 | BM78: 0 | BN78: 5.1 | BO78: 6.2 | BP78: 6.0 | BQ78: 5.9 | BR78: 5.2 | BU78: 17.1 | BV78: 11.9700 | BW78: 57 | BX78: 49 | BY78: 49 | BZ78: 48 | CA78: 47 | CB78: 48 | CC78: 0 | CD78: 0 | CE78: 15 | CF78: 11.1167 | CG78: 0 | CH78: 4.9 | CI78: 4.9 | CJ78: 4.8 | CK78: 4.7 | CL78: 4.8 | CO78: 14.5 | CP78: 11.1167 | CQ78: 87 | CR78: 45.3067 | CS78: 51.4849 | CT78: 0.0 | CU78: 51.4849
A79: 73 | B79: 57 | C79: 53.2917 | D79: 200504282 | E79: Noëlle Rienks | F79: De Watertrappers | G79: DWT | H79: Mid West | K79: 2005 | M79: L | P79: 52 | Q79: 50 | R79: 54 | S79: 54 | T79: 51 | U79: 0 | V79: 0 | W79: 15.7 | X79: 11.5133 | Y79: 0 | Z79: 5.2 | AA79: 5.0 | AB79: 5.4 | AC79: 5.4 | AD79: 5.1 | AG79: 15.7 | AH79: 11.5133 | AI79: 88 | AJ79: 47 | AK79: 59 | AL79: 56 | AM79: 55 | AN79: 53 | AO79: 0 | AP79: 0 | AQ79: 16.4 | AR79: 12.0267 | AS79: 0 | AT79: 4.7 | AU79: 5.9 | AV79: 5.6 | AW79: 5.5 | AX79: 5.3 | BA79: 16.4 | BB79: 12.0267 | BC79: 36 | BD79: 51 | BE79: 57 | BF79: 57 | BG79: 54 | BH79: 54 | BI79: 0 | BJ79: 0 | BK79: 16.5 | BL79: 11.5500 | BM79: 0 | BN79: 5.1 | BO79: 5.7 | BP79: 5.7 | BQ79: 5.4 | BR79: 5.4 | BU79: 16.5 | BV79: 11.5500 | BW79: 82 | BX79: 52 | BY79: 51 | BZ79: 49 | CA79: 53 | CB79: 51 | CC79: 0 | CD79: 0 | CE79: 15 | CF79: 11.8067 | CG79: 0 | CH79: 5.2 | CI79: 5.1 | CJ79: 4.9 | CK79: 5.3 | CL79: 5.1 | CO79: 15.4 | CP79: 11.8067 | CQ79: 47 | CR79: 46.8967 | CS79: 53.2917 | CT79: 0.0 | CU79: 53.2917
A80: 74 | B80: 123 | C80: 48.0378 | D80: 200403010 | E80: Esmee van den Heuvel | F80: Widex Gzc Donk | G80: DONK | H80: West | K80: 2004 | P80: 49 | Q80: 51 | R80: 55 | S80: 51 | T80: 54 | U80: 0 | V80: 0 | W80: 15.6 | X80: 11.4400 | Y80: 0 | Z80: 4.9 | AA80: 5.1 | AB80: 5.5 | AC80: 5.1 | AD80: 5.4 | AG80: 15.6 | AH80: 11.4400 | AI80: 96 | AJ80: 45 | AK80: 46 | AL80: 47 | AM80: 46 | AN80: 49 | AO80: 0 | AP80: 0 | AQ80: 13.9 | AR80: 10.1933 | AS80: 0 | AT80: 4.5 | AU80: 4.6 | AV80: 4.7 | AW80: 4.6 | AX80: 4.9 | BA80: 13.9 | BB80: 10.1933 | BC80: 119 | BD80: 48 | BE80: 50 | BF80: 47 | BG80: 49 | BH80: 50 | BI80: 0 | BJ80: 0 | BK80: 14.7 | BL80: 10.2900 | BM80: 0 | BN80: 4.8 | BO80: 5.0 | BP80: 4.7 | BQ80: 4.9 | BR80: 5.0 | BU80: 14.7 | BV80: 10.2900 | BW80: 139 | BX80: 44 | BY80: 45 | BZ80: 45 | CA80: 45 | CB80: 46 | CC80: 0 | CD80: 0 | CE80: 14 | CF80: 10.3500 | CG80: 0 | CH80: 4.4 | CI80: 4.5 | CJ80: 4.5 | CK80: 4.5 | CL80: 4.6 | CO80: 13.5 | CP80: 10.3500 | CQ80: 131 | CR80: 42.2733 | CS80: 48.0378 | CT80: 0.0 | CU80: 48.0378
A81: 75 | B81: 141 | C81: 47.0909 | D81: 200504112 | E81: Daphne Lutjenhuis | F81: AZC | G81: AZC | H81: West | K81: 2005 | M81: L | P81: 50 | Q81: 45 | R81: 47 | S81: 51 | T81: 47 | U81: 0 | V81: 0 | W81: 14.4 | X81: 10.5600 | Y81: 0 | Z81: 5.0 | AA81: 4.5 | AB81: 4.7 | AC81: 5.1 | AD81: 4.7 | AG81: 14.4 | AH81: 10.5600 | AI81: 137 | AJ81: 49 | AK81: 47 | AL81: 45 | AM81: 50 | AN81: 48 | AO81: 0 | AP81: 0 | AQ81: 14.4 | AR81: 10.5600 | AS81: 0 | AT81: 4.9 | AU81: 4.7 | AV81: 4.5 | AW81: 5.0 | AX81: 4.8 | BA81: 14.4 | BB81: 10.5600 | BC81: 104 | BD81: 49 | BE81: 49 | BF81: 50 | BG81: 50 | BH81: 53 | BI81: 0 | BJ81: 0 | BK81: 14.9 | BL81: 10.4300 | BM81: 0 | BN81: 4.9 | BO81: 4.9 | BP81: 5.0 | BQ81: 5.0 | BR81: 5.3 | BU81: 14.9 | BV81: 10.4300 | BW81: 127 | BX81: 43 | BY81: 43 | BZ81: 43 | CA81: 44 | CB81: 42 | CC81: 0 | CD81: 0 | CE81: 13 | CF81: 9.8900 | CG81: 0 | CH81: 4.3 | CI81: 4.3 | CJ81: 4.3 | CK81: 4.4 | CL81: 4.2 | CO81: 12.9 | CP81: 9.8900 | CQ81: 153 | CR81: 41.4400 | CS81: 47.0909 | CT81: 0.0 | CU81: 47.0909
A82: 76 | B82: 155 | C82: 45.2803 | D82: 200503502 | E82: Feija Wollring | F82: Cadans | G82: CAD | H82: oost | K82: 2005 | P82: 48 | Q82: 50 | R82: 52 | S82: 47 | T82: 48 | U82: 0 | V82: 0 | W82: 14.6 | X82: 10.7067 | Y82: 0 | Z82: 4.8 | AA82: 5.0 | AB82: 5.2 | AC82: 4.7 | AD82: 4.8 | AG82: 14.6 | AH82: 10.7067 | AI82: 125 | AJ82: 43 | AK82: 43 | AL82: 48 | AM82: 41 | AN82: 44 | AO82: 0 | AP82: 0 | AQ82: 13.0 | AR82: 9.5333 | AS82: 0 | AT82: 4.3 | AU82: 4.3 | AV82: 4.8 | AW82: 4.1 | AX82: 4.4 | BA82: 13.0 | BB82: 9.5333 | BC82: 159 | BD82: 47 | BE82: 47 | BF82: 49 | BG82: 42 | BH82: 47 | BI82: 0 | BJ82: 0 | BK82: 14.1 | BL82: 9.8700 | BM82: 0 | BN82: 4.7 | BO82: 4.7 | BP82: 4.9 | BQ82: 4.2 | BR82: 4.7 | BU82: 14.1 | BV82: 9.8700 | BW82: 160 | BX82: 41 | BY82: 45 | BZ82: 46 | CA82: 41 | CB82: 40 | CC82: 0 | CD82: 0 | CE82: 13 | CF82: 9.7367 | CG82: 0 | CH82: 4.1 | CI82: 4.5 | CJ82: 4.6 | CK82: 4.1 | CL82: 4.0 | CO82: 12.7 | CP82: 9.7367 | CQ82: 158 | CR82: 39.8467 | CS82: 45.2803 | CT82: 0.0 | CU82: 45.2803
A83: 77 | B83: BM | C83: 43.4167 | D83: 200205552 | E83: Shariëlle Garia | F83: ZVBrunssum | G83: ZVB | H83: Zuid | I83: BM | J83: X | K83: 2002 | M83: BM | P83: 43 | Q83: 43 | R83: 45 | S83: 47 | T83: 47 | U83: 0 | V83: 0 | W83: 13.5 | X83: 9.9000 | Y83: 0 | Z83: 4.3 | AA83: 4.3 | AB83: 4.5 | AC83: 4.7 | AD83: 4.7 | AG83: 13.5 | AH83: 9.9000 | AI83: 172 | AJ83: 40 | AK83: 45 | AL83: 45 | AM83: 46 | AN83: 45 | AO83: 0 | AP83: 0 | AQ83: 13.5 | AR83: 9.9000 | AS83: 0 | AT83: 4.0 | AU83: 4.5 | AV83: 4.5 | AW83: 4.6 | AX83: 4.5 | BA83: 13.5 | BB83: 9.9000 | BC83: 138 | BD83: 46 | BE83: 46 | BF83: 48 | BG83: 45 | BH83: 44 | BI83: 0 | BJ83: 0 | BK83: 13.7 | BL83: 9.5900 | BM83: 0 | BN83: 4.6 | BO83: 4.6 | BP83: 4.8 | BQ83: 4.5 | BR83: 4.4 | BU83: 13.7 | BV83: 9.5900 | BW83: 173 | BX83: 35 | BY83: 40 | BZ83: 40 | CA83: 37 | CB83: 38 | CC83: 0 | CD83: 0 | CE83: 12 | CF83: 8.8167 | CG83: 0 | CH83: 3.5 | CI83: 4.0 | CJ83: 4.0 | CK83: 3.7 | CL83: 3.8 | CO83: 11.5 | CP83: 8.8167 | CQ83: 192 | CR83: 38.2067 | CS83: 43.4167 | CT83: 0.0 | CU83: 0
A84: 78 | B84: 169 | C84: 44.0228 | D84: 200405016 | E84: Anna Kroon | F84: HZPC Horst | G84: HZPC | H84: zuid | J84: X | K84: 2004 | P84: 44 | Q84: 42 | R84: 48 | S84: 54 | T84: 48 | U84: 0 | V84: 0 | W84: 14.0 | X84: 10.2667 | Y84: 0 | Z84: 4.4 | AA84: 4.2 | AB84: 4.8 | AC84: 5.4 | AD84: 4.8 | AG84: 14.0 | AH84: 10.2667 | AI84: 157 | AJ84: 46 | AK84: 42 | AL84: 43 | AM84: 40 | AN84: 46 | AO84: 0 | AP84: 0 | AQ84: 13.1 | AR84: 9.6067 | AS84: 0 | AT84: 4.6 | AU84: 4.2 | AV84: 4.3 | AW84: 4.0 | AX84: 4.6 | BA84: 13.1 | BB84: 9.6067 | BC84: 154 | BD84: 44 | BE84: 45 | BF84: 46 | BG84: 48 | BH84: 46 | BI84: 0 | BJ84: 0 | BK84: 13.7 | BL84: 9.5900 | BM84: 0 | BN84: 4.4 | BO84: 4.5 | BP84: 4.6 | BQ84: 4.8 | BR84: 4.6 | BU84: 13.7 | BV84: 9.5900 | BW84: 173 | BX84: 40 | BY84: 41 | BZ84: 40 | CA84: 41 | CB84: 36 | CC84: 0 | CD84: 0 | CE84: 12 | CF84: 9.2767 | CG84: 0 | CH84: 4.0 | CI84: 4.1 | CJ84: 4.0 | CK84: 4.1 | CL84: 3.6 | CO84: 12.1 | CP84: 9.2767 | CQ84: 179 | CR84: 38.7401 | CS84: 44.0228 | CT84: 0.0 | CU84: 44.0228
A85: 79 | B85: 77 | C85: 51.3447 | D85: 200503980 | E85: Sascha van Leeuwen | F85: Aquarijn | G85: AQU | H85: MidWest | K85: 2005 | M85: L | P85: 55 | Q85: 55 | R85: 61 | S85: 62 | T85: 56 | U85: 0 | V85: 0 | W85: 17.2 | X85: 12.6133 | Y85: 0 | Z85: 5.5 | AA85: 5.5 | AB85: 6.1 | AC85: 6.2 | AD85: 5.6 | AG85: 17.2 | AH85: 12.6133 | AI85: 32 | AJ85: 41 | AK85: 47 | AL85: 47 | AM85: 50 | AN85: 50 | AO85: 0 | AP85: 0 | AQ85: 14.4 | AR85: 10.5600 | AS85: 0 | AT85: 4.1 | AU85: 4.7 | AV85: 4.7 | AW85: 5.0 | AX85: 5.0 | BA85: 14.4 | BB85: 10.5600 | BC85: 104 | BD85: 54 | BE85: 58 | BF85: 53 | BG85: 53 | BH85: 47 | BI85: 0 | BJ85: 0 | BK85: 16.0 | BL85: 11.2000 | BM85: 0 | BN85: 5.4 | BO85: 5.8 | BP85: 5.3 | BQ85: 5.3 | BR85: 4.7 | BU85: 16.0 | BV85: 11.2000 | BW85: 95 | BX85: 49 | BY85: 45 | BZ85: 45 | CA85: 48 | CB85: 48 | CC85: 0 | CD85: 0 | CE85: 14 | CF85: 10.8100 | CG85: 0 | CH85: 4.9 | CI85: 4.5 | CJ85: 4.5 | CK85: 4.8 | CL85: 4.8 | CO85: 14.1 | CP85: 10.8100 | CQ85: 107 | CR85: 45.1833 | CS85: 51.3447 | CT85: 0.0 | CU85: 51.3447
A86: 80 | B86: 63 | C86: 52.5038 | D86: 20043346 | E86: Renske Veenstra | F86: DZ&PC | G86: DZP | H86: Noord | K86: 2004 | M86: L | P86: 53 | Q86: 53 | R86: 55 | S86: 61 | T86: 50 | U86: 0 | V86: 0 | W86: 16.1 | X86: 11.8067 | Y86: 0 | Z86: 5.3 | AA86: 5.3 | AB86: 5.5 | AC86: 6.1 | AD86: 5.0 | AG86: 16.1 | AH86: 11.8067 | AI86: 72 | AJ86: 44 | AK86: 49 | AL86: 52 | AM86: 51 | AN86: 51 | AO86: 0 | AP86: 0 | AQ86: 15.1 | AR86: 11.0733 | AS86: 0 | AT86: 4.4 | AU86: 4.9 | AV86: 5.2 | AW86: 5.1 | AX86: 5.1 | BA86: 15.1 | BB86: 11.0733 | BC86: 74 | BD86: 54 | BE86: 56 | BF86: 59 | BG86: 58 | BH86: 56 | BI86: 0 | BJ86: 0 | BK86: 17.0 | BL86: 11.9000 | BM86: 0 | BN86: 5.4 | BO86: 5.6 | BP86: 5.9 | BQ86: 5.8 | BR86: 5.6 | BU86: 17.0 | BV86: 11.9000 | BW86: 63 | BX86: 45 | BY86: 49 | BZ86: 49 | CA86: 51 | CB86: 52 | CC86: 0 | CD86: 0 | CE86: 15 | CF86: 11.4233 | CG86: 0 | CH86: 4.5 | CI86: 4.9 | CJ86: 4.9 | CK86: 5.1 | CL86: 5.2 | CO86: 14.9 | CP86: 11.4233 | CQ86: 65 | CR86: 46.2033 | CS86: 52.5038 | CT86: 0.0 | CU86: 52.5038
A87: 81 | B87: 1 | C87: 65.5189 | D87: 200301290 | E87: Maria Lorenzini | F87: ACZ | G87: ACZ | H87: West | K87: 2003 | M87: L | P87: 62 | Q87: 64 | R87: 64 | S87: 62 | T87: 65 | U87: 0 | V87: 0 | W87: 19.0 | X87: 13.9333 | Y87: 0 | Z87: 6.2 | AA87: 6.4 | AB87: 6.4 | AC87: 6.2 | AD87: 6.5 | AG87: 19.0 | AH87: 13.9333 | AI87: 7 | AJ87: 70 | AK87: 62 | AL87: 63 | AM87: 71 | AN87: 71 | AO87: 0 | AP87: 0 | AQ87: 20.4 | AR87: 14.9600 | AS87: 0 | AT87: 7.0 | AU87: 6.2 | AV87: 6.3 | AW87: 7.1 | AX87: 7.1 | BA87: 20.4 | BB87: 14.9600 | BC87: 1 | BD87: 73 | BE87: 62 | BF87: 63 | BG87: 70 | BH87: 72 | BI87: 0 | BJ87: 0 | BK87: 20.5 | BL87: 14.3500 | BM87: 0 | BN87: 7.3 | BO87: 6.2 | BP87: 6.3 | BQ87: 7.0 | BR87: 7.2 | BU87: 20.5 | BV87: 14.3500 | BW87: 1 | BX87: 64 | BY87: 59 | BZ87: 63 | CA87: 61 | CB87: 64 | CC87: 0 | CD87: 0 | CE87: 19 | CF87: 14.4133 | CG87: 0 | CH87: 6.4 | CI87: 5.9 | CJ87: 6.3 | CK87: 6.1 | CL87: 6.4 | CO87: 18.8 | CP87: 14.4133 | CQ87: 1 | CR87: 57.6566 | CS87: 65.5189 | CT87: 0.0 | CU87: 65.5189
A88: 82 | B88: 102 | C88: 49.5113 | D88: 200301408 | E88: Dagmar Hansman | F88: Hera'11 | G88: HERA | H88: Oost | K88: 2003 | M88: L | P88: 52 | Q88: 51 | R88: 51 | S88: 55 | T88: 50 | U88: 0 | V88: 0 | W88: 15.4 | X88: 11.2933 | Y88: 0 | Z88: 5.2 | AA88: 5.1 | AB88: 5.1 | AC88: 5.5 | AD88: 5.0 | AG88: 15.4 | AH88: 11.2933 | AI88: 102 | AJ88: 50 | AK88: 54 | AL88: 45 | AM88: 50 | AN88: 51 | AO88: 0 | AP88: 0 | AQ88: 15.1 | AR88: 11.0733 | AS88: 0 | AT88: 5.0 | AU88: 5.4 | AV88: 4.5 | AW88: 5.0 | AX88: 5.1 | BA88: 15.1 | BB88: 11.0733 | BC88: 74 | BD88: 48 | BE88: 58 | BF88: 48 | BG88: 46 | BH88: 47 | BI88: 0 | BJ88: 0 | BK88: 14.3 | BL88: 10.0100 | BM88: 0 | BN88: 4.8 | BO88: 5.8 | BP88: 4.8 | BQ88: 4.6 | BR88: 4.7 | BU88: 14.3 | BV88: 10.0100 | BW88: 153 | BX88: 51 | BY88: 49 | BZ88: 49 | CA88: 48 | CB88: 47 | CC88: 0 | CD88: 0 | CE88: 15 | CF88: 11.1933 | CG88: 0 | CH88: 5.1 | CI88: 4.9 | CJ88: 4.9 | CK88: 4.8 | CL88: 4.7 | CO88: 14.6 | CP88: 11.1933 | CQ88: 83 | CR88: 43.5699 | CS88: 49.5113 | CT88: 0.0 | CU88: 49.5113
A89: 83 | B89: 193 | C89: 0.0000 | D89: 200404462 | E89: Daniela Ghasseminejad | F89: Z.P.C.H. | G89: ZPC | H89: MidWest | J89: X | K89: 2004 | O89: x | P89: 0 | Q89: 0 | R89: 0 | S89: 0 | T89: 0 | U89: 0 | V89: 0 | W89: 0.0 | X89: 0.0000 | Y89: 0 | Z89: 0.0 | AA89: 0.0 | AB89: 0.0 | AC89: 0.0 | AD89: 0.0 | AG89: 0.0 | AH89: 0.0000 | AJ89: 0 | AK89: 0 | AL89: 0 | AM89: 0 | AN89: 0 | AO89: 0 | AP89: 0 | AQ89: 0.0 | AR89: 0.0000 | AS89: 0 | AT89: 0.0 | AU89: 0.0 | AV89: 0.0 | AW89: 0.0 | AX89: 0.0 | BA89: 0.0 | BB89: 0.0000 | BD89: 0 | BE89: 0 | BF89: 0 | BG89: 0 | BH89: 0 | BI89: 0 | BJ89: 0 | BK89: 0.0 | BL89: 0.0000 | BM89: 0 | BN89: 0.0 | BO89: 0.0 | BP89: 0.0 | BQ89: 0.0 | BR89: 0.0 | BU89: 0.0 | BV89: 0.0000 | BX89: 0 | BY89: 0 | BZ89: 0 | CA89: 0 | CB89: 0 | CC89: 0 | CD89: 0 | CE89: 0 | CF89: 0.0000 | CG89: 0 | CH89: 0.0 | CI89: 0.0 | CJ89: 0.0 | CK89: 0.0 | CL89: 0.0 | CO89: 0.0 | CP89: 0.0000 | CR89: 0.0000 | CS89: 0.0000 | CT89: 0.0 | CU89: 0
A90: 84 | B90: 36 | C90: 55.4888 | D90: 200401490 | E90: Anna Darby | F90: DAW | G90: DAW | H90: Midwest | K90: 2004 | M90: L | P90: 50 | Q90: 49 | R90: 54 | S90: 58 | T90: 57 | U90: 0 | V90: 0 | W90: 16.1 | X90: 11.8067 | Y90: 0 | Z90: 5.0 | AA90: 4.9 | AB90: 5.4 | AC90: 5.8 | AD90: 5.7 | AG90: 16.1 | AH90: 11.8067 | AI90: 72 | AJ90: 55 | AK90: 49 | AL90: 53 | AM90: 59 | AN90: 60 | AO90: 0 | AP90: 0 | AQ90: 16.7 | AR90: 12.2467 | AS90: 0 | AT90: 5.5 | AU90: 4.9 | AV90: 5.3 | AW90: 5.9 | AX90: 6.0 | BA90: 16.7 | BB90: 12.2467 | BC90: 28 | BD90: 61 | BE90: 63 | BF90: 62 | BG90: 58 | BH90: 59 | BI90: 0 | BJ90: 0 | BK90: 18.2 | BL90: 12.7400 | BM90: 0 | BN90: 6.1 | BO90: 6.3 | BP90: 6.2 | BQ90: 5.8 | BR90: 5.9 | BU90: 18.2 | BV90: 12.7400 | BW90: 23 | BX90: 50 | BY90: 56 | BZ90: 53 | CA90: 54 | CB90: 49 | CC90: 0 | CD90: 0 | CE90: 16 | CF90: 12.0367 | CG90: 0 | CH90: 5.0 | CI90: 5.6 | CJ90: 5.3 | CK90: 5.4 | CL90: 4.9 | CO90: 15.7 | CP90: 12.0367 | CQ90: 41 | CR90: 48.8301 | CS90: 55.4888 | CT90: 0.0 | CU90: 55.4888
A91: 85 | B91: 27 | C91: 56.4205 | D91: 200404456 | E91: Amanda Voesten | F91: De Dolfijn | G91: DOL | H91: MidWest | K91: 2004 | M91: L | P91: 54 | Q91: 54 | R91: 58 | S91: 56 | T91: 60 | U91: 0 | V91: 0 | W91: 16.8 | X91: 12.3200 | Y91: 0 | Z91: 5.4 | AA91: 5.4 | AB91: 5.8 | AC91: 5.6 | AD91: 6.0 | AG91: 16.8 | AH91: 12.3200 | AI91: 48 | AJ91: 53 | AK91: 53 | AL91: 56 | AM91: 56 | AN91: 58 | AO91: 0 | AP91: 0 | AQ91: 16.5 | AR91: 12.1000 | AS91: 0 | AT91: 5.3 | AU91: 5.3 | AV91: 5.6 | AW91: 5.6 | AX91: 5.8 | BA91: 16.5 | BB91: 12.1000 | BC91: 32 | BD91: 64 | BE91: 59 | BF91: 60 | BG91: 60 | BH91: 63 | BI91: 0 | BJ91: 0 | BK91: 18.3 | BL91: 12.8100 | BM91: 0 | BN91: 6.4 | BO91: 5.9 | BP91: 6.0 | BQ91: 6.0 | BR91: 6.3 | BU91: 18.3 | BV91: 12.8100 | BW91: 21 | BX91: 54 | BY91: 54 | BZ91: 54 | CA91: 56 | CB91: 52 | CC91: 0 | CD91: 0 | CE91: 16 | CF91: 12.4200 | CG91: 0 | CH91: 5.4 | CI91: 5.4 | CJ91: 5.4 | CK91: 5.6 | CL91: 5.2 | CO91: 16.2 | CP91: 12.4200 | CQ91: 30 | CR91: 49.6500 | CS91: 56.4205 | CT91: 0.0 | CU91: 56.4205
A92: 86 | B92: 85 | C92: 50.6781 | D92: 200405160 | E92: Iris Mandemaker | F92: HZ&PC Heerenveen | G92: HZPC | H92: Noord | K92: 2004 | M92: L | P92: 48 | Q92: 49 | R92: 53 | S92: 54 | T92: 50 | U92: 0 | V92: 0 | W92: 15.2 | X92: 11.1467 | Y92: 0 | Z92: 4.8 | AA92: 4.9 | AB92: 5.3 | AC92: 5.4 | AD92: 5.0 | AG92: 15.2 | AH92: 11.1467 | AI92: 105 | AJ92: 52 | AK92: 51 | AL92: 54 | AM92: 49 | AN92: 52 | AO92: 0 | AP92: 0 | AQ92: 15.5 | AR92: 11.3667 | AS92: 0 | AT92: 5.2 | AU92: 5.1 | AV92: 5.4 | AW92: 4.9 | AX92: 5.2 | BA92: 15.5 | BB92: 11.3667 | BC92: 63 | BD92: 50 | BE92: 49 | BF92: 47 | BG92: 50 | BH92: 55 | BI92: 0 | BJ92: 0 | BK92: 14.9 | BL92: 10.4300 | BM92: 0 | BN92: 5.0 | BO92: 4.9 | BP92: 4.7 | BQ92: 5.0 | BR92: 5.5 | BU92: 14.9 | BV92: 10.4300 | BW92: 127 | BX92: 53 | BY92: 52 | BZ92: 50 | CA92: 50 | CB92: 46 | CC92: 0 | CD92: 0 | CE92: 15 | CF92: 11.6533 | CG92: 0 | CH92: 5.3 | CI92: 5.2 | CJ92: 5.0 | CK92: 5.0 | CL92: 4.6 | CO92: 15.2 | CP92: 11.6533 | CQ92: 53 | CR92: 44.5967 | CS92: 50.6781 | CT92: 0.0 | CU92: 50.6781
A93: 87 | B93: 193 | C93: 0.0000 | D93: 200304878 | E93: Kayleigh Bruins | F93: Widex Gzc Donk | G93: DONK | H93: West | J93: X | K93: 2003 | O93: x | P93: 0 | Q93: 0 | R93: 0 | S93: 0 | T93: 0 | U93: 0 | V93: 0 | W93: 0.0 | X93: 0.0000 | Y93: 0 | Z93: 0.0 | AA93: 0.0 | AB93: 0.0 | AC93: 0.0 | AD93: 0.0 | AG93: 0.0 | AH93: 0.0000 | AJ93: 0 | AK93: 0 | AL93: 0 | AM93: 0 | AN93: 0 | AO93: 0 | AP93: 0 | AQ93: 0.0 | AR93: 0.0000 | AS93: 0 | AT93: 0.0 | AU93: 0.0 | AV93: 0.0 | AW93: 0.0 | AX93: 0.0 | BA93: 0.0 | BB93: 0.0000 | BD93: 0 | BE93: 0 | BF93: 0 | BG93: 0 | BH93: 0 | BI93: 0 | BJ93: 0 | BK93: 0.0 | BL93: 0.0000 | BM93: 0 | BN93: 0.0 | BO93: 0.0 | BP93: 0.0 | BQ93: 0.0 | BR93: 0.0 | BU93: 0.0 | BV93: 0.0000 | BX93: 0 | BY93: 0 | BZ93: 0 | CA93: 0 | CB93: 0 | CC93: 0 | CD93: 0 | CE93: 0 | CF93: 0.0000 | CG93: 0 | CH93: 0.0 | CI93: 0.0 | CJ93: 0.0 | CK93: 0.0 | CL93: 0.0 | CO93: 0.0 | CP93: 0.0000 | CR93: 0.0000 | CS93: 0.0000 | CT93: 0.0 | CU93: 0
A94: 88 | B94: 23 | C94: 57.3447 | D94: 200301902 | E94: Pleun Boerakker | F94: Cadans | G94: CAD | H94: oost | K94: 2003 | M94: L | P94: 61 | Q94: 67 | R94: 60 | S94: 60 | T94: 61 | U94: 0 | V94: 0 | W94: 18.2 | X94: 13.3467 | Y94: 0 | Z94: 6.1 | AA94: 6.7 | AB94: 6.0 | AC94: 6.0 | AD94: 6.1 | AG94: 18.2 | AH94: 13.3467 | AI94: 12 | AJ94: 58 | AK94: 58 | AL94: 53 | AM94: 62 | AN94: 68 | AO94: 0 | AP94: 0 | AQ94: 17.8 | AR94: 13.0533 | AS94: 0 | AT94: 5.8 | AU94: 5.8 | AV94: 5.3 | AW94: 6.2 | AX94: 6.8 | BA94: 17.8 | BB94: 13.0533 | BC94: 12 | BD94: 58 | BE94: 53 | BF94: 62 | BG94: 54 | BH94: 62 | BI94: 0 | BJ94: 0 | BK94: 17.4 | BL94: 12.1800 | BM94: 0 | BN94: 5.8 | BO94: 5.3 | BP94: 6.2 | BQ94: 5.4 | BR94: 6.2 | BU94: 17.4 | BV94: 12.1800 | BW94: 42 | BX94: 48 | BY94: 56 | BZ94: 51 | CA94: 51 | CB94: 53 | CC94: 0 | CD94: 0 | CE94: 16 | CF94: 11.8833 | CG94: 0 | CH94: 4.8 | CI94: 5.6 | CJ94: 5.1 | CK94: 5.1 | CL94: 5.3 | CO94: 15.5 | CP94: 11.8833 | CQ94: 44 | CR94: 50.4633 | CS94: 57.3447 | CT94: 0.0 | CU94: 57.3447
A95: 89 | B95: 15 | C95: 59.6060 | D95: 200301680 | E95: Sarah Molensky | F95: ZVBrunssum | G95: ZVB | H95: Zuid | K95: 2003 | M95: L | P95: 62 | Q95: 64 | R95: 63 | S95: 66 | T95: 64 | U95: 0 | V95: 0 | W95: 19.1 | X95: 14.0067 | Y95: 0 | Z95: 6.2 | AA95: 6.4 | AB95: 6.3 | AC95: 6.6 | AD95: 6.4 | AG95: 19.1 | AH95: 14.0067 | AI95: 5 | AJ95: 55 | AK95: 49 | AL95: 51 | AM95: 53 | AN95: 53 | AO95: 0 | AP95: 0 | AQ95: 15.7 | AR95: 11.5133 | AS95: 0 | AT95: 5.5 | AU95: 4.9 | AV95: 5.1 | AW95: 5.3 | AX95: 5.3 | BA95: 15.7 | BB95: 11.5133 | BC95: 55 | BD95: 64 | BE95: 61 | BF95: 64 | BG95: 66 | BH95: 64 | BI95: 0 | BJ95: 0 | BK95: 19.2 | BL95: 13.4400 | BM95: 0 | BN95: 6.4 | BO95: 6.1 | BP95: 6.4 | BQ95: 6.6 | BR95: 6.4 | BU95: 19.2 | BV95: 13.4400 | BW95: 10 | BX95: 57 | BY95: 59 | BZ95: 58 | CA95: 59 | CB95: 60 | CC95: 0 | CD95: 0 | CE95: 18 | CF95: 13.4933 | CG95: 0 | CH95: 5.7 | CI95: 5.9 | CJ95: 5.8 | CK95: 5.9 | CL95: 6.0 | CO95: 17.6 | CP95: 13.4933 | CQ95: 8 | CR95: 52.4533 | CS95: 59.6060 | CT95: 0.0 | CU95: 59.6060
A96: 90 | B96: 43 | C96: 54.4090 | D96: 200302322 | E96: Noa van Blijderveen | F96: Aquarijn | G96: AQU | H96: MidWest | K96: 2003 | M96: L | P96: 57 | Q96: 57 | R96: 58 | S96: 56 | T96: 58 | U96: 0 | V96: 0 | W96: 17.2 | X96: 12.6133 | Y96: 0 | Z96: 5.7 | AA96: 5.7 | AB96: 5.8 | AC96: 5.6 | AD96: 5.8 | AG96: 17.2 | AH96: 12.6133 | AI96: 32 | AJ96: 48 | AK96: 48 | AL96: 50 | AM96: 50 | AN96: 52 | AO96: 0 | AP96: 0 | AQ96: 14.8 | AR96: 10.8533 | AS96: 0 | AT96: 4.8 | AU96: 4.8 | AV96: 5.0 | AW96: 5.0 | AX96: 5.2 | BA96: 14.8 | BB96: 10.8533 | BC96: 90 | BD96: 59 | BE96: 60 | BF96: 60 | BG96: 60 | BH96: 51 | BI96: 0 | BJ96: 0 | BK96: 17.9 | BL96: 12.5300 | BM96: 0 | BN96: 5.9 | BO96: 6.0 | BP96: 6.0 | BQ96: 6.0 | BR96: 5.1 | BU96: 17.9 | BV96: 12.5300 | BW96: 28 | BX96: 58 | BY96: 51 | BZ96: 49 | CA96: 55 | CB96: 48 | CC96: 0 | CD96: 0 | CE96: 16 | CF96: 11.8833 | CG96: 0 | CH96: 5.8 | CI96: 5.1 | CJ96: 4.9 | CK96: 5.5 | CL96: 4.8 | CO96: 15.5 | CP96: 11.8833 | CQ96: 44 | CR96: 47.8799 | CS96: 54.4090 | CT96: 0.0 | CU96: 54.4090
A97: 91 | B97: 99 | C97: 49.8598 | D97: 200302056 | E97: Tessa Kemper | F97: Aqua-Novio '94 | G97: AQN | H97: Oost | K97: 2003 | M97: L | P97: 47 | Q97: 50 | R97: 50 | S97: 48 | T97: 51 | U97: 0 | V97: 0 | W97: 14.8 | X97: 10.8533 | Y97: 0 | Z97: 4.7 | AA97: 5.0 | AB97: 5.0 | AC97: 4.8 | AD97: 5.1 | AG97: 14.8 | AH97: 10.8533 | AI97: 117 | AJ97: 42 | AK97: 45 | AL97: 45 | AM97: 44 | AN97: 43 | AO97: 0 | AP97: 0 | AQ97: 13.2 | AR97: 9.6800 | AS97: 0 | AT97: 4.2 | AU97: 4.5 | AV97: 4.5 | AW97: 4.4 | AX97: 4.3 | BA97: 13.2 | BB97: 9.6800 | BC97: 152 | BD97: 57 | BE97: 58 | BF97: 46 | BG97: 55 | BH97: 55 | BI97: 0 | BJ97: 0 | BK97: 16.7 | BL97: 11.6900 | BM97: 0 | BN97: 5.7 | BO97: 5.8 | BP97: 4.6 | BQ97: 5.5 | BR97: 5.5 | BU97: 16.7 | BV97: 11.6900 | BW97: 71 | BX97: 50 | BY97: 52 | BZ97: 51 | CA97: 51 | CB97: 49 | CC97: 0 | CD97: 0 | CE97: 15 | CF97: 11.6533 | CG97: 0 | CH97: 5.0 | CI97: 5.2 | CJ97: 5.1 | CK97: 5.1 | CL97: 4.9 | CO97: 15.2 | CP97: 11.6533 | CQ97: 53 | CR97: 43.8766 | CS97: 49.8598 | CT97: 0.0 | CU97: 49.8598
A98: 92 | B98: 11 | C98: 60.2690 | D98: 200400952 | E98: Dionne Sijben | F98: ACZ | G98: ACZ | H98: West | K98: 2004 | M98: L | N98: Age II | P98: 66 | Q98: 56 | R98: 59 | S98: 59 | T98: 59 | U98: 0 | V98: 0 | W98: 17.7 | X98: 12.9800 | Y98: 0 | Z98: 6.6 | AA98: 5.6 | AB98: 5.9 | AC98: 5.9 | AD98: 5.9 | AG98: 17.7 | AH98: 12.9800 | AI98: 20 | AJ98: 61 | AK98: 54 | AL98: 58 | AM98: 60 | AN98: 67 | AO98: 0 | AP98: 0 | AQ98: 17.9 | AR98: 13.1267 | AS98: 0 | AT98: 6.1 | AU98: 5.4 | AV98: 5.8 | AW98: 6.0 | AX98: 6.7 | BA98: 17.9 | BB98: 13.1267 | BC98: 11 | BD98: 67 | BE98: 66 | BF98: 65 | BG98: 71 | BH98: 71 | BI98: 0 | BJ98: 0 | BK98: 20.4 | BL98: 14.2800 | BM98: 0 | BN98: 6.7 | BO98: 6.6 | BP98: 6.5 | BQ98: 7.1 | BR98: 7.1 | BU98: 20.4 | BV98: 14.2800 | BW98: 3 | BX98: 57 | BY98: 54 | BZ98: 53 | CA98: 54 | CB98: 57 | CC98: 0 | CD98: 0 | CE98: 17 | CF98: 12.6500 | CG98: 0 | CH98: 5.7 | CI98: 5.4 | CJ98: 5.3 | CK98: 5.4 | CL98: 5.7 | CO98: 16.5 | CP98: 12.6500 | CQ98: 25 | CR98: 53.0367 | CS98: 60.2690 | CT98: 0.0 | CU98: 60.2690
A99: 93 | B99: 125 | C99: 47.9091 | D99: 200501900 | E99: Nikita Weidenaar | F99: De Houtrib | G99: HOU | H99: Oost | K99: 2005 | M99: L | P99: 49 | Q99: 48 | R99: 48 | S99: 48 | T99: 46 | U99: 0 | V99: 0 | W99: 14.4 | X99: 10.5600 | Y99: 0 | Z99: 4.9 | AA99: 4.8 | AB99: 4.8 | AC99: 4.8 | AD99: 4.6 | AG99: 14.4 | AH99: 10.5600 | AI99: 137 | AJ99: 46 | AK99: 49 | AL99: 46 | AM99: 45 | AN99: 46 | AO99: 0 | AP99: 0 | AQ99: 13.8 | AR99: 10.1200 | AS99: 0 | AT99: 4.6 | AU99: 4.9 | AV99: 4.6 | AW99: 4.5 | AX99: 4.6 | BA99: 13.8 | BB99: 10.1200 | BC99: 126 | BD99: 50 | BE99: 57 | BF99: 50 | BG99: 57 | BH99: 52 | BI99: 0 | BJ99: 0 | BK99: 15.9 | BL99: 11.1300 | BM99: 0 | BN99: 5.0 | BO99: 5.7 | BP99: 5.0 | BQ99: 5.7 | BR99: 5.2 | BU99: 15.9 | BV99: 11.1300 | BW99: 98 | BX99: 46 | BY99: 44 | BZ99: 45 | CA99: 46 | CB99: 44 | CC99: 0 | CD99: 0 | CE99: 14 | CF99: 10.3500 | CG99: 0 | CH99: 4.6 | CI99: 4.4 | CJ99: 4.5 | CK99: 4.6 | CL99: 4.4 | CO99: 13.5 | CP99: 10.3500 | CQ99: 131 | CR99: 42.1600 | CS99: 47.9091 | CT99: 0.0 | CU99: 47.9091
A100: 94 | B100: 24 | C100: 57.0341 | D100: 200303794 | E100: Xenna Mackay | F100: Z.P.C.H. | G100: ZPC | H100: MidWest | K100: 2003 | M100: L | P100: 55 | Q100: 50 | R100: 60 | S100: 58 | T100: 58 | U100: 0 | V100: 0 | W100: 17.1 | X100: 12.5400 | Y100: 0 | Z100: 5.5 | AA100: 5.0 | AB100: 6.0 | AC100: 5.8 | AD100: 5.8 | AG100: 17.1 | AH100: 12.5400 | AI100: 38 | AJ100: 57 | AK100: 54 | AL100: 53 | AM100: 51 | AN100: 52 | AO100: 0 | AP100: 0 | AQ100: 15.9 | AR100: 11.6600 | AS100: 0 | AT100: 5.7 | AU100: 5.4 | AV100: 5.3 | AW100: 5.1 | AX100: 5.2 | BA100: 15.9 | BB100: 11.6600 | BC100: 48 | BD100: 59 | BE100: 62 | BF100: 63 | BG100: 59 | BH100: 64 | BI100: 0 | BJ100: 0 | BK100: 18.4 | BL100: 12.8800 | BM100: 0 | BN100: 5.9 | BO100: 6.2 | BP100: 6.3 | BQ100: 5.9 | BR100: 6.4 | BU100: 18.4 | BV100: 12.8800 | BW100: 18 | BX100: 58 | BY100: 57 | BZ100: 56 | CA100: 58 | CB100: 49 | CC100: 0 | CD100: 0 | CE100: 17 | CF100: 13.1100 | CG100: 0 | CH100: 5.8 | CI100: 5.7 | CJ100: 5.6 | CK100: 5.8 | CL100: 4.9 | CO100: 17.1 | CP100: 13.1100 | CQ100: 16 | CR100: 50.1900 | CS100: 57.0341 | CT100: 0.0 | CU100: 57.0341
A101: 95 | B101: 9 | C101: 61.2386 | D101: 200300438 | E101: Eva Schijf | F101: DAW | G101: DAW | H101: Midwest | K101: 2003 | M101: L | P101: 70 | Q101: 63 | R101: 62 | S101: 65 | T101: 65 | U101: 0 | V101: 0 | W101: 19.3 | X101: 14.1533 | Y101: 0 | Z101: 7.0 | AA101: 6.3 | AB101: 6.2 | AC101: 6.5 | AD101: 6.5 | AG101: 19.3 | AH101: 14.1533 | AI101: 3 | AJ101: 58 | AK101: 56 | AL101: 60 | AM101: 58 | AN101: 58 | AO101: 0 | AP101: 0 | AQ101: 17.4 | AR101: 12.7600 | AS101: 0 | AT101: 5.8 | AU101: 5.6 | AV101: 6.0 | AW101: 5.8 | AX101: 5.8 | BA101: 17.4 | BB101: 12.7600 | BC101: 16 | BD101: 65 | BE101: 65 | BF101: 64 | BG101: 69 | BH101: 67 | BI101: 0 | BJ101: 0 | BK101: 19.7 | BL101: 13.7900 | BM101: 0 | BN101: 6.5 | BO101: 6.5 | BP101: 6.4 | BQ101: 6.9 | BR101: 6.7 | BU101: 19.7 | BV101: 13.7900 | BW101: 4 | BX101: 55 | BY101: 58 | BZ101: 52 | CA101: 59 | CB101: 59 | CC101: 0 | CD101: 0 | CE101: 17 | CF101: 13.1867 | CG101: 0 | CH101: 5.5 | CI101: 5.8 | CJ101: 5.2 | CK101: 5.9 | CL101: 5.9 | CO101: 17.2 | CP101: 13.1867 | CQ101: 12 | CR101: 53.8900 | CS101: 61.2386 | CT101: 0.0 | CU101: 61.2386
A102: 96 | B102: 78 | C102: 51.3372 | D102: 200503986 | E102: Aya Achachi | F102: De Dolfijn | G102: DOL | H102: Midwest | K102: 2005 | M102: L | P102: 50 | Q102: 46 | R102: 52 | S102: 58 | T102: 56 | U102: 0 | V102: 0 | W102: 15.8 | X102: 11.5867 | Y102: 0 | Z102: 5.0 | AA102: 4.6 | AB102: 5.2 | AC102: 5.8 | AD102: 5.6 | AG102: 15.8 | AH102: 11.5867 | AI102: 85 | AJ102: 49 | AK102: 49 | AL102: 48 | AM102: 49 | AN102: 48 | AO102: 0 | AP102: 0 | AQ102: 14.6 | AR102: 10.7067 | AS102: 0 | AT102: 4.9 | AU102: 4.9 | AV102: 4.8 | AW102: 4.9 | AX102: 4.8 | BA102: 14.6 | BB102: 10.7067 | BC102: 98 | BD102: 57 | BE102: 52 | BF102: 58 | BG102: 54 | BH102: 56 | BI102: 0 | BJ102: 0 | BK102: 16.7 | BL102: 11.6900 | BM102: 0 | BN102: 5.7 | BO102: 5.2 | BP102: 5.8 | BQ102: 5.4 | BR102: 5.6 | BU102: 16.7 | BV102: 11.6900 | BW102: 71 | BX102: 49 | BY102: 48 | BZ102: 49 | CA102: 47 | CB102: 50 | CC102: 0 | CD102: 0 | CE102: 15 | CF102: 11.1933 | CG102: 0 | CH102: 4.9 | CI102: 4.8 | CJ102: 4.9 | CK102: 4.7 | CL102: 5.0 | CO102: 14.6 | CP102: 11.1933 | CQ102: 83 | CR102: 45.1767 | CS102: 51.3372 | CT102: 0.0 | CU102: 51.3372
A103: 97 | B103: 172 | C103: 43.6742 | D103: 200500642 | E103: Gwen Kuijpers | F103: VZC Veenendaal | G103: VZV | H103: Midwest | J103: X | K103: 2005 | P103: 48 | Q103: 45 | R103: 48 | S103: 52 | T103: 50 | U103: 0 | V103: 0 | W103: 14.6 | X103: 10.7067 | Y103: 0 | Z103: 4.8 | AA103: 4.5 | AB103: 4.8 | AC103: 5.2 | AD103: 5.0 | AG103: 14.6 | AH103: 10.7067 | AI103: 125 | AJ103: 42 | AK103: 45 | AL103: 45 | AM103: 40 | AN103: 40 | AO103: 0 | AP103: 0 | AQ103: 12.7 | AR103: 9.3133 | AS103: 0 | AT103: 4.2 | AU103: 4.5 | AV103: 4.5 | AW103: 4.0 | AX103: 4.0 | BA103: 12.7 | BB103: 9.3133 | BC103: 169 | BD103: 45 | BE103: 45 | BF103: 44 | BG103: 46 | BH103: 47 | BI103: 0 | BJ103: 0 | BK103: 13.6 | BL103: 9.5200 | BM103: 0 | BN103: 4.5 | BO103: 4.5 | BP103: 4.4 | BQ103: 4.6 | BR103: 4.7 | BU103: 13.6 | BV103: 9.5200 | BW103: 175 | BX103: 40 | BY103: 38 | BZ103: 38 | CA103: 38 | CB103: 42 | CC103: 0 | CD103: 0 | CE103: 12 | CF103: 8.8933 | CG103: 0 | CH103: 4.0 | CI103: 3.8 | CJ103: 3.8 | CK103: 3.8 | CL103: 4.2 | CO103: 11.6 | CP103: 8.8933 | CQ103: 190 | CR103: 38.4333 | CS103: 43.6742 | CT103: 0.0 | CU103: 43.6742
A104: 98 | B104: 131 | C104: 47.6325 | D104: 200304178 | E104: Birgit Gosselink | F104: Widex Gzc Donk | G104: DONK | H104: West | K104: 2003 | P104: 38 | Q104: 51 | R104: 51 | S104: 47 | T104: 50 | U104: 0 | V104: 0 | W104: 14.8 | X104: 10.8533 | Y104: 0 | Z104: 3.8 | AA104: 5.1 | AB104: 5.1 | AC104: 4.7 | AD104: 5.0 | AG104: 14.8 | AH104: 10.8533 | AI104: 117 | AJ104: 45 | AK104: 48 | AL104: 48 | AM104: 46 | AN104: 45 | AO104: 0 | AP104: 0 | AQ104: 13.9 | AR104: 10.1933 | AS104: 0 | AT104: 4.5 | AU104: 4.8 | AV104: 4.8 | AW104: 4.6 | AX104: 4.5 | BA104: 13.9 | BB104: 10.1933 | BC104: 119 | BD104: 48 | BE104: 46 | BF104: 55 | BG104: 49 | BH104: 50 | BI104: 0 | BJ104: 0 | BK104: 14.7 | BL104: 10.2900 | BM104: 0 | BN104: 4.8 | BO104: 4.6 | BP104: 5.5 | BQ104: 4.9 | BR104: 5.0 | BU104: 14.7 | BV104: 10.2900 | BW104: 139 | BX104: 50 | BY104: 45 | BZ104: 47 | CA104: 46 | CB104: 45 | CC104: 0 | CD104: 0 | CE104: 14 | CF104: 10.5800 | CG104: 0 | CH104: 5.0 | CI104: 4.5 | CJ104: 4.7 | CK104: 4.6 | CL104: 4.5 | CO104: 13.8 | CP104: 10.5800 | CQ104: 117 | CR104: 41.9166 | CS104: 47.6325 | CT104: 0.0 | CU104: 47.6325
A105: 99 | B105: 58 | C105: 53.0341 | D105: 200303742 | E105: Nadja van Kralingen | F105: WVZ | G105: WVZ | H105: West | K105: 2003 | M105: L | P105: 51 | Q105: 47 | R105: 53 | S105: 49 | T105: 52 | U105: 0 | V105: 0 | W105: 15.2 | X105: 11.1467 | Y105: 0 | Z105: 5.1 | AA105: 4.7 | AB105: 5.3 | AC105: 4.9 | AD105: 5.2 | AG105: 15.2 | AH105: 11.1467 | AI105: 105 | AJ105: 57 | AK105: 51 | AL105: 55 | AM105: 57 | AN105: 61 | AO105: 0 | AP105: 0 | AQ105: 16.9 | AR105: 12.3933 | AS105: 0 | AT105: 5.7 | AU105: 5.1 | AV105: 5.5 | AW105: 5.7 | AX105: 6.1 | BA105: 16.9 | BB105: 12.3933 | BC105: 23 | BD105: 49 | BE105: 50 | BF105: 50 | BG105: 53 | BH105: 54 | BI105: 0 | BJ105: 0 | BK105: 15.3 | BL105: 10.7100 | BM105: 0 | BN105: 4.9 | BO105: 5.0 | BP105: 5.0 | BQ105: 5.3 | BR105: 5.4 | BU105: 15.3 | BV105: 10.7100 | BW105: 114 | BX105: 55 | BY105: 55 | BZ105: 51 | CA105: 54 | CB105: 53 | CC105: 0 | CD105: 0 | CE105: 16 | CF105: 12.4200 | CG105: 0 | CH105: 5.5 | CI105: 5.5 | CJ105: 5.1 | CK105: 5.4 | CL105: 5.3 | CO105: 16.2 | CP105: 12.4200 | CQ105: 30 | CR105: 46.6700 | CS105: 53.0341 | CT105: 0.0 | CU105: 53.0341
A106: 100 | B106: 92 | C106: 50.3333 | D106: 200404010 | E106: Romy Koers | F106: WVZ | G106: WVZ | H106: West | K106: 2004 | M106: L | P106: 39 | Q106: 38 | R106: 46 | S106: 46 | T106: 40 | U106: 0 | V106: 0 | W106: 12.5 | X106: 9.1667 | Y106: 0 | Z106: 3.9 | AA106: 3.8 | AB106: 4.6 | AC106: 4.6 | AD106: 4.0 | AG106: 12.5 | AH106: 9.1667 | AI106: 189 | AJ106: 55 | AK106: 50 | AL106: 50 | AM106: 54 | AN106: 53 | AO106: 0 | AP106: 0 | AQ106: 15.7 | AR106: 11.5133 | AS106: 0 | AT106: 5.5 | AU106: 5.0 | AV106: 5.0 | AW106: 5.4 | AX106: 5.3 | BA106: 15.7 | BB106: 11.5133 | BC106: 55 | BD106: 48 | BE106: 52 | BF106: 59 | BG106: 57 | BH106: 52 | BI106: 0 | BJ106: 0 | BK106: 16.1 | BL106: 11.2700 | BM106: 0 | BN106: 4.8 | BO106: 5.2 | BP106: 5.9 | BQ106: 5.7 | BR106: 5.2 | BU106: 16.1 | BV106: 11.2700 | BW106: 92 | BX106: 57 | BY106: 56 | BZ106: 53 | CA106: 52 | CB106: 51 | CC106: 0 | CD106: 0 | CE106: 16 | CF106: 12.3433 | CG106: 0 | CH106: 5.7 | CI106: 5.6 | CJ106: 5.3 | CK106: 5.2 | CL106: 5.1 | CO106: 16.1 | CP106: 12.3433 | CQ106: 32 | CR106: 44.2933 | CS106: 50.3333 | CT106: 0.0 | CU106: 50.3333
A107: 101 | B107: 91 | C107: 50.3370 | D107: 200303732 | E107: Jente Doornhein | F107: BZ&PC | G107: BZP | H107: West | K107: 2003 | M107: L | P107: 48 | Q107: 49 | R107: 50 | S107: 53 | T107: 45 | U107: 0 | V107: 0 | W107: 14.7 | X107: 10.7800 | Y107: 0 | Z107: 4.8 | AA107: 4.9 | AB107: 5.0 | AC107: 5.3 | AD107: 4.5 | AG107: 14.7 | AH107: 10.7800 | AI107: 120 | AJ107: 44 | AK107: 44 | AL107: 44 | AM107: 42 | AN107: 41 | AO107: 0 | AP107: 0 | AQ107: 13.0 | AR107: 9.5333 | AS107: 0 | AT107: 4.4 | AU107: 4.4 | AV107: 4.4 | AW107: 4.2 | AX107: 4.1 | BA107: 13.0 | BB107: 9.5333 | BC107: 159 | BD107: 50 | BE107: 56 | BF107: 57 | BG107: 54 | BH107: 53 | BI107: 0 | BJ107: 0 | BK107: 16.3 | BL107: 11.4100 | BM107: 0 | BN107: 5.0 | BO107: 5.6 | BP107: 5.7 | BQ107: 5.4 | BR107: 5.3 | BU107: 16.3 | BV107: 11.4100 | BW107: 86 | BX107: 58 | BY107: 55 | BZ107: 51 | CA107: 54 | CB107: 55 | CC107: 0 | CD107: 0 | CE107: 16 | CF107: 12.5733 | CG107: 0 | CH107: 5.8 | CI107: 5.5 | CJ107: 5.1 | CK107: 5.4 | CL107: 5.5 | CO107: 16.4 | CP107: 12.5733 | CQ107: 27 | CR107: 44.2966 | CS107: 50.3370 | CT107: 0.0 | CU107: 50.3370
A108: 102 | B108: 116 | C108: 48.8522 | D108: 200403950 | E108: Marit de Locht | F108: Cadans | G108: CAD | H108: oost | K108: 2004 | P108: 47 | Q108: 50 | R108: 54 | S108: 56 | T108: 53 | U108: 0 | V108: 0 | W108: 15.7 | X108: 11.5133 | Y108: 0 | Z108: 4.7 | AA108: 5.0 | AB108: 5.4 | AC108: 5.6 | AD108: 5.3 | AG108: 15.7 | AH108: 11.5133 | AI108: 88 | AJ108: 47 | AK108: 41 | AL108: 46 | AM108: 45 | AN108: 45 | AO108: 0 | AP108: 0 | AQ108: 13.6 | AR108: 9.9733 | AS108: 0 | AT108: 4.7 | AU108: 4.1 | AV108: 4.6 | AW108: 4.5 | AX108: 4.5 | BA108: 13.6 | BB108: 9.9733 | BC108: 134 | BD108: 46 | BE108: 51 | BF108: 49 | BG108: 49 | BH108: 44 | BI108: 0 | BJ108: 0 | BK108: 14.4 | BL108: 10.0800 | BM108: 0 | BN108: 4.6 | BO108: 5.1 | BP108: 4.9 | BQ108: 4.9 | BR108: 4.4 | BU108: 14.4 | BV108: 10.0800 | BW108: 149 | BX108: 43 | BY108: 54 | BZ108: 49 | CA108: 47 | CB108: 53 | CC108: 0 | CD108: 0 | CE108: 15 | CF108: 11.4233 | CG108: 0 | CH108: 4.3 | CI108: 5.4 | CJ108: 4.9 | CK108: 4.7 | CL108: 5.3 | CO108: 14.9 | CP108: 11.4233 | CQ108: 65 | CR108: 42.9899 | CS108: 48.8522 | CT108: 0.0 | CU108: 48.8522
A109: 103 | B109: BM | C109: 0.0000 | D109: 199806484 | E109: Jessica Backes | F109: ZVBrunssum | G109: ZVB | H109: Zuid | I109: BM | J109: X | K109: 1998 | M109: BM | O109: x | P109: 0 | Q109: 0 | R109: 0 | S109: 0 | T109: 0 | U109: 0 | V109: 0 | W109: 0.0 | X109: 0.0000 | Y109: 0 | Z109: 0.0 | AA109: 0.0 | AB109: 0.0 | AC109: 0.0 | AD109: 0.0 | AG109: 0.0 | AH109: 0.0000 | AJ109: 0 | AK109: 0 | AL109: 0 | AM109: 0 | AN109: 0 | AO109: 0 | AP109: 0 | AQ109: 0.0 | AR109: 0.0000 | AS109: 0 | AT109: 0.0 | AU109: 0.0 | AV109: 0.0 | AW109: 0.0 | AX109: 0.0 | BA109: 0.0 | BB109: 0.0000 | BD109: 0 | BE109: 0 | BF109: 0 | BG109: 0 | BH109: 0 | BI109: 0 | BJ109: 0 | BK109: 0.0 | BL109: 0.0000 | BM109: 0 | BN109: 0.0 | BO109: 0.0 | BP109: 0.0 | BQ109: 0.0 | BR109: 0.0 | BU109: 0.0 | BV109: 0.0000 | BX109: 0 | BY109: 0 | BZ109: 0 | CA109: 0 | CB109: 0 | CC109: 0 | CD109: 0 | CE109: 0 | CF109: 0.0000 | CG109: 0 | CH109: 0.0 | CI109: 0.0 | CJ109: 0.0 | CK109: 0.0 | CL109: 0.0 | CO109: 0.0 | CP109: 0.0000 | CR109: 0.0000 | CS109: 0.0000 | CT109: 0.0 | CU109: 0
A110: 104 | B110: 138 | C110: 47.2235 | D110: 200305064 | E110: Tanja Vorotilova | F110: PSV Synchro Team Eindhoven | G110: PSV | H110: Zuid | K110: 2003 | P110: 51 | Q110: 50 | R110: 50 | S110: 49 | T110: 52 | U110: 0 | V110: 0 | W110: 15.1 | X110: 11.0733 | Y110: 0 | Z110: 5.1 | AA110: 5.0 | AB110: 5.0 | AC110: 4.9 | AD110: 5.2 | AG110: 15.1 | AH110: 11.0733 | AI110: 108 | AJ110: 50 | AK110: 46 | AL110: 48 | AM110: 44 | AN110: 49 | AO110: 0 | AP110: 0 | AQ110: 14.3 | AR110: 10.4867 | AS110: 0 | AT110: 5.0 | AU110: 4.6 | AV110: 4.8 | AW110: 4.4 | AX110: 4.9 | BA110: 14.3 | BB110: 10.4867 | BC110: 108 | BD110: 46 | BE110: 48 | BF110: 46 | BG110: 45 | BH110: 50 | BI110: 0 | BJ110: 0 | BK110: 14.0 | BL110: 9.8000 | BM110: 0 | BN110: 4.6 | BO110: 4.8 | BP110: 4.6 | BQ110: 4.5 | BR110: 5.0 | BU110: 14.0 | BV110: 9.8000 | BW110: 166 | BX110: 45 | BY110: 44 | BZ110: 45 | CA110: 44 | CB110: 43 | CC110: 0 | CD110: 0 | CE110: 13 | CF110: 10.1967 | CG110: 0 | CH110: 4.5 | CI110: 4.4 | CJ110: 4.5 | CK110: 4.4 | CL110: 4.3 | CO110: 13.3 | CP110: 10.1967 | CQ110: 136 | CR110: 41.5567 | CS110: 47.2235 | CT110: 0.0 | CU110: 47.2235
A111: 105 | B111: 89 | C111: 50.5076 | D111: 200401300 | E111: Senna Zwezerijnen | F111: Aquarijn | G111: AQU | H111: MidWest | K111: 2004 | M111: L | P111: 48 | Q111: 49 | R111: 50 | S111: 58 | T111: 56 | U111: 0 | V111: 0 | W111: 15.5 | X111: 11.3667 | Y111: 0 | Z111: 4.8 | AA111: 4.9 | AB111: 5.0 | AC111: 5.8 | AD111: 5.6 | AG111: 15.5 | AH111: 11.3667 | AI111: 100 | AJ111: 43 | AK111: 42 | AL111: 43 | AM111: 46 | AN111: 44 | AO111: 0 | AP111: 0 | AQ111: 13.0 | AR111: 9.5333 | AS111: 0 | AT111: 4.3 | AU111: 4.2 | AV111: 4.3 | AW111: 4.6 | AX111: 4.4 | BA111: 13.0 | BB111: 9.5333 | BC111: 159 | BD111: 49 | BE111: 54 | BF111: 56 | BG111: 63 | BH111: 61 | BI111: 0 | BJ111: 0 | BK111: 17.1 | BL111: 11.9700 | BM111: 0 | BN111: 4.9 | BO111: 5.4 | BP111: 5.6 | BQ111: 6.3 | BR111: 6.1 | BU111: 17.1 | BV111: 11.9700 | BW111: 57 | BX111: 49 | BY111: 50 | BZ111: 50 | CA111: 51 | CB111: 51 | CC111: 0 | CD111: 0 | CE111: 15 | CF111: 11.5767 | CG111: 0 | CH111: 4.9 | CI111: 5.0 | CJ111: 5.0 | CK111: 5.1 | CL111: 5.1 | CO111: 15.1 | CP111: 11.5767 | CQ111: 58 | CR111: 44.4467 | CS111: 50.5076 | CT111: 0.0 | CU111: 50.5076
A112: 106 | B112: BM | C112: 41.5114 | D112: 200200000 | E112: Julia Postma | F112: DZ&PC | G112: DZP | H112: Noord | I112: BM | J112: X | K112: 2002 | M112: BM | P112: 43 | Q112: 40 | R112: 42 | S112: 53 | T112: 39 | U112: 0 | V112: 0 | W112: 12.5 | X112: 9.1667 | Y112: 0 | Z112: 4.3 | AA112: 4.0 | AB112: 4.2 | AC112: 5.3 | AD112: 3.9 | AG112: 12.5 | AH112: 9.1667 | AI112: 189 | AJ112: 41 | AK112: 38 | AL112: 42 | AM112: 38 | AN112: 42 | AO112: 0 | AP112: 0 | AQ112: 12.1 | AR112: 8.8733 | AS112: 0 | AT112: 4.1 | AU112: 3.8 | AV112: 4.2 | AW112: 3.8 | AX112: 4.2 | BA112: 12.1 | BB112: 8.8733 | BC112: 181 | BD112: 45 | BE112: 45 | BF112: 46 | BG112: 43 | BH112: 46 | BI112: 0 | BJ112: 0 | BK112: 13.6 | BL112: 9.5200 | BM112: 0 | BN112: 4.5 | BO112: 4.5 | BP112: 4.6 | BQ112: 4.3 | BR112: 4.6 | BU112: 13.6 | BV112: 9.5200 | BW112: 175 | BX112: 43 | BY112: 37 | BZ112: 37 | CA112: 40 | CB112: 40 | CC112: 0 | CD112: 0 | CE112: 12 | CF112: 8.9700 | CG112: 0 | CH112: 4.3 | CI112: 3.7 | CJ112: 3.7 | CK112: 4.0 | CL112: 4.0 | CO112: 11.7 | CP112: 8.9700 | CQ112: 187 | CR112: 36.5300 | CS112: 41.5114 | CT112: 0.0 | CU112: 0
A113: 107 | B113: 52 | C113: 53.8219 | D113: 200403554 | E113: Tara Vyent | F113: ACZ | G113: ACZ | H113: West | K113: 2004 | M113: L | P113: 53 | Q113: 51 | R113: 57 | S113: 56 | T113: 54 | U113: 0 | V113: 0 | W113: 16.3 | X113: 11.9533 | Y113: 0 | Z113: 5.3 | AA113: 5.1 | AB113: 5.7 | AC113: 5.6 | AD113: 5.4 | AG113: 16.3 | AH113: 11.9533 | AI113: 62 | AJ113: 56 | AK113: 50 | AL113: 55 | AM113: 60 | AN113: 58 | AO113: 0 | AP113: 0 | AQ113: 16.9 | AR113: 12.3933 | AS113: 0 | AT113: 5.6 | AU113: 5.0 | AV113: 5.5 | AW113: 6.0 | AX113: 5.8 | BA113: 16.9 | BB113: 12.3933 | BC113: 23 | BD113: 54 | BE113: 58 | BF113: 58 | BG113: 52 | BH113: 60 | BI113: 0 | BJ113: 0 | BK113: 17.0 | BL113: 11.9000 | BM113: 0 | BN113: 5.4 | BO113: 5.8 | BP113: 5.8 | BQ113: 5.2 | BR113: 6.0 | BU113: 17.0 | BV113: 11.9000 | BW113: 63 | BX113: 48 | BY113: 49 | BZ113: 48 | CA113: 48 | CB113: 52 | CC113: 0 | CD113: 0 | CE113: 15 | CF113: 11.1167 | CG113: 0 | CH113: 4.8 | CI113: 4.9 | CJ113: 4.8 | CK113: 4.8 | CL113: 5.2 | CO113: 14.5 | CP113: 11.1167 | CQ113: 87 | CR113: 47.3633 | CS113: 53.8219 | CT113: 0.0 | CU113: 53.8219
A114: 108 | B114: 156 | C114: 45.0872 | D114: 200502536 | E114: Kyra Kemper | F114: Hera'11 | G114: HERA | H114: Oost | K114: 2005 | P114: 47 | Q114: 49 | R114: 45 | S114: 45 | T114: 48 | U114: 0 | V114: 0 | W114: 14.0 | X114: 10.2667 | Y114: 0 | Z114: 4.7 | AA114: 4.9 | AB114: 4.5 | AC114: 4.5 | AD114: 4.8 | AG114: 14.0 | AH114: 10.2667 | AI114: 157 | AJ114: 44 | AK114: 47 | AL114: 36 | AM114: 43 | AN114: 38 | AO114: 0 | AP114: 0 | AQ114: 12.5 | AR114: 9.1667 | AS114: 0 | AT114: 4.4 | AU114: 4.7 | AV114: 3.6 | AW114: 4.3 | AX114: 3.8 | BA114: 12.5 | BB114: 9.1667 | BC114: 174 | BD114: 45 | BE114: 50 | BF114: 50 | BG114: 50 | BH114: 49 | BI114: 0 | BJ114: 0 | BK114: 14.9 | BL114: 10.4300 | BM114: 0 | BN114: 4.5 | BO114: 5.0 | BP114: 5.0 | BQ114: 5.0 | BR114: 4.9 | BU114: 14.9 | BV114: 10.4300 | BW114: 127 | BX114: 40 | BY114: 47 | BZ114: 42 | CA114: 43 | CB114: 43 | CC114: 0 | CD114: 0 | CE114: 13 | CF114: 9.8133 | CG114: 0 | CH114: 4.0 | CI114: 4.7 | CJ114: 4.2 | CK114: 4.3 | CL114: 4.3 | CO114: 12.8 | CP114: 9.8133 | CQ114: 156 | CR114: 39.6767 | CS114: 45.0872 | CT114: 0.0 | CU114: 45.0872
A115: 109 | B115: 133 | C115: 47.5833 | D115: 200304512 | E115: Lina El Baoudi | F115: Z.P.C.H. | G115: ZPC | H115: MidWest | K115: 2003 | P115: 48 | Q115: 46 | R115: 51 | S115: 47 | T115: 50 | U115: 0 | V115: 0 | W115: 14.5 | X115: 10.6333 | Y115: 0 | Z115: 4.8 | AA115: 4.6 | AB115: 5.1 | AC115: 4.7 | AD115: 5.0 | AG115: 14.5 | AH115: 10.6333 | AI115: 130 | AJ115: 45 | AK115: 50 | AL115: 47 | AM115: 48 | AN115: 49 | AO115: 0 | AP115: 0 | AQ115: 14.4 | AR115: 10.5600 | AS115: 0 | AT115: 4.5 | AU115: 5.0 | AV115: 4.7 | AW115: 4.8 | AX115: 4.9 | BA115: 14.4 | BB115: 10.5600 | BC115: 104 | BD115: 44 | BE115: 48 | BF115: 47 | BG115: 46 | BH115: 51 | BI115: 0 | BJ115: 0 | BK115: 14.1 | BL115: 9.8700 | BM115: 0 | BN115: 4.4 | BO115: 4.8 | BP115: 4.7 | BQ115: 4.6 | BR115: 5.1 | BU115: 14.1 | BV115: 9.8700 | BW115: 160 | BX115: 47 | BY115: 46 | BZ115: 48 | CA115: 45 | CB115: 48 | CC115: 0 | CD115: 0 | CE115: 14 | CF115: 10.8100 | CG115: 0 | CH115: 4.7 | CI115: 4.6 | CJ115: 4.8 | CK115: 4.5 | CL115: 4.8 | CO115: 14.1 | CP115: 10.8100 | CQ115: 107 | CR115: 41.8733 | CS115: 47.5833 | CT115: 0.0 | CU115: 47.5833
A116: 110 | B116: 114 | C116: 48.9091 | D116: 200502854 | E116: Melida Keizer | F116: De Watertrappers | G116: DWT | H116: Mid West | K116: 2005 | M116: L | P116: 50 | Q116: 49 | R116: 47 | S116: 46 | T116: 46 | U116: 0 | V116: 0 | W116: 14.2 | X116: 10.4133 | Y116: 0 | Z116: 5.0 | AA116: 4.9 | AB116: 4.7 | AC116: 4.6 | AD116: 4.6 | AG116: 14.2 | AH116: 10.4133 | AI116: 148 | AJ116: 53 | AK116: 51 | AL116: 51 | AM116: 49 | AN116: 56 | AO116: 0 | AP116: 0 | AQ116: 15.5 | AR116: 11.3667 | AS116: 0 | AT116: 5.3 | AU116: 5.1 | AV116: 5.1 | AW116: 4.9 | AX116: 5.6 | BA116: 15.5 | BB116: 11.3667 | BC116: 63 | BD116: 46 | BE116: 50 | BF116: 47 | BG116: 49 | BH116: 52 | BI116: 0 | BJ116: 0 | BK116: 14.6 | BL116: 10.2200 | BM116: 0 | BN116: 4.6 | BO116: 5.0 | BP116: 4.7 | BQ116: 4.9 | BR116: 5.2 | BU116: 14.6 | BV116: 10.2200 | BW116: 142 | BX116: 49 | BY116: 48 | BZ116: 47 | CA116: 50 | CB116: 46 | CC116: 0 | CD116: 0 | CE116: 14 | CF116: 11.0400 | CG116: 0 | CH116: 4.9 | CI116: 4.8 | CJ116: 4.7 | CK116: 5.0 | CL116: 4.6 | CO116: 14.4 | CP116: 11.0400 | CQ116: 92 | CR116: 43.0400 | CS116: 48.9091 | CT116: 0.0 | CU116: 48.9091
A117: 111 | B117: 98 | C117: 50.0644 | D117: 200403218 | E117: Helena Brons | F117: DAW | G117: DAW | H117: Midwest | K117: 2004 | M117: L | P117: 54 | Q117: 51 | R117: 57 | S117: 54 | T117: 58 | U117: 0 | V117: 0 | W117: 16.5 | X117: 12.1000 | Y117: 0 | Z117: 5.4 | AA117: 5.1 | AB117: 5.7 | AC117: 5.4 | AD117: 5.8 | AG117: 16.5 | AH117: 12.1000 | AI117: 57 | AJ117: 47 | AK117: 47 | AL117: 47 | AM117: 47 | AN117: 52 | AO117: 0 | AP117: 0 | AQ117: 14.1 | AR117: 10.3400 | AS117: 0 | AT117: 4.7 | AU117: 4.7 | AV117: 4.7 | AW117: 4.7 | AX117: 5.2 | BA117: 14.1 | BB117: 10.3400 | BC117: 114 | BD117: 49 | BE117: 52 | BF117: 49 | BG117: 46 | BH117: 55 | BI117: 0 | BJ117: 0 | BK117: 15.0 | BL117: 10.5000 | BM117: 0 | BN117: 4.9 | BO117: 5.2 | BP117: 4.9 | BQ117: 4.6 | BR117: 5.5 | BU117: 15.0 | BV117: 10.5000 | BW117: 122 | BX117: 45 | BY117: 49 | BZ117: 48 | CA117: 48 | CB117: 49 | CC117: 0 | CD117: 0 | CE117: 15 | CF117: 11.1167 | CG117: 0 | CH117: 4.5 | CI117: 4.9 | CJ117: 4.8 | CK117: 4.8 | CL117: 4.9 | CO117: 14.5 | CP117: 11.1167 | CQ117: 87 | CR117: 44.0567 | CS117: 50.0644 | CT117: 0.0 | CU117: 50.0644
A118: 112 | B118: 94 | C118: 50.2311 | D118: 200405558 | E118: Nisrine Aghrib Miou | F118: De Dolfijn | G118: DOL | H118: Midwest | K118: 2004 | M118: L | P118: 51 | Q118: 48 | R118: 51 | S118: 48 | T118: 50 | U118: 0 | V118: 0 | W118: 14.9 | X118: 10.9267 | Y118: 0 | Z118: 5.1 | AA118: 4.8 | AB118: 5.1 | AC118: 4.8 | AD118: 5.0 | AG118: 14.9 | AH118: 10.9267 | AI118: 112 | AJ118: 48 | AK118: 49 | AL118: 50 | AM118: 49 | AN118: 46 | AO118: 0 | AP118: 0 | AQ118: 14.6 | AR118: 10.7067 | AS118: 0 | AT118: 4.8 | AU118: 4.9 | AV118: 5.0 | AW118: 4.9 | AX118: 4.6 | BA118: 14.6 | BB118: 10.7067 | BC118: 98 | BD118: 51 | BE118: 56 | BF118: 60 | BG118: 56 | BH118: 56 | BI118: 0 | BJ118: 0 | BK118: 16.8 | BL118: 11.7600 | BM118: 0 | BN118: 5.1 | BO118: 5.6 | BP118: 6.0 | BQ118: 5.6 | BR118: 5.6 | BU118: 16.8 | BV118: 11.7600 | BW118: 68 | BX118: 42 | BY118: 51 | BZ118: 49 | CA118: 46 | CB118: 46 | CC118: 0 | CD118: 0 | CE118: 14 | CF118: 10.8100 | CG118: 0 | CH118: 4.2 | CI118: 5.1 | CJ118: 4.9 | CK118: 4.6 | CL118: 4.6 | CO118: 14.1 | CP118: 10.8100 | CQ118: 107 | CR118: 44.2034 | CS118: 50.2311 | CT118: 0.0 | CU118: 50.2311
A119: 113 | B119: 159 | C119: 44.9280 | D119: 200305402 | E119: Kim v Hoogevest | F119: ZV de Zaan | G119: zaa | H119: MidWest | J119: X | K119: 2003 | P119: 44 | Q119: 45 | R119: 45 | S119: 51 | T119: 49 | U119: 0 | V119: 0 | W119: 13.9 | X119: 10.1933 | Y119: 0 | Z119: 4.4 | AA119: 4.5 | AB119: 4.5 | AC119: 5.1 | AD119: 4.9 | AG119: 13.9 | AH119: 10.1933 | AI119: 162 | AJ119: 47 | AK119: 47 | AL119: 49 | AM119: 48 | AN119: 45 | AO119: 0 | AP119: 0 | AQ119: 14.2 | AR119: 10.4133 | AS119: 0 | AT119: 4.7 | AU119: 4.7 | AV119: 4.9 | AW119: 4.8 | AX119: 4.5 | BA119: 14.2 | BB119: 10.4133 | BC119: 111 | BD119: 45 | BE119: 47 | BF119: 47 | BG119: 42 | BH119: 48 | BI119: 0 | BJ119: 0 | BK119: 13.9 | BL119: 9.7300 | BM119: 0 | BN119: 4.5 | BO119: 4.7 | BP119: 4.7 | BQ119: 4.2 | BR119: 4.8 | BU119: 13.9 | BV119: 9.7300 | BW119: 169 | BX119: 39 | BY119: 40 | BZ119: 44 | CA119: 41 | CB119: 39 | CC119: 0 | CD119: 0 | CE119: 12 | CF119: 9.2000 | CG119: 0 | CH119: 3.9 | CI119: 4.0 | CJ119: 4.4 | CK119: 4.1 | CL119: 3.9 | CO119: 12.0 | CP119: 9.2000 | CQ119: 184 | CR119: 39.5366 | CS119: 44.9280 | CT119: 0.0 | CU119: 44.9280
A120: 114 | B120: 193 | C120: 0.0000 | D120: 200405184 | E120: Karolina Breedveld | F120: Widex Gzc Donk | G120: DONK | H120: West | J120: X | K120: 2004 | O120: x | P120: 0 | Q120: 0 | R120: 0 | S120: 0 | T120: 0 | U120: 0 | V120: 0 | W120: 0.0 | X120: 0.0000 | Y120: 0 | Z120: 0.0 | AA120: 0.0 | AB120: 0.0 | AC120: 0.0 | AD120: 0.0 | AG120: 0.0 | AH120: 0.0000 | AJ120: 0 | AK120: 0 | AL120: 0 | AM120: 0 | AN120: 0 | AO120: 0 | AP120: 0 | AQ120: 0.0 | AR120: 0.0000 | AS120: 0 | AT120: 0.0 | AU120: 0.0 | AV120: 0.0 | AW120: 0.0 | AX120: 0.0 | BA120: 0.0 | BB120: 0.0000 | BD120: 0 | BE120: 0 | BF120: 0 | BG120: 0 | BH120: 0 | BI120: 0 | BJ120: 0 | BK120: 0.0 | BL120: 0.0000 | BM120: 0 | BN120: 0.0 | BO120: 0.0 | BP120: 0.0 | BQ120: 0.0 | BR120: 0.0 | BU120: 0.0 | BV120: 0.0000 | BX120: 0 | BY120: 0 | BZ120: 0 | CA120: 0 | CB120: 0 | CC120: 0 | CD120: 0 | CE120: 0 | CF120: 0.0000 | CG120: 0 | CH120: 0.0 | CI120: 0.0 | CJ120: 0.0 | CK120: 0.0 | CL120: 0.0 | CO120: 0.0 | CP120: 0.0000 | CR120: 0.0000 | CS120: 0.0000 | CT120: 0.0 | CU120: 0
A121: 115 | B121: 10 | C121: 60.7008 | D121: 200402892 | E121: Floor Speckens | F121: WVZ | G121: WVZ | H121: West | K121: 2004 | M121: L | P121: 59 | Q121: 60 | R121: 65 | S121: 64 | T121: 65 | U121: 0 | V121: 0 | W121: 18.9 | X121: 13.8600 | Y121: 0 | Z121: 5.9 | AA121: 6.0 | AB121: 6.5 | AC121: 6.4 | AD121: 6.5 | AG121: 18.9 | AH121: 13.8600 | AI121: 9 | AJ121: 59 | AK121: 65 | AL121: 58 | AM121: 57 | AN121: 60 | AO121: 0 | AP121: 0 | AQ121: 17.7 | AR121: 12.9800 | AS121: 0 | AT121: 5.9 | AU121: 6.5 | AV121: 5.8 | AW121: 5.7 | AX121: 6.0 | BA121: 17.7 | BB121: 12.9800 | BC121: 14 | BD121: 64 | BE121: 63 | BF121: 63 | BG121: 62 | BH121: 62 | BI121: 0 | BJ121: 0 | BK121: 18.8 | BL121: 13.1600 | BM121: 0 | BN121: 6.4 | BO121: 6.3 | BP121: 6.3 | BQ121: 6.2 | BR121: 6.2 | BU121: 18.8 | BV121: 13.1600 | BW121: 14 | BX121: 58 | BY121: 58 | BZ121: 58 | CA121: 59 | CB121: 62 | CC121: 0 | CD121: 0 | CE121: 18 | CF121: 13.4167 | CG121: 0 | CH121: 5.8 | CI121: 5.8 | CJ121: 5.8 | CK121: 5.9 | CL121: 6.2 | CO121: 17.5 | CP121: 13.4167 | CQ121: 10 | CR121: 53.4167 | CS121: 60.7008 | CT121: 0.0 | CU121: 60.7008
A122: 116 | B122: 54 | C122: 53.6023 | D122: 200403516 | E122: Ilse Wienen | F122: Cadans | G122: CAD | H122: oost | K122: 2004 | M122: L | P122: 57 | Q122: 57 | R122: 58 | S122: 57 | T122: 59 | U122: 0 | V122: 0 | W122: 17.2 | X122: 12.6133 | Y122: 0 | Z122: 5.7 | AA122: 5.7 | AB122: 5.8 | AC122: 5.7 | AD122: 5.9 | AG122: 17.2 | AH122: 12.6133 | AI122: 32 | AJ122: 51 | AK122: 50 | AL122: 48 | AM122: 48 | AN122: 49 | AO122: 0 | AP122: 0 | AQ122: 14.7 | AR122: 10.7800 | AS122: 0 | AT122: 5.1 | AU122: 5.0 | AV122: 4.8 | AW122: 4.8 | AX122: 4.9 | BA122: 14.7 | BB122: 10.7800 | BC122: 93 | BD122: 58 | BE122: 61 | BF122: 57 | BG122: 55 | BH122: 56 | BI122: 0 | BJ122: 0 | BK122: 17.1 | BL122: 11.9700 | BM122: 0 | BN122: 5.8 | BO122: 6.1 | BP122: 5.7 | BQ122: 5.5 | BR122: 5.6 | BU122: 17.1 | BV122: 11.9700 | BW122: 57 | BX122: 50 | BY122: 56 | BZ122: 52 | CA122: 50 | CB122: 52 | CC122: 0 | CD122: 0 | CE122: 15 | CF122: 11.8067 | CG122: 0 | CH122: 5.0 | CI122: 5.6 | CJ122: 5.2 | CK122: 5.0 | CL122: 5.2 | CO122: 15.4 | CP122: 11.8067 | CQ122: 47 | CR122: 47.1700 | CS122: 53.6023 | CT122: 0.0 | CU122: 53.6023
A123: 117 | B123: 171 | C123: 43.7955 | D123: 200403802 | E123: Lisa van Laar | F123: Polar Bears | G123: PB | H123: Oost | K123: 2004 | P123: 46 | Q123: 46 | R123: 50 | S123: 46 | T123: 48 | U123: 0 | V123: 0 | W123: 14.0 | X123: 10.2667 | Y123: 0 | Z123: 4.6 | AA123: 4.6 | AB123: 5.0 | AC123: 4.6 | AD123: 4.8 | AG123: 14.0 | AH123: 10.2667 | AI123: 157 | AJ123: 40 | AK123: 35 | AL123: 40 | AM123: 39 | AN123: 38 | AO123: 0 | AP123: 0 | AQ123: 11.7 | AR123: 8.5800 | AS123: 0 | AT123: 4.0 | AU123: 3.5 | AV123: 4.0 | AW123: 3.9 | AX123: 3.8 | BA123: 11.7 | BB123: 8.5800 | BC123: 186 | BD123: 51 | BE123: 59 | BF123: 46 | BG123: 50 | BH123: 50 | BI123: 0 | BJ123: 0 | BK123: 15.1 | BL123: 10.5700 | BM123: 0 | BN123: 5.1 | BO123: 5.9 | BP123: 4.6 | BQ123: 5.0 | BR123: 5.0 | BU123: 15.1 | BV123: 10.5700 | BW123: 119 | BX123: 38 | BY123: 39 | BZ123: 40 | CA123: 41 | CB123: 40 | CC123: 0 | CD123: 0 | CE123: 12 | CF123: 9.1233 | CG123: 0 | CH123: 3.8 | CI123: 3.9 | CJ123: 4.0 | CK123: 4.1 | CL123: 4.0 | CO123: 11.9 | CP123: 9.1233 | CQ123: 186 | CR123: 38.5400 | CS123: 43.7955 | CT123: 0.0 | CU123: 43.7955
A124: 118 | B124: 190 | C124: 39.8977 | D124: 200501692 | E124: Femke Hermans | F124: ZC.Eijsden | G124: eij | H124: Zuid | J124: X | K124: 2005 | P124: 44 | Q124: 47 | R124: 44 | S124: 43 | T124: 45 | U124: 0 | V124: 0 | W124: 13.3 | X124: 9.7533 | Y124: 0 | Z124: 4.4 | AA124: 4.7 | AB124: 4.4 | AC124: 4.3 | AD124: 4.5 | AG124: 13.3 | AH124: 9.7533 | AI124: 176 | AJ124: 38 | AK124: 34 | AL124: 38 | AM124: 37 | AN124: 39 | AO124: 0 | AP124: 0 | AQ124: 11.3 | AR124: 8.2867 | AS124: 0 | AT124: 3.8 | AU124: 3.4 | AV124: 3.8 | AW124: 3.7 | AX124: 3.9 | BA124: 11.3 | BB124: 8.2867 | BC124: 189 | BD124: 37 | BE124: 46 | BF124: 44 | BG124: 38 | BH124: 35 | BI124: 0 | BJ124: 0 | BK124: 11.9 | BL124: 8.3300 | BM124: 0 | BN124: 3.7 | BO124: 4.6 | BP124: 4.4 | BQ124: 3.8 | BR124: 3.5 | BU124: 11.9 | BV124: 8.3300 | BW124: 196 | BX124: 35 | BY124: 40 | BZ124: 40 | CA124: 38 | CB124: 36 | CC124: 0 | CD124: 0 | CE124: 11 | CF124: 8.7400 | CG124: 0 | CH124: 3.5 | CI124: 4.0 | CJ124: 4.0 | CK124: 3.8 | CL124: 3.6 | CO124: 11.4 | CP124: 8.7400 | CQ124: 194 | CR124: 35.1100 | CS124: 39.8977 | CT124: 0.0 | CU124: 39.8977
A125: 119 | B125: 193 | C125: 0.0000 | D125: 200305506 | E125: Yza Babcoubei | F125: Aquarijn | G125: AQU | H125: MidWest | J125: X | K125: 2003 | O125: x | P125: 0 | Q125: 0 | R125: 0 | S125: 0 | T125: 0 | U125: 0 | V125: 0 | W125: 0.0 | X125: 0.0000 | Y125: 0 | Z125: 0.0 | AA125: 0.0 | AB125: 0.0 | AC125: 0.0 | AD125: 0.0 | AG125: 0.0 | AH125: 0.0000 | AJ125: 0 | AK125: 0 | AL125: 0 | AM125: 0 | AN125: 0 | AO125: 0 | AP125: 0 | AQ125: 0.0 | AR125: 0.0000 | AS125: 0 | AT125: 0.0 | AU125: 0.0 | AV125: 0.0 | AW125: 0.0 | AX125: 0.0 | BA125: 0.0 | BB125: 0.0000 | BD125: 0 | BE125: 0 | BF125: 0 | BG125: 0 | BH125: 0 | BI125: 0 | BJ125: 0 | BK125: 0.0 | BL125: 0.0000 | BM125: 0 | BN125: 0.0 | BO125: 0.0 | BP125: 0.0 | BQ125: 0.0 | BR125: 0.0 | BU125: 0.0 | BV125: 0.0000 | BX125: 0 | BY125: 0 | BZ125: 0 | CA125: 0 | CB125: 0 | CC125: 0 | CD125: 0 | CE125: 0 | CF125: 0.0000 | CG125: 0 | CH125: 0.0 | CI125: 0.0 | CJ125: 0.0 | CK125: 0.0 | CL125: 0.0 | CO125: 0.0 | CP125: 0.0000 | CR125: 0.0000 | CS125: 0.0000 | CT125: 0.0 | CU125: 0
A126: 120 | B126: 105 | C126: 49.3901 | D126: 200302048 | E126: Jasmijn van Appeldorn | F126: Aqua-Novio '94 | G126: AQN | H126: Oost | K126: 2003 | M126: L | P126: 48 | Q126: 45 | R126: 48 | S126: 46 | T126: 51 | U126: 0 | V126: 0 | W126: 14.2 | X126: 10.4133 | Y126: 0 | Z126: 4.8 | AA126: 4.5 | AB126: 4.8 | AC126: 4.6 | AD126: 5.1 | AG126: 14.2 | AH126: 10.4133 | AI126: 148 | AJ126: 48 | AK126: 45 | AL126: 47 | AM126: 45 | AN126: 46 | AO126: 0 | AP126: 0 | AQ126: 13.8 | AR126: 10.1200 | AS126: 0 | AT126: 4.8 | AU126: 4.5 | AV126: 4.7 | AW126: 4.5 | AX126: 4.6 | BA126: 13.8 | BB126: 10.1200 | BC126: 126 | BD126: 50 | BE126: 57 | BF126: 58 | BG126: 48 | BH126: 53 | BI126: 0 | BJ126: 0 | BK126: 16.0 | BL126: 11.2000 | BM126: 0 | BN126: 5.0 | BO126: 5.7 | BP126: 5.8 | BQ126: 4.8 | BR126: 5.3 | BU126: 16.0 | BV126: 11.2000 | BW126: 95 | BX126: 50 | BY126: 51 | BZ126: 52 | CA126: 52 | CB126: 47 | CC126: 0 | CD126: 0 | CE126: 15 | CF126: 11.7300 | CG126: 0 | CH126: 5.0 | CI126: 5.1 | CJ126: 5.2 | CK126: 5.2 | CL126: 4.7 | CO126: 15.3 | CP126: 11.7300 | CQ126: 50 | CR126: 43.4633 | CS126: 49.3901 | CT126: 0.0 | CU126: 49.3901
A127: 121 | B127: 20 | C127: 57.7992 | D127: 200304528 | E127: Kincsö Biró | F127: ACZ | G127: ACZ | H127: West | K127: 2003 | M127: L | P127: 60 | Q127: 58 | R127: 61 | S127: 61 | T127: 60 | U127: 0 | V127: 0 | W127: 18.1 | X127: 13.2733 | Y127: 0 | Z127: 6.0 | AA127: 5.8 | AB127: 6.1 | AC127: 6.1 | AD127: 6.0 | AG127: 18.1 | AH127: 13.2733 | AI127: 17 | AJ127: 57 | AK127: 52 | AL127: 61 | AM127: 62 | AN127: 58 | AO127: 0 | AP127: 0 | AQ127: 17.6 | AR127: 12.9067 | AS127: 0 | AT127: 5.7 | AU127: 5.2 | AV127: 6.1 | AW127: 6.2 | AX127: 5.8 | BA127: 17.6 | BB127: 12.9067 | BC127: 15 | BD127: 53 | BE127: 62 | BF127: 58 | BG127: 53 | BH127: 63 | BI127: 0 | BJ127: 0 | BK127: 17.3 | BL127: 12.1100 | BM127: 0 | BN127: 5.3 | BO127: 6.2 | BP127: 5.8 | BQ127: 5.3 | BR127: 6.3 | BU127: 17.3 | BV127: 12.1100 | BW127: 47 | BX127: 61 | BY127: 56 | BZ127: 54 | CA127: 54 | CB127: 52 | CC127: 0 | CD127: 0 | CE127: 16 | CF127: 12.5733 | CG127: 0 | CH127: 6.1 | CI127: 5.6 | CJ127: 5.4 | CK127: 5.4 | CL127: 5.2 | CO127: 16.4 | CP127: 12.5733 | CQ127: 27 | CR127: 50.8633 | CS127: 57.7992 | CT127: 0.0 | CU127: 57.7992
A128: 122 | B128: 55 | C128: 53.4128 | D128: 200304190 | E128: Orane Brunsting | F128: Z.P.C.H. | G128: ZPC | H128: MidWest | K128: 2003 | M128: L | P128: 54 | Q128: 54 | R128: 58 | S128: 58 | T128: 57 | U128: 0 | V128: 0 | W128: 16.9 | X128: 12.3933 | Y128: 0 | Z128: 5.4 | AA128: 5.4 | AB128: 5.8 | AC128: 5.8 | AD128: 5.7 | AG128: 16.9 | AH128: 12.3933 | AI128: 45 | AJ128: 51 | AK128: 49 | AL128: 50 | AM128: 49 | AN128: 53 | AO128: 0 | AP128: 0 | AQ128: 15.0 | AR128: 11.0000 | AS128: 0 | AT128: 5.1 | AU128: 4.9 | AV128: 5.0 | AW128: 4.9 | AX128: 5.3 | BA128: 15.0 | BB128: 11.0000 | BC128: 79 | BD128: 62 | BE128: 57 | BF128: 56 | BG128: 57 | BH128: 59 | BI128: 0 | BJ128: 0 | BK128: 17.3 | BL128: 12.1100 | BM128: 0 | BN128: 6.2 | BO128: 5.7 | BP128: 5.6 | BQ128: 5.7 | BR128: 5.9 | BU128: 17.3 | BV128: 12.1100 | BW128: 47 | BX128: 51 | BY128: 49 | BZ128: 50 | CA128: 50 | CB128: 50 | CC128: 0 | CD128: 0 | CE128: 15 | CF128: 11.5000 | CG128: 0 | CH128: 5.1 | CI128: 4.9 | CJ128: 5.0 | CK128: 5.0 | CL128: 5.0 | CO128: 15.0 | CP128: 11.5000 | CQ128: 62 | CR128: 47.0033 | CS128: 53.4128 | CT128: 0.0 | CU128: 53.4128
A129: 123 | B129: 14 | C129: 60.0531 | D129: 200403430 | E129: Giorgia Gandossi | F129: DAW | G129: DAW | H129: Midwest | K129: 2004 | M129: L | P129: 55 | Q129: 63 | R129: 63 | S129: 59 | T129: 60 | U129: 0 | V129: 0 | W129: 18.2 | X129: 13.3467 | Y129: 0 | Z129: 5.5 | AA129: 6.3 | AB129: 6.3 | AC129: 5.9 | AD129: 6.0 | AG129: 18.2 | AH129: 13.3467 | AI129: 12 | AJ129: 61 | AK129: 53 | AL129: 63 | AM129: 59 | AN129: 60 | AO129: 0 | AP129: 0 | AQ129: 18.0 | AR129: 13.2000 | AS129: 0 | AT129: 6.1 | AU129: 5.3 | AV129: 6.3 | AW129: 5.9 | AX129: 6.0 | BA129: 18.0 | BB129: 13.2000 | BC129: 9 | BD129: 64 | BE129: 58 | BF129: 60 | BG129: 54 | BH129: 54 | BI129: 0 | BJ129: 0 | BK129: 17.2 | BL129: 12.0400 | BM129: 0 | BN129: 6.4 | BO129: 5.8 | BP129: 6.0 | BQ129: 5.4 | BR129: 5.4 | BU129: 17.2 | BV129: 12.0400 | BW129: 52 | BX129: 62 | BY129: 61 | BZ129: 63 | CA129: 63 | CB129: 60 | CC129: 0 | CD129: 0 | CE129: 19 | CF129: 14.2600 | CG129: 0 | CH129: 6.2 | CI129: 6.1 | CJ129: 6.3 | CK129: 6.3 | CL129: 6.0 | CO129: 18.6 | CP129: 14.2600 | CQ129: 2 | CR129: 52.8467 | CS129: 60.0531 | CT129: 0.0 | CU129: 60.0531
A130: 124 | B130: 18 | C130: 58.5265 | D130: 200401294 | E130: Eline Braakhuis | F130: De Dolfijn | G130: DOL | H130: Midwest | K130: 2004 | M130: L | P130: 53 | Q130: 60 | R130: 58 | S130: 56 | T130: 58 | U130: 0 | V130: 0 | W130: 17.2 | X130: 12.6133 | Y130: 0 | Z130: 5.3 | AA130: 6.0 | AB130: 5.8 | AC130: 5.6 | AD130: 5.8 | AG130: 17.2 | AH130: 12.6133 | AI130: 32 | AJ130: 58 | AK130: 55 | AL130: 58 | AM130: 56 | AN130: 58 | AO130: 0 | AP130: 0 | AQ130: 17.2 | AR130: 12.6133 | AS130: 0 | AT130: 5.8 | AU130: 5.5 | AV130: 5.8 | AW130: 5.6 | AX130: 5.8 | BA130: 17.2 | BB130: 12.6133 | BC130: 18 | BD130: 60 | BE130: 62 | BF130: 64 | BG130: 64 | BH130: 61 | BI130: 0 | BJ130: 0 | BK130: 18.7 | BL130: 13.0900 | BM130: 0 | BN130: 6.0 | BO130: 6.2 | BP130: 6.4 | BQ130: 6.4 | BR130: 6.1 | BU130: 18.7 | BV130: 13.0900 | BW130: 15 | BX130: 57 | BY130: 57 | BZ130: 56 | CA130: 59 | CB130: 58 | CC130: 0 | CD130: 0 | CE130: 17 | CF130: 13.1867 | CG130: 0 | CH130: 5.7 | CI130: 5.7 | CJ130: 5.6 | CK130: 5.9 | CL130: 5.8 | CO130: 17.2 | CP130: 13.1867 | CQ130: 12 | CR130: 51.5033 | CS130: 58.5265 | CT130: 0.0 | CU130: 58.5265
A131: 125 | B131: 174 | C131: 43.5833 | D131: 200405286 | E131: Loïs Vink | F131: VZC Veenendaal | G131: VZV | H131: Midwest | J131: X | K131: 2004 | P131: 42 | Q131: 42 | R131: 42 | S131: 51 | T131: 50 | U131: 0 | V131: 0 | W131: 13.4 | X131: 9.8267 | Y131: 0 | Z131: 4.2 | AA131: 4.2 | AB131: 4.2 | AC131: 5.1 | AD131: 5.0 | AG131: 13.4 | AH131: 9.8267 | AI131: 175 | AJ131: 41 | AK131: 48 | AL131: 49 | AM131: 45 | AN131: 43 | AO131: 0 | AP131: 0 | AQ131: 13.6 | AR131: 9.9733 | AS131: 0 | AT131: 4.1 | AU131: 4.8 | AV131: 4.9 | AW131: 4.5 | AX131: 4.3 | BA131: 13.6 | BB131: 9.9733 | BC131: 134 | BD131: 46 | BE131: 46 | BF131: 48 | BG131: 46 | BH131: 46 | BI131: 0 | BJ131: 0 | BK131: 13.8 | BL131: 9.6600 | BM131: 0 | BN131: 4.6 | BO131: 4.6 | BP131: 4.8 | BQ131: 4.6 | BR131: 4.6 | BU131: 13.8 | BV131: 9.6600 | BW131: 171 | BX131: 36 | BY131: 40 | BZ131: 40 | CA131: 40 | CB131: 34 | CC131: 0 | CD131: 0 | CE131: 12 | CF131: 8.8933 | CG131: 0 | CH131: 3.6 | CI131: 4.0 | CJ131: 4.0 | CK131: 4.0 | CL131: 3.4 | CO131: 11.6 | CP131: 8.8933 | CQ131: 190 | CR131: 38.3533 | CS131: 43.5833 | CT131: 0.0 | CU131: 43.5833
A132: 126 | B132: 117 | C132: 48.6098 | D132: 200404488 | E132: Jane van Tol | F132: Widex Gzc Donk | G132: DONK | H132: West | K132: 2004 | P132: 51 | Q132: 52 | R132: 51 | S132: 60 | T132: 50 | U132: 0 | V132: 0 | W132: 15.4 | X132: 11.2933 | Y132: 0 | Z132: 5.1 | AA132: 5.2 | AB132: 5.1 | AC132: 6.0 | AD132: 5.0 | AG132: 15.4 | AH132: 11.2933 | AI132: 102 | AJ132: 51 | AK132: 45 | AL132: 46 | AM132: 50 | AN132: 49 | AO132: 0 | AP132: 0 | AQ132: 14.5 | AR132: 10.6333 | AS132: 0 | AT132: 5.1 | AU132: 4.5 | AV132: 4.6 | AW132: 5.0 | AX132: 4.9 | BA132: 14.5 | BB132: 10.6333 | BC132: 100 | BD132: 51 | BE132: 50 | BF132: 44 | BG132: 49 | BH132: 51 | BI132: 0 | BJ132: 0 | BK132: 15.0 | BL132: 10.5000 | BM132: 0 | BN132: 5.1 | BO132: 5.0 | BP132: 4.4 | BQ132: 4.9 | BR132: 5.1 | BU132: 15.0 | BV132: 10.5000 | BW132: 122 | BX132: 49 | BY132: 45 | BZ132: 42 | CA132: 43 | CB132: 47 | CC132: 0 | CD132: 0 | CE132: 14 | CF132: 10.3500 | CG132: 0 | CH132: 4.9 | CI132: 4.5 | CJ132: 4.2 | CK132: 4.3 | CL132: 4.7 | CO132: 13.5 | CP132: 10.3500 | CQ132: 131 | CR132: 42.7766 | CS132: 48.6098 | CT132: 0.0 | CU132: 48.6098
A133: 127 | B133: 134 | C133: 47.4735 | D133: 200502078 | E133: Naomi de Jong | F133: Widex Gzc Donk | G133: DONK | H133: West | K133: 2005 | M133: L | P133: 46 | Q133: 57 | R133: 52 | S133: 52 | T133: 51 | U133: 0 | V133: 0 | W133: 15.5 | X133: 11.3667 | Y133: 0 | Z133: 4.6 | AA133: 5.7 | AB133: 5.2 | AC133: 5.2 | AD133: 5.1 | AG133: 15.5 | AH133: 11.3667 | AI133: 100 | AJ133: 43 | AK133: 39 | AL133: 39 | AM133: 44 | AN133: 40 | AO133: 0 | AP133: 0 | AQ133: 12.2 | AR133: 8.9467 | AS133: 0 | AT133: 4.3 | AU133: 3.9 | AV133: 3.9 | AW133: 4.4 | AX133: 4.0 | BA133: 12.2 | BB133: 8.9467 | BC133: 177 | BD133: 57 | BE133: 49 | BF133: 49 | BG133: 52 | BH133: 48 | BI133: 0 | BJ133: 0 | BK133: 15.0 | BL133: 10.5000 | BM133: 0 | BN133: 5.7 | BO133: 4.9 | BP133: 4.9 | BQ133: 5.2 | BR133: 4.8 | BU133: 15.0 | BV133: 10.5000 | BW133: 122 | BX133: 41 | BY133: 47 | BZ133: 48 | CA133: 49 | CB133: 48 | CC133: 0 | CD133: 0 | CE133: 14 | CF133: 10.9633 | CG133: 0 | CH133: 4.1 | CI133: 4.7 | CJ133: 4.8 | CK133: 4.9 | CL133: 4.8 | CO133: 14.3 | CP133: 10.9633 | CQ133: 96 | CR133: 41.7767 | CS133: 47.4735 | CT133: 0.0 | CU133: 47.4735
A134: 128 | B134: 180 | C134: 42.7765 | D134: 200405436 | E134: Amy Struijk | F134: WVZ | G134: WVZ | H134: West | K134: 2004 | P134: 39 | Q134: 40 | R134: 42 | S134: 39 | T134: 48 | U134: 0 | V134: 0 | W134: 12.1 | X134: 8.8733 | Y134: 0 | Z134: 3.9 | AA134: 4.0 | AB134: 4.2 | AC134: 3.9 | AD134: 4.8 | AG134: 12.1 | AH134: 8.8733 | AI134: 194 | AJ134: 40 | AK134: 43 | AL134: 47 | AM134: 46 | AN134: 49 | AO134: 0 | AP134: 0 | AQ134: 13.6 | AR134: 9.9733 | AS134: 0 | AT134: 4.0 | AU134: 4.3 | AV134: 4.7 | AW134: 4.6 | AX134: 4.9 | BA134: 13.6 | BB134: 9.9733 | BC134: 134 | BD134: 47 | BE134: 48 | BF134: 46 | BG134: 40 | BH134: 43 | BI134: 0 | BJ134: 0 | BK134: 13.6 | BL134: 9.5200 | BM134: 0 | BN134: 4.7 | BO134: 4.8 | BP134: 4.6 | BQ134: 4.0 | BR134: 4.3 | BU134: 13.6 | BV134: 9.5200 | BW134: 175 | BX134: 38 | BY134: 41 | BZ134: 41 | CA134: 40 | CB134: 40 | CC134: 0 | CD134: 0 | CE134: 12 | CF134: 9.2767 | CG134: 0 | CH134: 3.8 | CI134: 4.1 | CJ134: 4.1 | CK134: 4.0 | CL134: 4.0 | CO134: 12.1 | CP134: 9.2767 | CQ134: 179 | CR134: 37.6433 | CS134: 42.7765 | CT134: 0.0 | CU134: 42.7765
A135: 129 | B135: =IF(I135="BM","BM",RANK(CU135,CU$7:CU$256)) -> 126 | C135: =+CS135-CT135 -> 47.8523 | D135: 200301372 | E135: Frauke Stok | F135: Cadans | G135: CAD | H135: oost | K135: =VALUE(IF(D135="",0,MID(D135,1,4))) -> 2003 | M135: =IF(AND(14>($H$1-K135),($H$1-K135)>=13,C135>=$N$4),"L",IF(AND(16>($H$1-K135),($H$1-K135)>=14,C135>=$N$3),"L",IF(K135>0,IF(OR(K135>$J$4,K135<$I$4),"BM",""),""))) ->  | N135: =IF(C135>0,IF(J135>"",IF(C135<$H$3,"","Age II"),""),"") ->  | P135: 45 | Q135: 46 | R135: 53 | S135: 52 | T135: 49 | U135: 0 | V135: 0 | W135: 14.7 | X135: 10.7800 | Y135: 0 | Z135: =+P135/10 -> 4.5 | AA135: =+Q135/10 -> 4.6 | AB135: =+R135/10 -> 5.3 | AC135: =+S135/10 -> 5.2 | AD135: =+T135/10 -> 4.9 | AE135: =IF(U135>0,+U135/10,"") ->  | AF135: =IF(V135>0,+V135/10,"") ->  | AG135: =SUM(Z135:AF135)-MAX(Z135:AF135)-MIN(Z135:AF135) -> 14.7 | AH135: =ROUND(AG135/(COUNTIF(Z135:AF135,">=0")-2)*$AH$3,4) -> 10.7800 | AI135: =IF(AH135=0,"",RANK(AH135,AH$7:AH$256)) -> 120 | AJ135: 50 | AK135: 48 | AL135: 49 | AM135: 50 | AN135: 53 | AO135: 0 | AP135: 0 | AQ135: 14.9 | AR135: 10.9267 | AS135: 0 | AT135: =+AJ135/10 -> 5.0 | AU135: =+AK135/10 -> 4.8 | AV135: =+AL135/10 -> 4.9 | AW135: =+AM135/10 -> 5.0 | AX135: =+AN135/10 -> 5.3 | AY135: =IF(AO135>0,+AO135/10,"") ->  | AZ135: =IF(AP135>0,+AP135/10,"") ->  | BA135: =SUM(AT135:AZ135)-MAX(AT135:AZ135)-MIN(AT135:AZ135) -> 14.9 | BB135: =ROUND(BA135/(COUNTIF(AT135:AZ135,">0")-2)*$BB$3,4) -> 10.9267 | BC135: =IF(BB135=0,"",RANK(BB135,BB$7:BB$256)) -> 86 | BD135: 52 | BE135: 50 | BF135: 40 | BG135: 47 | BH135: 51 | BI135: 0 | BJ135: 0 | BK135: 14.8 | BL135: 10.3600 | BM135: 0 | BN135: =+BD135/10 -> 5.2 | BO135: =+BE135/10 -> 5.0 | BP135: =+BF135/10 -> 4.0 | BQ135: =+BG135/10 -> 4.7 | BR135: =+BH135/10 -> 5.1 | BS135: =IF(BI135>0,+BI135/10,"") ->  | BT135: =IF(BJ135>0,+BJ135/10,"") ->  | BU135: =SUM(BN135:BT135)-MAX(BN135:BT135)-MIN(BN135:BT135) -> 14.8 | BV135: =ROUND(BU135/(COUNTIF(BN135:BT135,">0")-2)*$BV$3,4) -> 10.3600 | BW135: =IF(BV135=0,"",RANK(BV135,BV$7:BV$256)) -> 135 | BX135: 42 | BY135: 46 | BZ135: 47 | CA135: 42 | CB135: 43 | CC135: 0 | CD135: 0 | CE135: 13 | CF135: 10.0433 | CG135: 0 | CH135: =+BX135/10 -> 4.2 | CI135: =+BY135/10 -> 4.6 | CJ135: =+BZ135/10 -> 4.7 | CK135: =+CA135/10 -> 4.2 | CL135: =+CB135/10 -> 4.3 | CM135: =IF(CC135>0,+CC135/10,"") ->  | CN135: =IF(CD135>0,+CD135/10,"") ->  | CO135: =SUM(CH135:CN135)-MAX(CH135:CN135)-MIN(CH135:CN135) -> 13.1 | CP135: =ROUND(CO135/(COUNTIF(CH135:CN135,">0")-2)*$CP$3,4) -> 10.0433 | CQ135: =IF(CP135=0,"",RANK(CP135,CP$7:CP$256)) -> 144 | CR135: =+AH135+BB135+BV135+CP135 -> 42.1100 | CS135: =+ROUND((+CR135*10)/(+$AH$3+$BB$3+$BV$3+$CP$3),4) -> 47.8523 | CT135: =+Y135+AS135+BM135+CG135 -> 0.0 | CU135: =IF(I135="BM",0,+CS135-CT135) -> 47.8523
A136: 130 | B136: 137 | C136: 47.2461 | D136: 200500162 | E136: Mija Bussink | F136: ZC.Eijsden | G136: eij | H136: Zuid | K136: 2005 | M136: L | P136: 52 | Q136: 51 | R136: 52 | S136: 56 | T136: 53 | U136: 0 | V136: 0 | W136: 15.7 | X136: 11.5133 | Y136: 0 | Z136: 5.2 | AA136: 5.1 | AB136: 5.2 | AC136: 5.6 | AD136: 5.3 | AG136: 15.7 | AH136: 11.5133 | AI136: 88 | AJ136: 39 | AK136: 37 | AL136: 43 | AM136: 41 | AN136: 43 | AO136: 0 | AP136: 0 | AQ136: 12.3 | AR136: 9.0200 | AS136: 0 | AT136: 3.9 | AU136: 3.7 | AV136: 4.3 | AW136: 4.1 | AX136: 4.3 | BA136: 12.3 | BB136: 9.0200 | BC136: 176 | BD136: 48 | BE136: 46 | BF136: 42 | BG136: 50 | BH136: 52 | BI136: 0 | BJ136: 0 | BK136: 14.4 | BL136: 10.0800 | BM136: 0 | BN136: 4.8 | BO136: 4.6 | BP136: 4.2 | BQ136: 5.0 | BR136: 5.2 | BU136: 14.4 | BV136: 10.0800 | BW136: 149 | BX136: 50 | BY136: 48 | BZ136: 48 | CA136: 46 | CB136: 47 | CC136: 0 | CD136: 0 | CE136: 14 | CF136: 10.9633 | CG136: 0 | CH136: 5.0 | CI136: 4.8 | CJ136: 4.8 | CK136: 4.6 | CL136: 4.7 | CO136: 14.3 | CP136: 10.9633 | CQ136: 96 | CR136: 41.5766 | CS136: 47.2461 | CT136: 0.0 | CU136: 47.2461
A137: 131 | B137: 192 | C137: 39.2463 | D137: 200502062 | E137: Linda Driessen | F137: HZPC Horst | G137: HZPC | H137: zuid | J137: X | K137: 2005 | P137: 36 | Q137: 42 | R137: 43 | S137: 38 | T137: 39 | U137: 0 | V137: 0 | W137: 11.9 | X137: 8.7267 | Y137: 0 | Z137: 3.6 | AA137: 4.2 | AB137: 4.3 | AC137: 3.8 | AD137: 3.9 | AG137: 11.9 | AH137: 8.7267 | AI137: 196 | AJ137: 34 | AK137: 35 | AL137: 37 | AM137: 37 | AN137: 37 | AO137: 0 | AP137: 0 | AQ137: 10.9 | AR137: 7.9933 | AS137: 0 | AT137: 3.4 | AU137: 3.5 | AV137: 3.7 | AW137: 3.7 | AX137: 3.7 | BA137: 10.9 | BB137: 7.9933 | BC137: 193 | BD137: 39 | BE137: 43 | BF137: 44 | BG137: 34 | BH137: 40 | BI137: 0 | BJ137: 0 | BK137: 12.2 | BL137: 8.5400 | BM137: 0 | BN137: 3.9 | BO137: 4.3 | BP137: 4.4 | BQ137: 3.4 | BR137: 4.0 | BU137: 12.2 | BV137: 8.5400 | BW137: 195 | BX137: 38 | BY137: 40 | BZ137: 43 | CA137: 40 | CB137: 41 | CC137: 0 | CD137: 0 | CE137: 12 | CF137: 9.2767 | CG137: 0 | CH137: 3.8 | CI137: 4.0 | CJ137: 4.3 | CK137: 4.0 | CL137: 4.1 | CO137: 12.1 | CP137: 9.2767 | CQ137: 179 | CR137: 34.5367 | CS137: 39.2463 | CT137: 0.0 | CU137: 39.2463
A138: 132 | B138: 167 | C138: 44.4545 | D138: 200503978 | E138: Maud van Breukelen | F138: Aquarijn | G138: AQU | H138: MidWest | J138: X | K138: 2005 | P138: 47 | Q138: 50 | R138: 48 | S138: 45 | T138: 48 | U138: 0 | V138: 0 | W138: 14.3 | X138: 10.4867 | Y138: 0 | Z138: 4.7 | AA138: 5.0 | AB138: 4.8 | AC138: 4.5 | AD138: 4.8 | AG138: 14.3 | AH138: 10.4867 | AI138: 143 | AJ138: 46 | AK138: 45 | AL138: 46 | AM138: 41 | AN138: 44 | AO138: 0 | AP138: 0 | AQ138: 13.5 | AR138: 9.9000 | AS138: 0 | AT138: 4.6 | AU138: 4.5 | AV138: 4.6 | AW138: 4.1 | AX138: 4.4 | BA138: 13.5 | BB138: 9.9000 | BC138: 138 | BD138: 46 | BE138: 47 | BF138: 46 | BG138: 42 | BH138: 42 | BI138: 0 | BJ138: 0 | BK138: 13.4 | BL138: 9.3800 | BM138: 0 | BN138: 4.6 | BO138: 4.7 | BP138: 4.6 | BQ138: 4.2 | BR138: 4.2 | BU138: 13.4 | BV138: 9.3800 | BW138: 182 | BX138: 43 | BY138: 42 | BZ138: 40 | CA138: 40 | CB138: 38 | CC138: 0 | CD138: 0 | CE138: 12 | CF138: 9.3533 | CG138: 0 | CH138: 4.3 | CI138: 4.2 | CJ138: 4.0 | CK138: 4.0 | CL138: 3.8 | CO138: 12.2 | CP138: 9.3533 | CQ138: 175 | CR138: 39.1200 | CS138: 44.4545 | CT138: 0.0 | CU138: 44.4545
A139: 133 | B139: 109 | C139: 49.1705 | D139: 200400053 | E139: Giovanni van der Zon | F139: ACZ | G139: ACZ | H139: West | K139: 2004 | M139: L | P139: 48 | Q139: 40 | R139: 49 | S139: 53 | T139: 50 | U139: 0 | V139: 0 | W139: 14.7 | X139: 10.7800 | Y139: 0 | Z139: 4.8 | AA139: 4.0 | AB139: 4.9 | AC139: 5.3 | AD139: 5.0 | AG139: 14.7 | AH139: 10.7800 | AI139: 120 | AJ139: 45 | AK139: 40 | AL139: 40 | AM139: 46 | AN139: 44 | AO139: 0 | AP139: 0 | AQ139: 12.9 | AR139: 9.4600 | AS139: 0 | AT139: 4.5 | AU139: 4.0 | AV139: 4.0 | AW139: 4.6 | AX139: 4.4 | BA139: 12.9 | BB139: 9.4600 | BC139: 164 | BD139: 52 | BE139: 58 | BF139: 60 | BG139: 56 | BH139: 54 | BI139: 0 | BJ139: 0 | BK139: 16.8 | BL139: 11.7600 | BM139: 0 | BN139: 5.2 | BO139: 5.8 | BP139: 6.0 | BQ139: 5.6 | BR139: 5.4 | BU139: 16.8 | BV139: 11.7600 | BW139: 68 | BX139: 49 | BY139: 50 | BZ139: 50 | CA139: 48 | CB139: 48 | CC139: 0 | CD139: 0 | CE139: 15 | CF139: 11.2700 | CG139: 0 | CH139: 4.9 | CI139: 5.0 | CJ139: 5.0 | CK139: 4.8 | CL139: 4.8 | CO139: 14.7 | CP139: 11.2700 | CQ139: 76 | CR139: 43.2700 | CS139: 49.1705 | CT139: 0.0 | CU139: 49.1705
A140: 134 | B140: 132 | C140: 47.6023 | D140: 200500078 | E140: Jody Otte | F140: Hera'11 | G140: HERA | H140: Oost | K140: 2005 | M140: L | P140: 50 | Q140: 58 | R140: 54 | S140: 62 | T140: 52 | U140: 0 | V140: 0 | W140: 16.4 | X140: 12.0267 | Y140: 0 | Z140: 5.0 | AA140: 5.8 | AB140: 5.4 | AC140: 6.2 | AD140: 5.2 | AG140: 16.4 | AH140: 12.0267 | AI140: 58 | AJ140: 43 | AK140: 41 | AL140: 43 | AM140: 43 | AN140: 43 | AO140: 0 | AP140: 0 | AQ140: 12.9 | AR140: 9.4600 | AS140: 0 | AT140: 4.3 | AU140: 4.1 | AV140: 4.3 | AW140: 4.3 | AX140: 4.3 | BA140: 12.9 | BB140: 9.4600 | BC140: 164 | BD140: 53 | BE140: 49 | BF140: 49 | BG140: 47 | BH140: 50 | BI140: 0 | BJ140: 0 | BK140: 14.8 | BL140: 10.3600 | BM140: 0 | BN140: 5.3 | BO140: 4.9 | BP140: 4.9 | BQ140: 4.7 | BR140: 5.0 | BU140: 14.8 | BV140: 10.3600 | BW140: 135 | BX140: 42 | BY140: 44 | BZ140: 46 | CA140: 45 | CB140: 41 | CC140: 0 | CD140: 0 | CE140: 13 | CF140: 10.0433 | CG140: 0 | CH140: 4.2 | CI140: 4.4 | CJ140: 4.6 | CK140: 4.5 | CL140: 4.1 | CO140: 13.1 | CP140: 10.0433 | CQ140: 144 | CR140: 41.8900 | CS140: 47.6023 | CT140: 0.0 | CU140: 47.6023
A141: 135 | B141: 189 | C141: 40.3636 | D141: 200303570 | E141: Melissa Groeneveld | F141: De Houtrib | G141: HOU | H141: Oost | J141: X | K141: 2003 | P141: 37 | Q141: 39 | R141: 47 | S141: 42 | T141: 40 | U141: 0 | V141: 0 | W141: 12.1 | X141: 8.8733 | Y141: 0 | Z141: 3.7 | AA141: 3.9 | AB141: 4.7 | AC141: 4.2 | AD141: 4.0 | AG141: 12.1 | AH141: 8.8733 | AI141: 194 | AJ141: 44 | AK141: 38 | AL141: 38 | AM141: 41 | AN141: 43 | AO141: 0 | AP141: 0 | AQ141: 12.2 | AR141: 8.9467 | AS141: 0 | AT141: 4.4 | AU141: 3.8 | AV141: 3.8 | AW141: 4.1 | AX141: 4.3 | BA141: 12.2 | BB141: 8.9467 | BC141: 177 | BD141: 46 | BE141: 45 | BF141: 38 | BG141: 40 | BH141: 43 | BI141: 0 | BJ141: 0 | BK141: 12.8 | BL141: 8.9600 | BM141: 0 | BN141: 4.6 | BO141: 4.5 | BP141: 3.8 | BQ141: 4.0 | BR141: 4.3 | BU141: 12.8 | BV141: 8.9600 | BW141: 191 | BX141: 39 | BY141: 38 | BZ141: 37 | CA141: 37 | CB141: 40 | CC141: 0 | CD141: 0 | CE141: 11 | CF141: 8.7400 | CG141: 0 | CH141: 3.9 | CI141: 3.8 | CJ141: 3.7 | CK141: 3.7 | CL141: 4.0 | CO141: 11.4 | CP141: 8.7400 | CQ141: 194 | CR141: 35.5200 | CS141: 40.3636 | CT141: 0.0 | CU141: 40.3636
A142: 136 | B142: 5 | C142: 62.3636 | D142: 200302652 | E142: Femke Vos | F142: Z.P.C.H. | G142: ZPC | H142: MidWest | K142: 2003 | M142: L | P142: 63 | Q142: 63 | R142: 64 | S142: 63 | T142: 65 | U142: 0 | V142: 0 | W142: 19.0 | X142: 13.9333 | Y142: 0 | Z142: 6.3 | AA142: 6.3 | AB142: 6.4 | AC142: 6.3 | AD142: 6.5 | AG142: 19.0 | AH142: 13.9333 | AI142: 7 | AJ142: 63 | AK142: 51 | AL142: 61 | AM142: 59 | AN142: 64 | AO142: 0 | AP142: 0 | AQ142: 18.3 | AR142: 13.4200 | AS142: 0 | AT142: 6.3 | AU142: 5.1 | AV142: 6.1 | AW142: 5.9 | AX142: 6.4 | BA142: 18.3 | BB142: 13.4200 | BC142: 7 | BD142: 69 | BE142: 65 | BF142: 65 | BG142: 65 | BH142: 63 | BI142: 0 | BJ142: 0 | BK142: 19.5 | BL142: 13.6500 | BM142: 0 | BN142: 6.9 | BO142: 6.5 | BP142: 6.5 | BQ142: 6.5 | BR142: 6.3 | BU142: 19.5 | BV142: 13.6500 | BW142: 6 | BX142: 62 | BY142: 59 | BZ142: 60 | CA142: 58 | CB142: 64 | CC142: 0 | CD142: 0 | CE142: 18 | CF142: 13.8767 | CG142: 0 | CH142: 6.2 | CI142: 5.9 | CJ142: 6.0 | CK142: 5.8 | CL142: 6.4 | CO142: 18.1 | CP142: 13.8767 | CQ142: 5 | CR142: 54.8800 | CS142: 62.3636 | CT142: 0.0 | CU142: 62.3636
A143: 137 | B143: 60 | C143: 52.9016 | D143: 200404262 | E143: Ailani Weltz | F143: DAW | G143: DAW | H143: Midwest | K143: 2004 | M143: L | P143: 58 | Q143: 60 | R143: 58 | S143: 57 | T143: 57 | U143: 0 | V143: 0 | W143: 17.3 | X143: 12.6867 | Y143: 0 | Z143: 5.8 | AA143: 6.0 | AB143: 5.8 | AC143: 5.7 | AD143: 5.7 | AG143: 17.3 | AH143: 12.6867 | AI143: 29 | AJ143: 50 | AK143: 49 | AL143: 52 | AM143: 56 | AN143: 54 | AO143: 0 | AP143: 0 | AQ143: 15.6 | AR143: 11.4400 | AS143: 0 | AT143: 5.0 | AU143: 4.9 | AV143: 5.2 | AW143: 5.6 | AX143: 5.4 | BA143: 15.6 | BB143: 11.4400 | BC143: 60 | BD143: 50 | BE143: 53 | BF143: 52 | BG143: 55 | BH143: 45 | BI143: 0 | BJ143: 0 | BK143: 15.5 | BL143: 10.8500 | BM143: 0 | BN143: 5.0 | BO143: 5.3 | BP143: 5.2 | BQ143: 5.5 | BR143: 4.5 | BU143: 15.5 | BV143: 10.8500 | BW143: 108 | BX143: 52 | BY143: 48 | BZ143: 50 | CA143: 51 | CB143: 50 | CC143: 0 | CD143: 0 | CE143: 15 | CF143: 11.5767 | CG143: 0 | CH143: 5.2 | CI143: 4.8 | CJ143: 5.0 | CK143: 5.1 | CL143: 5.0 | CO143: 15.1 | CP143: 11.5767 | CQ143: 58 | CR143: 46.5534 | CS143: 52.9016 | CT143: 0.0 | CU143: 52.9016
A144: 138 | B144: 16 | C144: 59.1706 | D144: 200403600 | E144: Marleen Voesten | F144: De Dolfijn | G144: DOL | H144: MidWest | K144: 2004 | M144: L | P144: 61 | Q144: 59 | R144: 62 | S144: 67 | T144: 58 | U144: 0 | V144: 0 | W144: 18.2 | X144: 13.3467 | Y144: 0 | Z144: 6.1 | AA144: 5.9 | AB144: 6.2 | AC144: 6.7 | AD144: 5.8 | AG144: 18.2 | AH144: 13.3467 | AI144: 12 | AJ144: 56 | AK144: 56 | AL144: 57 | AM144: 57 | AN144: 61 | AO144: 0 | AP144: 0 | AQ144: 17.0 | AR144: 12.4667 | AS144: 0 | AT144: 5.6 | AU144: 5.6 | AV144: 5.7 | AW144: 5.7 | AX144: 6.1 | BA144: 17.0 | BB144: 12.4667 | BC144: 21 | BD144: 68 | BE144: 61 | BF144: 65 | BG144: 63 | BH144: 62 | BI144: 0 | BJ144: 0 | BK144: 19.0 | BL144: 13.3000 | BM144: 0 | BN144: 6.8 | BO144: 6.1 | BP144: 6.5 | BQ144: 6.3 | BR144: 6.2 | BU144: 19.0 | BV144: 13.3000 | BW144: 11 | BX144: 59 | BY144: 57 | BZ144: 57 | CA144: 55 | CB144: 55 | CC144: 0 | CD144: 0 | CE144: 17 | CF144: 12.9567 | CG144: 0 | CH144: 5.9 | CI144: 5.7 | CJ144: 5.7 | CK144: 5.5 | CL144: 5.5 | CO144: 16.9 | CP144: 12.9567 | CQ144: 20 | CR144: 52.0701 | CS144: 59.1706 | CT144: 0.0 | CU144: 59.1706
A145: 139 | B145: 96 | C145: 50.1288 | D145: 200404486 | E145: Jessie Sapuletej | F145: Widex Gzc Donk | G145: DONK | H145: West | K145: 2004 | M145: L | P145: 54 | Q145: 49 | R145: 55 | S145: 54 | T145: 57 | U145: 0 | V145: 0 | W145: 16.3 | X145: 11.9533 | Y145: 0 | Z145: 5.4 | AA145: 4.9 | AB145: 5.5 | AC145: 5.4 | AD145: 5.7 | AG145: 16.3 | AH145: 11.9533 | AI145: 62 | AJ145: 52 | AK145: 48 | AL145: 48 | AM145: 46 | AN145: 49 | AO145: 0 | AP145: 0 | AQ145: 14.5 | AR145: 10.6333 | AS145: 0 | AT145: 5.2 | AU145: 4.8 | AV145: 4.8 | AW145: 4.6 | AX145: 4.9 | BA145: 14.5 | BB145: 10.6333 | BC145: 100 | BD145: 55 | BE145: 56 | BF145: 49 | BG145: 48 | BH145: 46 | BI145: 0 | BJ145: 0 | BK145: 15.2 | BL145: 10.6400 | BM145: 0 | BN145: 5.5 | BO145: 5.6 | BP145: 4.9 | BQ145: 4.8 | BR145: 4.6 | BU145: 15.2 | BV145: 10.6400 | BW145: 117 | BX145: 49 | BY145: 46 | BZ145: 48 | CA145: 47 | CB145: 47 | CC145: 0 | CD145: 0 | CE145: 14 | CF145: 10.8867 | CG145: 0 | CH145: 4.9 | CI145: 4.6 | CJ145: 4.8 | CK145: 4.7 | CL145: 4.7 | CO145: 14.2 | CP145: 10.8867 | CQ145: 103 | CR145: 44.1133 | CS145: 50.1288 | CT145: 0.0 | CU145: 50.1288
A146: 140 | B146: 17 | C146: 58.7878 | D146: 200302352 | E146: Laura Lai | F146: De Dolfijn | G146: DOL | H146: Midwest | K146: 2003 | M146: L | P146: 56 | Q146: 60 | R146: 59 | S146: 58 | T146: 59 | U146: 0 | V146: 0 | W146: 17.6 | X146: 12.9067 | Y146: 0 | Z146: 5.6 | AA146: 6.0 | AB146: 5.9 | AC146: 5.8 | AD146: 5.9 | AG146: 17.6 | AH146: 12.9067 | AI146: 22 | AJ146: 59 | AK146: 60 | AL146: 62 | AM146: 58 | AN146: 59 | AO146: 0 | AP146: 0 | AQ146: 17.8 | AR146: 13.0533 | AS146: 0 | AT146: 5.9 | AU146: 6.0 | AV146: 6.2 | AW146: 5.8 | AX146: 5.9 | BA146: 17.8 | BB146: 13.0533 | BC146: 12 | BD146: 67 | BE146: 58 | BF146: 62 | BG146: 51 | BH146: 62 | BI146: 0 | BJ146: 0 | BK146: 18.2 | BL146: 12.7400 | BM146: 0 | BN146: 6.7 | BO146: 5.8 | BP146: 6.2 | BQ146: 5.1 | BR146: 6.2 | BU146: 18.2 | BV146: 12.7400 | BW146: 23 | BX146: 57 | BY146: 57 | BZ146: 56 | CA146: 57 | CB146: 56 | CC146: 0 | CD146: 0 | CE146: 17 | CF146: 13.0333 | CG146: 0 | CH146: 5.7 | CI146: 5.7 | CJ146: 5.6 | CK146: 5.7 | CL146: 5.6 | CO146: 17.0 | CP146: 13.0333 | CQ146: 19 | CR146: 51.7333 | CS146: 58.7878 | CT146: 0.0 | CU146: 58.7878
A147: 141 | B147: 165 | C147: 44.5833 | D147: 200404488 | E147: Noa Palsgraaf | F147: Widex Gzc Donk | G147: DONK | H147: West | K147: 2004 | P147: 40 | Q147: 40 | R147: 43 | S147: 43 | T147: 39 | U147: 0 | V147: 0 | W147: 12.3 | X147: 9.0200 | Y147: 0 | Z147: 4.0 | AA147: 4.0 | AB147: 4.3 | AC147: 4.3 | AD147: 3.9 | AG147: 12.3 | AH147: 9.0200 | AI147: 191 | AJ147: 49 | AK147: 47 | AL147: 49 | AM147: 51 | AN147: 49 | AO147: 0 | AP147: 0 | AQ147: 14.7 | AR147: 10.7800 | AS147: 0 | AT147: 4.9 | AU147: 4.7 | AV147: 4.9 | AW147: 5.1 | AX147: 4.9 | BA147: 14.7 | BB147: 10.7800 | BC147: 93 | BD147: 49 | BE147: 47 | BF147: 49 | BG147: 48 | BH147: 44 | BI147: 0 | BJ147: 0 | BK147: 14.4 | BL147: 10.0800 | BM147: 0 | BN147: 4.9 | BO147: 4.7 | BP147: 4.9 | BQ147: 4.8 | BR147: 4.4 | BU147: 14.4 | BV147: 10.0800 | BW147: 149 | BX147: 45 | BY147: 41 | BZ147: 40 | CA147: 40 | CB147: 41 | CC147: 0 | CD147: 0 | CE147: 12 | CF147: 9.3533 | CG147: 0 | CH147: 4.5 | CI147: 4.1 | CJ147: 4.0 | CK147: 4.0 | CL147: 4.1 | CO147: 12.2 | CP147: 9.3533 | CQ147: 175 | CR147: 39.2333 | CS147: 44.5833 | CT147: 0.0 | CU147: 44.5833
A148: 142 | B148: 184 | C148: 42.0531 | D148: 200405434 | E148: Eline Schouten | F148: WVZ | G148: WVZ | H148: West | J148: X | K148: 2004 | P148: 41 | Q148: 48 | R148: 45 | S148: 41 | T148: 40 | U148: 0 | V148: 0 | W148: 12.7 | X148: 9.3133 | Y148: 0 | Z148: 4.1 | AA148: 4.8 | AB148: 4.5 | AC148: 4.1 | AD148: 4.0 | AG148: 12.7 | AH148: 9.3133 | AI148: 185 | AJ148: 35 | AK148: 37 | AL148: 37 | AM148: 36 | AN148: 39 | AO148: 0 | AP148: 0 | AQ148: 11.0 | AR148: 8.0667 | AS148: 0 | AT148: 3.5 | AU148: 3.7 | AV148: 3.7 | AW148: 3.6 | AX148: 3.9 | BA148: 11.0 | BB148: 8.0667 | BC148: 192 | BD148: 44 | BE148: 49 | BF148: 48 | BG148: 46 | BH148: 42 | BI148: 0 | BJ148: 0 | BK148: 13.8 | BL148: 9.6600 | BM148: 0 | BN148: 4.4 | BO148: 4.9 | BP148: 4.8 | BQ148: 4.6 | BR148: 4.2 | BU148: 13.8 | BV148: 9.6600 | BW148: 171 | BX148: 40 | BY148: 45 | BZ148: 42 | CA148: 44 | CB148: 44 | CC148: 0 | CD148: 0 | CE148: 13 | CF148: 9.9667 | CG148: 0 | CH148: 4.0 | CI148: 4.5 | CJ148: 4.2 | CK148: 4.4 | CL148: 4.4 | CO148: 13.0 | CP148: 9.9667 | CQ148: 149 | CR148: 37.0067 | CS148: 42.0531 | CT148: 0.0 | CU148: 42.0531
A149: 143 | B149: 19 | C149: 58.5190 | D149: 200400606 | E149: Fleur Valk | F149: AZC | G149: AZC | H149: West | K149: 2004 | M149: L | P149: 59 | Q149: 58 | R149: 60 | S149: 56 | T149: 59 | U149: 0 | V149: 0 | W149: 17.6 | X149: 12.9067 | Y149: 0 | Z149: 5.9 | AA149: 5.8 | AB149: 6.0 | AC149: 5.6 | AD149: 5.9 | AG149: 17.6 | AH149: 12.9067 | AI149: 22 | AJ149: 53 | AK149: 48 | AL149: 56 | AM149: 58 | AN149: 57 | AO149: 0 | AP149: 0 | AQ149: 16.6 | AR149: 12.1733 | AS149: 0 | AT149: 5.3 | AU149: 4.8 | AV149: 5.6 | AW149: 5.8 | AX149: 5.7 | BA149: 16.6 | BB149: 12.1733 | BC149: 30 | BD149: 68 | BE149: 63 | BF149: 60 | BG149: 63 | BH149: 63 | BI149: 0 | BJ149: 0 | BK149: 18.9 | BL149: 13.2300 | BM149: 0 | BN149: 6.8 | BO149: 6.3 | BP149: 6.0 | BQ149: 6.3 | BR149: 6.3 | BU149: 18.9 | BV149: 13.2300 | BW149: 13 | BX149: 60 | BY149: 57 | BZ149: 55 | CA149: 57 | CB149: 58 | CC149: 0 | CD149: 0 | CE149: 17 | CF149: 13.1867 | CG149: 0 | CH149: 6.0 | CI149: 5.7 | CJ149: 5.5 | CK149: 5.7 | CL149: 5.8 | CO149: 17.2 | CP149: 13.1867 | CQ149: 12 | CR149: 51.4967 | CS149: 58.5190 | CT149: 0.0 | CU149: 58.5190
A150: 144 | B150: 28 | C150: 56.3674 | D150: 200400964 | E150: Pauline Radochyn | F150: Cadans | G150: CAD | H150: oost | K150: 2004 | M150: L | P150: 57 | Q150: 57 | R150: 58 | S150: 45 | T150: 53 | U150: 0 | V150: 0 | W150: 16.7 | X150: 12.2467 | Y150: 0 | Z150: 5.7 | AA150: 5.7 | AB150: 5.8 | AC150: 4.5 | AD150: 5.3 | AG150: 16.7 | AH150: 12.2467 | AI150: 51 | AJ150: 51 | AK150: 52 | AL150: 58 | AM150: 55 | AN150: 56 | AO150: 0 | AP150: 0 | AQ150: 16.3 | AR150: 11.9533 | AS150: 0 | AT150: 5.1 | AU150: 5.2 | AV150: 5.8 | AW150: 5.5 | AX150: 5.6 | BA150: 16.3 | BB150: 11.9533 | BC150: 39 | BD150: 57 | BE150: 60 | BF150: 60 | BG150: 60 | BH150: 67 | BI150: 0 | BJ150: 0 | BK150: 18.0 | BL150: 12.6000 | BM150: 0 | BN150: 5.7 | BO150: 6.0 | BP150: 6.0 | BQ150: 6.0 | BR150: 6.7 | BU150: 18.0 | BV150: 12.6000 | BW150: 25 | BX150: 52 | BY150: 58 | BZ150: 55 | CA150: 58 | CB150: 54 | CC150: 0 | CD150: 0 | CE150: 17 | CF150: 12.8033 | CG150: 0 | CH150: 5.2 | CI150: 5.8 | CJ150: 5.5 | CK150: 5.8 | CL150: 5.4 | CO150: 16.7 | CP150: 12.8033 | CQ150: 23 | CR150: 49.6033 | CS150: 56.3674 | CT150: 0.0 | CU150: 56.3674
A151: 145 | B151: 160 | C151: 44.8409 | D151: 200404146 | E151: Axana Gerits | F151: ZC.Eijsden | G151: eij | H151: Zuid | J151: X | K151: 2004 | P151: 42 | Q151: 52 | R151: 47 | S151: 48 | T151: 43 | U151: 0 | V151: 0 | W151: 13.8 | X151: 10.1200 | Y151: 0 | Z151: 4.2 | AA151: 5.2 | AB151: 4.7 | AC151: 4.8 | AD151: 4.3 | AG151: 13.8 | AH151: 10.1200 | AI151: 165 | AJ151: 39 | AK151: 46 | AL151: 45 | AM151: 44 | AN151: 46 | AO151: 0 | AP151: 0 | AQ151: 13.5 | AR151: 9.9000 | AS151: 0 | AT151: 3.9 | AU151: 4.6 | AV151: 4.5 | AW151: 4.4 | AX151: 4.6 | BA151: 13.5 | BB151: 9.9000 | BC151: 138 | BD151: 47 | BE151: 52 | BF151: 40 | BG151: 50 | BH151: 46 | BI151: 0 | BJ151: 0 | BK151: 14.3 | BL151: 10.0100 | BM151: 0 | BN151: 4.7 | BO151: 5.2 | BP151: 4.0 | BQ151: 5.0 | BR151: 4.6 | BU151: 14.3 | BV151: 10.0100 | BW151: 153 | BX151: 42 | BY151: 40 | BZ151: 40 | CA151: 42 | CB151: 41 | CC151: 0 | CD151: 0 | CE151: 12 | CF151: 9.4300 | CG151: 0 | CH151: 4.2 | CI151: 4.0 | CJ151: 4.0 | CK151: 4.2 | CL151: 4.1 | CO151: 12.3 | CP151: 9.4300 | CQ151: 170 | CR151: 39.4600 | CS151: 44.8409 | CT151: 0.0 | CU151: 44.8409
A152: 146 | B152: 122 | C152: 48.0380 | D152: 200305228 | E152: Dieuwke van de Berg | F152: Hieronymus | G152: Hie | H152: Zuid | K152: 2003 | P152: 53 | Q152: 59 | R152: 55 | S152: 52 | T152: 53 | U152: 0 | V152: 0 | W152: 16.1 | X152: 11.8067 | Y152: 0 | Z152: 5.3 | AA152: 5.9 | AB152: 5.5 | AC152: 5.2 | AD152: 5.3 | AG152: 16.1 | AH152: 11.8067 | AI152: 72 | AJ152: 40 | AK152: 39 | AL152: 46 | AM152: 45 | AN152: 44 | AO152: 0 | AP152: 0 | AQ152: 12.9 | AR152: 9.4600 | AS152: 0 | AT152: 4.0 | AU152: 3.9 | AV152: 4.6 | AW152: 4.5 | AX152: 4.4 | BA152: 12.9 | BB152: 9.4600 | BC152: 164 | BD152: 53 | BE152: 53 | BF152: 55 | BG152: 58 | BH152: 47 | BI152: 0 | BJ152: 0 | BK152: 16.1 | BL152: 11.2700 | BM152: 0 | BN152: 5.3 | BO152: 5.3 | BP152: 5.5 | BQ152: 5.8 | BR152: 4.7 | BU152: 16.1 | BV152: 11.2700 | BW152: 92 | BX152: 43 | BY152: 44 | BZ152: 45 | CA152: 40 | CB152: 38 | CC152: 0 | CD152: 0 | CE152: 13 | CF152: 9.7367 | CG152: 0 | CH152: 4.3 | CI152: 4.4 | CJ152: 4.5 | CK152: 4.0 | CL152: 3.8 | CO152: 12.7 | CP152: 9.7367 | CQ152: 158 | CR152: 42.2734 | CS152: 48.0380 | CT152: 0.0 | CU152: 48.0380
A153: 147 | B153: 26 | C153: 56.5341 | D153: 200304002 | E153: Femke Maertens | F153: ACZ | G153: ACZ | H153: West | K153: 2003 | M153: L | P153: 57 | Q153: 56 | R153: 60 | S153: 57 | T153: 59 | U153: 0 | V153: 0 | W153: 17.3 | X153: 12.6867 | Y153: 0 | Z153: 5.7 | AA153: 5.6 | AB153: 6.0 | AC153: 5.7 | AD153: 5.9 | AG153: 17.3 | AH153: 12.6867 | AI153: 29 | AJ153: 49 | AK153: 50 | AL153: 51 | AM153: 54 | AN153: 53 | AO153: 0 | AP153: 0 | AQ153: 15.4 | AR153: 11.2933 | AS153: 0 | AT153: 4.9 | AU153: 5.0 | AV153: 5.1 | AW153: 5.4 | AX153: 5.3 | BA153: 15.4 | BB153: 11.2933 | BC153: 66 | BD153: 64 | BE153: 67 | BF153: 63 | BG153: 63 | BH153: 67 | BI153: 0 | BJ153: 0 | BK153: 19.4 | BL153: 13.5800 | BM153: 0 | BN153: 6.4 | BO153: 6.7 | BP153: 6.3 | BQ153: 6.3 | BR153: 6.7 | BU153: 19.4 | BV153: 13.5800 | BW153: 7 | BX153: 50 | BY153: 56 | BZ153: 54 | CA153: 53 | CB153: 52 | CC153: 0 | CD153: 0 | CE153: 16 | CF153: 12.1900 | CG153: 0 | CH153: 5.0 | CI153: 5.6 | CJ153: 5.4 | CK153: 5.3 | CL153: 5.2 | CO153: 15.9 | CP153: 12.1900 | CQ153: 36 | CR153: 49.7500 | CS153: 56.5341 | CT153: 0.0 | CU153: 56.5341
A154: 148 | B154: 162 | C154: 44.7386 | D154: 200502010 | E154: Joëlle van Tol | F154: De Houtrib | G154: HOU | H154: Oost | K154: 2005 | P154: 47 | Q154: 45 | R154: 49 | S154: 47 | T154: 50 | U154: 0 | V154: 0 | W154: 14.3 | X154: 10.4867 | Y154: 0 | Z154: 4.7 | AA154: 4.5 | AB154: 4.9 | AC154: 4.7 | AD154: 5.0 | AG154: 14.3 | AH154: 10.4867 | AI154: 143 | AJ154: 41 | AK154: 47 | AL154: 39 | AM154: 41 | AN154: 48 | AO154: 0 | AP154: 0 | AQ154: 12.9 | AR154: 9.4600 | AS154: 0 | AT154: 4.1 | AU154: 4.7 | AV154: 3.9 | AW154: 4.1 | AX154: 4.8 | BA154: 12.9 | BB154: 9.4600 | BC154: 164 | BD154: 45 | BE154: 46 | BF154: 39 | BG154: 51 | BH154: 43 | BI154: 0 | BJ154: 0 | BK154: 13.4 | BL154: 9.3800 | BM154: 0 | BN154: 4.5 | BO154: 4.6 | BP154: 3.9 | BQ154: 5.1 | BR154: 4.3 | BU154: 13.4 | BV154: 9.3800 | BW154: 182 | BX154: 40 | BY154: 45 | BZ154: 44 | CA154: 43 | CB154: 44 | CC154: 0 | CD154: 0 | CE154: 13 | CF154: 10.0433 | CG154: 0 | CH154: 4.0 | CI154: 4.5 | CJ154: 4.4 | CK154: 4.3 | CL154: 4.4 | CO154: 13.1 | CP154: 10.0433 | CQ154: 144 | CR154: 39.3700 | CS154: 44.7386 | CT154: 0.0 | CU154: 44.7386
A155: 149 | B155: 2 | C155: 63.3484 | D155: 200400354 | E155: Noortje Reijnen | F155: Z.P.C.H. | G155: ZPC | H155: MidWest | K155: 2004 | M155: L | P155: 66 | Q155: 65 | R155: 64 | S155: 68 | T155: 67 | U155: 0 | V155: 0 | W155: 19.8 | X155: 14.5200 | Y155: 0 | Z155: 6.6 | AA155: 6.5 | AB155: 6.4 | AC155: 6.8 | AD155: 6.7 | AG155: 19.8 | AH155: 14.5200 | AI155: 1 | AJ155: 67 | AK155: 60 | AL155: 63 | AM155: 63 | AN155: 70 | AO155: 0 | AP155: 0 | AQ155: 19.3 | AR155: 14.1533 | AS155: 0 | AT155: 6.7 | AU155: 6.0 | AV155: 6.3 | AW155: 6.3 | AX155: 7.0 | BA155: 19.3 | BB155: 14.1533 | BC155: 3 | BD155: 63 | BE155: 68 | BF155: 61 | BG155: 64 | BH155: 67 | BI155: 0 | BJ155: 0 | BK155: 19.4 | BL155: 13.5800 | BM155: 0 | BN155: 6.3 | BO155: 6.8 | BP155: 6.1 | BQ155: 6.4 | BR155: 6.7 | BU155: 19.4 | BV155: 13.5800 | BW155: 7 | BX155: 64 | BY155: 55 | BZ155: 58 | CA155: 59 | CB155: 59 | CC155: 0 | CD155: 0 | CE155: 18 | CF155: 13.4933 | CG155: 0 | CH155: 6.4 | CI155: 5.5 | CJ155: 5.8 | CK155: 5.9 | CL155: 5.9 | CO155: 17.6 | CP155: 13.4933 | CQ155: 8 | CR155: 55.7466 | CS155: 63.3484 | CT155: 0.0 | CU155: 63.3484
A156: 150 | B156: 39 | C156: 54.5266 | D156: 200302354 | E156: Britt Huijsman | F156: De Dolfijn | G156: DOL | H156: Midwest | K156: 2003 | M156: L | P156: 58 | Q156: 57 | R156: 56 | S156: 53 | T156: 57 | U156: 0 | V156: 0 | W156: 17.0 | X156: 12.4667 | Y156: 0 | Z156: 5.8 | AA156: 5.7 | AB156: 5.6 | AC156: 5.3 | AD156: 5.7 | AG156: 17.0 | AH156: 12.4667 | AI156: 41 | AJ156: 50 | AK156: 50 | AL156: 50 | AM156: 55 | AN156: 49 | AO156: 0 | AP156: 0 | AQ156: 15.0 | AR156: 11.0000 | AS156: 0 | AT156: 5.0 | AU156: 5.0 | AV156: 5.0 | AW156: 5.5 | AX156: 4.9 | BA156: 15.0 | BB156: 11.0000 | BC156: 79 | BD156: 61 | BE156: 60 | BF156: 58 | BG156: 54 | BH156: 57 | BI156: 0 | BJ156: 0 | BK156: 17.5 | BL156: 12.2500 | BM156: 0 | BN156: 6.1 | BO156: 6.0 | BP156: 5.8 | BQ156: 5.4 | BR156: 5.7 | BU156: 17.5 | BV156: 12.2500 | BW156: 39 | BX156: 50 | BY156: 54 | BZ156: 53 | CA156: 56 | CB156: 53 | CC156: 0 | CD156: 0 | CE156: 16 | CF156: 12.2667 | CG156: 0 | CH156: 5.0 | CI156: 5.4 | CJ156: 5.3 | CK156: 5.6 | CL156: 5.3 | CO156: 16.0 | CP156: 12.2667 | CQ156: 34 | CR156: 47.9834 | CS156: 54.5266 | CT156: 0.0 | CU156: 54.5266
A157: 151 | B157: 81 | C157: 51.0075 | D157: 200503126 | E157: Anaïs van der Vliet | F157: Widex Gzc Donk | G157: DONK | H157: West | K157: 2005 | M157: L | P157: 49 | Q157: 53 | R157: 52 | S157: 48 | T157: 55 | U157: 0 | V157: 0 | W157: 15.4 | X157: 11.2933 | Y157: 0 | Z157: 4.9 | AA157: 5.3 | AB157: 5.2 | AC157: 4.8 | AD157: 5.5 | AG157: 15.4 | AH157: 11.2933 | AI157: 102 | AJ157: 50 | AK157: 50 | AL157: 53 | AM157: 53 | AN157: 49 | AO157: 0 | AP157: 0 | AQ157: 15.3 | AR157: 11.2200 | AS157: 0 | AT157: 5.0 | AU157: 5.0 | AV157: 5.3 | AW157: 5.3 | AX157: 4.9 | BA157: 15.3 | BB157: 11.2200 | BC157: 69 | BD157: 52 | BE157: 52 | BF157: 59 | BG157: 58 | BH157: 53 | BI157: 0 | BJ157: 0 | BK157: 16.3 | BL157: 11.4100 | BM157: 0 | BN157: 5.2 | BO157: 5.2 | BP157: 5.9 | BQ157: 5.8 | BR157: 5.3 | BU157: 16.3 | BV157: 11.4100 | BW157: 86 | BX157: 41 | BY157: 45 | BZ157: 49 | CA157: 49 | CB157: 49 | CC157: 0 | CD157: 0 | CE157: 14 | CF157: 10.9633 | CG157: 0 | CH157: 4.1 | CI157: 4.5 | CJ157: 4.9 | CK157: 4.9 | CL157: 4.9 | CO157: 14.3 | CP157: 10.9633 | CQ157: 96 | CR157: 44.8866 | CS157: 51.0075 | CT157: 0.0 | CU157: 51.0075
A158: 152 | B158: 7 | C158: 61.5341 | D158: 200302244 | E158: Isa Turnhout | F158: AZC | G158: AZC | H158: West | K158: 2003 | M158: L | P158: 60 | Q158: 66 | R158: 65 | S158: 63 | T158: 63 | U158: 0 | V158: 0 | W158: 19.1 | X158: 14.0067 | Y158: 0 | Z158: 6.0 | AA158: 6.6 | AB158: 6.5 | AC158: 6.3 | AD158: 6.3 | AG158: 19.1 | AH158: 14.0067 | AI158: 5 | AJ158: 61 | AK158: 57 | AL158: 59 | AM158: 61 | AN158: 68 | AO158: 0 | AP158: 0 | AQ158: 18.1 | AR158: 13.2733 | AS158: 0 | AT158: 6.1 | AU158: 5.7 | AV158: 5.9 | AW158: 6.1 | AX158: 6.8 | BA158: 18.1 | BB158: 13.2733 | BC158: 8 | BD158: 67 | BE158: 59 | BF158: 63 | BG158: 61 | BH158: 66 | BI158: 0 | BJ158: 0 | BK158: 19.0 | BL158: 13.3000 | BM158: 0 | BN158: 6.7 | BO158: 5.9 | BP158: 6.3 | BQ158: 6.1 | BR158: 6.6 | BU158: 19.0 | BV158: 13.3000 | BW158: 11 | BX158: 60 | BY158: 56 | BZ158: 59 | CA158: 60 | CB158: 58 | CC158: 0 | CD158: 0 | CE158: 18 | CF158: 13.5700 | CG158: 0 | CH158: 6.0 | CI158: 5.6 | CJ158: 5.9 | CK158: 6.0 | CL158: 5.8 | CO158: 17.7 | CP158: 13.5700 | CQ158: 7 | CR158: 54.1500 | CS158: 61.5341 | CT158: 0.0 | CU158: 61.5341
A159: 153 | B159: 147 | C159: 46.1818 | D159: 200401990 | E159: Veerle Boerefijn | F159: AZC | G159: AZC | H159: West | K159: 2004 | P159: 47 | Q159: 47 | R159: 47 | S159: 50 | T159: 50 | U159: 0 | V159: 0 | W159: 14.4 | X159: 10.5600 | Y159: 0 | Z159: 4.7 | AA159: 4.7 | AB159: 4.7 | AC159: 5.0 | AD159: 5.0 | AG159: 14.4 | AH159: 10.5600 | AI159: 137 | AJ159: 47 | AK159: 43 | AL159: 44 | AM159: 47 | AN159: 47 | AO159: 0 | AP159: 0 | AQ159: 13.8 | AR159: 10.1200 | AS159: 0 | AT159: 4.7 | AU159: 4.3 | AV159: 4.4 | AW159: 4.7 | AX159: 4.7 | BA159: 13.8 | BB159: 10.1200 | BC159: 126 | BD159: 48 | BE159: 45 | BF159: 38 | BG159: 47 | BH159: 42 | BI159: 0 | BJ159: 0 | BK159: 13.4 | BL159: 9.3800 | BM159: 0 | BN159: 4.8 | BO159: 4.5 | BP159: 3.8 | BQ159: 4.7 | BR159: 4.2 | BU159: 13.4 | BV159: 9.3800 | BW159: 182 | BX159: 42 | BY159: 45 | BZ159: 47 | CA159: 47 | CB159: 46 | CC159: 0 | CD159: 0 | CE159: 14 | CF159: 10.5800 | CG159: 0 | CH159: 4.2 | CI159: 4.5 | CJ159: 4.7 | CK159: 4.7 | CL159: 4.6 | CO159: 13.8 | CP159: 10.5800 | CQ159: 117 | CR159: 40.6400 | CS159: 46.1818 | CT159: 0.0 | CU159: 46.1818
A160: 154 | B160: 65 | C160: 51.9053 | D160: 200400260 | E160: Esther Hermsen | F160: Cadans | G160: CAD | H160: oost | K160: 2004 | M160: L | P160: 55 | Q160: 60 | R160: 57 | S160: 58 | T160: 56 | U160: 0 | V160: 0 | W160: 17.1 | X160: 12.5400 | Y160: 0 | Z160: 5.5 | AA160: 6.0 | AB160: 5.7 | AC160: 5.8 | AD160: 5.6 | AG160: 17.1 | AH160: 12.5400 | AI160: 38 | AJ160: 51 | AK160: 49 | AL160: 48 | AM160: 50 | AN160: 48 | AO160: 0 | AP160: 0 | AQ160: 14.7 | AR160: 10.7800 | AS160: 0 | AT160: 5.1 | AU160: 4.9 | AV160: 4.8 | AW160: 5.0 | AX160: 4.8 | BA160: 14.7 | BB160: 10.7800 | BC160: 93 | BD160: 50 | BE160: 50 | BF160: 56 | BG160: 54 | BH160: 46 | BI160: 0 | BJ160: 0 | BK160: 15.4 | BL160: 10.7800 | BM160: 0 | BN160: 5.0 | BO160: 5.0 | BP160: 5.6 | BQ160: 5.4 | BR160: 4.6 | BU160: 15.4 | BV160: 10.7800 | BW160: 111 | BX160: 50 | BY160: 52 | BZ160: 51 | CA160: 49 | CB160: 50 | CC160: 0 | CD160: 0 | CE160: 15 | CF160: 11.5767 | CG160: 0 | CH160: 5.0 | CI160: 5.2 | CJ160: 5.1 | CK160: 4.9 | CL160: 5.0 | CO160: 15.1 | CP160: 11.5767 | CQ160: 58 | CR160: 45.6767 | CS160: 51.9053 | CT160: 0.0 | CU160: 51.9053
A161: 155 | B161: 53 | C161: 53.6136 | D161: 200302570 | E161: Jikke Heijne | F161: Swol 1894 | G161: SWOL | H161: Oost | K161: 2003 | M161: L | P161: 56 | Q161: 49 | R161: 53 | S161: 56 | T161: 52 | U161: 0 | V161: 0 | W161: 16.1 | X161: 11.8067 | Y161: 0 | Z161: 5.6 | AA161: 4.9 | AB161: 5.3 | AC161: 5.6 | AD161: 5.2 | AG161: 16.1 | AH161: 11.8067 | AI161: 72 | AJ161: 52 | AK161: 48 | AL161: 50 | AM161: 51 | AN161: 59 | AO161: 0 | AP161: 0 | AQ161: 15.3 | AR161: 11.2200 | AS161: 0 | AT161: 5.2 | AU161: 4.8 | AV161: 5.0 | AW161: 5.1 | AX161: 5.9 | BA161: 15.3 | BB161: 11.2200 | BC161: 69 | BD161: 59 | BE161: 58 | BF161: 57 | BG161: 57 | BH161: 55 | BI161: 0 | BJ161: 0 | BK161: 17.2 | BL161: 12.0400 | BM161: 0 | BN161: 5.9 | BO161: 5.8 | BP161: 5.7 | BQ161: 5.7 | BR161: 5.5 | BU161: 17.2 | BV161: 12.0400 | BW161: 52 | BX161: 43 | BY161: 53 | BZ161: 53 | CA161: 53 | CB161: 52 | CC161: 0 | CD161: 0 | CE161: 16 | CF161: 12.1133 | CG161: 0 | CH161: 4.3 | CI161: 5.3 | CJ161: 5.3 | CK161: 5.3 | CL161: 5.2 | CO161: 15.8 | CP161: 12.1133 | CQ161: 37 | CR161: 47.1800 | CS161: 53.6136 | CT161: 0.0 | CU161: 53.6136
A162: 156 | B162: 164 | C162: 44.5910 | D162: 200503690 | E162: Veerle Bausch | F162: Hellas-Glana | G162: Hellas | H162: Zuid | J162: X | K162: 2005 | P162: 48 | Q162: 53 | R162: 47 | S162: 48 | T162: 47 | U162: 0 | V162: 0 | W162: 14.3 | X162: 10.4867 | Y162: 0 | Z162: 4.8 | AA162: 5.3 | AB162: 4.7 | AC162: 4.8 | AD162: 4.7 | AG162: 14.3 | AH162: 10.4867 | AI162: 143 | AJ162: 48 | AK162: 43 | AL162: 43 | AM162: 42 | AN162: 45 | AO162: 0 | AP162: 0 | AQ162: 13.1 | AR162: 9.6067 | AS162: 0 | AT162: 4.8 | AU162: 4.3 | AV162: 4.3 | AW162: 4.2 | AX162: 4.5 | BA162: 13.1 | BB162: 9.6067 | BC162: 154 | BD162: 48 | BE162: 51 | BF162: 44 | BG162: 49 | BH162: 44 | BI162: 0 | BJ162: 0 | BK162: 14.1 | BL162: 9.8700 | BM162: 0 | BN162: 4.8 | BO162: 5.1 | BP162: 4.4 | BQ162: 4.9 | BR162: 4.4 | BU162: 14.1 | BV162: 9.8700 | BW162: 160 | BX162: 41 | BY162: 41 | BZ162: 40 | CA162: 40 | CB162: 39 | CC162: 0 | CD162: 0 | CE162: 12 | CF162: 9.2767 | CG162: 0 | CH162: 4.1 | CI162: 4.1 | CJ162: 4.0 | CK162: 4.0 | CL162: 3.9 | CO162: 12.1 | CP162: 9.2767 | CQ162: 179 | CR162: 39.2401 | CS162: 44.5910 | CT162: 0.0 | CU162: 44.5910
A163: 157 | B163: 84 | C163: 50.7766 | D163: 200302798 | E163: Esther Lanser | F163: ACZ | G163: ACZ | H163: West | K163: 2003 | M163: L | N163: Age II | P163: 61 | Q163: 52 | R163: 57 | S163: 56 | T163: 55 | U163: 0 | V163: 0 | W163: 16.8 | X163: 12.3200 | Y163: 0 | Z163: 6.1 | AA163: 5.2 | AB163: 5.7 | AC163: 5.6 | AD163: 5.5 | AG163: 16.8 | AH163: 12.3200 | AI163: 48 | AJ163: 39 | AK163: 37 | AL163: 40 | AM163: 36 | AN163: 37 | AO163: 0 | AP163: 0 | AQ163: 11.3 | AR163: 8.2867 | AS163: 0 | AT163: 3.9 | AU163: 3.7 | AV163: 4.0 | AW163: 3.6 | AX163: 3.7 | BA163: 11.3 | BB163: 8.2867 | BC163: 189 | BD163: 59 | BE163: 53 | BF163: 52 | BG163: 60 | BH163: 62 | BI163: 0 | BJ163: 0 | BK163: 17.2 | BL163: 12.0400 | BM163: 0 | BN163: 5.9 | BO163: 5.3 | BP163: 5.2 | BQ163: 6.0 | BR163: 6.2 | BU163: 17.2 | BV163: 12.0400 | BW163: 52 | BX163: 55 | BY163: 53 | BZ163: 51 | CA163: 52 | CB163: 52 | CC163: 0 | CD163: 0 | CE163: 16 | CF163: 12.0367 | CG163: 0 | CH163: 5.5 | CI163: 5.3 | CJ163: 5.1 | CK163: 5.2 | CL163: 5.2 | CO163: 15.7 | CP163: 12.0367 | CQ163: 41 | CR163: 44.6834 | CS163: 50.7766 | CT163: 0.0 | CU163: 50.7766
A164: 158 | B164: 3 | C164: 63.1553 | D164: 200302650 | E164: Zärrin Sahertian | F164: Z.P.C.H. | G164: ZPC | H164: MidWest | K164: 2003 | M164: L | P164: 63 | Q164: 58 | R164: 61 | S164: 53 | T164: 67 | U164: 0 | V164: 0 | W164: 18.2 | X164: 13.3467 | Y164: 0 | Z164: 6.3 | AA164: 5.8 | AB164: 6.1 | AC164: 5.3 | AD164: 6.7 | AG164: 18.2 | AH164: 13.3467 | AI164: 12 | AJ164: 64 | AK164: 61 | AL164: 63 | AM164: 65 | AN164: 69 | AO164: 0 | AP164: 0 | AQ164: 19.2 | AR164: 14.0800 | AS164: 0 | AT164: 6.4 | AU164: 6.1 | AV164: 6.3 | AW164: 6.5 | AX164: 6.9 | BA164: 19.2 | BB164: 14.0800 | BC164: 4 | BD164: 70 | BE164: 66 | BF164: 64 | BG164: 69 | BH164: 70 | BI164: 0 | BJ164: 0 | BK164: 20.5 | BL164: 14.3500 | BM164: 0 | BN164: 7.0 | BO164: 6.6 | BP164: 6.4 | BQ164: 6.9 | BR164: 7.0 | BU164: 20.5 | BV164: 14.3500 | BW164: 1 | BX164: 65 | BY164: 59 | BZ164: 59 | CA164: 60 | CB164: 61 | CC164: 0 | CD164: 0 | CE164: 18 | CF164: 13.8000 | CG164: 0 | CH164: 6.5 | CI164: 5.9 | CJ164: 5.9 | CK164: 6.0 | CL164: 6.1 | CO164: 18.0 | CP164: 13.8000 | CQ164: 6 | CR164: 55.5767 | CS164: 63.1553 | CT164: 0.0 | CU164: 63.1553
A165: 159 | B165: 71 | C165: 51.6628 | D165: 200400336 | E165: Silke Tolsma | F165: VZC Veenendaal | G165: VZV | H165: Midwest | K165: 2004 | M165: L | P165: 49 | Q165: 60 | R165: 54 | S165: 58 | T165: 51 | U165: 0 | V165: 0 | W165: 16.3 | X165: 11.9533 | Y165: 0 | Z165: 4.9 | AA165: 6.0 | AB165: 5.4 | AC165: 5.8 | AD165: 5.1 | AG165: 16.3 | AH165: 11.9533 | AI165: 62 | AJ165: 53 | AK165: 52 | AL165: 56 | AM165: 58 | AN165: 47 | AO165: 0 | AP165: 0 | AQ165: 16.1 | AR165: 11.8067 | AS165: 0 | AT165: 5.3 | AU165: 5.2 | AV165: 5.6 | AW165: 5.8 | AX165: 4.7 | BA165: 16.1 | BB165: 11.8067 | BC165: 44 | BD165: 51 | BE165: 53 | BF165: 49 | BG165: 56 | BH165: 56 | BI165: 0 | BJ165: 0 | BK165: 16.0 | BL165: 11.2000 | BM165: 0 | BN165: 5.1 | BO165: 5.3 | BP165: 4.9 | BQ165: 5.6 | BR165: 5.6 | BU165: 16.0 | BV165: 11.2000 | BW165: 95 | BX165: 46 | BY165: 43 | BZ165: 48 | CA165: 47 | CB165: 44 | CC165: 0 | CD165: 0 | CE165: 14 | CF165: 10.5033 | CG165: 0 | CH165: 4.6 | CI165: 4.3 | CJ165: 4.8 | CK165: 4.7 | CL165: 4.4 | CO165: 13.7 | CP165: 10.5033 | CQ165: 121 | CR165: 45.4633 | CS165: 51.6628 | CT165: 0.0 | CU165: 51.6628
A166: 160 | B166: 120 | C166: 48.1516 | D166: 200503128 | E166: Marielou van der Vliet | F166: Widex Gzc Donk | G166: DONK | H166: West | K166: 2005 | M166: L | P166: 45 | Q166: 43 | R166: 46 | S166: 43 | T166: 40 | U166: 0 | V166: 0 | W166: 13.1 | X166: 9.6067 | Y166: 0 | Z166: 4.5 | AA166: 4.3 | AB166: 4.6 | AC166: 4.3 | AD166: 4.0 | AG166: 13.1 | AH166: 9.6067 | AI166: 180 | AJ166: 54 | AK166: 49 | AL166: 49 | AM166: 52 | AN166: 52 | AO166: 0 | AP166: 0 | AQ166: 15.3 | AR166: 11.2200 | AS166: 0 | AT166: 5.4 | AU166: 4.9 | AV166: 4.9 | AW166: 5.2 | AX166: 5.2 | BA166: 15.3 | BB166: 11.2200 | BC166: 69 | BD166: 50 | BE166: 48 | BF166: 49 | BG166: 50 | BH166: 52 | BI166: 0 | BJ166: 0 | BK166: 14.9 | BL166: 10.4300 | BM166: 0 | BN166: 5.0 | BO166: 4.8 | BP166: 4.9 | BQ166: 5.0 | BR166: 5.2 | BU166: 14.9 | BV166: 10.4300 | BW166: 127 | BX166: 48 | BY166: 49 | BZ166: 49 | CA166: 48 | CB166: 48 | CC166: 0 | CD166: 0 | CE166: 15 | CF166: 11.1167 | CG166: 0 | CH166: 4.8 | CI166: 4.9 | CJ166: 4.9 | CK166: 4.8 | CL166: 4.8 | CO166: 14.5 | CP166: 11.1167 | CQ166: 87 | CR166: 42.3734 | CS166: 48.1516 | CT166: 0.0 | CU166: 48.1516
A167: 161 | B167: 31 | C167: 55.6893 | D167: 200304068 | E167: Charlotte Leemburg | F167: BZ&PC | G167: BZP | H167: West | K167: 2003 | M167: L | P167: 52 | Q167: 59 | R167: 58 | S167: 58 | T167: 56 | U167: 0 | V167: 0 | W167: 17.2 | X167: 12.6133 | Y167: 0 | Z167: 5.2 | AA167: 5.9 | AB167: 5.8 | AC167: 5.8 | AD167: 5.6 | AG167: 17.2 | AH167: 12.6133 | AI167: 32 | AJ167: 55 | AK167: 52 | AL167: 57 | AM167: 56 | AN167: 54 | AO167: 0 | AP167: 0 | AQ167: 16.5 | AR167: 12.1000 | AS167: 0 | AT167: 5.5 | AU167: 5.2 | AV167: 5.7 | AW167: 5.6 | AX167: 5.4 | BA167: 16.5 | BB167: 12.1000 | BC167: 32 | BD167: 60 | BE167: 57 | BF167: 56 | BG167: 57 | BH167: 62 | BI167: 0 | BJ167: 0 | BK167: 17.4 | BL167: 12.1800 | BM167: 0 | BN167: 6.0 | BO167: 5.7 | BP167: 5.6 | BQ167: 5.7 | BR167: 6.2 | BU167: 17.4 | BV167: 12.1800 | BW167: 42 | BX167: 51 | BY167: 54 | BZ167: 50 | CA167: 53 | CB167: 55 | CC167: 0 | CD167: 0 | CE167: 16 | CF167: 12.1133 | CG167: 0 | CH167: 5.1 | CI167: 5.4 | CJ167: 5.0 | CK167: 5.3 | CL167: 5.5 | CO167: 15.8 | CP167: 12.1133 | CQ167: 37 | CR167: 49.0066 | CS167: 55.6893 | CT167: 0.0 | CU167: 55.6893
A168: 162 | B168: 51 | C168: 54.0265 | D168: 200400948 | E168: Alisa Brandon | F168: Swol 1894 | H168: Oost | K168: 2004 | M168: L | P168: 51 | Q168: 53 | R168: 58 | S168: 55 | T168: 58 | U168: 0 | V168: 0 | W168: 16.6 | X168: 12.1733 | Y168: 0 | Z168: 5.1 | AA168: 5.3 | AB168: 5.8 | AC168: 5.5 | AD168: 5.8 | AG168: 16.6 | AH168: 12.1733 | AI168: 55 | AJ168: 53 | AK168: 49 | AL168: 53 | AM168: 53 | AN168: 52 | AO168: 0 | AP168: 0 | AQ168: 15.8 | AR168: 11.5867 | AS168: 0 | AT168: 5.3 | AU168: 4.9 | AV168: 5.3 | AW168: 5.3 | AX168: 5.2 | BA168: 15.8 | BB168: 11.5867 | BC168: 50 | BD168: 54 | BE168: 62 | BF168: 57 | BG168: 58 | BH168: 55 | BI168: 0 | BJ168: 0 | BK168: 17.0 | BL168: 11.9000 | BM168: 0 | BN168: 5.4 | BO168: 6.2 | BP168: 5.7 | BQ168: 5.8 | BR168: 5.5 | BU168: 17.0 | BV168: 11.9000 | BW168: 63 | BX168: 53 | BY168: 51 | BZ168: 51 | CA168: 52 | CB168: 52 | CC168: 0 | CD168: 0 | CE168: 16 | CF168: 11.8833 | CG168: 0 | CH168: 5.3 | CI168: 5.1 | CJ168: 5.1 | CK168: 5.2 | CL168: 5.2 | CO168: 15.5 | CP168: 11.8833 | CQ168: 44 | CR168: 47.5433 | CS168: 54.0265 | CT168: 0.0 | CU168: 54.0265
A169: 163 | B169: 79 | C169: 51.3258 | D169: 200300796 | E169: Anne Willems | F169: ZC.Eijsden | G169: eij | H169: Zuid | K169: 2003 | M169: L | P169: 54 | Q169: 54 | R169: 56 | S169: 59 | T169: 52 | U169: 0 | V169: 0 | W169: 16.4 | X169: 12.0267 | Y169: 0 | Z169: 5.4 | AA169: 5.4 | AB169: 5.6 | AC169: 5.9 | AD169: 5.2 | AG169: 16.4 | AH169: 12.0267 | AI169: 58 | AJ169: 46 | AK169: 50 | AL169: 46 | AM169: 47 | AN169: 48 | AO169: 0 | AP169: 0 | AQ169: 14.1 | AR169: 10.3400 | AS169: 0 | AT169: 4.6 | AU169: 5.0 | AV169: 4.6 | AW169: 4.7 | AX169: 4.8 | BA169: 14.1 | BB169: 10.3400 | BC169: 114 | BD169: 56 | BE169: 60 | BF169: 56 | BG169: 56 | BH169: 53 | BI169: 0 | BJ169: 0 | BK169: 16.8 | BL169: 11.7600 | BM169: 0 | BN169: 5.6 | BO169: 6.0 | BP169: 5.6 | BQ169: 5.6 | BR169: 5.3 | BU169: 16.8 | BV169: 11.7600 | BW169: 68 | BX169: 46 | BY169: 47 | BZ169: 50 | CA169: 47 | CB169: 50 | CC169: 0 | CD169: 0 | CE169: 14 | CF169: 11.0400 | CG169: 0 | CH169: 4.6 | CI169: 4.7 | CJ169: 5.0 | CK169: 4.7 | CL169: 5.0 | CO169: 14.4 | CP169: 11.0400 | CQ169: 92 | CR169: 45.1667 | CS169: 51.3258 | CT169: 0.0 | CU169: 51.3258
A170: 164 | B170: 185 | C170: 41.9432 | D170: 200501056 | E170: Devina Baank | F170: De Houtrib | G170: HOU | H170: Oost | J170: X | K170: 2005 | P170: 43 | Q170: 41 | R170: 46 | S170: 46 | T170: 47 | U170: 0 | V170: 0 | W170: 13.5 | X170: 9.9000 | Y170: 0 | Z170: 4.3 | AA170: 4.1 | AB170: 4.6 | AC170: 4.6 | AD170: 4.7 | AG170: 13.5 | AH170: 9.9000 | AI170: 172 | AJ170: 39 | AK170: 40 | AL170: 50 | AM170: 48 | AN170: 35 | AO170: 0 | AP170: 0 | AQ170: 12.7 | AR170: 9.3133 | AS170: 0 | AT170: 3.9 | AU170: 4.0 | AV170: 5.0 | AW170: 4.8 | AX170: 3.5 | BA170: 12.7 | BB170: 9.3133 | BC170: 169 | BD170: 39 | BE170: 43 | BF170: 40 | BG170: 38 | BH170: 37 | BI170: 0 | BJ170: 0 | BK170: 11.7 | BL170: 8.1900 | BM170: 0 | BN170: 3.9 | BO170: 4.3 | BP170: 4.0 | BQ170: 3.8 | BR170: 3.7 | BU170: 11.7 | BV170: 8.1900 | BW170: 197 | BX170: 40 | BY170: 42 | BZ170: 41 | CA170: 41 | CB170: 42 | CC170: 0 | CD170: 0 | CE170: 12 | CF170: 9.5067 | CG170: 0 | CH170: 4.0 | CI170: 4.2 | CJ170: 4.1 | CK170: 4.1 | CL170: 4.2 | CO170: 12.4 | CP170: 9.5067 | CQ170: 169 | CR170: 36.9100 | CS170: 41.9432 | CT170: 0.0 | CU170: 41.9432
A171: 165 | B171: 166 | C171: 44.5265 | D171: 200405606 | E171: Marta Podebska | F171: Z.P.C.H. | G171: ZPC | H171: MidWest | J171: X | K171: 2004 | P171: 47 | Q171: 44 | R171: 44 | S171: 43 | T171: 40 | U171: 0 | V171: 0 | W171: 13.1 | X171: 9.6067 | Y171: 0 | Z171: 4.7 | AA171: 4.4 | AB171: 4.4 | AC171: 4.3 | AD171: 4.0 | AG171: 13.1 | AH171: 9.6067 | AI171: 180 | AJ171: 40 | AK171: 40 | AL171: 43 | AM171: 41 | AN171: 34 | AO171: 0 | AP171: 0 | AQ171: 12.1 | AR171: 8.8733 | AS171: 0 | AT171: 4.0 | AU171: 4.0 | AV171: 4.3 | AW171: 4.1 | AX171: 3.4 | BA171: 12.1 | BB171: 8.8733 | BC171: 181 | BD171: 50 | BE171: 51 | BF171: 54 | BG171: 48 | BH171: 44 | BI171: 0 | BJ171: 0 | BK171: 14.9 | BL171: 10.4300 | BM171: 0 | BN171: 5.0 | BO171: 5.1 | BP171: 5.4 | BQ171: 4.8 | BR171: 4.4 | BU171: 14.9 | BV171: 10.4300 | BW171: 127 | BX171: 45 | BY171: 45 | BZ171: 48 | CA171: 43 | CB171: 44 | CC171: 0 | CD171: 0 | CE171: 13 | CF171: 10.2733 | CG171: 0 | CH171: 4.5 | CI171: 4.5 | CJ171: 4.8 | CK171: 4.3 | CL171: 4.4 | CO171: 13.4 | CP171: 10.2733 | CQ171: 135 | CR171: 39.1833 | CS171: 44.5265 | CT171: 0.0 | CU171: 44.5265
A172: 166 | B172: 186 | C172: 41.5909 | D172: 200404874 | E172: Elsa Veldhuijzen | F172: PSV Synchro Team Eindhoven | G172: PSV | H172: Zuid | J172: X | K172: 2004 | P172: 48 | Q172: 48 | R172: 46 | S172: 52 | T172: 46 | U172: 0 | V172: 0 | W172: 14.2 | X172: 10.4133 | Y172: 0 | Z172: 4.8 | AA172: 4.8 | AB172: 4.6 | AC172: 5.2 | AD172: 4.6 | AG172: 14.2 | AH172: 10.4133 | AI172: 148 | AJ172: 42 | AK172: 35 | AL172: 36 | AM172: 34 | AN172: 37 | AO172: 0 | AP172: 0 | AQ172: 10.8 | AR172: 7.9200 | AS172: 0 | AT172: 4.2 | AU172: 3.5 | AV172: 3.6 | AW172: 3.4 | AX172: 3.7 | BA172: 10.8 | BB172: 7.9200 | BC172: 195 | BD172: 48 | BE172: 46 | BF172: 45 | BG172: 43 | BH172: 44 | BI172: 0 | BJ172: 0 | BK172: 13.5 | BL172: 9.4500 | BM172: 0 | BN172: 4.8 | BO172: 4.6 | BP172: 4.5 | BQ172: 4.3 | BR172: 4.4 | BU172: 13.5 | BV172: 9.4500 | BW172: 178 | BX172: 37 | BY172: 41 | BZ172: 39 | CA172: 38 | CB172: 38 | CC172: 0 | CD172: 0 | CE172: 12 | CF172: 8.8167 | CG172: 0 | CH172: 3.7 | CI172: 4.1 | CJ172: 3.9 | CK172: 3.8 | CL172: 3.8 | CO172: 11.5 | CP172: 8.8167 | CQ172: 192 | CR172: 36.6000 | CS172: 41.5909 | CT172: 0.0 | CU172: 41.5909
A173: 167 | B173: 153 | C173: 45.5341 | D173: 200405556 | E173: Kaoutar Ouahadi | F173: De Dolfijn | G173: DOL | H173: Midwest | J173: X | K173: 2004 | N173: Age II | P173: 43 | Q173: 47 | R173: 48 | S173: 44 | T173: 47 | U173: 0 | V173: 0 | W173: 13.8 | X173: 10.1200 | Y173: 0 | Z173: 4.3 | AA173: 4.7 | AB173: 4.8 | AC173: 4.4 | AD173: 4.7 | AG173: 13.8 | AH173: 10.1200 | AI173: 165 | AJ173: 45 | AK173: 45 | AL173: 42 | AM173: 45 | AN173: 44 | AO173: 0 | AP173: 0 | AQ173: 13.4 | AR173: 9.8267 | AS173: 0 | AT173: 4.5 | AU173: 4.5 | AV173: 4.2 | AW173: 4.5 | AX173: 4.4 | BA173: 13.4 | BB173: 9.8267 | BC173: 144 | BD173: 49 | BE173: 50 | BF173: 44 | BG173: 45 | BH173: 50 | BI173: 0 | BJ173: 0 | BK173: 14.4 | BL173: 10.0800 | BM173: 0 | BN173: 4.9 | BO173: 5.0 | BP173: 4.4 | BQ173: 4.5 | BR173: 5.0 | BU173: 14.4 | BV173: 10.0800 | BW173: 149 | BX173: 41 | BY173: 43 | BZ173: 47 | CA173: 47 | CB173: 40 | CC173: 0 | CD173: 0 | CE173: 13 | CF173: 10.0433 | CG173: 0 | CH173: 4.1 | CI173: 4.3 | CJ173: 4.7 | CK173: 4.7 | CL173: 4.0 | CO173: 13.1 | CP173: 10.0433 | CQ173: 144 | CR173: 40.0700 | CS173: 45.5341 | CT173: 0.0 | CU173: 45.5341
A174: 168 | B174: 150 | C174: 45.9507 | D174: 200501332 | E174: Dionne Kulderij | F174: ZV de Zaan | G174: zaa | H174: MidWest | J174: X | K174: 2005 | N174: Age II | P174: 47 | Q174: 43 | R174: 49 | S174: 55 | T174: 49 | U174: 0 | V174: 0 | W174: 14.5 | X174: 10.6333 | Y174: 0 | Z174: 4.7 | AA174: 4.3 | AB174: 4.9 | AC174: 5.5 | AD174: 4.9 | AG174: 14.5 | AH174: 10.6333 | AI174: 130 | AJ174: 44 | AK174: 41 | AL174: 40 | AM174: 46 | AN174: 45 | AO174: 0 | AP174: 0 | AQ174: 13.0 | AR174: 9.5333 | AS174: 0 | AT174: 4.4 | AU174: 4.1 | AV174: 4.0 | AW174: 4.6 | AX174: 4.5 | BA174: 13.0 | BB174: 9.5333 | BC174: 159 | BD174: 46 | BE174: 51 | BF174: 46 | BG174: 51 | BH174: 48 | BI174: 0 | BJ174: 0 | BK174: 14.5 | BL174: 10.1500 | BM174: 0 | BN174: 4.6 | BO174: 5.1 | BP174: 4.6 | BQ174: 5.1 | BR174: 4.8 | BU174: 14.5 | BV174: 10.1500 | BW174: 144 | BX174: 45 | BY174: 41 | BZ174: 46 | CA174: 44 | CB174: 43 | CC174: 0 | CD174: 0 | CE174: 13 | CF174: 10.1200 | CG174: 0 | CH174: 4.5 | CI174: 4.1 | CJ174: 4.6 | CK174: 4.4 | CL174: 4.3 | CO174: 13.2 | CP174: 10.1200 | CQ174: 139 | CR174: 40.4366 | CS174: 45.9507 | CT174: 0.0 | CU174: 45.9507
A175: 169 | B175: 187 | C175: 41.5530 | D175: 200503582 | E175: July Vermeulen | F175: Widex Gzc Donk | G175: DONK | H175: West | K175: 2005 | P175: 45 | Q175: 50 | R175: 48 | S175: 48 | T175: 46 | U175: 0 | V175: 0 | W175: 14.2 | X175: 10.4133 | Y175: 0 | Z175: 4.5 | AA175: 5.0 | AB175: 4.8 | AC175: 4.8 | AD175: 4.6 | AG175: 14.2 | AH175: 10.4133 | AI175: 148 | AJ175: 35 | AK175: 33 | AL175: 35 | AM175: 35 | AN175: 32 | AO175: 0 | AP175: 0 | AQ175: 10.3 | AR175: 7.5533 | AS175: 0 | AT175: 3.5 | AU175: 3.3 | AV175: 3.5 | AW175: 3.5 | AX175: 3.2 | BA175: 10.3 | BB175: 7.5533 | BC175: 196 | BD175: 45 | BE175: 43 | BF175: 44 | BG175: 42 | BH175: 44 | BI175: 0 | BJ175: 0 | BK175: 13.1 | BL175: 9.1700 | BM175: 0 | BN175: 4.5 | BO175: 4.3 | BP175: 4.4 | BQ175: 4.2 | BR175: 4.4 | BU175: 13.1 | BV175: 9.1700 | BW175: 189 | BX175: 39 | BY175: 43 | BZ175: 44 | CA175: 40 | CB175: 40 | CC175: 0 | CD175: 0 | CE175: 12 | CF175: 9.4300 | CG175: 0 | CH175: 3.9 | CI175: 4.3 | CJ175: 4.4 | CK175: 4.0 | CL175: 4.0 | CO175: 12.3 | CP175: 9.4300 | CQ175: 170 | CR175: 36.5666 | CS175: 41.5530 | CT175: 0.0 | CU175: 41.5530
A176: 170 | B176: 47 | C176: 54.2385 | D176: 200302568 | E176: Maggie Jiroutova | F176: AZC | G176: AZC | H176: West | K176: 2003 | M176: L | P176: 54 | Q176: 56 | R176: 55 | S176: 57 | T176: 55 | U176: 0 | V176: 0 | W176: 16.6 | X176: 12.1733 | Y176: 0 | Z176: 5.4 | AA176: 5.6 | AB176: 5.5 | AC176: 5.7 | AD176: 5.5 | AG176: 16.6 | AH176: 12.1733 | AI176: 55 | AJ176: 55 | AK176: 50 | AL176: 47 | AM176: 53 | AN176: 54 | AO176: 0 | AP176: 0 | AQ176: 15.7 | AR176: 11.5133 | AS176: 0 | AT176: 5.5 | AU176: 5.0 | AV176: 4.7 | AW176: 5.3 | AX176: 5.4 | BA176: 15.7 | BB176: 11.5133 | BC176: 55 | BD176: 59 | BE176: 59 | BF176: 59 | BG176: 58 | BH176: 59 | BI176: 0 | BJ176: 0 | BK176: 17.7 | BL176: 12.3900 | BM176: 0 | BN176: 5.9 | BO176: 5.9 | BP176: 5.9 | BQ176: 5.8 | BR176: 5.9 | BU176: 17.7 | BV176: 12.3900 | BW176: 34 | BX176: 54 | BY176: 50 | BZ176: 50 | CA176: 49 | CB176: 52 | CC176: 0 | CD176: 0 | CE176: 15 | CF176: 11.6533 | CG176: 0 | CH176: 5.4 | CI176: 5.0 | CJ176: 5.0 | CK176: 4.9 | CL176: 5.2 | CO176: 15.2 | CP176: 11.6533 | CQ176: 53 | CR176: 47.7299 | CS176: 54.2385 | CT176: 0.0 | CU176: 54.2385
A177: 171 | B177: 97 | C177: 50.0757 | D177: 200403982 | E177: Maike van Vliet | F177: BZ&PC | G177: BZP | H177: West | K177: 2004 | M177: L | P177: 46 | Q177: 49 | R177: 50 | S177: 58 | T177: 49 | U177: 0 | V177: 0 | W177: 14.8 | X177: 10.8533 | Y177: 0 | Z177: 4.6 | AA177: 4.9 | AB177: 5.0 | AC177: 5.8 | AD177: 4.9 | AG177: 14.8 | AH177: 10.8533 | AI177: 117 | AJ177: 51 | AK177: 54 | AL177: 50 | AM177: 51 | AN177: 52 | AO177: 0 | AP177: 0 | AQ177: 15.4 | AR177: 11.2933 | AS177: 0 | AT177: 5.1 | AU177: 5.4 | AV177: 5.0 | AW177: 5.1 | AX177: 5.2 | BA177: 15.4 | BB177: 11.2933 | BC177: 66 | BD177: 51 | BE177: 52 | BF177: 57 | BG177: 55 | BH177: 55 | BI177: 0 | BJ177: 0 | BK177: 16.2 | BL177: 11.3400 | BM177: 0 | BN177: 5.1 | BO177: 5.2 | BP177: 5.7 | BQ177: 5.5 | BR177: 5.5 | BU177: 16.2 | BV177: 11.3400 | BW177: 89 | BX177: 42 | BY177: 46 | BZ177: 47 | CA177: 45 | CB177: 49 | CC177: 0 | CD177: 0 | CE177: 14 | CF177: 10.5800 | CG177: 0 | CH177: 4.2 | CI177: 4.6 | CJ177: 4.7 | CK177: 4.5 | CL177: 4.9 | CO177: 13.8 | CP177: 10.5800 | CQ177: 117 | CR177: 44.0666 | CS177: 50.0757 | CT177: 0.0 | CU177: 50.0757
A178: 172 | B178: 70 | C178: 51.6742 | D178: 200302792 | E178: Marit Kramer | F178: Swol 1894 | G178: SWOL | H178: Oost | K178: 2003 | M178: L | P178: 53 | Q178: 52 | R178: 54 | S178: 52 | T178: 49 | U178: 0 | V178: 0 | W178: 15.7 | X178: 11.5133 | Y178: 0 | Z178: 5.3 | AA178: 5.2 | AB178: 5.4 | AC178: 5.2 | AD178: 4.9 | AG178: 15.7 | AH178: 11.5133 | AI178: 88 | AJ178: 48 | AK178: 51 | AL178: 51 | AM178: 49 | AN178: 49 | AO178: 0 | AP178: 0 | AQ178: 14.9 | AR178: 10.9267 | AS178: 0 | AT178: 4.8 | AU178: 5.1 | AV178: 5.1 | AW178: 4.9 | AX178: 4.9 | BA178: 14.9 | BB178: 10.9267 | BC178: 86 | BD178: 55 | BE178: 60 | BF178: 59 | BG178: 60 | BH178: 61 | BI178: 0 | BJ178: 0 | BK178: 17.9 | BL178: 12.5300 | BM178: 0 | BN178: 5.5 | BO178: 6.0 | BP178: 5.9 | BQ178: 6.0 | BR178: 6.1 | BU178: 17.9 | BV178: 12.5300 | BW178: 28 | BX178: 40 | BY178: 44 | BZ178: 49 | CA178: 47 | CB178: 46 | CC178: 0 | CD178: 0 | CE178: 14 | CF178: 10.5033 | CG178: 0 | CH178: 4.0 | CI178: 4.4 | CJ178: 4.9 | CK178: 4.7 | CL178: 4.6 | CO178: 13.7 | CP178: 10.5033 | CQ178: 121 | CR178: 45.4733 | CS178: 51.6742 | CT178: 0.0 | CU178: 51.6742
A179: 173 | B179: 152 | C179: 45.6213 | D179: 200500724 | E179: Arwen Pijpers | F179: Hellas-Glana | G179: Hellas | H179: Zuid | J179: X | K179: 2005 | N179: Age II | P179: 46 | Q179: 45 | R179: 48 | S179: 47 | T179: 48 | U179: 0 | V179: 0 | W179: 14.1 | X179: 10.3400 | Y179: 0 | Z179: 4.6 | AA179: 4.5 | AB179: 4.8 | AC179: 4.7 | AD179: 4.8 | AG179: 14.1 | AH179: 10.3400 | AI179: 155 | AJ179: 40 | AK179: 45 | AL179: 45 | AM179: 44 | AN179: 50 | AO179: 0 | AP179: 0 | AQ179: 13.4 | AR179: 9.8267 | AS179: 0 | AT179: 4.0 | AU179: 4.5 | AV179: 4.5 | AW179: 4.4 | AX179: 5.0 | BA179: 13.4 | BB179: 9.8267 | BC179: 144 | BD179: 49 | BE179: 50 | BF179: 57 | BG179: 54 | BH179: 50 | BI179: 0 | BJ179: 0 | BK179: 15.4 | BL179: 10.7800 | BM179: 0 | BN179: 4.9 | BO179: 5.0 | BP179: 5.7 | BQ179: 5.4 | BR179: 5.0 | BU179: 15.4 | BV179: 10.7800 | BW179: 111 | BX179: 38 | BY179: 39 | BZ179: 42 | CA179: 40 | CB179: 41 | CC179: 0 | CD179: 0 | CE179: 12 | CF179: 9.2000 | CG179: 0 | CH179: 3.8 | CI179: 3.9 | CJ179: 4.2 | CK179: 4.0 | CL179: 4.1 | CO179: 12.0 | CP179: 9.2000 | CQ179: 184 | CR179: 40.1467 | CS179: 45.6213 | CT179: 0.0 | CU179: 45.6213
A180: 174 | B180: 41 | C180: 54.4507 | D180: 200304172 | E180: Ymke Tolboom | F180: PSV Synchro Team Eindhoven | G180: PSV | H180: Zuid | K180: 2003 | M180: L | P180: 55 | Q180: 57 | R180: 58 | S180: 62 | T180: 60 | U180: 0 | V180: 0 | W180: 17.5 | X180: 12.8333 | Y180: 0 | Z180: 5.5 | AA180: 5.7 | AB180: 5.8 | AC180: 6.2 | AD180: 6.0 | AG180: 17.5 | AH180: 12.8333 | AI180: 24 | AJ180: 53 | AK180: 50 | AL180: 50 | AM180: 57 | AN180: 59 | AO180: 0 | AP180: 0 | AQ180: 16.0 | AR180: 11.7333 | AS180: 0 | AT180: 5.3 | AU180: 5.0 | AV180: 5.0 | AW180: 5.7 | AX180: 5.9 | BA180: 16.0 | BB180: 11.7333 | BC180: 46 | BD180: 50 | BE180: 58 | BF180: 59 | BG180: 52 | BH180: 56 | BI180: 0 | BJ180: 0 | BK180: 16.6 | BL180: 11.6200 | BM180: 0 | BN180: 5.0 | BO180: 5.8 | BP180: 5.9 | BQ180: 5.2 | BR180: 5.6 | BU180: 16.6 | BV180: 11.6200 | BW180: 78 | BX180: 52 | BY180: 50 | BZ180: 49 | CA180: 51 | CB180: 53 | CC180: 0 | CD180: 0 | CE180: 15 | CF180: 11.7300 | CG180: 0 | CH180: 5.2 | CI180: 5.0 | CJ180: 4.9 | CK180: 5.1 | CL180: 5.3 | CO180: 15.3 | CP180: 11.7300 | CQ180: 50 | CR180: 47.9166 | CS180: 54.4507 | CT180: 0.0 | CU180: 54.4507
A181: 175 | B181: 103 | C181: 49.4925 | D181: 200300946 | E181: Annet Meinert | F181: De Houtrib | G181: HOU | H181: Oost | K181: 2003 | M181: L | P181: 46 | Q181: 44 | R181: 49 | S181: 46 | T181: 46 | U181: 0 | V181: 0 | W181: 13.8 | X181: 10.1200 | Y181: 0 | Z181: 4.6 | AA181: 4.4 | AB181: 4.9 | AC181: 4.6 | AD181: 4.6 | AG181: 13.8 | AH181: 10.1200 | AI181: 165 | AJ181: 50 | AK181: 51 | AL181: 52 | AM181: 55 | AN181: 56 | AO181: 0 | AP181: 0 | AQ181: 15.8 | AR181: 11.5867 | AS181: 0 | AT181: 5.0 | AU181: 5.1 | AV181: 5.2 | AW181: 5.5 | AX181: 5.6 | BA181: 15.8 | BB181: 11.5867 | BC181: 50 | BD181: 57 | BE181: 53 | BF181: 50 | BG181: 47 | BH181: 47 | BI181: 0 | BJ181: 0 | BK181: 15.0 | BL181: 10.5000 | BM181: 0 | BN181: 5.7 | BO181: 5.3 | BP181: 5.0 | BQ181: 4.7 | BR181: 4.7 | BU181: 15.0 | BV181: 10.5000 | BW181: 122 | BX181: 49 | BY181: 52 | BZ181: 50 | CA181: 49 | CB181: 49 | CC181: 0 | CD181: 0 | CE181: 15 | CF181: 11.3467 | CG181: 0 | CH181: 4.9 | CI181: 5.2 | CJ181: 5.0 | CK181: 4.9 | CL181: 4.9 | CO181: 14.8 | CP181: 11.3467 | CQ181: 72 | CR181: 43.5534 | CS181: 49.4925 | CT181: 0.0 | CU181: 49.4925
A182: 176 | B182: 87 | C182: 50.5265 | D182: 200500074 | E182: Willemijn Buitelaar | F182: Z.P.C.H. | G182: ZPC | H182: MidWest | K182: 2005 | M182: L | P182: 49 | Q182: 49 | R182: 48 | S182: 52 | T182: 48 | U182: 0 | V182: 0 | W182: 14.6 | X182: 10.7067 | Y182: 0 | Z182: 4.9 | AA182: 4.9 | AB182: 4.8 | AC182: 5.2 | AD182: 4.8 | AG182: 14.6 | AH182: 10.7067 | AI182: 125 | AJ182: 52 | AK182: 50 | AL182: 49 | AM182: 48 | AN182: 54 | AO182: 0 | AP182: 0 | AQ182: 15.1 | AR182: 11.0733 | AS182: 0 | AT182: 5.2 | AU182: 5.0 | AV182: 4.9 | AW182: 4.8 | AX182: 5.4 | BA182: 15.1 | BB182: 11.0733 | BC182: 74 | BD182: 56 | BE182: 58 | BF182: 60 | BG182: 60 | BH182: 56 | BI182: 0 | BJ182: 0 | BK182: 17.4 | BL182: 12.1800 | BM182: 0 | BN182: 5.6 | BO182: 5.8 | BP182: 6.0 | BQ182: 6.0 | BR182: 5.6 | BU182: 17.4 | BV182: 12.1800 | BW182: 42 | BX182: 45 | BY182: 41 | BZ182: 47 | CA182: 45 | CB182: 52 | CC182: 0 | CD182: 0 | CE182: 14 | CF182: 10.5033 | CG182: 0 | CH182: 4.5 | CI182: 4.1 | CJ182: 4.7 | CK182: 4.5 | CL182: 5.2 | CO182: 13.7 | CP182: 10.5033 | CQ182: 121 | CR182: 44.4633 | CS182: 50.5265 | CT182: 0.0 | CU182: 50.5265
A183: 177 | B183: 112 | C183: 49.0455 | D183: 200502082 | E183: Yndi Nieuwmans | F183: Widex Gzc Donk | G183: DONK | H183: West | K183: 2005 | M183: L | P183: 50 | Q183: 52 | R183: 54 | S183: 54 | T183: 52 | U183: 0 | V183: 0 | W183: 15.8 | X183: 11.5867 | Y183: 0 | Z183: 5.0 | AA183: 5.2 | AB183: 5.4 | AC183: 5.4 | AD183: 5.2 | AG183: 15.8 | AH183: 11.5867 | AI183: 85 | AJ183: 42 | AK183: 44 | AL183: 42 | AM183: 44 | AN183: 49 | AO183: 0 | AP183: 0 | AQ183: 13.0 | AR183: 9.5333 | AS183: 0 | AT183: 4.2 | AU183: 4.4 | AV183: 4.2 | AW183: 4.4 | AX183: 4.9 | BA183: 13.0 | BB183: 9.5333 | BC183: 159 | BD183: 58 | BE183: 49 | BF183: 58 | BG183: 53 | BH183: 56 | BI183: 0 | BJ183: 0 | BK183: 16.7 | BL183: 11.6900 | BM183: 0 | BN183: 5.8 | BO183: 4.9 | BP183: 5.8 | BQ183: 5.3 | BR183: 5.6 | BU183: 16.7 | BV183: 11.6900 | BW183: 71 | BX183: 40 | BY183: 44 | BZ183: 43 | CA183: 48 | CB183: 50 | CC183: 0 | CD183: 0 | CE183: 14 | CF183: 10.3500 | CG183: 0 | CH183: 4.0 | CI183: 4.4 | CJ183: 4.3 | CK183: 4.8 | CL183: 5.0 | CO183: 13.5 | CP183: 10.3500 | CQ183: 131 | CR183: 43.1600 | CS183: 49.0455 | CT183: 0.0 | CU183: 49.0455
A184: 178 | B184: 37 | C184: 54.9810 | D184: 200402510 | E184: Caithlin Reimer | F184: AZC | G184: AZC | H184: West | K184: 2004 | M184: L | P184: 56 | Q184: 57 | R184: 58 | S184: 53 | T184: 57 | U184: 0 | V184: 0 | W184: 17.0 | X184: 12.4667 | Y184: 0 | Z184: 5.6 | AA184: 5.7 | AB184: 5.8 | AC184: 5.3 | AD184: 5.7 | AG184: 17.0 | AH184: 12.4667 | AI184: 41 | AJ184: 56 | AK184: 57 | AL184: 57 | AM184: 58 | AN184: 60 | AO184: 0 | AP184: 0 | AQ184: 17.2 | AR184: 12.6133 | AS184: 0 | AT184: 5.6 | AU184: 5.7 | AV184: 5.7 | AW184: 5.8 | AX184: 6.0 | BA184: 17.2 | BB184: 12.6133 | BC184: 18 | BD184: 57 | BE184: 53 | BF184: 57 | BG184: 59 | BH184: 59 | BI184: 0 | BJ184: 0 | BK184: 17.3 | BL184: 12.1100 | BM184: 0 | BN184: 5.7 | BO184: 5.3 | BP184: 5.7 | BQ184: 5.9 | BR184: 5.9 | BU184: 17.3 | BV184: 12.1100 | BW184: 47 | BX184: 45 | BY184: 47 | BZ184: 48 | CA184: 51 | CB184: 51 | CC184: 0 | CD184: 0 | CE184: 15 | CF184: 11.1933 | CG184: 0 | CH184: 4.5 | CI184: 4.7 | CJ184: 4.8 | CK184: 5.1 | CL184: 5.1 | CO184: 14.6 | CP184: 11.1933 | CQ184: 83 | CR184: 48.3833 | CS184: 54.9810 | CT184: 0.0 | CU184: 54.9810
A185: 179 | B185: 40 | C185: 54.5265 | D185: 200400742 | E185: Debbie Geilen | F185: Hellas-Glana | G185: Hellas | H185: Zuid | K185: 2004 | M185: L | P185: 54 | Q185: 58 | R185: 56 | S185: 58 | T185: 54 | U185: 0 | V185: 0 | W185: 16.8 | X185: 12.3200 | Y185: 0 | Z185: 5.4 | AA185: 5.8 | AB185: 5.6 | AC185: 5.8 | AD185: 5.4 | AG185: 16.8 | AH185: 12.3200 | AI185: 48 | AJ185: 55 | AK185: 53 | AL185: 58 | AM185: 60 | AN185: 55 | AO185: 0 | AP185: 0 | AQ185: 16.8 | AR185: 12.3200 | AS185: 0 | AT185: 5.5 | AU185: 5.3 | AV185: 5.8 | AW185: 6.0 | AX185: 5.5 | BA185: 16.8 | BB185: 12.3200 | BC185: 26 | BD185: 59 | BE185: 54 | BF185: 56 | BG185: 56 | BH185: 55 | BI185: 0 | BJ185: 0 | BK185: 16.7 | BL185: 11.6900 | BM185: 0 | BN185: 5.9 | BO185: 5.4 | BP185: 5.6 | BQ185: 5.6 | BR185: 5.5 | BU185: 16.7 | BV185: 11.6900 | BW185: 71 | BX185: 52 | BY185: 51 | BZ185: 50 | CA185: 51 | CB185: 46 | CC185: 0 | CD185: 0 | CE185: 15 | CF185: 11.6533 | CG185: 0 | CH185: 5.2 | CI185: 5.1 | CJ185: 5.0 | CK185: 5.1 | CL185: 4.6 | CO185: 15.2 | CP185: 11.6533 | CQ185: 53 | CR185: 47.9833 | CS185: 54.5265 | CT185: 0.0 | CU185: 54.5265
A186: 180 | B186: 75 | C186: 51.4318 | D186: 200500564 | E186: Marloes Ardon | F186: ACZ | G186: ACZ | H186: West | K186: 2005 | M186: L | P186: 52 | Q186: 54 | R186: 53 | S186: 55 | T186: 51 | U186: 0 | V186: 0 | W186: 15.9 | X186: 11.6600 | Y186: 0 | Z186: 5.2 | AA186: 5.4 | AB186: 5.3 | AC186: 5.5 | AD186: 5.1 | AG186: 15.9 | AH186: 11.6600 | AI186: 79 | AJ186: 47 | AK186: 49 | AL186: 48 | AM186: 47 | AN186: 48 | AO186: 0 | AP186: 0 | AQ186: 14.3 | AR186: 10.4867 | AS186: 0 | AT186: 4.7 | AU186: 4.9 | AV186: 4.8 | AW186: 4.7 | AX186: 4.8 | BA186: 14.3 | BB186: 10.4867 | BC186: 108 | BD186: 53 | BE186: 57 | BF186: 57 | BG186: 58 | BH186: 53 | BI186: 0 | BJ186: 0 | BK186: 16.7 | BL186: 11.6900 | BM186: 0 | BN186: 5.3 | BO186: 5.7 | BP186: 5.7 | BQ186: 5.8 | BR186: 5.3 | BU186: 16.7 | BV186: 11.6900 | BW186: 71 | BX186: 50 | BY186: 50 | BZ186: 49 | CA186: 49 | CB186: 50 | CC186: 0 | CD186: 0 | CE186: 15 | CF186: 11.4233 | CG186: 0 | CH186: 5.0 | CI186: 5.0 | CJ186: 4.9 | CK186: 4.9 | CL186: 5.0 | CO186: 14.9 | CP186: 11.4233 | CQ186: 65 | CR186: 45.2600 | CS186: 51.4318 | CT186: 0.0 | CU186: 51.4318
A187: 181 | B187: 44 | C187: 54.3789 | D187: 200403894 | E187: Marin Hokke | F187: Z.P.C.H. | G187: ZPC | H187: MidWest | K187: 2004 | M187: L | P187: 55 | Q187: 55 | R187: 58 | S187: 56 | T187: 56 | U187: 0 | V187: 0 | W187: 16.7 | X187: 12.2467 | Y187: 0 | Z187: 5.5 | AA187: 5.5 | AB187: 5.8 | AC187: 5.6 | AD187: 5.6 | AG187: 16.7 | AH187: 12.2467 | AI187: 51 | AJ187: 48 | AK187: 50 | AL187: 50 | AM187: 52 | AN187: 50 | AO187: 0 | AP187: 0 | AQ187: 15.0 | AR187: 11.0000 | AS187: 0 | AT187: 4.8 | AU187: 5.0 | AV187: 5.0 | AW187: 5.2 | AX187: 5.0 | BA187: 15.0 | BB187: 11.0000 | BC187: 79 | BD187: 59 | BE187: 54 | BF187: 59 | BG187: 56 | BH187: 58 | BI187: 0 | BJ187: 0 | BK187: 17.3 | BL187: 12.1100 | BM187: 0 | BN187: 5.9 | BO187: 5.4 | BP187: 5.9 | BQ187: 5.6 | BR187: 5.8 | BU187: 17.3 | BV187: 12.1100 | BW187: 47 | BX187: 56 | BY187: 53 | BZ187: 54 | CA187: 58 | CB187: 53 | CC187: 0 | CD187: 0 | CE187: 16 | CF187: 12.4967 | CG187: 0 | CH187: 5.6 | CI187: 5.3 | CJ187: 5.4 | CK187: 5.8 | CL187: 5.3 | CO187: 16.3 | CP187: 12.4967 | CQ187: 29 | CR187: 47.8534 | CS187: 54.3789 | CT187: 0.0 | CU187: 54.3789
A188: 182 | B188: 182 | C188: 42.6060 | D188: 200503994 | E188: Kyra van Dijk | F188: Widex Gzc Donk | G188: DONK | H188: West | K188: 2005 | P188: 49 | Q188: 42 | R188: 47 | S188: 48 | T188: 42 | U188: 0 | V188: 0 | W188: 13.7 | X188: 10.0467 | Y188: 0 | Z188: 4.9 | AA188: 4.2 | AB188: 4.7 | AC188: 4.8 | AD188: 4.2 | AG188: 13.7 | AH188: 10.0467 | AI188: 171 | AJ188: 37 | AK188: 36 | AL188: 36 | AM188: 36 | AN188: 40 | AO188: 0 | AP188: 0 | AQ188: 10.9 | AR188: 7.9933 | AS188: 0 | AT188: 3.7 | AU188: 3.6 | AV188: 3.6 | AW188: 3.6 | AX188: 4.0 | BA188: 10.9 | BB188: 7.9933 | BC188: 193 | BD188: 45 | BE188: 50 | BF188: 47 | BG188: 49 | BH188: 39 | BI188: 0 | BJ188: 0 | BK188: 14.1 | BL188: 9.8700 | BM188: 0 | BN188: 4.5 | BO188: 5.0 | BP188: 4.7 | BQ188: 4.9 | BR188: 3.9 | BU188: 14.1 | BV188: 9.8700 | BW188: 160 | BX188: 38 | BY188: 42 | BZ188: 42 | CA188: 42 | CB188: 41 | CC188: 0 | CD188: 0 | CE188: 13 | CF188: 9.5833 | CG188: 0 | CH188: 3.8 | CI188: 4.2 | CJ188: 4.2 | CK188: 4.2 | CL188: 4.1 | CO188: 12.5 | CP188: 9.5833 | CQ188: 166 | CR188: 37.4933 | CS188: 42.6060 | CT188: 0.0 | CU188: 42.6060
A189: 183 | B189: 142 | C189: 47.0416 | D189: 200404242 | E189: Noah Janssen | F189: HZPC Horst | G189: HZPC | H189: zuid | K189: 2004 | P189: 45 | Q189: 49 | R189: 48 | S189: 46 | T189: 48 | U189: 0 | V189: 0 | W189: 14.2 | X189: 10.4133 | Y189: 0 | Z189: 4.5 | AA189: 4.9 | AB189: 4.8 | AC189: 4.6 | AD189: 4.8 | AG189: 14.2 | AH189: 10.4133 | AI189: 148 | AJ189: 44 | AK189: 42 | AL189: 44 | AM189: 50 | AN189: 51 | AO189: 0 | AP189: 0 | AQ189: 13.8 | AR189: 10.1200 | AS189: 0 | AT189: 4.4 | AU189: 4.2 | AV189: 4.4 | AW189: 5.0 | AX189: 5.1 | BA189: 13.8 | BB189: 10.1200 | BC189: 126 | BD189: 46 | BE189: 51 | BF189: 52 | BG189: 51 | BH189: 44 | BI189: 0 | BJ189: 0 | BK189: 14.8 | BL189: 10.3600 | BM189: 0 | BN189: 4.6 | BO189: 5.1 | BP189: 5.2 | BQ189: 5.1 | BR189: 4.4 | BU189: 14.8 | BV189: 10.3600 | BW189: 135 | BX189: 42 | BY189: 44 | BZ189: 48 | CA189: 51 | CB189: 45 | CC189: 0 | CD189: 0 | CE189: 14 | CF189: 10.5033 | CG189: 0 | CH189: 4.2 | CI189: 4.4 | CJ189: 4.8 | CK189: 5.1 | CL189: 4.5 | CO189: 13.7 | CP189: 10.5033 | CQ189: 121 | CR189: 41.3966 | CS189: 47.0416 | CT189: 0.0 | CU189: 47.0416
A190: 184 | B190: 113 | C190: 49.0039 | D190: 200502076 | E190: Kayra Ozsahin | F190: ACZ | G190: ACZ | H190: West | K190: 2005 | M190: L | P190: 46 | Q190: 50 | R190: 50 | S190: 53 | T190: 44 | U190: 0 | V190: 0 | W190: 14.6 | X190: 10.7067 | Y190: 0 | Z190: 4.6 | AA190: 5.0 | AB190: 5.0 | AC190: 5.3 | AD190: 4.4 | AG190: 14.6 | AH190: 10.7067 | AI190: 125 | AJ190: 51 | AK190: 52 | AL190: 55 | AM190: 55 | AN190: 54 | AO190: 0 | AP190: 0 | AQ190: 16.1 | AR190: 11.8067 | AS190: 0 | AT190: 5.1 | AU190: 5.2 | AV190: 5.5 | AW190: 5.5 | AX190: 5.4 | BA190: 16.1 | BB190: 11.8067 | BC190: 44 | BD190: 44 | BE190: 49 | BF190: 48 | BG190: 44 | BH190: 48 | BI190: 0 | BJ190: 0 | BK190: 14.0 | BL190: 9.8000 | BM190: 0 | BN190: 4.4 | BO190: 4.9 | BP190: 4.8 | BQ190: 4.4 | BR190: 4.8 | BU190: 14.0 | BV190: 9.8000 | BW190: 166 | BX190: 40 | BY190: 48 | BZ190: 46 | CA190: 47 | CB190: 49 | CC190: 0 | CD190: 0 | CE190: 14 | CF190: 10.8100 | CG190: 0 | CH190: 4.0 | CI190: 4.8 | CJ190: 4.6 | CK190: 4.7 | CL190: 4.9 | CO190: 14.1 | CP190: 10.8100 | CQ190: 107 | CR190: 43.1234 | CS190: 49.0039 | CT190: 0.0 | CU190: 49.0039
A191: 185 | B191: 118 | C191: 48.5985 | D191: 200504276 | E191: Marlinka Grundell | F191: Z.P.C.H. | G191: ZPC | H191: MidWest | K191: 2005 | M191: L | P191: 51 | Q191: 48 | R191: 49 | S191: 51 | T191: 50 | U191: 0 | V191: 0 | W191: 15.0 | X191: 11.0000 | Y191: 0 | Z191: 5.1 | AA191: 4.8 | AB191: 4.9 | AC191: 5.1 | AD191: 5.0 | AG191: 15.0 | AH191: 11.0000 | AI191: 111 | AJ191: 50 | AK191: 50 | AL191: 50 | AM191: 51 | AN191: 49 | AO191: 0 | AP191: 0 | AQ191: 15.0 | AR191: 11.0000 | AS191: 0 | AT191: 5.0 | AU191: 5.0 | AV191: 5.0 | AW191: 5.1 | AX191: 4.9 | BA191: 15.0 | BB191: 11.0000 | BC191: 79 | BD191: 52 | BE191: 52 | BF191: 46 | BG191: 49 | BH191: 50 | BI191: 0 | BJ191: 0 | BK191: 15.1 | BL191: 10.5700 | BM191: 0 | BN191: 5.2 | BO191: 5.2 | BP191: 4.6 | BQ191: 4.9 | BR191: 5.0 | BU191: 15.1 | BV191: 10.5700 | BW191: 119 | BX191: 44 | BY191: 46 | BZ191: 47 | CA191: 41 | CB191: 43 | CC191: 0 | CD191: 0 | CE191: 13 | CF191: 10.1967 | CG191: 0 | CH191: 4.4 | CI191: 4.6 | CJ191: 4.7 | CK191: 4.1 | CL191: 4.3 | CO191: 13.3 | CP191: 10.1967 | CQ191: 136 | CR191: 42.7667 | CS191: 48.5985 | CT191: 0.0 | CU191: 48.5985
A192: 186 | B192: 33 | C192: 55.6099 | D192: 200304386 | E192: Puk van der Laan | F192: AZC | G192: AZC | H192: West | K192: 2003 | M192: L | P192: 57 | Q192: 54 | R192: 58 | S192: 64 | T192: 58 | U192: 0 | V192: 0 | W192: 17.3 | X192: 12.6867 | Y192: 0 | Z192: 5.7 | AA192: 5.4 | AB192: 5.8 | AC192: 6.4 | AD192: 5.8 | AG192: 17.3 | AH192: 12.6867 | AI192: 29 | AJ192: 56 | AK192: 53 | AL192: 54 | AM192: 56 | AN192: 55 | AO192: 0 | AP192: 0 | AQ192: 16.5 | AR192: 12.1000 | AS192: 0 | AT192: 5.6 | AU192: 5.3 | AV192: 5.4 | AW192: 5.6 | AX192: 5.5 | BA192: 16.5 | BB192: 12.1000 | BC192: 32 | BD192: 60 | BE192: 60 | BF192: 63 | BG192: 61 | BH192: 63 | BI192: 0 | BJ192: 0 | BK192: 18.4 | BL192: 12.8800 | BM192: 0 | BN192: 6.0 | BO192: 6.0 | BP192: 6.3 | BQ192: 6.1 | BR192: 6.3 | BU192: 18.4 | BV192: 12.8800 | BW192: 18 | BX192: 49 | BY192: 50 | BZ192: 50 | CA192: 47 | CB192: 48 | CC192: 0 | CD192: 0 | CE192: 15 | CF192: 11.2700 | CG192: 0 | CH192: 4.9 | CI192: 5.0 | CJ192: 5.0 | CK192: 4.7 | CL192: 4.8 | CO192: 14.7 | CP192: 11.2700 | CQ192: 76 | CR192: 48.9367 | CS192: 55.6099 | CT192: 0.0 | CU192: 55.6099
A193: 187 | B193: 29 | C193: 55.8560 | D193: 200302016 | E193: Elza van Vliet | F193: BZ&PC | G193: BZP | H193: West | K193: 2003 | M193: L | P193: 58 | Q193: 58 | R193: 57 | S193: 56 | T193: 54 | U193: 0 | V193: 0 | W193: 17.1 | X193: 12.5400 | Y193: 0 | Z193: 5.8 | AA193: 5.8 | AB193: 5.7 | AC193: 5.6 | AD193: 5.4 | AG193: 17.1 | AH193: 12.5400 | AI193: 38 | AJ193: 49 | AK193: 49 | AL193: 50 | AM193: 52 | AN193: 49 | AO193: 0 | AP193: 0 | AQ193: 14.8 | AR193: 10.8533 | AS193: 0 | AT193: 4.9 | AU193: 4.9 | AV193: 5.0 | AW193: 5.2 | AX193: 4.9 | BA193: 14.8 | BB193: 10.8533 | BC193: 90 | BD193: 59 | BE193: 63 | BF193: 62 | BG193: 60 | BH193: 62 | BI193: 0 | BJ193: 0 | BK193: 18.4 | BL193: 12.8800 | BM193: 0 | BN193: 5.9 | BO193: 6.3 | BP193: 6.2 | BQ193: 6.0 | BR193: 6.2 | BU193: 18.4 | BV193: 12.8800 | BW193: 18 | BX193: 56 | BY193: 56 | BZ193: 52 | CA193: 56 | CB193: 59 | CC193: 0 | CD193: 0 | CE193: 17 | CF193: 12.8800 | CG193: 0 | CH193: 5.6 | CI193: 5.6 | CJ193: 5.2 | CK193: 5.6 | CL193: 5.9 | CO193: 16.8 | CP193: 12.8800 | CQ193: 21 | CR193: 49.1533 | CS193: 55.8560 | CT193: 0.0 | CU193: 55.8560
A194: 188 | B194: 127 | C194: 47.8031 | D194: 200301828 | E194: Lisanne Verhees | F194: ZPC Nederweert | G194: ZPCN | H194: Zuid | K194: 2003 | P194: 45 | Q194: 48 | R194: 45 | S194: 53 | T194: 48 | U194: 0 | V194: 0 | W194: 14.1 | X194: 10.3400 | Y194: 0 | Z194: 4.5 | AA194: 4.8 | AB194: 4.5 | AC194: 5.3 | AD194: 4.8 | AG194: 14.1 | AH194: 10.3400 | AI194: 155 | AJ194: 43 | AK194: 47 | AL194: 47 | AM194: 46 | AN194: 50 | AO194: 0 | AP194: 0 | AQ194: 14.0 | AR194: 10.2667 | AS194: 0 | AT194: 4.3 | AU194: 4.7 | AV194: 4.7 | AW194: 4.6 | AX194: 5.0 | BA194: 14.0 | BB194: 10.2667 | BC194: 117 | BD194: 52 | BE194: 54 | BF194: 56 | BG194: 57 | BH194: 48 | BI194: 0 | BJ194: 0 | BK194: 16.2 | BL194: 11.3400 | BM194: 0 | BN194: 5.2 | BO194: 5.4 | BP194: 5.6 | BQ194: 5.7 | BR194: 4.8 | BU194: 16.2 | BV194: 11.3400 | BW194: 89 | BX194: 40 | BY194: 47 | BZ194: 46 | CA194: 46 | CB194: 38 | CC194: 0 | CD194: 0 | CE194: 13 | CF194: 10.1200 | CG194: 0 | CH194: 4.0 | CI194: 4.7 | CJ194: 4.6 | CK194: 4.6 | CL194: 3.8 | CO194: 13.2 | CP194: 10.1200 | CQ194: 139 | CR194: 42.0667 | CS194: 47.8031 | CT194: 0.0 | CU194: 47.8031
A195: 189 | B195: 181 | C195: 42.7083 | D195: 200305510 | E195: Mirella Schieman | F195: DSZ | G195: DSZ | H195: West | K195: 2003 | P195: 48 | Q195: 49 | R195: 48 | S195: 45 | T195: 49 | U195: 0 | V195: 0 | W195: 14.5 | X195: 10.6333 | Y195: 0 | Z195: 4.8 | AA195: 4.9 | AB195: 4.8 | AC195: 4.5 | AD195: 4.9 | AG195: 14.5 | AH195: 10.6333 | AI195: 130 | AJ195: 34 | AK195: 38 | AL195: 37 | AM195: 38 | AN195: 41 | AO195: 0 | AP195: 0 | AQ195: 11.3 | AR195: 8.2867 | AS195: 0 | AT195: 3.4 | AU195: 3.8 | AV195: 3.7 | AW195: 3.8 | AX195: 4.1 | BA195: 11.3 | BB195: 8.2867 | BC195: 189 | BD195: 49 | BE195: 47 | BF195: 38 | BG195: 43 | BH195: 43 | BI195: 0 | BJ195: 0 | BK195: 13.3 | BL195: 9.3100 | BM195: 0 | BN195: 4.9 | BO195: 4.7 | BP195: 3.8 | BQ195: 4.3 | BR195: 4.3 | BU195: 13.3 | BV195: 9.3100 | BW195: 185 | BX195: 41 | BY195: 40 | BZ195: 43 | CA195: 41 | CB195: 37 | CC195: 0 | CD195: 0 | CE195: 12 | CF195: 9.3533 | CG195: 0 | CH195: 4.1 | CI195: 4.0 | CJ195: 4.3 | CK195: 4.1 | CL195: 3.7 | CO195: 12.2 | CP195: 9.3533 | CQ195: 175 | CR195: 37.5833 | CS195: 42.7083 | CT195: 0.0 | CU195: 42.7083
A196: 190 | B196: 135 | C196: 47.4015 | D196: 200504590 | E196: Iris Schrama | F196: Z.P.C.H. | G196: ZPC | H196: MidWest | K196: 2005 | M196: L | P196: 50 | Q196: 46 | R196: 47 | S196: 46 | T196: 49 | U196: 0 | V196: 0 | W196: 14.2 | X196: 10.4133 | Y196: 0 | Z196: 5.0 | AA196: 4.6 | AB196: 4.7 | AC196: 4.6 | AD196: 4.9 | AG196: 14.2 | AH196: 10.4133 | AI196: 148 | AJ196: 50 | AK196: 45 | AL196: 52 | AM196: 52 | AN196: 49 | AO196: 0 | AP196: 0 | AQ196: 15.1 | AR196: 11.0733 | AS196: 0 | AT196: 5.0 | AU196: 4.5 | AV196: 5.2 | AW196: 5.2 | AX196: 4.9 | BA196: 15.1 | BB196: 11.0733 | BC196: 74 | BD196: 44 | BE196: 49 | BF196: 47 | BG196: 46 | BH196: 47 | BI196: 0 | BJ196: 0 | BK196: 14.0 | BL196: 9.8000 | BM196: 0 | BN196: 4.4 | BO196: 4.9 | BP196: 4.7 | BQ196: 4.6 | BR196: 4.7 | BU196: 14.0 | BV196: 9.8000 | BW196: 166 | BX196: 45 | BY196: 47 | BZ196: 47 | CA196: 40 | CB196: 44 | CC196: 0 | CD196: 0 | CE196: 14 | CF196: 10.4267 | CG196: 0 | CH196: 4.5 | CI196: 4.7 | CJ196: 4.7 | CK196: 4.0 | CL196: 4.4 | CO196: 13.6 | CP196: 10.4267 | CQ196: 128 | CR196: 41.7133 | CS196: 47.4015 | CT196: 0.0 | CU196: 47.4015
A197: 191 | B197: 183 | C197: 42.3940 | D197: 200503990 | E197: Linda Glebbeek | F197: Widex Gzc Donk | G197: DONK | H197: West | K197: 2005 | P197: 40 | Q197: 44 | R197: 43 | S197: 44 | T197: 40 | U197: 0 | V197: 0 | W197: 12.7 | X197: 9.3133 | Y197: 0 | Z197: 4.0 | AA197: 4.4 | AB197: 4.3 | AC197: 4.4 | AD197: 4.0 | AG197: 12.7 | AH197: 9.3133 | AI197: 185 | AJ197: 39 | AK197: 46 | AL197: 43 | AM197: 40 | AN197: 39 | AO197: 0 | AP197: 0 | AQ197: 12.2 | AR197: 8.9467 | AS197: 0 | AT197: 3.9 | AU197: 4.6 | AV197: 4.3 | AW197: 4.0 | AX197: 3.9 | BA197: 12.2 | BB197: 8.9467 | BC197: 177 | BD197: 43 | BE197: 50 | BF197: 40 | BG197: 40 | BH197: 52 | BI197: 0 | BJ197: 0 | BK197: 13.3 | BL197: 9.3100 | BM197: 0 | BN197: 4.3 | BO197: 5.0 | BP197: 4.0 | BQ197: 4.0 | BR197: 5.2 | BU197: 13.3 | BV197: 9.3100 | BW197: 185 | BX197: 39 | BY197: 42 | BZ197: 43 | CA197: 44 | CB197: 42 | CC197: 0 | CD197: 0 | CE197: 13 | CF197: 9.7367 | CG197: 0 | CH197: 3.9 | CI197: 4.2 | CJ197: 4.3 | CK197: 4.4 | CL197: 4.2 | CO197: 12.7 | CP197: 9.7367 | CQ197: 158 | CR197: 37.3067 | CS197: 42.3940 | CT197: 0.0 | CU197: 42.3940
A198: 192 | B198: 67 | C198: 51.8409 | D198: 200300784 | E198: Charlotte Vos | F198: ZV de Zaan | G198: zaa | H198: MidWest | K198: 2003 | M198: L | P198: 51 | Q198: 58 | R198: 51 | S198: 54 | T198: 54 | U198: 0 | V198: 0 | W198: 15.9 | X198: 11.6600 | Y198: 0 | Z198: 5.1 | AA198: 5.8 | AB198: 5.1 | AC198: 5.4 | AD198: 5.4 | AG198: 15.9 | AH198: 11.6600 | AI198: 79 | AJ198: 49 | AK198: 50 | AL198: 57 | AM198: 53 | AN198: 53 | AO198: 0 | AP198: 0 | AQ198: 15.6 | AR198: 11.4400 | AS198: 0 | AT198: 4.9 | AU198: 5.0 | AV198: 5.7 | AW198: 5.3 | AX198: 5.3 | BA198: 15.6 | BB198: 11.4400 | BC198: 60 | BD198: 54 | BE198: 53 | BF198: 56 | BG198: 54 | BH198: 59 | BI198: 0 | BJ198: 0 | BK198: 16.4 | BL198: 11.4800 | BM198: 0 | BN198: 5.4 | BO198: 5.3 | BP198: 5.6 | BQ198: 5.4 | BR198: 5.9 | BU198: 16.4 | BV198: 11.4800 | BW198: 84 | BX198: 47 | BY198: 48 | BZ198: 49 | CA198: 48 | CB198: 48 | CC198: 0 | CD198: 0 | CE198: 14 | CF198: 11.0400 | CG198: 0 | CH198: 4.7 | CI198: 4.8 | CJ198: 4.9 | CK198: 4.8 | CL198: 4.8 | CO198: 14.4 | CP198: 11.0400 | CQ198: 92 | CR198: 45.6200 | CS198: 51.8409 | CT198: 0.0 | CU198: 51.8409
A199: 193 | B199: =IF(I199="BM","BM",RANK(CU199,CU$7:CU$256)) -> 69 | C199: =+CS199-CT199 -> 51.7159 | D199: 200304066 | E199: Danielle Verleun | F199: BZ&PC | G199: BZP | H199: West | K199: =VALUE(IF(D199="",0,MID(D199,1,4))) -> 2003 | M199: =IF(AND(14>($H$1-K199),($H$1-K199)>=13,C199>=$N$4),"L",IF(AND(16>($H$1-K199),($H$1-K199)>=14,C199>=$N$3),"L",IF(K199>0,IF(OR(K199>$J$4,K199<$I$4),"BM",""),""))) -> L | N199: =IF(C199>0,IF(J199>"",IF(C199<$H$3,"","Age II"),""),"") ->  | P199: 53 | Q199: 55 | R199: 54 | S199: 47 | T199: 57 | U199: 0 | V199: 0 | W199: 16.2 | X199: 11.8800 | Y199: 0 | Z199: =+P199/10 -> 5.3 | AA199: =+Q199/10 -> 5.5 | AB199: =+R199/10 -> 5.4 | AC199: =+S199/10 -> 4.7 | AD199: =+T199/10 -> 5.7 | AE199: =IF(U199>0,+U199/10,"") ->  | AF199: =IF(V199>0,+V199/10,"") ->  | AG199: =SUM(Z199:AF199)-MAX(Z199:AF199)-MIN(Z199:AF199) -> 16.2 | AH199: =ROUND(AG199/(COUNTIF(Z199:AF199,">=0")-2)*$AH$3,4) -> 11.8800 | AI199: =IF(AH199=0,"",RANK(AH199,AH$7:AH$256)) -> 68 | AJ199: 54 | AK199: 52 | AL199: 55 | AM199: 57 | AN199: 55 | AO199: 0 | AP199: 0 | AQ199: 16.4 | AR199: 12.0267 | AS199: 0 | AT199: =+AJ199/10 -> 5.4 | AU199: =+AK199/10 -> 5.2 | AV199: =+AL199/10 -> 5.5 | AW199: =+AM199/10 -> 5.7 | AX199: =+AN199/10 -> 5.5 | AY199: =IF(AO199>0,+AO199/10,"") ->  | AZ199: =IF(AP199>0,+AP199/10,"") ->  | BA199: =SUM(AT199:AZ199)-MAX(AT199:AZ199)-MIN(AT199:AZ199) -> 16.4 | BB199: =ROUND(BA199/(COUNTIF(AT199:AZ199,">0")-2)*$BB$3,4) -> 12.0267 | BC199: =IF(BB199=0,"",RANK(BB199,BB$7:BB$256)) -> 36 | BD199: 46 | BE199: 54 | BF199: 49 | BG199: 49 | BH199: 55 | BI199: 0 | BJ199: 0 | BK199: 15.2 | BL199: 10.6400 | BM199: 0 | BN199: =+BD199/10 -> 4.6 | BO199: =+BE199/10 -> 5.4 | BP199: =+BF199/10 -> 4.9 | BQ199: =+BG199/10 -> 4.9 | BR199: =+BH199/10 -> 5.5 | BS199: =IF(BI199>0,+BI199/10,"") ->  | BT199: =IF(BJ199>0,+BJ199/10,"") ->  | BU199: =SUM(BN199:BT199)-MAX(BN199:BT199)-MIN(BN199:BT199) -> 15.2 | BV199: =ROUND(BU199/(COUNTIF(BN199:BT199,">0")-2)*$BV$3,4) -> 10.6400 | BW199: =IF(BV199=0,"",RANK(BV199,BV$7:BV$256)) -> 117 | BX199: 44 | BY199: 46 | BZ199: 48 | CA199: 49 | CB199: 50 | CC199: 0 | CD199: 0 | CE199: 14 | CF199: 10.9633 | CG199: 0 | CH199: =+BX199/10 -> 4.4 | CI199: =+BY199/10 -> 4.6 | CJ199: =+BZ199/10 -> 4.8 | CK199: =+CA199/10 -> 4.9 | CL199: =+CB199/10 -> 5.0 | CM199: =IF(CC199>0,+CC199/10,"") ->  | CN199: =IF(CD199>0,+CD199/10,"") ->  | CO199: =SUM(CH199:CN199)-MAX(CH199:CN199)-MIN(CH199:CN199) -> 14.3 | CP199: =ROUND(CO199/(COUNTIF(CH199:CN199,">0")-2)*$CP$3,4) -> 10.9633 | CQ199: =IF(CP199=0,"",RANK(CP199,CP$7:CP$256)) -> 96 | CR199: =+AH199+BB199+BV199+CP199 -> 45.5100 | CS199: =+ROUND((+CR199*10)/(+$AH$3+$BB$3+$BV$3+$CP$3),4) -> 51.7159 | CT199: =+Y199+AS199+BM199+CG199 -> 0.0 | CU199: =IF(I199="BM",0,+CS199-CT199) -> 51.7159
A200: 194 | B200: 80 | C200: 51.2917 | D200: 200300798 | E200: Britt Verhaeg | F200: HZPC Horst | G200: HZPC | H200: zuid | K200: 2003 | M200: L | P200: 51 | Q200: 50 | R200: 52 | S200: 57 | T200: 56 | U200: 0 | V200: 0 | W200: 15.9 | X200: 11.6600 | Y200: 0 | Z200: 5.1 | AA200: 5.0 | AB200: 5.2 | AC200: 5.7 | AD200: 5.6 | AG200: 15.9 | AH200: 11.6600 | AI200: 79 | AJ200: 51 | AK200: 51 | AL200: 50 | AM200: 49 | AN200: 51 | AO200: 0 | AP200: 0 | AQ200: 15.2 | AR200: 11.1467 | AS200: 0 | AT200: 5.1 | AU200: 5.1 | AV200: 5.0 | AW200: 4.9 | AX200: 5.1 | BA200: 15.2 | BB200: 11.1467 | BC200: 72 | BD200: 50 | BE200: 55 | BF200: 53 | BG200: 59 | BH200: 48 | BI200: 0 | BJ200: 0 | BK200: 15.8 | BL200: 11.0600 | BM200: 0 | BN200: 5.0 | BO200: 5.5 | BP200: 5.3 | BQ200: 5.9 | BR200: 4.8 | BU200: 15.8 | BV200: 11.0600 | BW200: 101 | BX200: 48 | BY200: 51 | BZ200: 51 | CA200: 48 | CB200: 46 | CC200: 0 | CD200: 0 | CE200: 15 | CF200: 11.2700 | CG200: 0 | CH200: 4.8 | CI200: 5.1 | CJ200: 5.1 | CK200: 4.8 | CL200: 4.6 | CO200: 14.7 | CP200: 11.2700 | CQ200: 76 | CR200: 45.1367 | CS200: 51.2917 | CT200: 0.0 | CU200: 51.2917
... 56 more rows

Sheet Startlijst
A1: ='Wedstrijd gegevens'!$B$15 -> Figurenwedstrijd AGE 2 Interregio, Zwembad: De Hoornse Vaart te Alkmaar | H1: ='Wedstrijd gegevens'!$I$15 -> Datum: | J1: ='Wedstrijd gegevens'!$J$15 -> 2017-11-11
A2: ='Wedstrijd gegevens'!$B$16 -> Organisatie Regio Midwest ism v/h Kring Noord-Holland | H2: ='Wedstrijd gegevens'!$I$16 -> Aanvang: | J2: ='Wedstrijd gegevens'!$J$16 -> 14:30 uur
A3: =CONCATENATE('Wedstrijd gegevens'!B17," ",'Wedstrijd gegevens'!D17) -> Loting: 1 | D3: =CONCATENATE('Wedstrijd gegevens'!E17," ",'Wedstrijd gegevens'!G17) -> Categorie: AGE II
B5: STARTVOLGORDE FIGUREN
A6: ='Wedstrijd gegevens'!A21 -> 1 | B6: ='Wedstrijd gegevens'!B21 -> 423 Ariana | D6: ='Wedstrijd gegevens'!G21 -> 2.2
A7: ='Wedstrijd gegevens'!A22 -> 2 | B7: ='Wedstrijd gegevens'!B22 -> 301e Barracuda spin down 360° | D7: ='Wedstrijd gegevens'!G22 -> 2.2
A8: ='Wedstrijd gegevens'!A23 -> 3 | B8: ='Wedstrijd gegevens'!B23 -> 342 Reiger | D8: ='Wedstrijd gegevens'!G23 -> 2.1
A9: ='Wedstrijd gegevens'!A24 -> 4 | B9: ='Wedstrijd gegevens'!B24 -> 115 Catalina | D9: ='Wedstrijd gegevens'!G24 -> 2.3
A11: st. | B11: KNZB | C11: Naam | D11: Vereniging | E11: Dipl | F11: BM | G11: Regio | H11: Plaatsing
A12: nr. | B12: Startnr | H12: Fig. 1 | I12: Fig. 2 | J12: Fig. 3 | K12: Fig. 4
A13: =Invoeren!A7 -> 1 | B13: =Invoeren!D7 -> 200301874 | C13: =Invoeren!E7 -> Noëmi Soler Rueda | D13: =Invoeren!F7 -> DAW | E13: =Invoeren!J7 -> 0 | F13: =Invoeren!I7 -> 0 | G13: =Invoeren!H7 -> Midwest
A14: =Invoeren!A8 -> 2 | B14: =Invoeren!D8 -> 200105142 | C14: =Invoeren!E8 -> Lani aan het Rot | D14: =Invoeren!F8 -> ZV de Zaan | E14: =Invoeren!J8 -> X | F14: =Invoeren!I8 -> 0 | G14: =Invoeren!H8 -> MidWest
A15: =Invoeren!A9 -> 3 | B15: =Invoeren!D9 -> 200404894 | C15: =Invoeren!E9 -> Yara van der Kraan | D15: =Invoeren!F9 -> Widex Gzc Donk | E15: =Invoeren!J9 -> 0 | F15: =Invoeren!I9 -> 0 | G15: =Invoeren!H9 -> West
A16: =Invoeren!A10 -> 4 | B16: =Invoeren!D10 -> 200402214 | C16: =Invoeren!E10 -> Fiene van Wijk | D16: =Invoeren!F10 -> WVZ | E16: =Invoeren!J10 -> 0 | F16: =Invoeren!I10 -> 0 | G16: =Invoeren!H10 -> West
A17: =Invoeren!A11 -> 5 | B17: =Invoeren!D11 -> 200501210 | C17: =Invoeren!E11 -> Eva Verveld | D17: =Invoeren!F11 -> AZC | E17: =Invoeren!J11 -> 0 | F17: =Invoeren!I11 -> 0 | G17: =Invoeren!H11 -> West
A18: =Invoeren!A12 -> 6 | B18: =Invoeren!D12 -> 200404994 | C18: =Invoeren!E12 -> Stacey Martha | D18: =Invoeren!F12 -> DSZ | E18: =Invoeren!J12 -> 0 | F18: =Invoeren!I12 -> 0 | G18: =Invoeren!H12 -> West
A19: =Invoeren!A13 -> 7 | B19: =Invoeren!D13 -> 200405376 | C19: =Invoeren!E13 -> Anthea Khnykina | D19: =Invoeren!F13 -> Swol 1894 | E19: =Invoeren!J13 -> 0 | F19: =Invoeren!I13 -> 0 | G19: =Invoeren!H13 -> Oost
A20: =Invoeren!A14 -> 8 | B20: =Invoeren!D14 -> 200304824 | C20: =Invoeren!E14 -> Amber Duijndam | D20: =Invoeren!F14 -> HZPC Horst | E20: =Invoeren!J14 -> 0 | F20: =Invoeren!I14 -> 0 | G20: =Invoeren!H14 -> zuid
A21: =Invoeren!A15 -> 9 | B21: =Invoeren!D15 -> 200503514 | C21: =Invoeren!E15 -> Dominique Hoogkamer | D21: =Invoeren!F15 -> Aquarijn | E21: =Invoeren!J15 -> X | F21: =Invoeren!I15 -> 0 | G21: =Invoeren!H15 -> MidWest
A22: =Invoeren!A16 -> 10 | B22: =Invoeren!D16 -> 200400018 | C22: =Invoeren!E16 -> Floor Schallenberg | D22: =Invoeren!F16 -> ACZ | E22: =Invoeren!J16 -> 0 | F22: =Invoeren!I16 -> 0 | G22: =Invoeren!H16 -> West
A23: =Invoeren!A17 -> 11 | B23: =Invoeren!D17 -> 200502532 | C23: =Invoeren!E17 -> Lizzy Bastiaans | D23: =Invoeren!F17 -> Hera'11 | E23: =Invoeren!J17 -> 0 | F23: =Invoeren!I17 -> 0 | G23: =Invoeren!H17 -> Oost
A24: =Invoeren!A18 -> 12 | B24: =Invoeren!D18 -> 200402252 | C24: =Invoeren!E18 -> Ilse de Heij | D24: =Invoeren!F18 -> Z.P.C.H. | E24: =Invoeren!J18 -> 0 | F24: =Invoeren!I18 -> 0 | G24: =Invoeren!H18 -> MidWest
A25: =Invoeren!A19 -> 13 | B25: =Invoeren!D19 -> 200300492 | C25: =Invoeren!E19 -> Tamara Aarts | D25: =Invoeren!F19 -> De Watertrappers | E25: =Invoeren!J19 -> 0 | F25: =Invoeren!I19 -> 0 | G25: =Invoeren!H19 -> Mid West
A26: =Invoeren!A20 -> 14 | B26: =Invoeren!D20 -> 200501860 | C26: =Invoeren!E20 -> Amber van Luijn | D26: =Invoeren!F20 -> De Dolfijn | E26: =Invoeren!J20 -> 0 | F26: =Invoeren!I20 -> 0 | G26: =Invoeren!H20 -> Midwest
A27: =Invoeren!A21 -> 15 | B27: =Invoeren!D21 -> 200302598 | C27: =Invoeren!E21 -> Rikst Schoo | D27: =Invoeren!F21 -> HZ&PC Heerenveen | E27: =Invoeren!J21 -> 0 | F27: =Invoeren!I21 -> 0 | G27: =Invoeren!H21 -> Noord
A28: =Invoeren!A22 -> 16 | B28: =Invoeren!D22 -> 200305120 | C28: =Invoeren!E22 -> Saar van den Berg | D28: =Invoeren!F22 -> Widex Gzc Donk | E28: =Invoeren!J22 -> 0 | F28: =Invoeren!I22 -> 0 | G28: =Invoeren!H22 -> West
A29: =Invoeren!A23 -> 17 | B29: =Invoeren!D23 -> 200503580 | C29: =Invoeren!E23 -> Irsah van Oosten | D29: =Invoeren!F23 -> Widex Gzc Donk | E29: =Invoeren!J23 -> X | F29: =Invoeren!I23 -> 0 | G29: =Invoeren!H23 -> West
A30: =Invoeren!A24 -> 18 | B30: =Invoeren!D24 -> 200104834 | C30: =Invoeren!E24 -> Eline Sijl | D30: =Invoeren!F24 -> AZC | E30: =Invoeren!J24 -> 0 | F30: =Invoeren!I24 -> BM | G30: =Invoeren!H24 -> West
A31: =Invoeren!A25 -> 19 | B31: =Invoeren!D25 -> 200404610 | C31: =Invoeren!E25 -> Esqua Swennen | D31: =Invoeren!F25 -> DSZ | E31: =Invoeren!J25 -> 0 | F31: =Invoeren!I25 -> 0 | G31: =Invoeren!H25 -> West
A32: =Invoeren!A26 -> 20 | B32: =Invoeren!D26 -> 200401608 | C32: =Invoeren!E26 -> Ilyana Guliker | D32: =Invoeren!F26 -> Polar Bears | E32: =Invoeren!J26 -> 0 | F32: =Invoeren!I26 -> 0 | G32: =Invoeren!H26 -> Oost
A33: =Invoeren!A27 -> 21 | B33: =Invoeren!D27 -> 200300794 | C33: =Invoeren!E27 -> Jill Mourmans | D33: =Invoeren!F27 -> ZC.Eijsden | E33: =Invoeren!J27 -> 0 | F33: =Invoeren!I27 -> 0 | G33: =Invoeren!H27 -> Zuid
A34: =Invoeren!A28 -> 22 | B34: =Invoeren!D28 -> 200303982 | C34: =Invoeren!E28 -> Jolien Peeters | D34: =Invoeren!F28 -> PSV Synchro Team Eindhoven | E34: =Invoeren!J28 -> 0 | F34: =Invoeren!I28 -> 0 | G34: =Invoeren!H28 -> Zuid
A35: =Invoeren!A29 -> 23 | B35: =Invoeren!D29 -> 200303068 | C35: =Invoeren!E29 -> Linda van Heumen | D35: =Invoeren!F29 -> Aqua-Novio '94 | E35: =Invoeren!J29 -> 0 | F35: =Invoeren!I29 -> 0 | G35: =Invoeren!H29 -> Oost
A36: =Invoeren!A30 -> 24 | B36: =Invoeren!D30 -> 200502006 | C36: =Invoeren!E30 -> Kyara Alexander | D36: =Invoeren!F30 -> ACZ | E36: =Invoeren!J30 -> 0 | F36: =Invoeren!I30 -> 0 | G36: =Invoeren!H30 -> West
A37: =Invoeren!A31 -> 25 | B37: =Invoeren!D31 -> 200304818 | C37: =Invoeren!E31 -> Emma Leen | D37: =Invoeren!F31 -> Z.P.C.H. | E37: =Invoeren!J31 -> 0 | F37: =Invoeren!I31 -> 0 | G37: =Invoeren!H31 -> MidWest
A38: =Invoeren!A32 -> 26 | B38: =Invoeren!D32 -> 200503992 | C38: =Invoeren!E32 -> Merel Schrijvers van Zenden | D38: =Invoeren!F32 -> Widex Gzc Donk | E38: =Invoeren!J32 -> 0 | F38: =Invoeren!I32 -> 0 | G38: =Invoeren!H32 -> West
A39: =Invoeren!A33 -> 27 | B39: =Invoeren!D33 -> 200501556 | C39: =Invoeren!E33 -> Iris Huizinga | D39: =Invoeren!F33 -> DAW | E39: =Invoeren!J33 -> 0 | F39: =Invoeren!I33 -> 0 | G39: =Invoeren!H33 -> Midwest
A40: =Invoeren!A34 -> 28 | B40: =Invoeren!D34 -> 200401298 | C40: =Invoeren!E34 -> Maddy van der Hoeven | D40: =Invoeren!F34 -> De Dolfijn | E40: =Invoeren!J34 -> 0 | F40: =Invoeren!I34 -> 0 | G40: =Invoeren!H34 -> Midwest
A41: =Invoeren!A35 -> 29 | B41: =Invoeren!D35 -> 200503998 | C41: =Invoeren!E35 -> Savoy Bottse | D41: =Invoeren!F35 -> HZ&PC Heerenveen | E41: =Invoeren!J35 -> 0 | F41: =Invoeren!I35 -> 0 | G41: =Invoeren!H35 -> Noord
A42: =Invoeren!A36 -> 30 | B42: =Invoeren!D36 -> 200304194 | C42: =Invoeren!E36 -> Sanne van der Waal | D42: =Invoeren!F36 -> Z.P.C.H. | E42: =Invoeren!J36 -> 0 | F42: =Invoeren!I36 -> 0 | G42: =Invoeren!H36 -> MidWest
A43: =Invoeren!A37 -> 31 | B43: =Invoeren!D37 -> 200401126 | C43: =Invoeren!E37 -> Keyla Lammers | D43: =Invoeren!F37 -> AZC | E43: =Invoeren!J37 -> 0 | F43: =Invoeren!I37 -> 0 | G43: =Invoeren!H37 -> West
A44: =Invoeren!A38 -> 32 | B44: =Invoeren!D38 -> 200303042 | C44: =Invoeren!E38 -> Eda Karacan | D44: =Invoeren!F38 -> DSZ | E44: =Invoeren!J38 -> 0 | F44: =Invoeren!I38 -> 0 | G44: =Invoeren!H38 -> West
A45: =Invoeren!A39 -> 33 | B45: =Invoeren!D39 -> 200500620 | C45: =Invoeren!E39 -> Norah Steinfort Schaap | D45: =Invoeren!F39 -> Polar Bears | E45: =Invoeren!J39 -> 0 | F45: =Invoeren!I39 -> 0 | G45: =Invoeren!H39 -> Oost
A46: =Invoeren!A40 -> 34 | B46: =Invoeren!D40 -> 200501932 | C46: =Invoeren!E40 -> Sofie Geurts | D46: =Invoeren!F40 -> HZPC Horst | E46: =Invoeren!J40 -> X | F46: =Invoeren!I40 -> 0 | G46: =Invoeren!H40 -> zuid
A47: =Invoeren!A41 -> 35 | B47: =Invoeren!D41 -> 200304550 | C47: =Invoeren!E41 -> Margo Rops | D47: =Invoeren!F41 -> Synchro Breda | E47: =Invoeren!J41 -> 0 | F47: =Invoeren!I41 -> 0 | G47: =Invoeren!H41 -> Zuid
A48: =Invoeren!A42 -> 36 | B48: =Invoeren!D42 -> 200503578 | C48: =Invoeren!E42 -> Marissa Peters | D48: =Invoeren!F42 -> Aqua-Novio '94 | E48: =Invoeren!J42 -> 0 | F48: =Invoeren!I42 -> 0 | G48: =Invoeren!H42 -> Oost
A49: =Invoeren!A43 -> 37 | B49: =Invoeren!D43 -> 200501856 | C49: =Invoeren!E43 -> Tuana Ozsahin | D49: =Invoeren!F43 -> ACZ | E49: =Invoeren!J43 -> 0 | F49: =Invoeren!I43 -> 0 | G49: =Invoeren!H43 -> West
A50: =Invoeren!A44 -> 38 | B50: =Invoeren!D44 -> 200503448 | C50: =Invoeren!E44 -> Elize Bonhof | D50: =Invoeren!F44 -> Hera'11 | E50: =Invoeren!J44 -> 0 | F50: =Invoeren!I44 -> 0 | G50: =Invoeren!H44 -> Oost
A51: =Invoeren!A45 -> 39 | B51: =Invoeren!D45 -> 200404460 | C51: =Invoeren!E45 -> Anastasia Ibrahimov | D51: =Invoeren!F45 -> Z.P.C.H. | E51: =Invoeren!J45 -> 0 | F51: =Invoeren!I45 -> 0 | G51: =Invoeren!H45 -> MidWest
A52: =Invoeren!A46 -> 40 | B52: =Invoeren!D46 -> 200403890 | C52: =Invoeren!E46 -> Mette Bos | D52: =Invoeren!F46 -> Z.P.C.H. | E52: =Invoeren!J46 -> 0 | F52: =Invoeren!I46 -> 0 | G52: =Invoeren!H46 -> MidWest
A53: =Invoeren!A47 -> 41 | B53: =Invoeren!D47 -> 200301990 | C53: =Invoeren!E47 -> Charissa de Groot | D53: =Invoeren!F47 -> De Watertrappers | E53: =Invoeren!J47 -> 0 | F53: =Invoeren!I47 -> 0 | G53: =Invoeren!H47 -> Mid West
A54: =Invoeren!A48 -> 42 | B54: =Invoeren!D48 -> 200401278 | C54: =Invoeren!E48 -> Kate Jutte | D54: =Invoeren!F48 -> WVZ | E54: =Invoeren!J48 -> 0 | F54: =Invoeren!I48 -> 0 | G54: =Invoeren!H48 -> West
A55: =Invoeren!A49 -> 43 | B55: =Invoeren!D49 -> 200504152 | C55: =Invoeren!E49 -> Kazu Landman | D55: =Invoeren!F49 -> VZC Veenendaal | E55: =Invoeren!J49 -> X | F55: =Invoeren!I49 -> 0 | G55: =Invoeren!H49 -> Midwest
A56: =Invoeren!A50 -> 44 | B56: =Invoeren!D50 -> 200404178 | C56: =Invoeren!E50 -> Mandy van der Veen | D56: =Invoeren!F50 -> HZ&PC Heerenveen | E56: =Invoeren!J50 -> 0 | F56: =Invoeren!I50 -> 0 | G56: =Invoeren!H50 -> Noord
A57: =Invoeren!A51 -> 45 | B57: =Invoeren!D51 -> 200501580 | C57: =Invoeren!E51 -> Nayla Verzeide | D57: =Invoeren!F51 -> Widex Gzc Donk | E57: =Invoeren!J51 -> 0 | F57: =Invoeren!I51 -> 0 | G57: =Invoeren!H51 -> West
A58: =Invoeren!A52 -> 46 | B58: =Invoeren!D52 -> 200500012 | C58: =Invoeren!E52 -> Marloes Steenbeek | D58: =Invoeren!F52 -> De Dolfijn | E58: =Invoeren!J52 -> 0 | F58: =Invoeren!I52 -> 0 | G58: =Invoeren!H52 -> Midwest
A59: =Invoeren!A53 -> 47 | B59: =Invoeren!D53 -> 200401204 | C59: =Invoeren!E53 -> Merel Leuring | D59: =Invoeren!F53 -> AZC | E59: =Invoeren!J53 -> 0 | F59: =Invoeren!I53 -> 0 | G59: =Invoeren!H53 -> West
A60: =Invoeren!A54 -> 48 | B60: =Invoeren!D54 -> 200304568 | C60: =Invoeren!E54 -> Jasmijn van Beijnum | D60: =Invoeren!F54 -> BZ&PC | E60: =Invoeren!J54 -> 0 | F60: =Invoeren!I54 -> 0 | G60: =Invoeren!H54 -> West
A61: =Invoeren!A55 -> 49 | B61: =Invoeren!D55 -> 200602178 | C61: =Invoeren!E55 -> Felicia Leemburg | D61: =Invoeren!F55 -> BZ&PC | E61: =Invoeren!J55 -> 0 | F61: =Invoeren!I55 -> BM | G61: =Invoeren!H55 -> West
A62: =Invoeren!A56 -> 50 | B62: =Invoeren!D56 -> 200403514 | C62: =Invoeren!E56 -> Auke Kuijk | D62: =Invoeren!F56 -> Cadans | E62: =Invoeren!J56 -> 0 | F62: =Invoeren!I56 -> 0 | G62: =Invoeren!H56 -> oost
A63: =Invoeren!A57 -> 51 | B63: =Invoeren!D57 -> 200400222 | C63: =Invoeren!E57 -> Abigail Vievermans | D63: =Invoeren!F57 -> ZVBrunssum | E63: =Invoeren!J57 -> 0 | F63: =Invoeren!I57 -> 0 | G63: =Invoeren!H57 -> Zuid
A64: =Invoeren!A58 -> 52 | B64: =Invoeren!D58 -> 200404148 | C64: =Invoeren!E58 -> Lieke Smeets | D64: =Invoeren!F58 -> Hellas-Glana | E64: =Invoeren!J58 -> X | F64: =Invoeren!I58 -> 0 | G64: =Invoeren!H58 -> Zuid
A65: =Invoeren!A59 -> 53 | B65: =Invoeren!D59 -> 200403206 | C65: =Invoeren!E59 -> Fleur Vergeer | D65: =Invoeren!F59 -> Aquarijn | E65: =Invoeren!J59 -> 0 | F65: =Invoeren!I59 -> 0 | G65: =Invoeren!H59 -> MidWest
A66: =Invoeren!A60 -> 54 | B66: =Invoeren!D60 -> 200502828 | C66: =Invoeren!E60 -> Lisa Dams | D66: =Invoeren!F60 -> Aqua-Novio '94 | E66: =Invoeren!J60 -> 0 | F66: =Invoeren!I60 -> 0 | G66: =Invoeren!H60 -> Oost
A67: =Invoeren!A61 -> 55 | B67: =Invoeren!D61 -> 200403278 | C67: =Invoeren!E61 -> Eline Penning | D67: =Invoeren!F61 -> ACZ | E67: =Invoeren!J61 -> 0 | F67: =Invoeren!I61 -> 0 | G67: =Invoeren!H61 -> West
A68: =Invoeren!A62 -> 56 | B68: =Invoeren!D62 -> 200400946 | C68: =Invoeren!E62 -> Nyanda de Roos | D68: =Invoeren!F62 -> De Houtrib | E68: =Invoeren!J62 -> 0 | F68: =Invoeren!I62 -> 0 | G68: =Invoeren!H62 -> Oost
A69: =Invoeren!A63 -> 57 | B69: =Invoeren!D63 -> 200304796 | C69: =Invoeren!E63 -> Judith Bosman | D69: =Invoeren!F63 -> Z.P.C.H. | E69: =Invoeren!J63 -> 0 | F69: =Invoeren!I63 -> 0 | G69: =Invoeren!H63 -> MidWest
A70: =Invoeren!A64 -> 58 | B70: =Invoeren!D64 -> 200403048 | C70: =Invoeren!E64 -> Ninon van Baal | D70: =Invoeren!F64 -> DAW | E70: =Invoeren!J64 -> 0 | F70: =Invoeren!I64 -> 0 | G70: =Invoeren!H64 -> Midwest
A71: =Invoeren!A65 -> 59 | B71: =Invoeren!D65 -> 200405168 | C71: =Invoeren!E65 -> Isis Braam | D71: =Invoeren!F65 -> De Dolfijn | E71: =Invoeren!J65 -> 0 | F71: =Invoeren!I65 -> 0 | G71: =Invoeren!H65 -> Midwest
A72: =Invoeren!A66 -> 60 | B72: =Invoeren!D66 -> 200502634 | C72: =Invoeren!E66 -> Sophie O'Toole | D72: =Invoeren!F66 -> VZC Veenendaal | E72: =Invoeren!J66 -> X | F72: =Invoeren!I66 -> 0 | G72: =Invoeren!H66 -> Midwest
A73: =Invoeren!A67 -> 61 | B73: =Invoeren!D67 -> 200403868 | C73: =Invoeren!E67 -> Madelief Volbeda | D73: =Invoeren!F67 -> HZ&PC Heerenveen | E73: =Invoeren!J67 -> 0 | F73: =Invoeren!I67 -> 0 | G73: =Invoeren!H67 -> Noord
A74: =Invoeren!A68 -> 62 | B74: =Invoeren!D68 -> 200404482 | C74: =Invoeren!E68 -> Minke van Dalfsen | D74: =Invoeren!F68 -> Widex Gzc Donk | E74: =Invoeren!J68 -> 0 | F74: =Invoeren!I68 -> 0 | G74: =Invoeren!H68 -> West
A75: =Invoeren!A69 -> 63 | B75: =Invoeren!D69 -> 200503124 | C75: =Invoeren!E69 -> Femke van de Ridder | D75: =Invoeren!F69 -> Widex Gzc Donk | E75: =Invoeren!J69 -> 0 | F75: =Invoeren!I69 -> 0 | G75: =Invoeren!H69 -> West
A76: =Invoeren!A70 -> 64 | B76: =Invoeren!D70 -> 200303047 | C76: =Invoeren!E70 -> Zody Thode | D76: =Invoeren!F70 -> Cadans | E76: =Invoeren!J70 -> 0 | F76: =Invoeren!I70 -> 0 | G76: =Invoeren!H70 -> oost
A77: =Invoeren!A71 -> 65 | B77: =Invoeren!D71 -> 200305206 | C77: =Invoeren!E71 -> Merle Heuvelmans | D77: =Invoeren!F71 -> ZVBrunssum | E77: =Invoeren!J71 -> 0 | F77: =Invoeren!I71 -> 0 | G77: =Invoeren!H71 -> Zuid
A78: =Invoeren!A72 -> 66 | B78: =Invoeren!D72 -> 200405166 | C78: =Invoeren!E72 -> Daniela Quist | D78: =Invoeren!F72 -> Aquarijn | E78: =Invoeren!J72 -> X | F78: =Invoeren!I72 -> 0 | G78: =Invoeren!H72 -> MidWest
A79: =Invoeren!A73 -> 67 | B79: =Invoeren!D73 -> 200600078 | C79: =Invoeren!E73 -> Mare Schallenberg | D79: =Invoeren!F73 -> ACZ | E79: =Invoeren!J73 -> 0 | F79: =Invoeren!I73 -> 0 | G79: =Invoeren!H73 -> West
A80: =Invoeren!A74 -> 68 | B80: =Invoeren!D74 -> 200303994 | C80: =Invoeren!E74 -> Luciella Janse | D80: =Invoeren!F74 -> De Houtrib | E80: =Invoeren!J74 -> X | F80: =Invoeren!I74 -> 0 | G80: =Invoeren!H74 -> Oost
A81: =Invoeren!A75 -> 69 | B81: =Invoeren!D75 -> 200403892 | C81: =Invoeren!E75 -> Joy Favie | D81: =Invoeren!F75 -> Z.P.C.H. | E81: =Invoeren!J75 -> 0 | F81: =Invoeren!I75 -> 0 | G81: =Invoeren!H75 -> MidWest
A82: =Invoeren!A76 -> 70 | B82: =Invoeren!D76 -> 200502158 | C82: =Invoeren!E76 -> Newa Hama Hussein | D82: =Invoeren!F76 -> Cadans | E82: =Invoeren!J76 -> 0 | F82: =Invoeren!I76 -> 0 | G82: =Invoeren!H76 -> oost
A83: =Invoeren!A77 -> 71 | B83: =Invoeren!D77 -> 200503084 | C83: =Invoeren!E77 -> Charelle Spaan | D83: =Invoeren!F77 -> Z.P.C.H. | E83: =Invoeren!J77 -> 0 | F83: =Invoeren!I77 -> 0 | G83: =Invoeren!H77 -> MidWest
A84: =Invoeren!A78 -> 72 | B84: =Invoeren!D78 -> 200501374 | C84: =Invoeren!E78 -> Floortje van der Velde | D84: =Invoeren!F78 -> HZ&PC Heerenveen | E84: =Invoeren!J78 -> 0 | F84: =Invoeren!I78 -> 0 | G84: =Invoeren!H78 -> Noord
A85: =Invoeren!A79 -> 73 | B85: =Invoeren!D79 -> 200504282 | C85: =Invoeren!E79 -> Noëlle Rienks | D85: =Invoeren!F79 -> De Watertrappers | E85: =Invoeren!J79 -> 0 | F85: =Invoeren!I79 -> 0 | G85: =Invoeren!H79 -> Mid West
A86: =Invoeren!A80 -> 74 | B86: =Invoeren!D80 -> 200403010 | C86: =Invoeren!E80 -> Esmee van den Heuvel | D86: =Invoeren!F80 -> Widex Gzc Donk | E86: =Invoeren!J80 -> 0 | F86: =Invoeren!I80 -> 0 | G86: =Invoeren!H80 -> West
A87: =Invoeren!A81 -> 75 | B87: =Invoeren!D81 -> 200504112 | C87: =Invoeren!E81 -> Daphne Lutjenhuis | D87: =Invoeren!F81 -> AZC | E87: =Invoeren!J81 -> 0 | F87: =Invoeren!I81 -> 0 | G87: =Invoeren!H81 -> West
A88: =Invoeren!A82 -> 76 | B88: =Invoeren!D82 -> 200503502 | C88: =Invoeren!E82 -> Feija Wollring | D88: =Invoeren!F82 -> Cadans | E88: =Invoeren!J82 -> 0 | F88: =Invoeren!I82 -> 0 | G88: =Invoeren!H82 -> oost
A89: =Invoeren!A83 -> 77 | B89: =Invoeren!D83 -> 200205552 | C89: =Invoeren!E83 -> Shariëlle Garia | D89: =Invoeren!F83 -> ZVBrunssum | E89: =Invoeren!J83 -> X | F89: =Invoeren!I83 -> BM | G89: =Invoeren!H83 -> Zuid
A90: =Invoeren!A84 -> 78 | B90: =Invoeren!D84 -> 200405016 | C90: =Invoeren!E84 -> Anna Kroon | D90: =Invoeren!F84 -> HZPC Horst | E90: =Invoeren!J84 -> X | F90: =Invoeren!I84 -> 0 | G90: =Invoeren!H84 -> zuid
A91: =Invoeren!A85 -> 79 | B91: =Invoeren!D85 -> 200503980 | C91: =Invoeren!E85 -> Sascha van Leeuwen | D91: =Invoeren!F85 -> Aquarijn | E91: =Invoeren!J85 -> 0 | F91: =Invoeren!I85 -> 0 | G91: =Invoeren!H85 -> MidWest
A92: =Invoeren!A86 -> 80 | B92: =Invoeren!D86 -> 20043346 | C92: =Invoeren!E86 -> Renske Veenstra | D92: =Invoeren!F86 -> DZ&PC | E92: =Invoeren!J86 -> 0 | F92: =Invoeren!I86 -> 0 | G92: =Invoeren!H86 -> Noord
A93: =Invoeren!A87 -> 81 | B93: =Invoeren!D87 -> 200301290 | C93: =Invoeren!E87 -> Maria Lorenzini | D93: =Invoeren!F87 -> ACZ | E93: =Invoeren!J87 -> 0 | F93: =Invoeren!I87 -> 0 | G93: =Invoeren!H87 -> West
A94: =Invoeren!A88 -> 82 | B94: =Invoeren!D88 -> 200301408 | C94: =Invoeren!E88 -> Dagmar Hansman | D94: =Invoeren!F88 -> Hera'11 | E94: =Invoeren!J88 -> 0 | F94: =Invoeren!I88 -> 0 | G94: =Invoeren!H88 -> Oost
A95: =Invoeren!A89 -> 83 | B95: =Invoeren!D89 -> 200404462 | C95: =Invoeren!E89 -> Daniela Ghasseminejad | D95: =Invoeren!F89 -> Z.P.C.H. | E95: =Invoeren!J89 -> X | F95: =Invoeren!I89 -> 0 | G95: =Invoeren!H89 -> MidWest
A96: =Invoeren!A90 -> 84 | B96: =Invoeren!D90 -> 200401490 | C96: =Invoeren!E90 -> Anna Darby | D96: =Invoeren!F90 -> DAW | E96: =Invoeren!J90 -> 0 | F96: =Invoeren!I90 -> 0 | G96: =Invoeren!H90 -> Midwest
A97: =Invoeren!A91 -> 85 | B97: =Invoeren!D91 -> 200404456 | C97: =Invoeren!E91 -> Amanda Voesten | D97: =Invoeren!F91 -> De Dolfijn | E97: =Invoeren!J91 -> 0 | F97: =Invoeren!I91 -> 0 | G97: =Invoeren!H91 -> MidWest
A98: =Invoeren!A92 -> 86 | B98: =Invoeren!D92 -> 200405160 | C98: =Invoeren!E92 -> Iris Mandemaker | D98: =Invoeren!F92 -> HZ&PC Heerenveen | E98: =Invoeren!J92 -> 0 | F98: =Invoeren!I92 -> 0 | G98: =Invoeren!H92 -> Noord
A99: =Invoeren!A93 -> 87 | B99: =Invoeren!D93 -> 200304878 | C99: =Invoeren!E93 -> Kayleigh Bruins | D99: =Invoeren!F93 -> Widex Gzc Donk | E99: =Invoeren!J93 -> X | F99: =Invoeren!I93 -> 0 | G99: =Invoeren!H93 -> West
A100: =Invoeren!A94 -> 88 | B100: =Invoeren!D94 -> 200301902 | C100: =Invoeren!E94 -> Pleun Boerakker | D100: =Invoeren!F94 -> Cadans | E100: =Invoeren!J94 -> 0 | F100: =Invoeren!I94 -> 0 | G100: =Invoeren!H94 -> oost
A101: =Invoeren!A95 -> 89 | B101: =Invoeren!D95 -> 200301680 | C101: =Invoeren!E95 -> Sarah Molensky | D101: =Invoeren!F95 -> ZVBrunssum | E101: =Invoeren!J95 -> 0 | F101: =Invoeren!I95 -> 0 | G101: =Invoeren!H95 -> Zuid
A102: =Invoeren!A96 -> 90 | B102: =Invoeren!D96 -> 200302322 | C102: =Invoeren!E96 -> Noa van Blijderveen | D102: =Invoeren!F96 -> Aquarijn | E102: =Invoeren!J96 -> 0 | F102: =Invoeren!I96 -> 0 | G102: =Invoeren!H96 -> MidWest
A103: =Invoeren!A97 -> 91 | B103: =Invoeren!D97 -> 200302056 | C103: =Invoeren!E97 -> Tessa Kemper | D103: =Invoeren!F97 -> Aqua-Novio '94 | E103: =Invoeren!J97 -> 0 | F103: =Invoeren!I97 -> 0 | G103: =Invoeren!H97 -> Oost
A104: =Invoeren!A98 -> 92 | B104: =Invoeren!D98 -> 200400952 | C104: =Invoeren!E98 -> Dionne Sijben | D104: =Invoeren!F98 -> ACZ | E104: =Invoeren!J98 ->  | F104: =Invoeren!I98 ->  | G104: =Invoeren!H98 -> West
A105: =Invoeren!A99 -> 93 | B105: =Invoeren!D99 -> 200501900 | C105: =Invoeren!E99 -> Nikita Weidenaar | D105: =Invoeren!F99 -> De Houtrib | E105: =Invoeren!J99 -> 0 | F105: =Invoeren!I99 -> 0 | G105: =Invoeren!H99 -> Oost
A106: =Invoeren!A100 -> 94 | B106: =Invoeren!D100 -> 200303794 | C106: =Invoeren!E100 -> Xenna Mackay | D106: =Invoeren!F100 -> Z.P.C.H. | E106: =Invoeren!J100 -> 0 | F106: =Invoeren!I100 -> 0 | G106: =Invoeren!H100 -> MidWest
A107: =Invoeren!A101 -> 95 | B107: =Invoeren!D101 -> 200300438 | C107: =Invoeren!E101 -> Eva Schijf | D107: =Invoeren!F101 -> DAW | E107: =Invoeren!J101 -> 0 | F107: =Invoeren!I101 -> 0 | G107: =Invoeren!H101 -> Midwest
A108: =Invoeren!A102 -> 96 | B108: =Invoeren!D102 -> 200503986 | C108: =Invoeren!E102 -> Aya Achachi | D108: =Invoeren!F102 -> De Dolfijn | E108: =Invoeren!J102 -> 0 | F108: =Invoeren!I102 -> 0 | G108: =Invoeren!H102 -> Midwest
A109: =Invoeren!A103 -> 97 | B109: =Invoeren!D103 -> 200500642 | C109: =Invoeren!E103 -> Gwen Kuijpers | D109: =Invoeren!F103 -> VZC Veenendaal | E109: =Invoeren!J103 -> X | F109: =Invoeren!I103 -> 0 | G109: =Invoeren!H103 -> Midwest
A110: =Invoeren!A104 -> 98 | B110: =Invoeren!D104 -> 200304178 | C110: =Invoeren!E104 -> Birgit Gosselink | D110: =Invoeren!F104 -> Widex Gzc Donk | E110: =Invoeren!J104 -> 0 | F110: =Invoeren!I104 -> 0 | G110: =Invoeren!H104 -> West
A111: =Invoeren!A105 -> 99 | B111: =Invoeren!D105 -> 200303742 | C111: =Invoeren!E105 -> Nadja van Kralingen | D111: =Invoeren!F105 -> WVZ | E111: =Invoeren!J105 -> 0 | F111: =Invoeren!I105 -> 0 | G111: =Invoeren!H105 -> West
A112: =Invoeren!A106 -> 100 | B112: =Invoeren!D106 -> 200404010 | C112: =Invoeren!E106 -> Romy Koers | D112: =Invoeren!F106 -> WVZ | E112: =Invoeren!J106 -> 0 | F112: =Invoeren!I106 -> 0 | G112: =Invoeren!H106 -> West
A113: =Invoeren!A107 -> 101 | B113: =Invoeren!D107 -> 200303732 | C113: =Invoeren!E107 -> Jente Doornhein | D113: =Invoeren!F107 -> BZ&PC | E113: =Invoeren!J107 -> 0 | F113: =Invoeren!I107 -> 0 | G113: =Invoeren!H107 -> West
A114: =Invoeren!A108 -> 102 | B114: =Invoeren!D108 -> 200403950 | C114: =Invoeren!E108 -> Marit de Locht | D114: =Invoeren!F108 -> Cadans | E114: =Invoeren!J108 -> 0 | F114: =Invoeren!I108 -> 0 | G114: =Invoeren!H108 -> oost
A115: =Invoeren!A109 -> 103 | B115: =Invoeren!D109 -> 199806484 | C115: =Invoeren!E109 -> Jessica Backes | D115: =Invoeren!F109 -> ZVBrunssum | E115: =Invoeren!J109 -> X | F115: =Invoeren!I109 -> BM | G115: =Invoeren!H109 -> Zuid
A116: =Invoeren!A110 -> 104 | B116: =Invoeren!D110 -> 200305064 | C116: =Invoeren!E110 -> Tanja Vorotilova | D116: =Invoeren!F110 -> PSV Synchro Team Eindhoven | E116: =Invoeren!J110 -> 0 | F116: =Invoeren!I110 -> 0 | G116: =Invoeren!H110 -> Zuid
A117: =Invoeren!A111 -> 105 | B117: =Invoeren!D111 -> 200401300 | C117: =Invoeren!E111 -> Senna Zwezerijnen | D117: =Invoeren!F111 -> Aquarijn | E117: =Invoeren!J111 -> 0 | F117: =Invoeren!I111 -> 0 | G117: =Invoeren!H111 -> MidWest
A118: =Invoeren!A112 -> 106 | B118: =Invoeren!D112 -> 200200000 | C118: =Invoeren!E112 -> Julia Postma | D118: =Invoeren!F112 -> DZ&PC | E118: =Invoeren!J112 -> X | F118: =Invoeren!I112 -> BM | G118: =Invoeren!H112 -> Noord
A119: =Invoeren!A113 -> 107 | B119: =Invoeren!D113 -> 200403554 | C119: =Invoeren!E113 -> Tara Vyent | D119: =Invoeren!F113 -> ACZ | E119: =Invoeren!J113 -> 0 | F119: =Invoeren!I113 -> 0 | G119: =Invoeren!H113 -> West
A120: =Invoeren!A114 -> 108 | B120: =Invoeren!D114 -> 200502536 | C120: =Invoeren!E114 -> Kyra Kemper | D120: =Invoeren!F114 -> Hera'11 | E120: =Invoeren!J114 -> 0 | F120: =Invoeren!I114 -> 0 | G120: =Invoeren!H114 -> Oost
A121: =Invoeren!A115 -> 109 | B121: =Invoeren!D115 -> 200304512 | C121: =Invoeren!E115 -> Lina El Baoudi | D121: =Invoeren!F115 -> Z.P.C.H. | E121: =Invoeren!J115 -> 0 | F121: =Invoeren!I115 -> 0 | G121: =Invoeren!H115 -> MidWest
A122: =Invoeren!A116 -> 110 | B122: =Invoeren!D116 -> 200502854 | C122: =Invoeren!E116 -> Melida Keizer | D122: =Invoeren!F116 -> De Watertrappers | E122: =Invoeren!J116 -> 0 | F122: =Invoeren!I116 -> 0 | G122: =Invoeren!H116 -> Mid West
A123: =Invoeren!A117 -> 111 | B123: =Invoeren!D117 -> 200403218 | C123: =Invoeren!E117 -> Helena Brons | D123: =Invoeren!F117 -> DAW | E123: =Invoeren!J117 -> 0 | F123: =Invoeren!I117 -> 0 | G123: =Invoeren!H117 -> Midwest
A124: =Invoeren!A118 -> 112 | B124: =Invoeren!D118 -> 200405558 | C124: =Invoeren!E118 -> Nisrine Aghrib Miou | D124: =Invoeren!F118 -> De Dolfijn | E124: =Invoeren!J118 -> 0 | F124: =Invoeren!I118 -> 0 | G124: =Invoeren!H118 -> Midwest
A125: =Invoeren!A119 -> 113 | B125: =Invoeren!D119 -> 200305402 | C125: =Invoeren!E119 -> Kim v Hoogevest | D125: =Invoeren!F119 -> ZV de Zaan | E125: =Invoeren!J119 -> X | F125: =Invoeren!I119 -> 0 | G125: =Invoeren!H119 -> MidWest
A126: =Invoeren!A120 -> 114 | B126: =Invoeren!D120 -> 200405184 | C126: =Invoeren!E120 -> Karolina Breedveld | D126: =Invoeren!F120 -> Widex Gzc Donk | E126: =Invoeren!J120 -> X | F126: =Invoeren!I120 -> 0 | G126: =Invoeren!H120 -> West
A127: =Invoeren!A121 -> 115 | B127: =Invoeren!D121 -> 200402892 | C127: =Invoeren!E121 -> Floor Speckens | D127: =Invoeren!F121 -> WVZ | E127: =Invoeren!J121 -> 0 | F127: =Invoeren!I121 -> 0 | G127: =Invoeren!H121 -> West
A128: =Invoeren!A122 -> 116 | B128: =Invoeren!D122 -> 200403516 | C128: =Invoeren!E122 -> Ilse Wienen | D128: =Invoeren!F122 -> Cadans | E128: =Invoeren!J122 -> 0 | F128: =Invoeren!I122 -> 0 | G128: =Invoeren!H122 -> oost
A129: =Invoeren!A123 -> 117 | B129: =Invoeren!D123 -> 200403802 | C129: =Invoeren!E123 -> Lisa van Laar | D129: =Invoeren!F123 -> Polar Bears | E129: =Invoeren!J123 -> 0 | F129: =Invoeren!I123 -> 0 | G129: =Invoeren!H123 -> Oost
A130: =Invoeren!A124 -> 118 | B130: =Invoeren!D124 -> 200501692 | C130: =Invoeren!E124 -> Femke Hermans | D130: =Invoeren!F124 -> ZC.Eijsden | E130: =Invoeren!J124 -> X | F130: =Invoeren!I124 -> 0 | G130: =Invoeren!H124 -> Zuid
A131: =Invoeren!A125 -> 119 | B131: =Invoeren!D125 -> 200305506 | C131: =Invoeren!E125 -> Yza Babcoubei | D131: =Invoeren!F125 -> Aquarijn | E131: =Invoeren!J125 -> X | F131: =Invoeren!I125 -> 0 | G131: =Invoeren!H125 -> MidWest
A132: =Invoeren!A126 -> 120 | B132: =Invoeren!D126 -> 200302048 | C132: =Invoeren!E126 -> Jasmijn van Appeldorn | D132: =Invoeren!F126 -> Aqua-Novio '94 | E132: =Invoeren!J126 -> 0 | F132: =Invoeren!I126 -> 0 | G132: =Invoeren!H126 -> Oost
A133: =Invoeren!A127 -> 121 | B133: =Invoeren!D127 -> 200304528 | C133: =Invoeren!E127 -> Kincsö Biró | D133: =Invoeren!F127 -> ACZ | E133: =Invoeren!J127 -> 0 | F133: =Invoeren!I127 -> 0 | G133: =Invoeren!H127 -> West
A134: =Invoeren!A128 -> 122 | B134: =Invoeren!D128 -> 200304190 | C134: =Invoeren!E128 -> Orane Brunsting | D134: =Invoeren!F128 -> Z.P.C.H. | E134: =Invoeren!J128 -> 0 | F134: =Invoeren!I128 -> 0 | G134: =Invoeren!H128 -> MidWest
A135: =Invoeren!A129 -> 123 | B135: =Invoeren!D129 -> 200403430 | C135: =Invoeren!E129 -> Giorgia Gandossi | D135: =Invoeren!F129 -> DAW | E135: =Invoeren!J129 -> 0 | F135: =Invoeren!I129 -> 0 | G135: =Invoeren!H129 -> Midwest
A136: =Invoeren!A130 -> 124 | B136: =Invoeren!D130 -> 200401294 | C136: =Invoeren!E130 -> Eline Braakhuis | D136: =Invoeren!F130 -> De Dolfijn | E136: =Invoeren!J130 -> 0 | F136: =Invoeren!I130 -> 0 | G136: =Invoeren!H130 -> Midwest
A137: =Invoeren!A131 -> 125 | B137: =Invoeren!D131 -> 200405286 | C137: =Invoeren!E131 -> Loïs Vink | D137: =Invoeren!F131 -> VZC Veenendaal | E137: =Invoeren!J131 -> X | F137: =Invoeren!I131 -> 0 | G137: =Invoeren!H131 -> Midwest
A138: =Invoeren!A132 -> 126 | B138: =Invoeren!D132 -> 200404488 | C138: =Invoeren!E132 -> Jane van Tol | D138: =Invoeren!F132 -> Widex Gzc Donk | E138: =Invoeren!J132 -> 0 | F138: =Invoeren!I132 -> 0 | G138: =Invoeren!H132 -> West
A139: =Invoeren!A133 -> 127 | B139: =Invoeren!D133 -> 200502078 | C139: =Invoeren!E133 -> Naomi de Jong | D139: =Invoeren!F133 -> Widex Gzc Donk | E139: =Invoeren!J133 -> 0 | F139: =Invoeren!I133 -> 0 | G139: =Invoeren!H133 -> West
A140: =Invoeren!A134 -> 128 | B140: =Invoeren!D134 -> 200405436 | C140: =Invoeren!E134 -> Amy Struijk | D140: =Invoeren!F134 -> WVZ | E140: =Invoeren!J134 -> 0 | F140: =Invoeren!I134 -> 0 | G140: =Invoeren!H134 -> West
A141: =Invoeren!A135 -> 129 | B141: =Invoeren!D135 -> 200301372 | C141: =Invoeren!E135 -> Frauke Stok | D141: =Invoeren!F135 -> Cadans | E141: =Invoeren!J135 -> 0 | F141: =Invoeren!I135 -> 0 | G141: =Invoeren!H135 -> oost
A142: =Invoeren!A136 -> 130 | B142: =Invoeren!D136 -> 200500162 | C142: =Invoeren!E136 -> Mija Bussink | D142: =Invoeren!F136 -> ZC.Eijsden | E142: =Invoeren!J136 -> 0 | F142: =Invoeren!I136 -> 0 | G142: =Invoeren!H136 -> Zuid
A143: =Invoeren!A137 -> 131 | B143: =Invoeren!D137 -> 200502062 | C143: =Invoeren!E137 -> Linda Driessen | D143: =Invoeren!F137 -> HZPC Horst | E143: =Invoeren!J137 -> X | F143: =Invoeren!I137 -> 0 | G143: =Invoeren!H137 -> zuid
A144: =Invoeren!A138 -> 132 | B144: =Invoeren!D138 -> 200503978 | C144: =Invoeren!E138 -> Maud van Breukelen | D144: =Invoeren!F138 -> Aquarijn | E144: =Invoeren!J138 -> X | F144: =Invoeren!I138 -> 0 | G144: =Invoeren!H138 -> MidWest
A145: =Invoeren!A139 -> 133 | B145: =Invoeren!D139 -> 200400053 | C145: =Invoeren!E139 -> Giovanni van der Zon | D145: =Invoeren!F139 -> ACZ | E145: =Invoeren!J139 -> 0 | F145: =Invoeren!I139 -> 0 | G145: =Invoeren!H139 -> West
A146: =Invoeren!A140 -> 134 | B146: =Invoeren!D140 -> 200500078 | C146: =Invoeren!E140 -> Jody Otte | D146: =Invoeren!F140 -> Hera'11 | E146: =Invoeren!J140 -> 0 | F146: =Invoeren!I140 -> 0 | G146: =Invoeren!H140 -> Oost
A147: =Invoeren!A141 -> 135 | B147: =Invoeren!D141 -> 200303570 | C147: =Invoeren!E141 -> Melissa Groeneveld | D147: =Invoeren!F141 -> De Houtrib | E147: =Invoeren!J141 -> X | F147: =Invoeren!I141 -> 0 | G147: =Invoeren!H141 -> Oost
A148: =Invoeren!A142 -> 136 | B148: =Invoeren!D142 -> 200302652 | C148: =Invoeren!E142 -> Femke Vos | D148: =Invoeren!F142 -> Z.P.C.H. | E148: =Invoeren!J142 -> 0 | F148: =Invoeren!I142 -> 0 | G148: =Invoeren!H142 -> MidWest
A149: =Invoeren!A143 -> 137 | B149: =Invoeren!D143 -> 200404262 | C149: =Invoeren!E143 -> Ailani Weltz | D149: =Invoeren!F143 -> DAW | E149: =Invoeren!J143 -> 0 | F149: =Invoeren!I143 -> 0 | G149: =Invoeren!H143 -> Midwest
A150: =Invoeren!A144 -> 138 | B150: =Invoeren!D144 -> 200403600 | C150: =Invoeren!E144 -> Marleen Voesten | D150: =Invoeren!F144 -> De Dolfijn | E150: =Invoeren!J144 -> 0 | F150: =Invoeren!I144 -> 0 | G150: =Invoeren!H144 -> MidWest
A151: =Invoeren!A145 -> 139 | B151: =Invoeren!D145 -> 200404486 | C151: =Invoeren!E145 -> Jessie Sapuletej | D151: =Invoeren!F145 -> Widex Gzc Donk | E151: =Invoeren!J145 -> 0 | F151: =Invoeren!I145 -> 0 | G151: =Invoeren!H145 -> West
A152: =Invoeren!A146 -> 140 | B152: =Invoeren!D146 -> 200302352 | C152: =Invoeren!E146 -> Laura Lai | D152: =Invoeren!F146 -> De Dolfijn | E152: =Invoeren!J146 -> 0 | F152: =Invoeren!I146 -> 0 | G152: =Invoeren!H146 -> Midwest
A153: =Invoeren!A147 -> 141 | B153: =Invoeren!D147 -> 200404488 | C153: =Invoeren!E147 -> Noa Palsgraaf | D153: =Invoeren!F147 -> Widex Gzc Donk | E153: =Invoeren!J147 -> 0 | F153: =Invoeren!I147 -> 0 | G153: =Invoeren!H147 -> West
A154: =Invoeren!A148 -> 142 | B154: =Invoeren!D148 -> 200405434 | C154: =Invoeren!E148 -> Eline Schouten | D154: =Invoeren!F148 -> WVZ | E154: =Invoeren!J148 -> X | F154: =Invoeren!I148 -> 0 | G154: =Invoeren!H148 -> West
A155: =Invoeren!A149 -> 143 | B155: =Invoeren!D149 -> 200400606 | C155: =Invoeren!E149 -> Fleur Valk | D155: =Invoeren!F149 -> AZC | E155: =Invoeren!J149 -> 0 | F155: =Invoeren!I149 -> 0 | G155: =Invoeren!H149 -> West
A156: =Invoeren!A150 -> 144 | B156: =Invoeren!D150 -> 200400964 | C156: =Invoeren!E150 -> Pauline Radochyn | D156: =Invoeren!F150 -> Cadans | E156: =Invoeren!J150 -> 0 | F156: =Invoeren!I150 -> 0 | G156: =Invoeren!H150 -> oost
A157: =Invoeren!A151 -> 145 | B157: =Invoeren!D151 -> 200404146 | C157: =Invoeren!E151 -> Axana Gerits | D157: =Invoeren!F151 -> ZC.Eijsden | E157: =Invoeren!J151 -> X | F157: =Invoeren!I151 -> 0 | G157: =Invoeren!H151 -> Zuid
A158: =Invoeren!A152 -> 146 | B158: =Invoeren!D152 -> 200305228 | C158: =Invoeren!E152 -> Dieuwke van de Berg | D158: =Invoeren!F152 -> Hieronymus | E158: =Invoeren!J152 -> 0 | F158: =Invoeren!I152 -> 0 | G158: =Invoeren!H152 -> Zuid
A159: =Invoeren!A153 -> 147 | B159: =Invoeren!D153 -> 200304002 | C159: =Invoeren!E153 -> Femke Maertens | D159: =Invoeren!F153 -> ACZ | E159: =Invoeren!J153 -> 0 | F159: =Invoeren!I153 -> 0 | G159: =Invoeren!H153 -> West
A160: =Invoeren!A154 -> 148 | B160: =Invoeren!D154 -> 200502010 | C160: =Invoeren!E154 -> Joëlle van Tol | D160: =Invoeren!F154 -> De Houtrib | E160: =Invoeren!J154 -> 0 | F160: =Invoeren!I154 -> 0 | G160: =Invoeren!H154 -> Oost
A161: =Invoeren!A155 -> 149 | B161: =Invoeren!D155 -> 200400354 | C161: =Invoeren!E155 -> Noortje Reijnen | D161: =Invoeren!F155 -> Z.P.C.H. | E161: =Invoeren!J155 -> 0 | F161: =Invoeren!I155 -> 0 | G161: =Invoeren!H155 -> MidWest
A162: =Invoeren!A156 -> 150 | B162: =Invoeren!D156 -> 200302354 | C162: =Invoeren!E156 -> Britt Huijsman | D162: =Invoeren!F156 -> De Dolfijn | E162: =Invoeren!J156 -> 0 | F162: =Invoeren!I156 -> 0 | G162: =Invoeren!H156 -> Midwest
A163: =Invoeren!A157 -> 151 | B163: =Invoeren!D157 -> 200503126 | C163: =Invoeren!E157 -> Anaïs van der Vliet | D163: =Invoeren!F157 -> Widex Gzc Donk | E163: =Invoeren!J157 -> 0 | F163: =Invoeren!I157 -> 0 | G163: =Invoeren!H157 -> West
A164: =Invoeren!A158 -> 152 | B164: =Invoeren!D158 -> 200302244 | C164: =Invoeren!E158 -> Isa Turnhout | D164: =Invoeren!F158 -> AZC | E164: =Invoeren!J158 -> 0 | F164: =Invoeren!I158 -> 0 | G164: =Invoeren!H158 -> West
A165: =Invoeren!A159 -> 153 | B165: =Invoeren!D159 -> 200401990 | C165: =Invoeren!E159 -> Veerle Boerefijn | D165: =Invoeren!F159 -> AZC | E165: =Invoeren!J159 -> 0 | F165: =Invoeren!I159 -> 0 | G165: =Invoeren!H159 -> West
A166: =Invoeren!A160 -> 154 | B166: =Invoeren!D160 -> 200400260 | C166: =Invoeren!E160 -> Esther Hermsen | D166: =Invoeren!F160 -> Cadans | E166: =Invoeren!J160 -> 0 | F166: =Invoeren!I160 -> 0 | G166: =Invoeren!H160 -> oost
A167: =Invoeren!A161 -> 155 | B167: =Invoeren!D161 -> 200302570 | C167: =Invoeren!E161 -> Jikke Heijne | D167: =Invoeren!F161 -> Swol 1894 | E167: =Invoeren!J161 -> 0 | F167: =Invoeren!I161 -> 0 | G167: =Invoeren!H161 -> Oost
A168: =Invoeren!A162 -> 156 | B168: =Invoeren!D162 -> 200503690 | C168: =Invoeren!E162 -> Veerle Bausch | D168: =Invoeren!F162 -> Hellas-Glana | E168: =Invoeren!J162 -> X | F168: =Invoeren!I162 -> 0 | G168: =Invoeren!H162 -> Zuid
A169: =Invoeren!A163 -> 157 | B169: =Invoeren!D163 -> 200302798 | C169: =Invoeren!E163 -> Esther Lanser | D169: =Invoeren!F163 -> ACZ | E169: =Invoeren!J163 ->  | F169: =Invoeren!I163 -> 0 | G169: =Invoeren!H163 -> West
A170: =Invoeren!A164 -> 158 | B170: =Invoeren!D164 -> 200302650 | C170: =Invoeren!E164 -> Zärrin Sahertian | D170: =Invoeren!F164 -> Z.P.C.H. | E170: =Invoeren!J164 -> 0 | F170: =Invoeren!I164 -> 0 | G170: =Invoeren!H164 -> MidWest
A171: =Invoeren!A165 -> 159 | B171: =Invoeren!D165 -> 200400336 | C171: =Invoeren!E165 -> Silke Tolsma | D171: =Invoeren!F165 -> VZC Veenendaal | E171: =Invoeren!J165 -> 0 | F171: =Invoeren!I165 -> 0 | G171: =Invoeren!H165 -> Midwest
A172: =Invoeren!A166 -> 160 | B172: =Invoeren!D166 -> 200503128 | C172: =Invoeren!E166 -> Marielou van der Vliet | D172: =Invoeren!F166 -> Widex Gzc Donk | E172: =Invoeren!J166 -> 0 | F172: =Invoeren!I166 -> 0 | G172: =Invoeren!H166 -> West
A173: =Invoeren!A167 -> 161 | B173: =Invoeren!D167 -> 200304068 | C173: =Invoeren!E167 -> Charlotte Leemburg | D173: =Invoeren!F167 -> BZ&PC | E173: =Invoeren!J167 -> 0 | F173: =Invoeren!I167 -> 0 | G173: =Invoeren!H167 -> West
A174: =Invoeren!A168 -> 162 | B174: =Invoeren!D168 -> 200400948 | C174: =Invoeren!E168 -> Alisa Brandon | D174: =Invoeren!F168 -> Swol 1894 | E174: =Invoeren!J168 -> 0 | F174: =Invoeren!I168 -> 0 | G174: =Invoeren!H168 -> Oost
A175: =Invoeren!A169 -> 163 | B175: =Invoeren!D169 -> 200300796 | C175: =Invoeren!E169 -> Anne Willems | D175: =Invoeren!F169 -> ZC.Eijsden | E175: =Invoeren!J169 -> 0 | F175: =Invoeren!I169 -> 0 | G175: =Invoeren!H169 -> Zuid
A176: =Invoeren!A170 -> 164 | B176: =Invoeren!D170 -> 200501056 | C176: =Invoeren!E170 -> Devina Baank | D176: =Invoeren!F170 -> De Houtrib | E176: =Invoeren!J170 -> X | F176: =Invoeren!I170 -> 0 | G176: =Invoeren!H170 -> Oost
A177: =Invoeren!A171 -> 165 | B177: =Invoeren!D171 -> 200405606 | C177: =Invoeren!E171 -> Marta Podebska | D177: =Invoeren!F171 -> Z.P.C.H. | E177: =Invoeren!J171 -> X | F177: =Invoeren!I171 -> 0 | G177: =Invoeren!H171 -> MidWest
A178: =Invoeren!A172 -> 166 | B178: =Invoeren!D172 -> 200404874 | C178: =Invoeren!E172 -> Elsa Veldhuijzen | D178: =Invoeren!F172 -> PSV Synchro Team Eindhoven | E178: =Invoeren!J172 -> X | F178: =Invoeren!I172 -> 0 | G178: =Invoeren!H172 -> Zuid
A179: =Invoeren!A173 -> 167 | B179: =Invoeren!D173 -> 200405556 | C179: =Invoeren!E173 -> Kaoutar Ouahadi | D179: =Invoeren!F173 -> De Dolfijn | E179: =Invoeren!J173 -> X | F179: =Invoeren!I173 -> 0 | G179: =Invoeren!H173 -> Midwest
A180: =Invoeren!A174 -> 168 | B180: =Invoeren!D174 -> 200501332 | C180: =Invoeren!E174 -> Dionne Kulderij | D180: =Invoeren!F174 -> ZV de Zaan | E180: =Invoeren!J174 -> X | F180: =Invoeren!I174 -> 0 | G180: =Invoeren!H174 -> MidWest
A181: =Invoeren!A175 -> 169 | B181: =Invoeren!D175 -> 200503582 | C181: =Invoeren!E175 -> July Vermeulen | D181: =Invoeren!F175 -> Widex Gzc Donk | E181: =Invoeren!J175 -> 0 | F181: =Invoeren!I175 -> 0 | G181: =Invoeren!H175 -> West
A182: =Invoeren!A176 -> 170 | B182: =Invoeren!D176 -> 200302568 | C182: =Invoeren!E176 -> Maggie Jiroutova | D182: =Invoeren!F176 -> AZC | E182: =Invoeren!J176 -> 0 | F182: =Invoeren!I176 -> 0 | G182: =Invoeren!H176 -> West
A183: =Invoeren!A177 -> 171 | B183: =Invoeren!D177 -> 200403982 | C183: =Invoeren!E177 -> Maike van Vliet | D183: =Invoeren!F177 -> BZ&PC | E183: =Invoeren!J177 -> 0 | F183: =Invoeren!I177 -> 0 | G183: =Invoeren!H177 -> West
A184: =Invoeren!A178 -> 172 | B184: =Invoeren!D178 -> 200302792 | C184: =Invoeren!E178 -> Marit Kramer | D184: =Invoeren!F178 -> Swol 1894 | E184: =Invoeren!J178 -> 0 | F184: =Invoeren!I178 -> 0 | G184: =Invoeren!H178 -> Oost
A185: =Invoeren!A179 -> 173 | B185: =Invoeren!D179 -> 200500724 | C185: =Invoeren!E179 -> Arwen Pijpers | D185: =Invoeren!F179 -> Hellas-Glana | E185: =Invoeren!J179 -> X | F185: =Invoeren!I179 -> 0 | G185: =Invoeren!H179 -> Zuid
A186: =Invoeren!A180 -> 174 | B186: =Invoeren!D180 -> 200304172 | C186: =Invoeren!E180 -> Ymke Tolboom | D186: =Invoeren!F180 -> PSV Synchro Team Eindhoven | E186: =Invoeren!J180 -> 0 | F186: =Invoeren!I180 -> 0 | G186: =Invoeren!H180 -> Zuid
A187: =Invoeren!A181 -> 175 | B187: =Invoeren!D181 -> 200300946 | C187: =Invoeren!E181 -> Annet Meinert | D187: =Invoeren!F181 -> De Houtrib | E187: =Invoeren!J181 -> 0 | F187: =Invoeren!I181 -> 0 | G187: =Invoeren!H181 -> Oost
A188: =Invoeren!A182 -> 176 | B188: =Invoeren!D182 -> 200500074 | C188: =Invoeren!E182 -> Willemijn Buitelaar | D188: =Invoeren!F182 -> Z.P.C.H. | E188: =Invoeren!J182 -> 0 | F188: =Invoeren!I182 -> 0 | G188: =Invoeren!H182 -> MidWest
A189: =Invoeren!A183 -> 177 | B189: =Invoeren!D183 -> 200502082 | C189: =Invoeren!E183 -> Yndi Nieuwmans | D189: =Invoeren!F183 -> Widex Gzc Donk | E189: =Invoeren!J183 -> 0 | F189: =Invoeren!I183 -> 0 | G189: =Invoeren!H183 -> West
A190: =Invoeren!A184 -> 178 | B190: =Invoeren!D184 -> 200402510 | C190: =Invoeren!E184 -> Caithlin Reimer | D190: =Invoeren!F184 -> AZC | E190: =Invoeren!J184 -> 0 | F190: =Invoeren!I184 -> 0 | G190: =Invoeren!H184 -> West
A191: =Invoeren!A185 -> 179 | B191: =Invoeren!D185 -> 200400742 | C191: =Invoeren!E185 -> Debbie Geilen | D191: =Invoeren!F185 -> Hellas-Glana | E191: =Invoeren!J185 -> 0 | F191: =Invoeren!I185 -> 0 | G191: =Invoeren!H185 -> Zuid
A192: =Invoeren!A186 -> 180 | B192: =Invoeren!D186 -> 200500564 | C192: =Invoeren!E186 -> Marloes Ardon | D192: =Invoeren!F186 -> ACZ | E192: =Invoeren!J186 -> 0 | F192: =Invoeren!I186 -> 0 | G192: =Invoeren!H186 -> West
A193: =Invoeren!A187 -> 181 | B193: =Invoeren!D187 -> 200403894 | C193: =Invoeren!E187 -> Marin Hokke | D193: =Invoeren!F187 -> Z.P.C.H. | E193: =Invoeren!J187 -> 0 | F193: =Invoeren!I187 -> 0 | G193: =Invoeren!H187 -> MidWest
A194: =Invoeren!A188 -> 182 | B194: =Invoeren!D188 -> 200503994 | C194: =Invoeren!E188 -> Kyra van Dijk | D194: =Invoeren!F188 -> Widex Gzc Donk | E194: =Invoeren!J188 -> 0 | F194: =Invoeren!I188 -> 0 | G194: =Invoeren!H188 -> West
A195: =Invoeren!A189 -> 183 | B195: =Invoeren!D189 -> 200404242 | C195: =Invoeren!E189 -> Noah Janssen | D195: =Invoeren!F189 -> HZPC Horst | E195: =Invoeren!J189 -> 0 | F195: =Invoeren!I189 -> 0 | G195: =Invoeren!H189 -> zuid
A196: =Invoeren!A190 -> 184 | B196: =Invoeren!D190 -> 200502076 | C196: =Invoeren!E190 -> Kayra Ozsahin | D196: =Invoeren!F190 -> ACZ | E196: =Invoeren!J190 -> 0 | F196: =Invoeren!I190 -> 0 | G196: =Invoeren!H190 -> West
A197: =Invoeren!A191 -> 185 | B197: =Invoeren!D191 -> 200504276 | C197: =Invoeren!E191 -> Marlinka Grundell | D197: =Invoeren!F191 -> Z.P.C.H. | E197: =Invoeren!J191 -> 0 | F197: =Invoeren!I191 -> 0 | G197: =Invoeren!H191 -> MidWest
A198: =Invoeren!A192 -> 186 | B198: =Invoeren!D192 -> 200304386 | C198: =Invoeren!E192 -> Puk van der Laan | D198: =Invoeren!F192 -> AZC | E198: =Invoeren!J192 -> 0 | F198: =Invoeren!I192 -> 0 | G198: =Invoeren!H192 -> West
A199: =Invoeren!A193 -> 187 | B199: =Invoeren!D193 -> 200302016 | C199: =Invoeren!E193 -> Elza van Vliet | D199: =Invoeren!F193 -> BZ&PC | E199: =Invoeren!J193 -> 0 | F199: =Invoeren!I193 -> 0 | G199: =Invoeren!H193 -> West
A200: =Invoeren!A194 -> 188 | B200: =Invoeren!D194 -> 200301828 | C200: =Invoeren!E194 -> Lisanne Verhees | D200: =Invoeren!F194 -> ZPC Nederweert | E200: =Invoeren!J194 -> 0 | F200: =Invoeren!I194 -> 0 | G200: =Invoeren!H194 -> Zuid
A201: =Invoeren!A195 -> 189 | B201: =Invoeren!D195 -> 200305510 | C201: =Invoeren!E195 -> Mirella Schieman | D201: =Invoeren!F195 -> DSZ | E201: =Invoeren!J195 -> 0 | F201: =Invoeren!I195 -> 0 | G201: =Invoeren!H195 -> West
A202: =Invoeren!A196 -> 190 | B202: =Invoeren!D196 -> 200504590 | C202: =Invoeren!E196 -> Iris Schrama | D202: =Invoeren!F196 -> Z.P.C.H. | E202: =Invoeren!J196 -> 0 | F202: =Invoeren!I196 -> 0 | G202: =Invoeren!H196 -> MidWest
... 60 more rows

Sheet Uitslag figuren
A1: =Startlijst!A1 -> Figurenwedstrijd AGE 2 Interregio, Zwembad: De Hoornse Vaart te Alkmaar | K1: =Startlijst!$H1 -> Datum: | M1: =Startlijst!J1 -> 2017-11-11
A2: =Startlijst!A2 -> Organisatie Regio Midwest ism v/h Kring Noord-Holland | K2: =Startlijst!$H2 -> Aanvang: | M2: =Startlijst!J2 -> 14:30 uur
A3: =Startlijst!A3 -> Loting: 1 | E3: =Startlijst!$D$3 -> Categorie: AGE II
B5: UITSLAG FIGUREN | J5: =Invoeren!G3 -> Diploma punten | M5: =Invoeren!M1 -> 0 | N5: =Invoeren!N1 -> Limieten: | O5: =Invoeren!O1 -> 0
A6: =Startlijst!A6 -> 1 | B6: =Startlijst!B6 -> 423 Ariana | E6: =Startlijst!D6 -> 2.2 | J6: =Invoeren!$H3 -> 45.0000 | O6: =Invoeren!O2 -> 
A7: =Startlijst!A7 -> 2 | B7: =Startlijst!B7 -> 301e Barracuda spin down 360° | E7: =Startlijst!D7 -> 2.2 | M7: ='Wedstrijd gegevens'!D27 -> 2003 en 2004 | N7: =Invoeren!N3 -> 49.0000
A8: =Startlijst!A8 -> 3 | B8: =Startlijst!B8 -> 342 Reiger | E8: =Startlijst!D8 -> 2.1 | M8: ='Wedstrijd gegevens'!C27 -> 2005 | N8: =Invoeren!N4 -> 47.0000
A9: =Startlijst!A9 -> 4 | B9: =Startlijst!B9 -> 115 Catalina | E9: =Startlijst!D9 -> 2.3
C11: KNZB | L11: Plaatsing
A12: Plaats | B12: st.nr. | C12: Startnummer | D12: Naam | E12: Vereniging | F12: BM | G12: Regio | H12: Pr. | I12: Lim | J12: Dipl | K12: TOTAAL | L12: Fig. 1 | M12: Fig. 2 | N12: Fig. 3 | O12: Fig. 4
A13: =Invoeren!B87 -> 1 | B13: =Invoeren!A87 -> 81 | C13: =Invoeren!$D87 -> 200301290 | D13: =Invoeren!E87 -> Maria Lorenzini | E13: =Invoeren!F87 -> ACZ | F13: =Invoeren!$I87 -> 0 | G13: =Invoeren!$H87 -> West | H13: =Invoeren!L87 -> 0 | I13: =Invoeren!M87 -> L | J13: =Invoeren!N87 ->  | K13: =Invoeren!$C87 -> 65.5189 | L13: =Invoeren!AI87 -> 7 | M13: =Invoeren!BC87 -> 1 | N13: =Invoeren!BW87 -> 1 | O13: =Invoeren!CQ87 -> 1
A14: =Invoeren!B155 -> 2 | B14: =Invoeren!A155 -> 149 | C14: =Invoeren!$D155 -> 200400354 | D14: =Invoeren!E155 -> Noortje Reijnen | E14: =Invoeren!F155 -> Z.P.C.H. | F14: =Invoeren!$I155 -> 0 | G14: =Invoeren!$H155 -> MidWest | H14: =Invoeren!L155 -> 0 | I14: =Invoeren!M155 -> L | J14: =Invoeren!N155 ->  | K14: =Invoeren!$C155 -> 63.3484 | L14: =Invoeren!AI155 -> 1 | M14: =Invoeren!BC155 -> 3 | N14: =Invoeren!BW155 -> 7 | O14: =Invoeren!CQ155 -> 8
A15: =Invoeren!B164 -> 3 | B15: =Invoeren!A164 -> 158 | C15: =Invoeren!$D164 -> 200302650 | D15: =Invoeren!E164 -> Zärrin Sahertian | E15: =Invoeren!F164 -> Z.P.C.H. | F15: =Invoeren!$I164 -> 0 | G15: =Invoeren!$H164 -> MidWest | H15: =Invoeren!L164 -> 0 | I15: =Invoeren!M164 -> L | J15: =Invoeren!N164 ->  | K15: =Invoeren!$C164 -> 63.1553 | L15: =Invoeren!AI164 -> 12 | M15: =Invoeren!BC164 -> 4 | N15: =Invoeren!BW164 -> 1 | O15: =Invoeren!CQ164 -> 6
A16: =Invoeren!B53 -> 4 | B16: =Invoeren!A53 -> 47 | C16: =Invoeren!$D53 -> 200401204 | D16: =Invoeren!E53 -> Merel Leuring | E16: =Invoeren!F53 -> AZC | F16: =Invoeren!$I53 -> 0 | G16: =Invoeren!$H53 -> West | H16: =Invoeren!L53 -> 0 | I16: =Invoeren!M53 -> L | J16: =Invoeren!N53 ->  | K16: =Invoeren!$C53 -> 62.4091 | L16: =Invoeren!AI53 -> 9 | M16: =Invoeren!BC53 -> 4 | N16: =Invoeren!BW53 -> 17 | O16: =Invoeren!CQ53 -> 4
A17: =Invoeren!B142 -> 5 | B17: =Invoeren!A142 -> 136 | C17: =Invoeren!$D142 -> 200302652 | D17: =Invoeren!E142 -> Femke Vos | E17: =Invoeren!F142 -> Z.P.C.H. | F17: =Invoeren!$I142 -> 0 | G17: =Invoeren!$H142 -> MidWest | H17: =Invoeren!L142 -> 0 | I17: =Invoeren!M142 -> L | J17: =Invoeren!N142 ->  | K17: =Invoeren!$C142 -> 62.3636 | L17: =Invoeren!AI142 -> 7 | M17: =Invoeren!BC142 -> 7 | N17: =Invoeren!BW142 -> 6 | O17: =Invoeren!CQ142 -> 5
A18: =Invoeren!B52 -> 6 | B18: =Invoeren!A52 -> 46 | C18: =Invoeren!$D52 -> 200500012 | D18: =Invoeren!E52 -> Marloes Steenbeek | E18: =Invoeren!F52 -> De Dolfijn | F18: =Invoeren!$I52 -> 0 | G18: =Invoeren!$H52 -> Midwest | H18: =Invoeren!L52 -> 0 | I18: =Invoeren!M52 -> L | J18: =Invoeren!N52 ->  | K18: =Invoeren!$C52 -> 62.2690 | L18: =Invoeren!AI52 -> 2 | M18: =Invoeren!BC52 -> 6 | N18: =Invoeren!BW52 -> 28 | O18: =Invoeren!CQ52 -> 3
A19: =Invoeren!B158 -> 7 | B19: =Invoeren!A158 -> 152 | C19: =Invoeren!$D158 -> 200302244 | D19: =Invoeren!E158 -> Isa Turnhout | E19: =Invoeren!F158 -> AZC | F19: =Invoeren!$I158 -> 0 | G19: =Invoeren!$H158 -> West | H19: =Invoeren!L158 -> 0 | I19: =Invoeren!M158 -> L | J19: =Invoeren!N158 ->  | K19: =Invoeren!$C158 -> 61.5341 | L19: =Invoeren!AI158 -> 5 | M19: =Invoeren!BC158 -> 8 | N19: =Invoeren!BW158 -> 11 | O19: =Invoeren!CQ158 -> 7
A20: =Invoeren!B16 -> 8 | B20: =Invoeren!A16 -> 10 | C20: =Invoeren!$D16 -> 200400018 | D20: =Invoeren!E16 -> Floor Schallenberg | E20: =Invoeren!F16 -> ACZ | F20: =Invoeren!$I16 -> 0 | G20: =Invoeren!$H16 -> West | H20: =Invoeren!L16 -> 0 | I20: =Invoeren!M16 -> L | J20: =Invoeren!N16 ->  | K20: =Invoeren!$C16 -> 61.2500 | L20: =Invoeren!AI16 -> 32 | M20: =Invoeren!BC16 -> 2 | N20: =Invoeren!BW16 -> 5 | O20: =Invoeren!CQ16 -> 11
A21: =Invoeren!B101 -> 9 | B21: =Invoeren!A101 -> 95 | C21: =Invoeren!$D101 -> 200300438 | D21: =Invoeren!E101 -> Eva Schijf | E21: =Invoeren!F101 -> DAW | F21: =Invoeren!$I101 -> 0 | G21: =Invoeren!$H101 -> Midwest | H21: =Invoeren!L101 -> 0 | I21: =Invoeren!M101 -> L | J21: =Invoeren!N101 ->  | K21: =Invoeren!$C101 -> 61.2386 | L21: =Invoeren!AI101 -> 3 | M21: =Invoeren!BC101 -> 16 | N21: =Invoeren!BW101 -> 4 | O21: =Invoeren!CQ101 -> 12
A22: =Invoeren!B121 -> 10 | B22: =Invoeren!A121 -> 115 | C22: =Invoeren!$D121 -> 200402892 | D22: =Invoeren!E121 -> Floor Speckens | E22: =Invoeren!F121 -> WVZ | F22: =Invoeren!$I121 -> 0 | G22: =Invoeren!$H121 -> West | H22: =Invoeren!L121 -> 0 | I22: =Invoeren!M121 -> L | J22: =Invoeren!N121 ->  | K22: =Invoeren!$C121 -> 60.7008 | L22: =Invoeren!AI121 -> 9 | M22: =Invoeren!BC121 -> 14 | N22: =Invoeren!BW121 -> 14 | O22: =Invoeren!CQ121 -> 10
A23: =Invoeren!B98 -> 11 | B23: =Invoeren!A98 -> 92 | C23: =Invoeren!$D98 -> 200400952 | D23: =Invoeren!E98 -> Dionne Sijben | E23: =Invoeren!F98 -> ACZ | F23: =Invoeren!$I98 ->  | G23: =Invoeren!$H98 -> West | H23: =Invoeren!L98 -> 0 | I23: =Invoeren!M98 -> L | J23: =Invoeren!N98 -> Age II | K23: =Invoeren!$C98 -> 60.2690 | L23: =Invoeren!AI98 -> 20 | M23: =Invoeren!BC98 -> 11 | N23: =Invoeren!BW98 -> 3 | O23: =Invoeren!CQ98 -> 25
A24: =Invoeren!B73 -> 12 | B24: =Invoeren!A73 -> 67 | C24: =Invoeren!$D73 -> 200600078 | D24: =Invoeren!E73 -> Mare Schallenberg | E24: =Invoeren!F73 -> ACZ | F24: =Invoeren!$I73 -> 0 | G24: =Invoeren!$H73 -> West | H24: =Invoeren!L73 -> 0 | I24: =Invoeren!M73 -> L | J24: =Invoeren!N73 ->  | K24: =Invoeren!$C73 -> 60.2463 | L24: =Invoeren!AI73 -> 19 | M24: =Invoeren!BC73 -> 9 | N24: =Invoeren!BW73 -> 7 | O24: =Invoeren!CQ73 -> 16
A25: =Invoeren!B203 -> 13 | B25: =Invoeren!A203 -> 197 | C25: =Invoeren!$D203 -> 200304428 | D25: =Invoeren!E203 -> Sophie de Cock | E25: =Invoeren!F203 -> PSV Synchro Team Eindhoven | F25: =Invoeren!$I203 -> 0 | G25: =Invoeren!$H203 -> Zuid | H25: =Invoeren!L203 -> 0 | I25: =Invoeren!M203 -> L | J25: =Invoeren!N203 ->  | K25: =Invoeren!$C203 -> 60.1060 | L25: =Invoeren!AI203 -> 4 | M25: =Invoeren!BC203 -> 18 | N25: =Invoeren!BW203 -> 15 | O25: =Invoeren!CQ203 -> 16
A26: =Invoeren!B129 -> 14 | B26: =Invoeren!A129 -> 123 | C26: =Invoeren!$D129 -> 200403430 | D26: =Invoeren!E129 -> Giorgia Gandossi | E26: =Invoeren!F129 -> DAW | F26: =Invoeren!$I129 -> 0 | G26: =Invoeren!$H129 -> Midwest | H26: =Invoeren!L129 -> 0 | I26: =Invoeren!M129 -> L | J26: =Invoeren!N129 ->  | K26: =Invoeren!$C129 -> 60.0531 | L26: =Invoeren!AI129 -> 12 | M26: =Invoeren!BC129 -> 9 | N26: =Invoeren!BW129 -> 52 | O26: =Invoeren!CQ129 -> 2
A27: =Invoeren!B95 -> 15 | B27: =Invoeren!A95 -> 89 | C27: =Invoeren!$D95 -> 200301680 | D27: =Invoeren!E95 -> Sarah Molensky | E27: =Invoeren!F95 -> ZVBrunssum | F27: =Invoeren!$I95 -> 0 | G27: =Invoeren!$H95 -> Zuid | H27: =Invoeren!L95 -> 0 | I27: =Invoeren!M95 -> L | J27: =Invoeren!N95 ->  | K27: =Invoeren!$C95 -> 59.6060 | L27: =Invoeren!AI95 -> 5 | M27: =Invoeren!BC95 -> 55 | N27: =Invoeren!BW95 -> 10 | O27: =Invoeren!CQ95 -> 8
A28: =Invoeren!B144 -> 16 | B28: =Invoeren!A144 -> 138 | C28: =Invoeren!$D144 -> 200403600 | D28: =Invoeren!E144 -> Marleen Voesten | E28: =Invoeren!F144 -> De Dolfijn | F28: =Invoeren!$I144 -> 0 | G28: =Invoeren!$H144 -> MidWest | H28: =Invoeren!L144 -> 0 | I28: =Invoeren!M144 -> L | J28: =Invoeren!N144 ->  | K28: =Invoeren!$C144 -> 59.1706 | L28: =Invoeren!AI144 -> 12 | M28: =Invoeren!BC144 -> 21 | N28: =Invoeren!BW144 -> 11 | O28: =Invoeren!CQ144 -> 20
A29: =Invoeren!B146 -> 17 | B29: =Invoeren!A146 -> 140 | C29: =Invoeren!$D146 -> 200302352 | D29: =Invoeren!E146 -> Laura Lai | E29: =Invoeren!F146 -> De Dolfijn | F29: =Invoeren!$I146 -> 0 | G29: =Invoeren!$H146 -> Midwest | H29: =Invoeren!L146 -> 0 | I29: =Invoeren!M146 -> L | J29: =Invoeren!N146 ->  | K29: =Invoeren!$C146 -> 58.7878 | L29: =Invoeren!AI146 -> 22 | M29: =Invoeren!BC146 -> 12 | N29: =Invoeren!BW146 -> 23 | O29: =Invoeren!CQ146 -> 19
A30: =Invoeren!B130 -> 18 | B30: =Invoeren!A130 -> 124 | C30: =Invoeren!$D130 -> 200401294 | D30: =Invoeren!E130 -> Eline Braakhuis | E30: =Invoeren!F130 -> De Dolfijn | F30: =Invoeren!$I130 -> 0 | G30: =Invoeren!$H130 -> Midwest | H30: =Invoeren!L130 -> 0 | I30: =Invoeren!M130 -> L | J30: =Invoeren!N130 ->  | K30: =Invoeren!$C130 -> 58.5265 | L30: =Invoeren!AI130 -> 32 | M30: =Invoeren!BC130 -> 18 | N30: =Invoeren!BW130 -> 15 | O30: =Invoeren!CQ130 -> 12
A31: =Invoeren!B149 -> 19 | B31: =Invoeren!A149 -> 143 | C31: =Invoeren!$D149 -> 200400606 | D31: =Invoeren!E149 -> Fleur Valk | E31: =Invoeren!F149 -> AZC | F31: =Invoeren!$I149 -> 0 | G31: =Invoeren!$H149 -> West | H31: =Invoeren!L149 -> 0 | I31: =Invoeren!M149 -> L | J31: =Invoeren!N149 ->  | K31: =Invoeren!$C149 -> 58.5190 | L31: =Invoeren!AI149 -> 22 | M31: =Invoeren!BC149 -> 30 | N31: =Invoeren!BW149 -> 13 | O31: =Invoeren!CQ149 -> 12
A32: =Invoeren!B127 -> 20 | B32: =Invoeren!A127 -> 121 | C32: =Invoeren!$D127 -> 200304528 | D32: =Invoeren!E127 -> Kincsö Biró | E32: =Invoeren!F127 -> ACZ | F32: =Invoeren!$I127 -> 0 | G32: =Invoeren!$H127 -> West | H32: =Invoeren!L127 -> 0 | I32: =Invoeren!M127 -> L | J32: =Invoeren!N127 ->  | K32: =Invoeren!$C127 -> 57.7992 | L32: =Invoeren!AI127 -> 17 | M32: =Invoeren!BC127 -> 15 | N32: =Invoeren!BW127 -> 47 | O32: =Invoeren!CQ127 -> 27
A33: =Invoeren!B18 -> 21 | B33: =Invoeren!A18 -> 12 | C33: =Invoeren!$D18 -> 200402252 | D33: =Invoeren!E18 -> Ilse de Heij | E33: =Invoeren!F18 -> Z.P.C.H. | F33: =Invoeren!$I18 -> 0 | G33: =Invoeren!$H18 -> MidWest | H33: =Invoeren!L18 -> 0 | I33: =Invoeren!M18 -> L | J33: =Invoeren!N18 ->  | K33: =Invoeren!$C18 -> 57.7273 | L33: =Invoeren!AI18 -> 45 | M33: =Invoeren!BC18 -> 16 | N33: =Invoeren!BW18 -> 31 | O33: =Invoeren!CQ18 -> 12
A34: =Invoeren!B61 -> 22 | B34: =Invoeren!A61 -> 55 | C34: =Invoeren!$D61 -> 200403278 | D34: =Invoeren!E61 -> Eline Penning | E34: =Invoeren!F61 -> ACZ | F34: =Invoeren!$I61 -> 0 | G34: =Invoeren!$H61 -> West | H34: =Invoeren!L61 -> 0 | I34: =Invoeren!M61 -> L | J34: =Invoeren!N61 ->  | K34: =Invoeren!$C61 -> 57.5530 | L34: =Invoeren!AI61 -> 17 | M34: =Invoeren!BC61 -> 26 | N34: =Invoeren!BW61 -> 39 | O34: =Invoeren!CQ61 -> 23
A35: =Invoeren!B94 -> 23 | B35: =Invoeren!A94 -> 88 | C35: =Invoeren!$D94 -> 200301902 | D35: =Invoeren!E94 -> Pleun Boerakker | E35: =Invoeren!F94 -> Cadans | F35: =Invoeren!$I94 -> 0 | G35: =Invoeren!$H94 -> oost | H35: =Invoeren!L94 -> 0 | I35: =Invoeren!M94 -> L | J35: =Invoeren!N94 ->  | K35: =Invoeren!$C94 -> 57.3447 | L35: =Invoeren!AI94 -> 12 | M35: =Invoeren!BC94 -> 12 | N35: =Invoeren!BW94 -> 42 | O35: =Invoeren!CQ94 -> 44
A36: =Invoeren!B100 -> 24 | B36: =Invoeren!A100 -> 94 | C36: =Invoeren!$D100 -> 200303794 | D36: =Invoeren!E100 -> Xenna Mackay | E36: =Invoeren!F100 -> Z.P.C.H. | F36: =Invoeren!$I100 -> 0 | G36: =Invoeren!$H100 -> MidWest | H36: =Invoeren!L100 -> 0 | I36: =Invoeren!M100 -> L | J36: =Invoeren!N100 ->  | K36: =Invoeren!$C100 -> 57.0341 | L36: =Invoeren!AI100 -> 38 | M36: =Invoeren!BC100 -> 48 | N36: =Invoeren!BW100 -> 18 | O36: =Invoeren!CQ100 -> 16
A37: =Invoeren!B76 -> 25 | B37: =Invoeren!A76 -> 70 | C37: =Invoeren!$D76 -> 200502158 | D37: =Invoeren!E76 -> Newa Hama Hussein | E37: =Invoeren!F76 -> Cadans | F37: =Invoeren!$I76 -> 0 | G37: =Invoeren!$H76 -> oost | H37: =Invoeren!L76 -> 0 | I37: =Invoeren!M76 -> L | J37: =Invoeren!N76 ->  | K37: =Invoeren!$C76 -> 56.5984 | L37: =Invoeren!AI76 -> 62 | M37: =Invoeren!BC76 -> 23 | N37: =Invoeren!BW76 -> 21 | O37: =Invoeren!CQ76 -> 25
A38: =Invoeren!B153 -> 26 | B38: =Invoeren!A153 -> 147 | C38: =Invoeren!$D153 -> 200304002 | D38: =Invoeren!E153 -> Femke Maertens | E38: =Invoeren!F153 -> ACZ | F38: =Invoeren!$I153 -> 0 | G38: =Invoeren!$H153 -> West | H38: =Invoeren!L153 -> 0 | I38: =Invoeren!M153 -> L | J38: =Invoeren!N153 ->  | K38: =Invoeren!$C153 -> 56.5341 | L38: =Invoeren!AI153 -> 29 | M38: =Invoeren!BC153 -> 66 | N38: =Invoeren!BW153 -> 7 | O38: =Invoeren!CQ153 -> 36
A39: =Invoeren!B91 -> 27 | B39: =Invoeren!A91 -> 85 | C39: =Invoeren!$D91 -> 200404456 | D39: =Invoeren!E91 -> Amanda Voesten | E39: =Invoeren!F91 -> De Dolfijn | F39: =Invoeren!$I91 -> 0 | G39: =Invoeren!$H91 -> MidWest | H39: =Invoeren!L91 -> 0 | I39: =Invoeren!M91 -> L | J39: =Invoeren!N91 ->  | K39: =Invoeren!$C91 -> 56.4205 | L39: =Invoeren!AI91 -> 48 | M39: =Invoeren!BC91 -> 32 | N39: =Invoeren!BW91 -> 21 | O39: =Invoeren!CQ91 -> 30
A40: =Invoeren!B150 -> 28 | B40: =Invoeren!A150 -> 144 | C40: =Invoeren!$D150 -> 200400964 | D40: =Invoeren!E150 -> Pauline Radochyn | E40: =Invoeren!F150 -> Cadans | F40: =Invoeren!$I150 -> 0 | G40: =Invoeren!$H150 -> oost | H40: =Invoeren!L150 -> 0 | I40: =Invoeren!M150 -> L | J40: =Invoeren!N150 ->  | K40: =Invoeren!$C150 -> 56.3674 | L40: =Invoeren!AI150 -> 51 | M40: =Invoeren!BC150 -> 39 | N40: =Invoeren!BW150 -> 25 | O40: =Invoeren!CQ150 -> 23
A41: =Invoeren!B193 -> 29 | B41: =Invoeren!A193 -> 187 | C41: =Invoeren!$D193 -> 200302016 | D41: =Invoeren!E193 -> Elza van Vliet | E41: =Invoeren!F193 -> BZ&PC | F41: =Invoeren!$I193 -> 0 | G41: =Invoeren!$H193 -> West | H41: =Invoeren!L193 -> 0 | I41: =Invoeren!M193 -> L | J41: =Invoeren!N193 ->  | K41: =Invoeren!$C193 -> 55.8560 | L41: =Invoeren!AI193 -> 38 | M41: =Invoeren!BC193 -> 90 | N41: =Invoeren!BW193 -> 18 | O41: =Invoeren!CQ193 -> 21
A42: =Invoeren!B37 -> 30 | B42: =Invoeren!A37 -> 31 | C42: =Invoeren!$D37 -> 200401126 | D42: =Invoeren!E37 -> Keyla Lammers | E42: =Invoeren!F37 -> AZC | F42: =Invoeren!$I37 -> 0 | G42: =Invoeren!$H37 -> West | H42: =Invoeren!L37 -> 0 | I42: =Invoeren!M37 -> L | J42: =Invoeren!N37 ->  | K42: =Invoeren!$C37 -> 55.6932 | L42: =Invoeren!AI37 -> 26 | M42: =Invoeren!BC37 -> 36 | N42: =Invoeren!BW37 -> 47 | O42: =Invoeren!CQ37 -> 37
A43: =Invoeren!B167 -> 31 | B43: =Invoeren!A167 -> 161 | C43: =Invoeren!$D167 -> 200304068 | D43: =Invoeren!E167 -> Charlotte Leemburg | E43: =Invoeren!F167 -> BZ&PC | F43: =Invoeren!$I167 -> 0 | G43: =Invoeren!$H167 -> West | H43: =Invoeren!L167 -> 0 | I43: =Invoeren!M167 -> L | J43: =Invoeren!N167 ->  | K43: =Invoeren!$C167 -> 55.6893 | L43: =Invoeren!AI167 -> 32 | M43: =Invoeren!BC167 -> 32 | N43: =Invoeren!BW167 -> 42 | O43: =Invoeren!CQ167 -> 37
A44: =Invoeren!B59 -> 32 | B44: =Invoeren!A59 -> 53 | C44: =Invoeren!$D59 -> 200403206 | D44: =Invoeren!E59 -> Fleur Vergeer | E44: =Invoeren!F59 -> Aquarijn | F44: =Invoeren!$I59 -> 0 | G44: =Invoeren!$H59 -> MidWest | H44: =Invoeren!L59 -> 0 | I44: =Invoeren!M59 -> L | J44: =Invoeren!N59 ->  | K44: =Invoeren!$C59 -> 55.6136 | L44: =Invoeren!AI59 -> 26 | M44: =Invoeren!BC59 -> 50 | N44: =Invoeren!BW59 -> 39 | O44: =Invoeren!CQ59 -> 32
A45: =Invoeren!B192 -> 33 | B45: =Invoeren!A192 -> 186 | C45: =Invoeren!$D192 -> 200304386 | D45: =Invoeren!E192 -> Puk van der Laan | E45: =Invoeren!F192 -> AZC | F45: =Invoeren!$I192 -> 0 | G45: =Invoeren!$H192 -> West | H45: =Invoeren!L192 -> 0 | I45: =Invoeren!M192 -> L | J45: =Invoeren!N192 ->  | K45: =Invoeren!$C192 -> 55.6099 | L45: =Invoeren!AI192 -> 29 | M45: =Invoeren!BC192 -> 32 | N45: =Invoeren!BW192 -> 18 | O45: =Invoeren!CQ192 -> 76
A46: =Invoeren!B63 -> 34 | B46: =Invoeren!A63 -> 57 | C46: =Invoeren!$D63 -> 200304796 | D46: =Invoeren!E63 -> Judith Bosman | E46: =Invoeren!F63 -> Z.P.C.H. | F46: =Invoeren!$I63 -> 0 | G46: =Invoeren!$H63 -> MidWest | H46: =Invoeren!L63 -> 0 | I46: =Invoeren!M63 -> L | J46: =Invoeren!N63 ->  | K46: =Invoeren!$C63 -> 55.5910 | L46: =Invoeren!AI63 -> 41 | M46: =Invoeren!BC63 -> 50 | N46: =Invoeren!BW63 -> 25 | O46: =Invoeren!CQ63 -> 34
A47: =Invoeren!B48 -> 35 | B47: =Invoeren!A48 -> 42 | C47: =Invoeren!$D48 -> 200401278 | D47: =Invoeren!E48 -> Kate Jutte | E47: =Invoeren!F48 -> WVZ | F47: =Invoeren!$I48 -> 0 | G47: =Invoeren!$H48 -> West | H47: =Invoeren!L48 -> 0 | I47: =Invoeren!M48 -> L | J47: =Invoeren!N48 ->  | K47: =Invoeren!$C48 -> 55.5378 | L47: =Invoeren!AI48 -> 88 | M47: =Invoeren!BC48 -> 42 | N47: =Invoeren!BW48 -> 25 | O47: =Invoeren!CQ48 -> 21
A48: =Invoeren!B90 -> 36 | B48: =Invoeren!A90 -> 84 | C48: =Invoeren!$D90 -> 200401490 | D48: =Invoeren!E90 -> Anna Darby | E48: =Invoeren!F90 -> DAW | F48: =Invoeren!$I90 -> 0 | G48: =Invoeren!$H90 -> Midwest | H48: =Invoeren!L90 -> 0 | I48: =Invoeren!M90 -> L | J48: =Invoeren!N90 ->  | K48: =Invoeren!$C90 -> 55.4888 | L48: =Invoeren!AI90 -> 72 | M48: =Invoeren!BC90 -> 28 | N48: =Invoeren!BW90 -> 23 | O48: =Invoeren!CQ90 -> 41
A49: =Invoeren!B184 -> 37 | B49: =Invoeren!A184 -> 178 | C49: =Invoeren!$D184 -> 200402510 | D49: =Invoeren!E184 -> Caithlin Reimer | E49: =Invoeren!F184 -> AZC | F49: =Invoeren!$I184 -> 0 | G49: =Invoeren!$H184 -> West | H49: =Invoeren!L184 -> 0 | I49: =Invoeren!M184 -> L | J49: =Invoeren!N184 ->  | K49: =Invoeren!$C184 -> 54.9810 | L49: =Invoeren!AI184 -> 41 | M49: =Invoeren!BC184 -> 18 | N49: =Invoeren!BW184 -> 47 | O49: =Invoeren!CQ184 -> 83
A50: =Invoeren!B46 -> 38 | B50: =Invoeren!A46 -> 40 | C50: =Invoeren!$D46 -> 200403890 | D50: =Invoeren!E46 -> Mette Bos | E50: =Invoeren!F46 -> Z.P.C.H. | F50: =Invoeren!$I46 -> 0 | G50: =Invoeren!$H46 -> MidWest | H50: =Invoeren!L46 -> 0 | I50: =Invoeren!M46 -> L | J50: =Invoeren!N46 ->  | K50: =Invoeren!$C46 -> 54.8674 | L50: =Invoeren!AI46 -> 11 | M50: =Invoeren!BC46 -> 39 | N50: =Invoeren!BW46 -> 86 | O50: =Invoeren!CQ46 -> 62
A51: =Invoeren!B156 -> 39 | B51: =Invoeren!A156 -> 150 | C51: =Invoeren!$D156 -> 200302354 | D51: =Invoeren!E156 -> Britt Huijsman | E51: =Invoeren!F156 -> De Dolfijn | F51: =Invoeren!$I156 -> 0 | G51: =Invoeren!$H156 -> Midwest | H51: =Invoeren!L156 -> 0 | I51: =Invoeren!M156 -> L | J51: =Invoeren!N156 ->  | K51: =Invoeren!$C156 -> 54.5266 | L51: =Invoeren!AI156 -> 41 | M51: =Invoeren!BC156 -> 79 | N51: =Invoeren!BW156 -> 39 | O51: =Invoeren!CQ156 -> 34
A52: =Invoeren!B185 -> 40 | B52: =Invoeren!A185 -> 179 | C52: =Invoeren!$D185 -> 200400742 | D52: =Invoeren!E185 -> Debbie Geilen | E52: =Invoeren!F185 -> Hellas-Glana | F52: =Invoeren!$I185 -> 0 | G52: =Invoeren!$H185 -> Zuid | H52: =Invoeren!L185 -> 0 | I52: =Invoeren!M185 -> L | J52: =Invoeren!N185 ->  | K52: =Invoeren!$C185 -> 54.5265 | L52: =Invoeren!AI185 -> 48 | M52: =Invoeren!BC185 -> 26 | N52: =Invoeren!BW185 -> 71 | O52: =Invoeren!CQ185 -> 53
A53: =Invoeren!B180 -> 41 | B53: =Invoeren!A180 -> 174 | C53: =Invoeren!$D180 -> 200304172 | D53: =Invoeren!E180 -> Ymke Tolboom | E53: =Invoeren!F180 -> PSV Synchro Team Eindhoven | F53: =Invoeren!$I180 -> 0 | G53: =Invoeren!$H180 -> Zuid | H53: =Invoeren!L180 -> 0 | I53: =Invoeren!M180 -> L | J53: =Invoeren!N180 ->  | K53: =Invoeren!$C180 -> 54.4507 | L53: =Invoeren!AI180 -> 24 | M53: =Invoeren!BC180 -> 46 | N53: =Invoeren!BW180 -> 78 | O53: =Invoeren!CQ180 -> 50
A54: =Invoeren!B211 -> 42 | B54: =Invoeren!A211 -> 205 | C54: =Invoeren!$D211 -> 200500360 | D54: =Invoeren!E211 -> Iris Florisson | E54: =Invoeren!F211 -> AZC | F54: =Invoeren!$I211 -> 0 | G54: =Invoeren!$H211 -> West | H54: =Invoeren!L211 -> 0 | I54: =Invoeren!M211 -> L | J54: =Invoeren!N211 ->  | K54: =Invoeren!$C211 -> 54.4280 | L54: =Invoeren!AI211 -> 26 | M54: =Invoeren!BC211 -> 30 | N54: =Invoeren!BW211 -> 108 | O54: =Invoeren!CQ211 -> 37
A55: =Invoeren!B96 -> 43 | B55: =Invoeren!A96 -> 90 | C55: =Invoeren!$D96 -> 200302322 | D55: =Invoeren!E96 -> Noa van Blijderveen | E55: =Invoeren!F96 -> Aquarijn | F55: =Invoeren!$I96 -> 0 | G55: =Invoeren!$H96 -> MidWest | H55: =Invoeren!L96 -> 0 | I55: =Invoeren!M96 -> L | J55: =Invoeren!N96 ->  | K55: =Invoeren!$C96 -> 54.4090 | L55: =Invoeren!AI96 -> 32 | M55: =Invoeren!BC96 -> 90 | N55: =Invoeren!BW96 -> 28 | O55: =Invoeren!CQ96 -> 44
A56: =Invoeren!B187 -> 44 | B56: =Invoeren!A187 -> 181 | C56: =Invoeren!$D187 -> 200403894 | D56: =Invoeren!E187 -> Marin Hokke | E56: =Invoeren!F187 -> Z.P.C.H. | F56: =Invoeren!$I187 -> 0 | G56: =Invoeren!$H187 -> MidWest | H56: =Invoeren!L187 -> 0 | I56: =Invoeren!M187 -> L | J56: =Invoeren!N187 ->  | K56: =Invoeren!$C187 -> 54.3789 | L56: =Invoeren!AI187 -> 51 | M56: =Invoeren!BC187 -> 79 | N56: =Invoeren!BW187 -> 47 | O56: =Invoeren!CQ187 -> 29
A57: =Invoeren!B29 -> 45 | B57: =Invoeren!A29 -> 23 | C57: =Invoeren!$D29 -> 200303068 | D57: =Invoeren!E29 -> Linda van Heumen | E57: =Invoeren!F29 -> Aqua-Novio '94 | F57: =Invoeren!$I29 -> 0 | G57: =Invoeren!$H29 -> Oost | H57: =Invoeren!L29 -> 0 | I57: =Invoeren!M29 -> L | J57: =Invoeren!N29 ->  | K57: =Invoeren!$C29 -> 54.3636 | L57: =Invoeren!AI29 -> 68 | M57: =Invoeren!BC29 -> 32 | N57: =Invoeren!BW29 -> 63 | O57: =Invoeren!CQ29 -> 43
A58: =Invoeren!B208 -> 46 | B58: =Invoeren!A208 -> 202 | C58: =Invoeren!$D208 -> 200402876 | D58: =Invoeren!E208 -> Marije Koot | E58: =Invoeren!F208 -> BZ&PC | F58: =Invoeren!$I208 -> 0 | G58: =Invoeren!$H208 -> West | H58: =Invoeren!L208 -> 0 | I58: =Invoeren!M208 -> L | J58: =Invoeren!N208 ->  | K58: =Invoeren!$C208 -> 54.2499 | L58: =Invoeren!AI208 -> 45 | M58: =Invoeren!BC208 -> 55 | N58: =Invoeren!BW208 -> 42 | O58: =Invoeren!CQ208 -> 53
A59: =Invoeren!B176 -> 47 | B59: =Invoeren!A176 -> 170 | C59: =Invoeren!$D176 -> 200302568 | D59: =Invoeren!E176 -> Maggie Jiroutova | E59: =Invoeren!F176 -> AZC | F59: =Invoeren!$I176 -> 0 | G59: =Invoeren!$H176 -> West | H59: =Invoeren!L176 -> 0 | I59: =Invoeren!M176 -> L | J59: =Invoeren!N176 ->  | K59: =Invoeren!$C176 -> 54.2385 | L59: =Invoeren!AI176 -> 55 | M59: =Invoeren!BC176 -> 55 | N59: =Invoeren!BW176 -> 34 | O59: =Invoeren!CQ176 -> 53
A60: =Invoeren!B10 -> 48 | B60: =Invoeren!A10 -> 4 | C60: =Invoeren!$D10 -> 200402214 | D60: =Invoeren!E10 -> Fiene van Wijk | E60: =Invoeren!F10 -> WVZ | F60: =Invoeren!$I10 -> 0 | G60: =Invoeren!$H10 -> West | H60: =Invoeren!L10 -> 0 | I60: =Invoeren!M10 -> L | J60: =Invoeren!N10 ->  | K60: =Invoeren!$C10 -> 54.1592 | L60: =Invoeren!AI10 -> 72 | M60: =Invoeren!BC10 -> 21 | N60: =Invoeren!BW10 -> 52 | O60: =Invoeren!CQ10 -> 72
A61: =Invoeren!B64 -> 49 | B61: =Invoeren!A64 -> 58 | C61: =Invoeren!$D64 -> 200403048 | D61: =Invoeren!E64 -> Ninon van Baal | E61: =Invoeren!F64 -> DAW | F61: =Invoeren!$I64 -> 0 | G61: =Invoeren!$H64 -> Midwest | H61: =Invoeren!L64 -> 0 | I61: =Invoeren!M64 -> L | J61: =Invoeren!N64 ->  | K61: =Invoeren!$C64 -> 54.1553 | L61: =Invoeren!AI64 -> 41 | M61: =Invoeren!BC64 -> 66 | N61: =Invoeren!BW64 -> 37 | O61: =Invoeren!CQ64 -> 58
A62: =Invoeren!B65 -> 50 | B62: =Invoeren!A65 -> 59 | C62: =Invoeren!$D65 -> 200405168 | D62: =Invoeren!E65 -> Isis Braam | E62: =Invoeren!F65 -> De Dolfijn | F62: =Invoeren!$I65 -> 0 | G62: =Invoeren!$H65 -> Midwest | H62: =Invoeren!L65 -> 0 | I62: =Invoeren!M65 -> L | J62: =Invoeren!N65 ->  | K62: =Invoeren!$C65 -> 54.1439 | L62: =Invoeren!AI65 -> 24 | M62: =Invoeren!BC65 -> 79 | N62: =Invoeren!BW65 -> 34 | O62: =Invoeren!CQ65 -> 65
A63: =Invoeren!B168 -> 51 | B63: =Invoeren!A168 -> 162 | C63: =Invoeren!$D168 -> 200400948 | D63: =Invoeren!E168 -> Alisa Brandon | E63: =Invoeren!F168 -> Swol 1894 | F63: =Invoeren!$I168 -> 0 | G63: =Invoeren!$H168 -> Oost | H63: =Invoeren!L168 -> 0 | I63: =Invoeren!M168 -> L | J63: =Invoeren!N168 ->  | K63: =Invoeren!$C168 -> 54.0265 | L63: =Invoeren!AI168 -> 55 | M63: =Invoeren!BC168 -> 50 | N63: =Invoeren!BW168 -> 63 | O63: =Invoeren!CQ168 -> 44
A64: =Invoeren!B113 -> 52 | B64: =Invoeren!A113 -> 107 | C64: =Invoeren!$D113 -> 200403554 | D64: =Invoeren!E113 -> Tara Vyent | E64: =Invoeren!F113 -> ACZ | F64: =Invoeren!$I113 -> 0 | G64: =Invoeren!$H113 -> West | H64: =Invoeren!L113 -> 0 | I64: =Invoeren!M113 -> L | J64: =Invoeren!N113 ->  | K64: =Invoeren!$C113 -> 53.8219 | L64: =Invoeren!AI113 -> 62 | M64: =Invoeren!BC113 -> 23 | N64: =Invoeren!BW113 -> 63 | O64: =Invoeren!CQ113 -> 87
A65: =Invoeren!B161 -> 53 | B65: =Invoeren!A161 -> 155 | C65: =Invoeren!$D161 -> 200302570 | D65: =Invoeren!E161 -> Jikke Heijne | E65: =Invoeren!F161 -> Swol 1894 | F65: =Invoeren!$I161 -> 0 | G65: =Invoeren!$H161 -> Oost | H65: =Invoeren!L161 -> 0 | I65: =Invoeren!M161 -> L | J65: =Invoeren!N161 ->  | K65: =Invoeren!$C161 -> 53.6136 | L65: =Invoeren!AI161 -> 72 | M65: =Invoeren!BC161 -> 69 | N65: =Invoeren!BW161 -> 52 | O65: =Invoeren!CQ161 -> 37
A66: =Invoeren!B122 -> 54 | B66: =Invoeren!A122 -> 116 | C66: =Invoeren!$D122 -> 200403516 | D66: =Invoeren!E122 -> Ilse Wienen | E66: =Invoeren!F122 -> Cadans | F66: =Invoeren!$I122 -> 0 | G66: =Invoeren!$H122 -> oost | H66: =Invoeren!L122 -> 0 | I66: =Invoeren!M122 -> L | J66: =Invoeren!N122 ->  | K66: =Invoeren!$C122 -> 53.6023 | L66: =Invoeren!AI122 -> 32 | M66: =Invoeren!BC122 -> 93 | N66: =Invoeren!BW122 -> 57 | O66: =Invoeren!CQ122 -> 47
A67: =Invoeren!B128 -> 55 | B67: =Invoeren!A128 -> 122 | C67: =Invoeren!$D128 -> 200304190 | D67: =Invoeren!E128 -> Orane Brunsting | E67: =Invoeren!F128 -> Z.P.C.H. | F67: =Invoeren!$I128 -> 0 | G67: =Invoeren!$H128 -> MidWest | H67: =Invoeren!L128 -> 0 | I67: =Invoeren!M128 -> L | J67: =Invoeren!N128 ->  | K67: =Invoeren!$C128 -> 53.4128 | L67: =Invoeren!AI128 -> 45 | M67: =Invoeren!BC128 -> 79 | N67: =Invoeren!BW128 -> 47 | O67: =Invoeren!CQ128 -> 62
A68: =Invoeren!B34 -> 56 | B68: =Invoeren!A34 -> 28 | C68: =Invoeren!$D34 -> 200401298 | D68: =Invoeren!E34 -> Maddy van der Hoeven | E68: =Invoeren!F34 -> De Dolfijn | F68: =Invoeren!$I34 -> 0 | G68: =Invoeren!$H34 -> Midwest | H68: =Invoeren!L34 -> 0 | I68: =Invoeren!M34 -> L | J68: =Invoeren!N34 ->  | K68: =Invoeren!$C34 -> 53.3295 | L68: =Invoeren!AI34 -> 79 | M68: =Invoeren!BC34 -> 74 | N68: =Invoeren!BW34 -> 34 | O68: =Invoeren!CQ34 -> 47
A69: =Invoeren!B79 -> 57 | B69: =Invoeren!A79 -> 73 | C69: =Invoeren!$D79 -> 200504282 | D69: =Invoeren!E79 -> Noëlle Rienks | E69: =Invoeren!F79 -> De Watertrappers | F69: =Invoeren!$I79 -> 0 | G69: =Invoeren!$H79 -> Mid West | H69: =Invoeren!L79 -> 0 | I69: =Invoeren!M79 -> L | J69: =Invoeren!N79 ->  | K69: =Invoeren!$C79 -> 53.2917 | L69: =Invoeren!AI79 -> 88 | M69: =Invoeren!BC79 -> 36 | N69: =Invoeren!BW79 -> 82 | O69: =Invoeren!CQ79 -> 47
A70: =Invoeren!B105 -> 58 | B70: =Invoeren!A105 -> 99 | C70: =Invoeren!$D105 -> 200303742 | D70: =Invoeren!E105 -> Nadja van Kralingen | E70: =Invoeren!F105 -> WVZ | F70: =Invoeren!$I105 -> 0 | G70: =Invoeren!$H105 -> West | H70: =Invoeren!L105 -> 0 | I70: =Invoeren!M105 -> L | J70: =Invoeren!N105 ->  | K70: =Invoeren!$C105 -> 53.0341 | L70: =Invoeren!AI105 -> 105 | M70: =Invoeren!BC105 -> 23 | N70: =Invoeren!BW105 -> 114 | O70: =Invoeren!CQ105 -> 30
A71: =Invoeren!B209 -> 59 | B71: =Invoeren!A209 -> 203 | C71: =Invoeren!$D209 -> 200303876 | D71: =Invoeren!E209 -> Julia Derksen | E71: =Invoeren!F209 -> PSV Synchro Team Eindhoven | F71: =Invoeren!$I209 -> 0 | G71: =Invoeren!$H209 -> Zuid | H71: =Invoeren!L209 -> 0 | I71: =Invoeren!M209 -> L | J71: =Invoeren!N209 ->  | K71: =Invoeren!$C209 -> 52.9810 | L71: =Invoeren!AI209 -> 68 | M71: =Invoeren!BC209 -> 79 | N71: =Invoeren!BW209 -> 37 | O71: =Invoeren!CQ209 -> 65
A72: =Invoeren!B143 -> 60 | B72: =Invoeren!A143 -> 137 | C72: =Invoeren!$D143 -> 200404262 | D72: =Invoeren!E143 -> Ailani Weltz | E72: =Invoeren!F143 -> DAW | F72: =Invoeren!$I143 -> 0 | G72: =Invoeren!$H143 -> Midwest | H72: =Invoeren!L143 -> 0 | I72: =Invoeren!M143 -> L | J72: =Invoeren!N143 ->  | K72: =Invoeren!$C143 -> 52.9016 | L72: =Invoeren!AI143 -> 29 | M72: =Invoeren!BC143 -> 60 | N72: =Invoeren!BW143 -> 108 | O72: =Invoeren!CQ143 -> 58
A73: =Invoeren!B26 -> 61 | B73: =Invoeren!A26 -> 20 | C73: =Invoeren!$D26 -> 200401608 | D73: =Invoeren!E26 -> Ilyana Guliker | E73: =Invoeren!F26 -> Polar Bears | F73: =Invoeren!$I26 -> 0 | G73: =Invoeren!$H26 -> Oost | H73: =Invoeren!L26 -> 0 | I73: =Invoeren!M26 -> L | J73: =Invoeren!N26 ->  | K73: =Invoeren!$C26 -> 52.6628 | L73: =Invoeren!AI26 -> 68 | M73: =Invoeren!BC26 -> 46 | N73: =Invoeren!BW26 -> 71 | O73: =Invoeren!CQ26 -> 92
A74: =Invoeren!B70 -> 62 | B74: =Invoeren!A70 -> 64 | C74: =Invoeren!$D70 -> 200303047 | D74: =Invoeren!E70 -> Zody Thode | E74: =Invoeren!F70 -> Cadans | F74: =Invoeren!$I70 -> 0 | G74: =Invoeren!$H70 -> oost | H74: =Invoeren!L70 -> 0 | I74: =Invoeren!M70 -> L | J74: =Invoeren!N70 ->  | K74: =Invoeren!$C70 -> 52.5985 | L74: =Invoeren!AI70 -> 12 | M74: =Invoeren!BC70 -> 126 | N74: =Invoeren!BW70 -> 82 | O74: =Invoeren!CQ70 -> 76
